Workbook

Sheet Coverpage
B27: 2023-11-30
B29: Ausgrid’s 2024-29 Revised Proposal
B31: Attachment 5.9.3: Cyber security CBA Model

Sheet Contents
A1: Proposed ICT Expenditure – Program Brief Cost-Benefit Analysis
A2: =RIGHT(CELL("filename",A1),LEN(CELL("filename",A1))-FIND("]",CELL("filename",A1))) -> Contents
A3: =_xlfn.SHEET() -> 2
B5: No. | C5: Worksheet | D5: Description
B6: 1 | C6: Cover | D6: Model cover worksheet
B7: 2 | C7: Contents | D7: Contains list of worksheets and a description
B8: 3 | C8: Information | D8: Contains the model schematic and a style guide
B9: 4 | C9: General assumptions | D9: Assumption worksheet with model information, assumptions, timing and constants
B10: 5 | C10: General assumptions - calculations | D10: Calculations sheet to calculate escalation factors - to be used to convert $ values into base year
B11: 6 | C11: Benefit categories | D11: Explanation of benefit categories and sub-categories
B12: 7 | C12: PB_summary_O | D12: Summary of findings, graphical and table format
B13: 8 | C13: PB_cost_A | D13: Program Brief: cost assumptions for all options
B14: 9 | C14: PB_benefits_A | D14: Program Brief: benefit assumptions for all options
B15: 10 | C15: PB_benefit_compliance risks_A | D15: Worksheet to assist with calculation of compliance/legislative risks and penalties
B16: 11 | C16: PB_Input | D16: Input sheet for Ausgrid NPV model
B17: 12 | C17: Ausgrid_NPV_model>> | D17: Description of Ausgrid NPV Model and how it interacts with this model
B18: 13 | C18: NOTES | D18: Ausgrid model notes
B19: 14 | C19: QuickCalc | D19: Simplified input tab for NPV model calculations
B20: 15 | C20: Input | D20: Detailed input tab for NPV model calculations
B21: 16 | C21: Output_charts | D21: Summary of findings, graphical format
B22: 17 | C22: Output_tables | D22: Summary of findings, table format
B23: 18 | C23: Reference>> | D23: Blank
B24: 19 | C24: User guide | D24: User guide to Ausgrid NPV model
B25: 20 | C25: MODELoverview | D25: Provides an overview of the model logic (for information only)
B26: 21 | C26: NPVoverview | D26: Provides an overview of the NPV methodology used in the model (for information only)
B27: 22 | C27: Calculations>> | D27: Blank
B28: 23 | C28: Calcs | D28: Calculations underpinned by the inputs and assumptions entered in the model (for review purposes only)
B29: 24 | C29: Assumptions | D29: Assumptions entered by the finance team (for review purposes only and can only be edited post discussions with finance)
B30: 25 | C30: EBSS_CESS | D30: Supports calculation of EBSS and CESS (for review purposes only)

Sheet Information
A1: Proposed ICT Expenditure – Program Brief Cost-Benefit Analysis
A2: =RIGHT(CELL("filename",A1),LEN(CELL("filename",A1))-FIND("]",CELL("filename",A1))) -> Information
A3: =_xlfn.SHEET() -> 3
A5: =$A$3&"."&COUNTA($A$3:A4) -> 3.1 | B5: Model schematic
A40: =$A$3&"."&COUNTA($A$3:A34) -> 3.2 | B40: Style guide
B42: Assumption/input cell
B43: Implicit assumption cell
B44: List value
B45: Calculation cell
B46: [Guidance note]
B47: Cells that contain checks

Sheet Gen_A
A1: Proposed ICT Expenditure – Program Brief Cost-Benefit Analysis
A2: =RIGHT(CELL("filename",A1),LEN(CELL("filename",A1))-FIND("]",CELL("filename",A1))) -> Gen_A
A3: =_xlfn.SHEET() -> 4
B5: Assumption | C5: Units | D5: Value
A7: =$A$3&"."&COUNTA($A$3:A6) -> 4.1 | B7: Model timing
B9: Model start date | C9: Date | D9: 2024-07-01
B10: Model end date | C10: Date | D10: 2034-06-30
A12: =$A$3&"."&COUNTA($A$3:A11) -> 4.2 | B12: General assumptions
B14: Base year for real cashflows | C14: Date | D14: FY24
B15: Discount rate ( Real pre-tax reg WACC forecast, avg for 5 years) | C15: % p.a | D15: 0.0233
B17: CPI FY16 - actual | C17: % p.a | D17: 0.01508366722
B18: CPI FY17 - actual | C18: % p.a | D18: 0.01276990945
B19: CPI FY18 - actual | C19: % p.a | D19: 0.01948647409
B20: CPI FY19 - actual | C20: % p.a | D20: 0.01911400944
B21: CPI FY20 - actual | C21: % p.a | D21: 0.01840490798
B22: CPI FY21 - actual | C22: % p.a | D22: 0.008605852003
B23: CPI FY22 - forecast | C23: % p.a | D23: 0.02344987172
B24: CPI FY23 - forecast | C24: % p.a | D24: 0.04582
B25: CPI FY24 - forecast | C25: % p.a | D25: 0.02034
B26: CPI FY25 - forecast | C26: % p.a | D26: 0.02289993326
B27: CPI FY26 - forecast | C27: % p.a | D27: 0.023670799
B28: CPI FY27 - forecast | C28: % p.a | D28: 0.02423428127
B29: CPI FY28 - forecast | C29: % p.a | D29: 0.025
B30: CPI FY29 - forecast | C30: % p.a | D30: 0.025
A32: =$A$3&"."&COUNTA($A$3:A31) -> 4.3 | B32: Benefits assumptions
B34: Likelihood of events
B35: Twice a year | C35: # | D35: 2
B36: Once a year | C36: # | D36: 1
B37: Once every two years | C37: # | D37: 0.5
B38: Once every five years | C38: # | D38: 0.2
B40: Labour rates
B41: Median Australian earnings | C41: $FY24/hr | D41: =(1209/31.4)*Gen_A_Calcs!$J$29 -> 41.08643957
B42: Ausgrid average labour rate | C42: $FY24/hr | D42: =(166583/1583)*Gen_A_Calcs!$K$29 -> 107.3728984
B43: Ausgrid ICT Specialist labour rate | C43: $FY24/hr | D43: =((1.3*850)*Gen_A_Calcs!$J$29)/8 -> 147.3920796
B45: Ausgrid facts and numbers
B46: Ausgrid network electricity consumption per annum | C46: kWhr/yr | D46: 24962185000
B47: Ausgrid network electricity consumption per hour | C47: kWhr/hr | D47: =D46/(24*365) -> 2849564.498
B48: Ausgrid number of zone substations | C48: # | D48: 181
B49: Avg electricity consumption per zone substation per hour | C49: kWhr/hr | D49: =D47/D48 -> 15743.45026
B50: Avg electricity consumption per customer per hour | C50: kWhr/hr | D50: =D47/D52 -> 1.594152147
B52: Ausgrid # customers - Total | C52: # NMIs | D52: 1787511
B53: Ausgrid # customers - Sydney S&W | C53: # NMIs | D53: 527937
B54: Ausgrid # customers - Sydney CBD&E | C54: # NMIs | D54: 357133
B55: Ausgrid # customers - Sydney N&CC | C55: # NMIs | D55: 524403
B56: Ausgrid # customers - Newcastle & Hunter | C56: # NMIs | D56: 377685
B57: Ausgrid # customers - Other | C57: # NMIs | D57: 353
B59: Ausgrid average VCR | C59: FY24$/kWh | D59: =(D60*D63)+(D61*D64)+(D62*D65) -> 42.25377985
B60: 2021 AER NSW residential VCR | C60: FY24$/kWh | D60: =26.82*Gen_A_Calcs!$I$29 -> 29.29052829
B61: Business customer VCR, average | C61: FY24$/kWh | D61: =(AVERAGE(39.28,46.18,66.16))*Gen_A_Calcs!$I$29 -> 55.19549962
B62: Very large business customers, average | C62: FY24$/kWh | D62: =AVERAGE(10.93,122.39,20.6,36.47) -> 47.5975
B63: Ausgrid customers - % residential | C63: % | D63: 0.35
B64: Ausgrid customers - % small, non-res | C64: % | D64: 0.14
B65: Ausgrid customers - % large, non-res | C65: % | D65: 0.51
B67: Ausgrid number of permanent/labour hire/ contracted services employees (excluing PLUS ES & Third Party Supplier) | C67: # | D67: 3963
B68: Ausgrid employees using IT systems | C68: # | D68: 3963
B69: Ausgrid employees using SAP ECC6 | C69: # | D69: 2744
B70: Ausgrid employees using SAP 4/HANA | C70: # | D70: 423
B71: Ausgrid employees using MBS | C71: # | D71: 727
B72: Ausgrid employees using WebGIS | C72: # | D72: 2416
B73: Ausgrid employees using GIS Core | C73: # | D73: 262
B75: Safety risk monetization framework
B76: None | C76: FY24$ | D76: 0
B77: Insignificant | C77: FY24$ | D77: =447*Gen_A_Calcs!$F$29 -> 511.0232897
B78: Minor | C78: FY24$ | D78: =4469*Gen_A_Calcs!$F$29 -> 5109.089669
B79: Moderate | C79: FY24$ | D79: =44693*Gen_A_Calcs!$F$29 -> 51094.32637
B80: Major | C80: FY24$ | D80: =446929*Gen_A_Calcs!$F$29 -> 510942.1205
B81: Severe | C81: FY24$ | D81: =4469292*Gen_A_Calcs!$F$29 -> 5109423.491
B83: Environment risk monetization framework
B84: None | C84: FY24$ | D84: 0
B85: Insignificant | C85: FY24$ | D85: =10193*Gen_A_Calcs!$F$29 -> 11652.93153
B86: Minor | C86: FY24$ | D86: =101931*Gen_A_Calcs!$F$29 -> 116530.4585
B87: Moderate | C87: FY24$ | D87: =1019312*Gen_A_Calcs!$F$29 -> 1165306.871
B88: Major | C88: FY24$ | D88: =4558501*Gen_A_Calcs!$F$29 -> 5211409.793
B89: Severe | C89: FY24$ | D89: =10193119*Gen_A_Calcs!$F$29 -> 11653067.57
B91: Fire risk monetization framework
B92: None | C92: FY24$ | D92: 0
B93: Insignificant | C93: FY24$ | D93: =6600*Gen_A_Calcs!$E$29 -> 7692.341812
B94: Minor | C94: FY24$ | D94: =66000*Gen_A_Calcs!$E$29 -> 76923.41812
B95: Moderate | C95: FY24$ | D95: =660000*Gen_A_Calcs!$E$29 -> 769234.1812
B96: Major | C96: FY24$ | D96: =6600000*Gen_A_Calcs!$E$29 -> 7692341.812
B97: Severe | C97: FY24$ | D97: =66000000*Gen_A_Calcs!$E$29 -> 76923418.12
A102: =$A$3&"."&COUNTA($A$3:A33) -> 4.4 | B102: Model labelling and constants
B104: Options
B105: Option 1 | C105: Text | D105: Option 1
B106: Option 2 | C106: Text | D106: Option 2
B107: Option 3 | C107: Text | D107: Option 3
B109: Constants | F109: [Implicit assumptions; user may not change]
B110: Days per year | C110: # | D110: 365.25
B111: Months per year | C111: # | D111: 12
B112: Hours per day | C112: # | D112: 24
B113: Start month financial year | C113: # | D113: 7
B114: End month financial year | C114: # | D114: 6
B115: Thousand | C115: # | D115: =10^3 -> 1000 | F115: [Thousand]
B116: Million | C116: # | D116: =10^6 -> 1000000 | F116: [Million]
B117: Billion | C117: # | D117: =10^9 -> 1000000000 | F117: [Billion]

Sheet Gen_A_Calcs
A1: Proposed ICT Expenditure – Program Brief Cost-Benefit Analysis
A2: =RIGHT(CELL("filename",A1),LEN(CELL("filename",A1))-FIND("]",CELL("filename",A1))) -> Gen_A_Calcs
A3: =_xlfn.SHEET() -> 5
AD4: Yes | AE4: No
A5: =$A$3&"."&COUNTA($A$3:A4) -> 5.1 | B5: Calculating an index to convert $ values into base year
B7: Assumption | C7: Units | D7: Value
B8: CPI FY16 - actual | C8: % p.a | D8: =Gen_A!D17 -> 0.01508366722
B9: CPI FY17 - actual | C9: % p.a | D9: =Gen_A!D18 -> 0.01276990945
B10: CPI FY18 - actual | C10: % p.a | D10: =Gen_A!D19 -> 0.01948647409
B11: CPI FY19 - actual | C11: % p.a | D11: =Gen_A!D20 -> 0.01911400944
B12: CPI FY20 - actual | C12: % p.a | D12: =Gen_A!D21 -> 0.01840490798
B13: CPI FY21 - actual | C13: % p.a | D13: =Gen_A!D22 -> 0.008605852003
B14: CPI FY22 - forecast | C14: % p.a | D14: =Gen_A!D23 -> 0.02344987172
B15: CPI FY23 - forecast | C15: % p.a | D15: =Gen_A!D24 -> 0.04582
B16: CPI FY24 - forecast | C16: % p.a | D16: =Gen_A!D25 -> 0.02034
B18: Use this table to convert from Real FYXX (year in row 18) to Real FYXX (year in column B)
C19: FY15 | D19: FY16 | E19: FY17 | F19: FY18 | G19: FY19 | H19: FY20 | I19: FY21 | J19: FY22 | K19: FY23 | L19: FY24
B20: FY15 | C20: 1
B21: FY16 | C21: =C20*(1+$D$8) -> 1.015083667 | D21: 1
B22: FY17 | C22: =C21*(1+$D$9) -> 1.028046194 | D22: =D21*(1+$D$9) -> 1.012769909 | E22: 1
B23: FY18 | C23: =C22*(1+$D$10) -> 1.048079189 | D23: =D22*(1+$D$10) -> 1.032505224 | E23: =E22*(1+$D$10) -> 1.019486474 | F23: 1
B24: FY19 | C24: =C23*(1+$D$11) -> 1.068112185 | D24: =D23*(1+$D$11) -> 1.052240539 | E24: =E23*(1+$D$11) -> 1.038972948 | F24: =F23*(1+$D$11) -> 1.019114009 | G24: 1
B25: FY20 | C25: =C24*(1+$D$12) -> 1.087770691 | D25: =D24*(1+$D$12) -> 1.071606929 | E25: =E24*(1+$D$12) -> 1.05809515 | F25: =F24*(1+$D$12) -> 1.037870709 | G25: =G24*(1+$D$12) -> 1.018404908 | H25: 1
B26: FY21 | C26: =C25*(1+$D$13) -> 1.097131885 | D26: =D25*(1+$D$13) -> 1.08082902 | E26: 1.06720096 | F26: 1.046802471 | G26: 1.02716915 | H26: 1.008605852 | I26: 1
B27: FY22 | C27: =C26*(1+$D$14) -> 1.122859487 | D27: =D26*(1+$D$14) -> 1.106174321 | E27: 1.092226686 | F27: 1.071349854 | G27: 1.051256135 | H27: 1.03225753 | I27: 1.023449872 | J27: 1
B28: FY23 | C28: =C27*(1+$D$15) -> 1.174308908 | D28: =D27*(1+$D$15) -> 1.156859229 | E28: 1.142272512 | F28: 1.120439105 | G28: 1.099424691 | H28: 1.07955557 | I28: 1.070344345 | J28: 1.04582 | K28: 1
B29: FY24 | C29: =C28*(1+$D$16) -> 1.198194352 | D29: =D28*(1+$D$16) -> 1.180389746 | E29: 1.165506335 | F29: 1.143228836 | G29: 1.121786989 | H29: =H28*(1+$D$16) -> 1.10151373 | I29: 1.092115149 | J29: 1.067091979 | K29: 1.02034 | L29: 1
B31: % of full stack capex that is SCS only | C31: 0.8655392862

Sheet Benefit_Categories
A1: Proposed ICT Expenditure – Program Brief Cost-Benefit Analysis
A2: =RIGHT(CELL("filename",A1),LEN(CELL("filename",A1))-FIND("]",CELL("filename",A1))) -> Benefit_Categories
A3: =_xlfn.SHEET() -> 6
A5: =$A$3&"."&COUNTA($A$3:A4) -> 6.1 | B5: Benefit categories
B7: Benefit category | C7: Description | D7: Quantification approach | E7: Benefit sub-categories | F7: Description
B8: Operational benefits to Ausgrid and / or customers | C8: Direct improvements in the operations and / or services supplied by Ausgrid as a result of an investment. These benefits are typically reflected in reduced costs (efficiencies), such as direct cost savings for Ausgrid in delivering SCS or time savings for customers. | D8: • Cost savings are quantified through: → Cost build up (e.g. hours of labour saved times average cost of labour per hour); and / or → Benchmarks (e.g. typical % costs savings for similar projects or external benchmarks) • Customer time savings are quantified based on value of time saved (e.g. minutes saved times average wages ($ / minute)) | E8: Cost reductions | F8: A direct and measurable cost reduction (CapEx/OpEx) as a result of an investment
E9: Customer time saved | F9: Customer experience improvements (measured as a reduction in customer time spent)
B10: IT risk benefits | C10: Changes in risks relating to IT systems and functionality as a result of an investment. For example, a reduction in the risk that an IT system will fail. | D10: • For some risk based benefits (for example safety) we will use a risk monetization framework which allocates a monetory cost to the associated risk level. • Risk based benefits are quantified by estimating the change in the expected cost of the risk, where the expected cost of the risk is estimated as the likelihood of the risk (%) times the consequence of the risk ($) → For example, assume a risk has a consequence of $10 million and 10% chance (i.e. likelihood) of occurring without the project. With the project, the consequence does not change but the likelihood falls to 8%. → The quantified risk benefit is then the change in likelihood times consequence, which is (10% - 8%) x $10m = $200,000 • The consequence costs may comprise different elements, such as: → Loss of supply, which is measured using an estimate of the unserved energy and the value of customer reliability (VCR) for Ausgrid’s distribution area → Rectification costs, which are measure using an estimate of the resource effort required (e.g. hours time $/hour for ICT resources) → Employee utilisation costs, which is quantified based on average wages times number of employees impacted times amount of time | E10: System outages | F10: Any change to the risk of a system outage occurring as a result of an investment
E12: System functionality | F12: Any change to the risk of a system functioning as required as a result of an investment. For example, changing from customized to standard system would result in a reduction in IT costs to change system functionality in response to regulatory change
B13: Enterprise risk benefits | C13: Changes in risks relating to Ausgrid’s ability to perform tasks required by regulation or contract as a result of an investment. For example, a reduction in the risk that Ausgrid will not meet compliance obligations under the SOCI Act. | E13: Compliance & contractual risks | F13: Any change to the risk of Ausgrid being able to act in accordance with industry laws and regulations or contractual obligations as a result of an investment
B14: Community risk benefits | C14: Changes in risks to the community at large as a result of an investment. For example, a reduction in safety risks for the general public. | E14: Reliable electricity supply risks | F14: Any change to the risk of supplying electricity to customers as a result of an investment. Reliable electricity supply is vital to the community and using AER’s values of customer reliability (VCR), we seek to quantify this
E15: Safety risks | F15: Any change to health and safety risks of any person (Ausgrid employee or public) as a result of an investment
E16: Environmental/ bushfire risks | F16: Any change to the environmental/bushire risks of any person (Ausgrid employee or public) as a result of an investment

Sheet PB_summary_O
A1: Proposed ICT Expenditure – Program Brief Cost-Benefit Analysis
A2: =RIGHT(CELL("filename",A1),LEN(CELL("filename",A1))-FIND("]",CELL("filename",A1))) -> PB_summary_O
A3: =_xlfn.SHEET() -> 7
A5: =$A$3&"."&COUNTA($A$3:A4) -> 7.1 | B5: Project Brief cost-benefit analysis summary, all options
C7: Option 1 | D7: Option 2 | E7: Option 3 | H7: Notes on the output charts: Ausgrid's NPV model and methodology, which is used to assess internal business cases, is used here for consistency.
B8: Option name | C8: Base Case | D8: Enhanced cyber security capability | E8: Expanded cyber security capability
B9: Option description | C9: Ausgrid will only undertake the minimum investment required to maintain the cyber security program. No significant investments for uplift in, or enhancement of, Ausgrid’s cyber security systems and practices will be undertaken in the 2025-29 regulatory control period, with investment deferred until the next control period. | D9: Ausgrid will further extend its cyber security maturity by expanding on SP1 compliance and move towards SP2 based on risks and threats. Investments will be limited to appropriate responses to emerging threats. Full compliance with SP3 will not be set as a target as it is unlikely that Ausgrid will achieve full compliance with SP3 within the 2025-29 regulatory control period. | E9: Ausgrid will further extend its cyber security maturity by expanding on SP1 compliance and move towards SP3 based on risks and threats. Investments will be limited to appropriate responses to emerging threats . This option adopts all the key strategic initiatives identified through the review of Ausgrid’s cyber program. This option provides the highest level of protection / mitigation against potential cyber attacks.
B11: Present value cost | C11: -14712562.77 | D11: -50863636.26 | E11: -63734320.29
B12: Present value benefit | C12: -42367311.17 | D12: 73896149.26 | E12: 215767065.7
B13: Net present value (NPV) [To market] | C13: -57079873.94 | D13: 23032513 | E13: 152032745.5
B15: Preferred option
B16: Preference rationale
A18: =$A$3&"."&COUNTA($A$3:A17) -> 7.2 | B18: Project Brief cost-benefit analysis output chart, option 1
B20: Total NPV (customers & shareholders)
A36: =$A$3&"."&COUNTA($A$3:A35) -> 7.3 | B36: Project Brief cost-benefit analysis output chart, option 2
B38: Total NPV (customers & shareholders)
A55: =$A$3&"."&COUNTA($A$3:A54) -> 7.4 | B55: Project Brief 1 cost-benefit analysis output chart, option 3
B57: Total NPV (customers & shareholders)

Sheet PB_benefit_A
A1: Proposed ICT Expenditure – Program Brief Cost-Benefit Analysis
A2: =RIGHT(CELL("filename",A1),LEN(CELL("filename",A1))-FIND("]",CELL("filename",A1))) -> PB_benefit_A
A3: =_xlfn.SHEET() -> 8
A5: =$A$3&"."&COUNTA($A$3:A4) -> 8.1 | B5: Project Brief 1 benefit assumptions for option 1
B7: Benefit category: Operational benefits to Ausgrid and / or customers | I7: Capex/Opex/Productivity | S7: Quantity of units | AD7: Cost reduction/ value of customer time saved
B8: Benefit sub-category | C8: Description | D8: More detail/source | J8: Unit description | K8: Unit rate | L8: Units | S8: 2024/25 | T8: 2025/26 | U8: 2026/27 | V8: 2027/28 | W8: 2028/29 | X8: 2029/30 | Y8: 2030/31 | Z8: 2031/32 | AA8: 2032/33 | AB8: 2033/34 | AD8: 2024/25 | AE8: 2025/26 | AF8: 2026/27 | AG8: 2027/28 | AH8: 2028/29 | AI8: 2029/30 | AJ8: 2030/31 | AK8: 2031/32 | AL8: 2032/33 | AM8: 2033/34
B9: Cost reductions | I9: Capex
B10: Cost reductions | I10: Capex
B11: Cost reductions | I11: Opex
B12: Cost reductions | I12: Opex
B13: Cost reductions | I13: Productivity
B14: Cost reductions | I14: Productivity
B15: Cost reductions Capex total | AD15: =SUMIFS(AD$9:AD$14,$I$9:$I$14,"Capex") -> 0 | AE15: =SUMIFS(AE$9:AE$14,$I$9:$I$14,"Capex") -> 0 | AF15: 0 | AG15: 0 | AH15: 0 | AI15: 0 | AJ15: 0 | AK15: 0 | AL15: 0 | AM15: 0
B16: Cost reductions Opex total | AD16: =SUMIFS(AD$9:AD$14,$I$9:$I$14,"Opex") -> 0 | AE16: =SUMIFS(AE$9:AE$14,$I$9:$I$14,"Opex") -> 0 | AF16: 0 | AG16: 0 | AH16: 0 | AI16: 0 | AJ16: 0 | AK16: 0 | AL16: 0 | AM16: 0
B17: Cost reductions Productivity total | AD17: =SUMIFS(AD$9:AD$14,$I$9:$I$14,"Productivity") -> 0 | AE17: =SUMIFS(AE$9:AE$14,$I$9:$I$14,"Productivity") -> 0 | AF17: 0 | AG17: 0 | AH17: 0 | AI17: 0 | AJ17: 0 | AK17: 0 | AL17: 0 | AM17: 0
B19: Customer time saved | I19: Customer | J19: Median wage | K19: =Gen_A!$D$41 -> 41.08643957 | L19: FY24$/hr
B20: Customer time saved | I20: Customer | J20: Median wage | K20: =Gen_A!$D$41 -> 41.08643957 | L20: FY24$/hr
B21: Customer time saved | I21: Customer | J21: Median wage | K21: =Gen_A!$D$41 -> 41.08643957 | L21: FY24$/hr
B22: Customer time saved total | AD22: =SUM(AD19:AD21) -> 0 | AE22: =SUM(AE19:AE21) -> 0 | AF22: 0 | AG22: 0 | AH22: 0 | AI22: 0 | AJ22: 0 | AK22: 0 | AL22: 0 | AM22: 0
B24: Benefit category: IT risks | F24: Likelihood (per annum) | I24: Consequence - employee utilisation | N24: Consequence - rectification cost | AD24: IT risk cost
B25: Benefit sub-category | C25: Description | D25: More detail/source | F25: Description | G25: # | I25: # employees | J25: Hourly wage | K25: Downtime (hours) | L25: Description | N25: # employees | O25: Hourly wage | P25: Time to fix (hours) | Q25: Other costs | R25: Description | AD25: 2024/25 | AE25: 2025/26 | AF25: 2026/27 | AG25: 2027/28 | AH25: 2028/29 | AI25: 2029/30 | AJ25: 2030/31 | AK25: 2031/32 | AL25: 2032/33 | AM25: 2033/34
B27: System outages | C27: External attack on OT resulting in system/network outage | F27: One in every twenty years there is a successful breach of Ausgrid cybersecurity protocols resulting in a network/system outage | I27: =Gen_A!$D$67 -> 3963 | J27: =Gen_A!$D$42 -> 107.3728984 | K27: 4 | L27: 8 hour duration impacting employee productivity. Assumed that IT system outage impacts 50% of employees productive time. Therefore downtime = 4hrs per employee | N27: 12 | O27: =Gen_A!$D$43 -> 147.3920796 | P27: 16 | R27: 12 ICT specialists 16 hours to rectify and re-secure system | AD27: =$G27*(($I27*$J27*$K27)+($N27*$O27*$P27)+($Q27)) -> 0 | AE27: =$G27*(($I27*$J27*$K27)+($N27*$O27*$P27)+($Q27)) -> 0 | AF27: 0 | AG27: 0 | AH27: 0 | AI27: 0 | AJ27: 0 | AK27: 0 | AL27: 0 | AM27: 0
B28: System functionality | J28: =Gen_A!$D$42 -> 107.3728984 | O28: =Gen_A!$D$43 -> 147.3920796 | AD28: =$G28*(($I28*$J28*$K28)+($N28*$O28*$P28)+($Q28)) -> 0 | AE28: 0 | AF28: 0 | AG28: 0 | AH28: 0 | AI28: 0 | AJ28: 0 | AK28: 0 | AL28: 0 | AM28: 0
B30: Benefit category: Enterprise risks | F30: Likelihood (per annum) | S30: Compliance risks sheet | AD30: Compliance risk cost
B31: Benefit sub-category | C31: Description | D31: More detail/source | F31: Description | G31: # | S31: Cost | T31: Description | AD31: 2024/25 | AE31: 2025/26 | AF31: 2026/27 | AG31: 2027/28 | AH31: 2028/29 | AI31: 2029/30 | AJ31: 2030/31 | AK31: 2031/32 | AL31: 2032/33 | AM31: 2033/34
B32: Compliance & contractual risks | C32: External attack on OT resulting in system/network outage and impacting Ausgrid's ability to perform tasks in line with regulatory conditions | F32: One in every twenty years there is a successful breach of Ausgrid cybersecurity protocols resulting in a network/system outage | G32: =$G$27 -> 0 | S32: ='PB_benefit_compliance risks_A'!$H$9 -> 0 | T32: Refer to compliance risks sheet | AD32: =$S$32*$G32 -> 0 | AE32: =$S$32*$G32 -> 0 | AF32: 0 | AG32: 0 | AH32: 0 | AI32: 0 | AJ32: 0 | AK32: 0 | AL32: 0 | AM32: 0
B34: Benefit category: community risks | F34: Likelihood (per annum) | I34: # Customers impacted | N34: Customer impact | S34: Risk monetization framework | AD34: Community risk cost
B35: Benefit sub-category | C35: Description | D35: More detail/source | F35: Description | G35: # | I35: Best case | J35: Most likely | K35: Worst case | L35: Description | N35: Downtime (hours) | O35: Energy consumption (kWh/hr) | P35: VCR ($/kWh) | Q35: Other costs | R35: Description | S35: Category | T35: Cost | U35: Description | AD35: 2024/25 | AE35: 2025/26 | AF35: 2026/27 | AG35: 2027/28 | AH35: 2028/29 | AI35: 2029/30 | AJ35: 2030/31 | AK35: 2031/32 | AL35: 2032/33 | AM35: 2033/34
B36: Reliable electricity supply risks | C36: External attack on OT resulting in system/network outage and impacting Ausgrid's ability to supply electricity to it's network customers | F36: One in every twenty years there is a successful breach of Ausgrid cybersecurity protocols resulting in a network/system outage | G36: =$G$27 -> 0 | I36: =Gen_A!$D$52/Gen_A!$D$48 -> 9875.751381 | J36: =Gen_A!$D$54 -> 357133 | K36: =Gen_A!$D$52 -> 1787511 | L36: Best case one zone substation impacted, most likely Sydney CBD and worst case is all customers | N36: 8 | O36: =Gen_A!$D$50 -> 1.594152147 | P36: =Gen_A!$D$59 -> 42.25377985 | Q36: 0 | R36: 8 hour duration of outage impacting customers | AD36: =$G36*(((IFERROR(AVERAGE($I36:$K36),0))*$N36*$O36*$P36)+$Q36) -> 0 | AE36: =$G36*(((IFERROR(AVERAGE($I36:$K36),0))*$N36*$O36*$P36)+$Q36) -> 0 | AF36: 0 | AG36: 0 | AH36: 0 | AI36: 0 | AJ36: 0 | AK36: 0 | AL36: 0 | AM36: 0
B37: Safety risks | C37: External attack on OT resulting in system/network outage and impacting Ausgrid's ability to operate safely | F37: One in every twenty years there is a successful breach of Ausgrid cybersecurity protocols resulting in a network/system outage | G37: 0 | S37: Moderate | T37: =INDEX(Gen_A!$D$76:$D$81,MATCH(PB_benefit_A!$S37,Gen_A!$B$76:$B$81,0)) -> 51094.32637 | AD37: =$T37*$G37 -> 0 | AE37: =$T37*$G37 -> 0 | AF37: 0 | AG37: 0 | AH37: 0 | AI37: 0 | AJ37: 0 | AK37: 0 | AL37: 0 | AM37: 0
B38: Environmental risks | C38: External attack on OT resulting in system/network outage and impacting Ausgrid's ability to operate safely with respect to environmental risks | F38: One in every twenty years there is a successful breach of Ausgrid cybersecurity protocols resulting in a network/system outage | G38: 0 | S38: Moderate | T38: =INDEX(Gen_A!$D$84:$D$89,MATCH(PB_benefit_A!$S38,Gen_A!$B$84:$B$89,0)) -> 1165306.871 | AD38: =$T38*$G38 -> 0 | AE38: 0 | AF38: 0 | AG38: 0 | AH38: 0 | AI38: 0 | AJ38: 0 | AK38: 0 | AL38: 0 | AM38: 0
B39: Bushfire risks | C39: External attack on OT resulting in system/network outage and impacting Ausgrid's ability to operate safely with respect to bushfire risks | F39: One in every twenty years there is a successful breach of Ausgrid cybersecurity protocols resulting in a network/system outage | G39: 0 | S39: Moderate | T39: =INDEX(Gen_A!$D$92:$D$97,MATCH(PB_benefit_A!$S39,Gen_A!$B$92:$B$97,0)) -> 769234.1812 | AD39: =$T39*$G39 -> 0 | AE39: 0 | AF39: 0 | AG39: 0 | AH39: 0 | AI39: 0 | AJ39: 0 | AK39: 0 | AL39: 0 | AM39: 0
A41: =$A$3&"."&COUNTA($A$3:A40) -> 8.2 | B41: Project Brief 1 benefit assumptions for option 2
B42: Note that for risk-related benefits, option 1 is the baseline and the benefits are relative to the baseline
B43: Benefit category: Operational benefits to Ausgrid and / or customers | I43: Capex/Opex/Productivity | S43: Quantity of units | AD43: Cost reduction/ value of customer time saved
B44: Benefit sub-category | C44: Description | D44: More detail/source | J44: Unit description | K44: Unit rate | L44: Units | S44: 2024/25 | T44: 2025/26 | U44: 2026/27 | V44: 2027/28 | W44: 2028/29 | X44: 2029/30 | Y44: 2030/31 | Z44: 2031/32 | AA44: 2032/33 | AB44: 2033/34 | AD44: 2024/25 | AE44: 2025/26 | AF44: 2026/27 | AG44: 2027/28 | AH44: 2028/29 | AI44: 2029/30 | AJ44: 2030/31 | AK44: 2031/32 | AL44: 2032/33 | AM44: 2033/34
B45: Cost reductions | I45: Capex
B46: Cost reductions | I46: Capex
B47: Cost reductions | I47: Opex
B48: Cost reductions | I48: Opex
B49: Cost reductions | I49: Productivity
B50: Cost reductions | I50: Productivity
B51: Cost reductions Capex total | AD51: =SUMIFS(AD$45:AD$50,$I$45:$I$50,"Capex") -> 0 | AE51: =SUMIFS(AE$45:AE$50,$I$45:$I$50,"Capex") -> 0 | AF51: 0 | AG51: 0 | AH51: 0 | AI51: 0 | AJ51: 0 | AK51: 0 | AL51: 0 | AM51: 0
B52: Cost reductions Opex total | AD52: =SUMIFS(AD$45:AD$50,$I$45:$I$50,"Opex") -> 0 | AE52: =SUMIFS(AE$45:AE$50,$I$45:$I$50,"Opex") -> 0 | AF52: 0 | AG52: 0 | AH52: 0 | AI52: 0 | AJ52: 0 | AK52: 0 | AL52: 0 | AM52: 0
B53: Cost reductions Productivity total | AD53: =SUMIFS(AD$45:AD$50,$I$45:$I$50,"Productivity") -> 0 | AE53: =SUMIFS(AE$45:AE$50,$I$45:$I$50,"Productivity") -> 0 | AF53: 0 | AG53: 0 | AH53: 0 | AI53: 0 | AJ53: 0 | AK53: 0 | AL53: 0 | AM53: 0
B55: Customer time saved | I55: Customer | J55: Median wage | K55: =Gen_A!$D$41 -> 41.08643957 | L55: FY24$/hr
B56: Customer time saved | I56: Customer | J56: Median wage | K56: =Gen_A!$D$41 -> 41.08643957 | L56: FY24$/hr
B57: Customer time saved | I57: Customer | J57: Median wage | K57: =Gen_A!$D$41 -> 41.08643957 | L57: FY24$/hr
B58: Customer time saved total | AD58: =SUM(AD55:AD57) -> 0 | AE58: =SUM(AE55:AE57) -> 0 | AF58: =SUM(AF55:AF57) -> 0 | AG58: =SUM(AG55:AG57) -> 0 | AH58: =SUM(AH55:AH57) -> 0 | AI58: =SUM(AI55:AI57) -> 0 | AJ58: =SUM(AJ55:AJ57) -> 0 | AK58: =SUM(AK55:AK57) -> 0 | AL58: =SUM(AL55:AL57) -> 0 | AM58: =SUM(AM55:AM57) -> 0
B60: Benefit category: IT risks | F60: Likelihood (per annum) | I60: Consequence - employee utilisation | N60: Consequence - rectification cost | AD60: IT risk benefit (relative to option 1, an improvement will yield a positive result)
B61: Benefit sub-category | C61: Description | D61: More detail/source | F61: Description | G61: # | I61: # employees | J61: Hourly wage | K61: Downtime (hours) | L61: Description | N61: # employees | O61: Hourly wage | P61: Time to fix (hours) | Q61: Other costs | R61: Description | AD61: 2024/25 | AE61: 2025/26 | AF61: 2026/27 | AG61: 2027/28 | AH61: 2028/29 | AI61: 2029/30 | AJ61: 2030/31 | AK61: 2031/32 | AL61: 2032/33 | AM61: 2033/34
B63: System outages | C63: External attack on OT resulting in system/network outage | F63: 20% improvement in likelihood relative to option 1 | G63: =0.8*$G$27 -> 0 | I63: =Gen_A!$D$67 -> 3963 | J63: =Gen_A!$D$42 -> 107.3728984 | K63: 4 | L63: 8 hour duration impacting employee productivity. Assumed that IT system outage impacts 50% of employees productive time. Therefore downtime = 4hrs per employee | N63: 12 | O63: =Gen_A!$D$43 -> 147.3920796 | P63: 16 | R63: 12 ICT specialists 16 hours to rectify and re-secure system | AD63: =AD$27-($G63*(($I63*$J63*$K63)+($N63*$O63*$P63)+($Q63))) -> 0 | AE63: =AE$27-($G63*(($I63*$J63*$K63)+($N63*$O63*$P63)+($Q63))) -> 0 | AF63: 0 | AG63: 0 | AH63: 0 | AI63: 0 | AJ63: 0 | AK63: 0 | AL63: 0 | AM63: 0
B64: System functionality | J64: =Gen_A!$D$42 -> 107.3728984 | O64: =Gen_A!$D$43 -> 147.3920796 | AD64: =AD$28-($G64*(($I64*$J64*$K64)+($N64*$O64*$P64)+($Q64))) -> 0 | AE64: =AE$28-($G64*(($I64*$J64*$K64)+($N64*$O64*$P64)+($Q64))) -> 0 | AF64: 0 | AG64: 0 | AH64: 0 | AI64: 0 | AJ64: 0 | AK64: 0 | AL64: 0 | AM64: 0
B66: Benefit category: Enterprise risks | F66: Likelihood (per annum) | S66: Compliance risks sheet | AD66: Compliance risk cost
B67: Benefit sub-category | C67: Description | D67: More detail/source | F67: Description | G67: # | S67: Cost | T67: Description | AD67: 2024/25 | AE67: 2025/26 | AF67: 2026/27 | AG67: 2027/28 | AH67: 2028/29 | AI67: 2029/30 | AJ67: 2030/31 | AK67: 2031/32 | AL67: 2032/33 | AM67: 2033/34
B68: Compliance & contractual risks | C68: External attack on OT resulting in system/network outage and impacting Ausgrid's ability to perform tasks in line with regulatory conditions | F68: 20% improvement in likelihood relative to option 1 | G68: =0.8*$G$27 -> 0 | S68: ='PB_benefit_compliance risks_A'!$I$9 -> 0 | T68: Refer to compliance risks sheet | AD68: =AD$32-($S$68*$G68) -> 0 | AE68: =AE$32-($S$68*$G68) -> 0 | AF68: 0 | AG68: 0 | AH68: 0 | AI68: 0 | AJ68: 0 | AK68: 0 | AL68: 0 | AM68: 0
B70: Benefit category: community risks | F70: Likelihood (per annum) | I70: # Customers impacted | N70: Customer impact | S70: Risk monetization framework | AD70: Community risk benefit (relative to option 1, an improvement will yield a positive result)
B71: Benefit sub-category | C71: Description | D71: More detail/source | F71: Description | G71: # | I71: Best case | J71: Most likely | K71: Worst case | L71: Description | N71: Downtime (hours) | O71: Energy consumption (kWh/hr) | P71: VCR ($/kWh) | Q71: Other costs | R71: Description | S71: Category | T71: Cost | U71: Description | AD71: 2024/25 | AE71: 2025/26 | AF71: 2026/27 | AG71: 2027/28 | AH71: 2028/29 | AI71: 2029/30 | AJ71: 2030/31 | AK71: 2031/32 | AL71: 2032/33 | AM71: 2033/34
B72: Reliable electricity supply risks | C72: External attack on OT resulting in system/network outage and impacting Ausgrid's ability to supply electricity to it's network customers | F72: 20% improvement in likelihood relative to option 1 | G72: =0.8*$G$27 -> 0 | I72: =Gen_A!$D$52/Gen_A!$D$48 -> 9875.751381 | J72: =Gen_A!$D$54 -> 357133 | K72: =Gen_A!$D$52 -> 1787511 | L72: Best case one zone substation impacted, most likely Sydney CBD and worst case is all customers | N72: 8 | O72: =Gen_A!$D$50 -> 1.594152147 | P72: =Gen_A!$D$59 -> 42.25377985 | Q72: 0 | R72: 8 hour duration of outage impacting customers | AD72: =AD$36-($G72*(((IFERROR(AVERAGE($I72:$K72),0))*$N72*$O72*$P72)+$Q72)) -> 0 | AE72: =AE$36-($G72*(((IFERROR(AVERAGE($I72:$K72),0))*$N72*$O72*$P72)+$Q72)) -> 0 | AF72: 0 | AG72: 0 | AH72: 0 | AI72: 0 | AJ72: 0 | AK72: 0 | AL72: 0 | AM72: 0
B73: Safety risks | C73: External attack on OT resulting in system/network outage and impacting Ausgrid's ability to operate safely | F73: 20% improvement in likelihood relative to option 1 | G73: 0 | S73: Moderate | T73: =INDEX(Gen_A!$D$76:$D$81,MATCH(PB_benefit_A!$S73,Gen_A!$B$76:$B$81,0)) -> 51094.32637 | AD73: =AD37-($T73*$G73) -> 0 | AE73: =AE37-($T73*$G73) -> 0 | AF73: 0 | AG73: 0 | AH73: 0 | AI73: 0 | AJ73: 0 | AK73: 0 | AL73: 0 | AM73: 0
B74: Environmental risks | C74: External attack on OT resulting in system/network outage and impacting Ausgrid's ability to operate safely with respect to environmental risks | F74: 20% improvement in likelihood relative to option 1 | G74: 0 | S74: Moderate | T74: =INDEX(Gen_A!$D$84:$D$89,MATCH(PB_benefit_A!$S74,Gen_A!$B$84:$B$89,0)) -> 1165306.871 | AD74: =AD38-($T74*$G74) -> 0 | AE74: =AE38-($T74*$G74) -> 0 | AF74: 0 | AG74: 0 | AH74: 0 | AI74: 0 | AJ74: 0 | AK74: 0 | AL74: 0 | AM74: 0
B75: Bushfire risks | C75: External attack on OT resulting in system/network outage and impacting Ausgrid's ability to operate safely with respect to bushfire risks | F75: 20% improvement in likelihood relative to option 1 | G75: 0 | S75: Moderate | T75: =INDEX(Gen_A!$D$92:$D$97,MATCH(PB_benefit_A!$S75,Gen_A!$B$92:$B$97,0)) -> 769234.1812 | AD75: =AD39-($T75*$G75) -> 0 | AE75: =AE39-($T75*$G75) -> 0 | AF75: 0 | AG75: 0 | AH75: 0 | AI75: 0 | AJ75: 0 | AK75: 0 | AL75: 0 | AM75: 0
A77: =$A$3&"."&COUNTA($A$3:A76) -> 8.3 | B77: Project Brief 1 benefit assumptions for option 3
B78: Note that for risk-related benefits, option 1 is the baseline and the benefits are relative to the baseline
B79: Benefit category: Operational benefits to Ausgrid and / or customers | I79: Capex/Opex/ Productivity | S79: Quantity of units | AD79: Cost reduction/ value of customer time saved
B80: Benefit sub-category | C80: Description | D80: More detail/source | J80: Unit description | K80: Unit rate | L80: Units | S80: 2024/25 | T80: 2025/26 | U80: 2026/27 | V80: 2027/28 | W80: 2028/29 | X80: 2029/30 | Y80: 2030/31 | Z80: 2031/32 | AA80: 2032/33 | AB80: 2033/34 | AD80: 2024/25 | AE80: 2025/26 | AF80: 2026/27 | AG80: 2027/28 | AH80: 2028/29 | AI80: 2029/30 | AJ80: 2030/31 | AK80: 2031/32 | AL80: 2032/33 | AM80: 2033/34
B81: Cost reductions | I81: Capex
B82: Cost reductions | I82: Capex
B83: Cost reductions | I83: Opex
B84: Cost reductions | I84: Opex
B85: Cost reductions | I85: Productivity
B86: Cost reductions | I86: Productivity
B87: Cost reductions Capex total | AD87: =SUMIFS(AD$81:AD$86,$I$81:$I$86,"Capex") -> 0 | AE87: =SUMIFS(AE$81:AE$86,$I$81:$I$86,"Capex") -> 0 | AF87: 0 | AG87: 0 | AH87: 0 | AI87: 0 | AJ87: 0 | AK87: 0 | AL87: 0 | AM87: 0
B88: Cost reductions Opex total | AD88: =SUMIFS(AD$81:AD$86,$I$81:$I$86,"Opex") -> 0 | AE88: =SUMIFS(AE$81:AE$86,$I$81:$I$86,"Opex") -> 0 | AF88: 0 | AG88: 0 | AH88: 0 | AI88: 0 | AJ88: 0 | AK88: 0 | AL88: 0 | AM88: 0
B89: Cost reductions Productivity total | AD89: =SUMIFS(AD$81:AD$86,$I$81:$I$86,"Productivity") -> 0 | AE89: =SUMIFS(AE$81:AE$86,$I$81:$I$86,"Productivity") -> 0 | AF89: 0 | AG89: 0 | AH89: 0 | AI89: 0 | AJ89: 0 | AK89: 0 | AL89: 0 | AM89: 0
B91: Customer time saved | I91: Customer | J91: Median wage | K91: =Gen_A!$D$41 -> 41.08643957 | L91: FY24$/hr
B92: Customer time saved | I92: Customer | J92: Median wage | K92: =Gen_A!$D$41 -> 41.08643957 | L92: FY24$/hr
B93: Customer time saved | I93: Customer | J93: Median wage | K93: =Gen_A!$D$41 -> 41.08643957 | L93: FY24$/hr
B94: Customer time saved total | AD94: =SUM(AD91:AD93) -> 0 | AE94: =SUM(AE91:AE93) -> 0 | AF94: =SUM(AF91:AF93) -> 0 | AG94: =SUM(AG91:AG93) -> 0 | AH94: =SUM(AH91:AH93) -> 0 | AI94: =SUM(AI91:AI93) -> 0 | AJ94: =SUM(AJ91:AJ93) -> 0 | AK94: =SUM(AK91:AK93) -> 0 | AL94: =SUM(AL91:AL93) -> 0 | AM94: =SUM(AM91:AM93) -> 0
B96: Benefit category: IT risks | F96: Likelihood (per annum) | I96: Consequence - employee utilisation | N96: Consequence - rectification cost | AD96: IT risk benefit (relative to option 1, an improvement will yield a positive result)
B97: Benefit sub-category | C97: Description | D97: More detail/source | F97: Description | G97: # | I97: # employees | J97: Hourly wage | K97: Downtime (hours) | L97: Description | N97: # employees | O97: Hourly wage | P97: Time to fix (hours) | Q97: Other costs | R97: Description | AD97: 2024/25 | AE97: 2025/26 | AF97: 2026/27 | AG97: 2027/28 | AH97: 2028/29 | AI97: 2029/30 | AJ97: 2030/31 | AK97: 2031/32 | AL97: 2032/33 | AM97: 2033/34
B99: System outages | C99: External attack on OT resulting in system/network outage | F99: 20% improvement in likelihood relative to option 2 | G99: =0.8*$G$63 -> 0 | I99: =Gen_A!$D$67 -> 3963 | J99: =Gen_A!$D$42 -> 107.3728984 | K99: 4 | L99: 8 hour duration impacting employee productivity. Assumed that IT system outage impacts 50% of employees productive time. Therefore downtime = 4hrs per employee | N99: 12 | O99: =Gen_A!$D$43 -> 147.3920796 | P99: 16 | R99: 12 ICT specialists 16 hours to rectify and re-secure system | AD99: =AD$27-($G99*(($I99*$J99*$K99)+($N99*$O99*$P99)+($Q99))) -> 0 | AE99: =AE$27-($G99*(($I99*$J99*$K99)+($N99*$O99*$P99)+($Q99))) -> 0 | AF99: 0 | AG99: 0 | AH99: 0 | AI99: 0 | AJ99: 0 | AK99: 0 | AL99: 0 | AM99: 0
B100: System functionality | J100: =Gen_A!$D$42 -> 107.3728984 | O100: =Gen_A!$D$43 -> 147.3920796 | AD100: =AD$26-($G100*(($I100*$J100*$K100)+($N100*$O100*$P100)+($Q100))) -> 0 | AE100: 0 | AF100: 0 | AG100: 0 | AH100: 0 | AI100: 0 | AJ100: 0 | AK100: 0 | AL100: 0 | AM100: 0
B102: Benefit category: Enterprise risks | F102: Likelihood (per annum) | S102: Compliance risks sheet | AD102: Compliance risk cost
B103: Benefit sub-category | C103: Description | D103: More detail/source | F103: Description | G103: # | S103: Cost | T103: Description | AD103: 2024/25 | AE103: 2025/26 | AF103: 2026/27 | AG103: 2027/28 | AH103: 2028/29 | AI103: 2029/30 | AJ103: 2030/31 | AK103: 2031/32 | AL103: 2032/33 | AM103: 2033/34
B104: Compliance & contractual risks | C104: External attack on OT resulting in system/network outage and impacting Ausgrid's ability to perform tasks in line with regulatory conditions | F104: 20% improvement in likelihood relative to option 2 | G104: =0.8*$G$63 -> 0 | S104: ='PB_benefit_compliance risks_A'!$J$9 -> 0 | T104: Refer to compliance risks sheet | AD104: =AD$32-($S$104*$G104) -> 0 | AE104: =AE$32-($S$104*$G104) -> 0 | AF104: 0 | AG104: 0 | AH104: 0 | AI104: 0 | AJ104: 0 | AK104: 0 | AL104: 0 | AM104: 0
B106: Benefit category: community risks | F106: Likelihood (per annum) | I106: # Customers impacted | N106: Customer impact | S106: Risk monetization framework | AD106: Community risk benefit (relative to option 1, an improvement will yield a positive result)
B107: Benefit sub-category | C107: Description | D107: More detail/source | F107: Description | G107: # | I107: Best case | J107: Most likely | K107: Worst case | L107: Description | N107: Downtime (hours) | O107: Energy consumption (kWh/hr) | P107: VCR ($/kWh) | Q107: Other costs | R107: Description | S107: Category | T107: Cost | U107: Description | AD107: 2024/25 | AE107: 2025/26 | AF107: 2026/27 | AG107: 2027/28 | AH107: 2028/29 | AI107: 2029/30 | AJ107: 2030/31 | AK107: 2031/32 | AL107: 2032/33 | AM107: 2033/34
B108: Reliable electricity supply risks | C108: External attack on OT resulting in system/network outage and impacting Ausgrid's ability to supply electricity to it's network customers | F108: 20% improvement in likelihood relative to option 2 | G108: =0.8*$G$63 -> 0 | I108: =Gen_A!$D$52/Gen_A!$D$48 -> 9875.751381 | J108: =Gen_A!$D$54 -> 357133 | K108: =Gen_A!$D$52 -> 1787511 | L108: Best case one zone substation impacted, most likely Sydney CBD and worst case is all customers | N108: 8 | O108: =Gen_A!$D$50 -> 1.594152147 | P108: =Gen_A!$D$59 -> 42.25377985 | Q108: 0 | R108: 8 hour duration of outage impacting customers | AD108: =AD$36-($G108*(((IFERROR(AVERAGE($I108:$K108),0))*$N108*$O108*$P108)+$Q108)) -> 0 | AE108: =AE$36-($G108*(((IFERROR(AVERAGE($I108:$K108),0))*$N108*$O108*$P108)+$Q108)) -> 0 | AF108: 0 | AG108: 0 | AH108: 0 | AI108: 0 | AJ108: 0 | AK108: 0 | AL108: 0 | AM108: 0
B109: Safety risks | C109: External attack on OT resulting in system/network outage and impacting Ausgrid's ability to operate safely | F109: 20% improvement in likelihood relative to option 2 | G109: 0 | S109: Moderate | T109: =INDEX(Gen_A!$D$76:$D$81,MATCH(PB_benefit_A!$S109,Gen_A!$B$76:$B$81,0)) -> 51094.32637 | AD109: =AD37-($T109*$G109) -> 0 | AE109: =AE37-($T109*$G109) -> 0 | AF109: 0 | AG109: 0 | AH109: 0 | AI109: 0 | AJ109: 0 | AK109: 0 | AL109: 0 | AM109: 0
B110: Environmental risks | C110: External attack on OT resulting in system/network outage and impacting Ausgrid's ability to operate safely with respect to environmental risks | F110: 20% improvement in likelihood relative to option 2 | G110: 0 | S110: Moderate | T110: =INDEX(Gen_A!$D$84:$D$89,MATCH(PB_benefit_A!$S110,Gen_A!$B$84:$B$89,0)) -> 1165306.871 | AD110: =AD38-($T110*$G110) -> 0 | AE110: =AE38-($T110*$G110) -> 0 | AF110: 0 | AG110: 0 | AH110: 0 | AI110: 0 | AJ110: 0 | AK110: 0 | AL110: 0 | AM110: 0
B111: Bushfire risks | C111: External attack on OT resulting in system/network outage and impacting Ausgrid's ability to operate safely with respect to bushfire risks | F111: 20% improvement in likelihood relative to option 2 | G111: 0 | S111: Moderate | T111: =INDEX(Gen_A!$D$92:$D$97,MATCH(PB_benefit_A!$S111,Gen_A!$B$92:$B$97,0)) -> 769234.1812 | AD111: =AD39-($T111*$G111) -> 0 | AE111: =AE39-($T111*$G111) -> 0 | AF111: 0 | AG111: 0 | AH111: 0 | AI111: 0 | AJ111: 0 | AK111: 0 | AL111: 0 | AM111: 0

Sheet Benefit Scenarios
B2: Scenario Description
B3: Security Profile
B4: Likelihood
B5: Consequences | C5: Unplanned outage | D5: Unplanned outage (hours)
D6: Avg. value to customer ($)
D7: Value to customer base ($)
D8: Weighted cost ($)
D9: Avoided cost ($)
C10: Manual grid control | D10: Manual control period (days)
D11: Staff controlling grid (people)
D12: Manual control cost ($)
D13: Weighted cost ($)
D14: Avoided cost ($)
C15: Ausgrid staff productivity | D15: Disruption duration (business days)
D16: Corporate resources average productivity (%)
D17: Corporate resources productivity cost ($)
D18: Weighted cost ($)
D19: Avoided cost ($)
D20: IT resources restoration cost ($)
D21: Weighted cost ($)
D22: Avoided cost ($)
C23: Ausgrid planned maintenance | D23: Disruption duration (days)
D24: Field staff productivity cost ($)
D25: Weighted cost ($)
D26: Avoided cost ($)
C27: Market data publishing | D27: Fine per breach ($)
D28: Weighted cost ($)
D29: Avoided cost ($)
C30: Unauthorised access to personal data | D30: Fine per breach ($)
D31: Weighted cost ($)
D32: Avoided cost ($)
B33: TOTAL COST ($) | D33: The amount the incident would cost
B34: WEIGHTED COST | D34: The per annum cost attributed to the scenario
B35: AVOIDED COST | D35: The per annum cost avoided by the option

Sheet Benefit Calcs
A1: Probabilistic benefits Calculations
A2: Benefits calculated as the reduction in the expected consequence cost relative to the base case.
C5: Option 1 | D5: Option 2 | E5: Option 3 | H5: 2024/25 | I5: 2025/26 | J5: 2026/27 | K5: 2027/28 | L5: 2028/29 | M5: 2029/30 | N5: 2030/31 | O5: 2031/32 | P5: 2032/33 | Q5: 2033/34 | R5: 2034/35 | S5: 2035/36 | T5: 2036/37
D6: =C7-D7 -> 8007012.968 | E6: =C7-E7 -> 21726746.49
A7: Consequence 1 - Increase length of unplanned outage | C7: =C16/C8 -> 25154106.78 | D7: =D16/D8 -> 17147093.81 | E7: 3427360.287
C8: 227 | D8: 333 | E8: 1666 | H8: Customer Value Benefit
B9: Likelihood (based on the amount of controls in place) | C9: 0.0044 | D9: 0.003 | E9: 0.0006 | G9: Option 1
G10: Ramp up | H10: 0 | I10: 0.1935320415 | J10: 0.4279629855 | K10: 0.674770052 | L10: 0.8570185428 | M10: 1 | N10: 1 | O10: 1 | P10: =1-I10 -> 0.8064679585 | Q10: =1-J10 -> 0.5720370145 | R10: 0.325229948 | S10: 0.1429814572 | T10: 0
B11: Number of Ausgrid customers (NMIs) | C11: 1787511 | D11: 1787511 | E11: 1787511 | G11: Benefit | H11: =H10*$C$19 -> 0 | I11: =I10*$C$19 -> 0 | J11: 0 | K11: 0 | L11: 0 | M11: 0 | N11: 0 | O11: 0 | P11: 0 | Q11: 0 | R11: 0 | S11: 0 | T11: 0
B12: Proportion of customers (NMIs) impacted | C12: 1 | D12: 1 | E12: 1
B13: Average increase in length of unplanned outage due to cyber attack (hours) | C13: 48 | D13: 48 | E13: 48 | G13: Option 2
B14: Average consumption per customer (kW / hour) | C14: 1.594 | D14: 1.594 | E14: 1.594 | G14: Ramp up | H14: 0 | I14: 0.2294003948 | J14: 0.4390765188 | K14: 0.6369957505 | L14: 0.8315539059 | M14: 1 | N14: 1 | O14: 1 | P14: =1-I14 -> 0.7705996052 | Q14: =1-J14 -> 0.5609234812 | R14: =1-K14 -> 0.3630042495 | S14: =1-L14 -> 0.1684460941 | T14: =1-M14 -> 0
B15: Value of Customer Reliability (weighted for mix of customers impacted) ($/kWh) | C15: 41.75 | D15: 41.75 | E15: 41.75 | G15: Benefit ($) | H15: =H14*$D$19 -> 0 | I15: =I14*$D$19 -> 1833821.051 | J15: 3509966.773 | K15: =K14*$D$19 -> 5092128.19 | L15: =L14*$D$19 -> 6647421.246 | M15: 7993975.133 | N15: 7993975.133 | O15: 7993975.133 | P15: 6160154.082 | Q15: 4484008.36 | R15: 2901846.944 | S15: 1346553.888 | T15: 0
B16: Consequence Cost ($) | C16: =C11*C12*C13*C14*C15 -> 5709982238 | D16: =D11*D12*D13*D14*D15 -> 5709982238 | E16: 5709982238
G17: Option 3
B18: Weighted Consequence Cost ($) | C18: =C16*C9 -> 25123921.85 | D18: =D16*D9 -> 17129946.71 | E18: 3425989.343 | G18: Ramp up | H18: 0 | I18: 0.2121536357 | J18: 0.4144305502 | K18: 0.6114452285 | L18: 0.8055705523 | M18: 1 | N18: 1 | O18: 1 | P18: 0.7878463643 | Q18: 0.5855694498 | R18: 0.3885547715 | S18: 0.1944294477 | T18: =1-M18 -> 0
B19: Annual Benefit ($) | C19: 0 | D19: =C18-D18 -> 7993975.133 | E19: =C18-E18 -> 21697932.5 | G19: Benefit ($) | H19: =H18*$E$19 -> 0 | I19: =I18*$E$19 -> 4603295.268 | J19: 8992286.107 | K19: 13267097.3 | L19: =L18*$E$19 -> 17479215.47 | M19: 21697932.5 | N19: 21697932.5 | O19: 21697932.5 | P19: =P18*$E$19 -> 17094637.24 | Q19: 12705646.4 | R19: 8430835.205 | S19: 4218717.034 | T19: 0
A21: Consequence 2 - Delays in being able to to publish key data to the market
H22: Penalties and Fines
B23: Likelihood | C23: 0.44 | D23: 0.3 | E23: 0.06 | G23: Option 1
G24: Ramp up | H24: =H$10 -> 0 | I24: =I$10 -> 0.1935320415 | J24: 0.4279629855 | K24: 0.674770052 | L24: 0.8570185428 | M24: 1 | N24: 1 | O24: 1 | P24: 0.8064679585 | Q24: 0.5720370145 | R24: 0.325229948 | S24: 0.1429814572 | T24: 0
B25: Number of times data is to be published (per day) | C25: 1 | D25: 1 | E25: 1 | G25: Benefit ($) | H25: =H24*$C$31 -> 0 | I25: =I24*$C$31 -> 0 | J25: 0 | K25: 0 | L25: 0 | M25: 0 | N25: 0 | O25: 0 | P25: 0 | Q25: 0 | R25: =R24*$C$31 -> 0 | S25: 0 | T25: 0
B26: Number of days to restore functionality (days) | C26: 20 | D26: 10 | E26: 5
B27: Fine per breach (see below) ($/breach) | C27: 4000000 | D27: 4000000 | E27: 4000000 | G27: Option 2
B28: Consequence cost ($) | C28: =C27 -> 4000000 | D28: =C28 -> 4000000 | E28: =D28 -> 4000000 | G28: Ramp up | H28: =H$14 -> 0 | I28: =I$14 -> 0.2294003948 | J28: 0.4390765188 | K28: 0.6369957505 | L28: 0.8315539059 | M28: 1 | N28: 1 | O28: 1 | P28: 0.7705996052 | Q28: 0.5609234812 | R28: 0.3630042495 | S28: 0.1684460941 | T28: 0
G29: Benefit ($) | H29: =H28*$D$31 -> 0 | I29: =I28*$D$31 -> 128464.2211 | J29: =J28*$D$31 -> 245882.8505 | K29: 356717.6203 | L29: 465670.1873 | M29: 560000 | N29: =N28*$D$31 -> 560000 | O29: 560000 | P29: 431535.7789 | Q29: 314117.1495 | R29: =R28*$D$31 -> 203282.3797 | S29: 94329.81271 | T29: 0
B30: Weighted Consequence Cost ($) | C30: =C28*C23 -> 1760000 | D30: =D28*D23 -> 1200000 | E30: 240000
B31: Annual Benefit ($) | C31: 0 | D31: =C30-D30 -> 560000 | E31: =C30-E30 -> 1520000 | G31: Option 3
G32: Ramp up | H32: =H$18 -> 0 | I32: =I$18 -> 0.2121536357 | J32: 0.4144305502 | K32: 0.6114452285 | L32: 0.8055705523 | M32: 1 | N32: 1 | O32: 1 | P32: 0.7878463643 | Q32: 0.5855694498 | R32: 0.3885547715 | S32: 0.1944294477 | T32: 0
G33: Benefit ($) | H33: =H32*$E$31 -> 0 | I33: =I32*$E$31 -> 322473.5262 | J33: =J32*$E$31 -> 629934.4364 | K33: 929396.7474 | L33: 1224467.239 | M33: 1520000 | N33: 1520000 | O33: =O32*$E$31 -> 1520000 | P33: 1197526.474 | Q33: 890065.5636 | R33: =R32*$E$31 -> 590603.2526 | S33: =S32*$E$31 -> 295532.7606 | T33: 0
A41: Consequence 3 - Unauthorised access to, or use of, personal data
H42: Penalties and Fines
B43: Likelihood | C43: 0.47 | D43: 0.31 | E43: 0.08 | G43: Option 1
G44: Ramp up | H44: =H$10 -> 0 | I44: =I$10 -> 0.1935320415 | J44: 0.4279629855 | K44: 0.674770052 | L44: 0.8570185428 | M44: 1 | N44: 1 | O44: 1 | P44: 0.8064679585 | Q44: 0.5720370145 | R44: 0.325229948 | S44: 0.1429814572 | T44: 0
B45: Number of Ausgrid customers (NMIs) – proxy for records held | C45: 1787511 | D45: 1787511 | E45: 1787511 | G45: Benefit ($) | H45: =H44*$C$51 -> 0 | I45: =I44*$C$51 -> 0 | J45: 0 | K45: 0 | L45: 0 | M45: 0 | N45: 0 | O45: 0 | P45: 0 | Q45: 0 | R45: =R44*$C$51 -> 0 | S45: 0 | T45: 0
B46: Proportion of records stolen | C46: 1 | D46: 1 | E46: 1
B47: Fine per breach ($/breach) | C47: 12000000 | D47: =C47 -> 12000000 | E47: =D47 -> 12000000 | G47: Option 2
B48: Consequence cost ($) (see below) | C48: =C47 -> 12000000 | D48: =D47 -> 12000000 | E48: =E47 -> 12000000 | G48: Ramp up | H48: =H$14 -> 0 | I48: =I$14 -> 0.2294003948 | J48: 0.4390765188 | K48: 0.6369957505 | L48: 0.8315539059 | M48: 1 | N48: 1 | O48: 1 | P48: 0.7705996052 | Q48: 0.5609234812 | R48: 0.3630042495 | S48: 0.1684460941 | T48: 0
G49: Benefit ($) | H49: =H48*$D$51 -> 0 | I49: =I48*$D$51 -> 440448.758 | J49: =J48*$D$51 -> 843026.9161 | K49: 1223031.841 | L49: 1596583.499 | M49: 1920000 | N49: =N48*$D$51 -> 1920000 | O49: 1920000 | P49: 1479551.242 | Q49: 1076973.084 | R49: =R48*$D$51 -> 696968.159 | S49: 323416.5007 | T49: 0
B50: Weighted Consequence Cost ($) | C50: =C48*C43 -> 5640000 | D50: =D48*D43 -> 3720000 | E50: 960000
B51: Annual Benefit ($) | C51: 0 | D51: =C50-D50 -> 1920000 | E51: =C50-E50 -> 4680000 | G51: Option 3
G52: Ramp up | H52: =H$18 -> 0 | I52: =I$18 -> 0.2121536357 | J52: 0.4144305502 | K52: 0.6114452285 | L52: 0.8055705523 | M52: 1 | N52: 1 | O52: 1 | P52: 0.7878463643 | Q52: 0.5855694498 | R52: 0.3885547715 | S52: 0.1944294477 | T52: 0
G53: Benefit ($) | H53: =H52*$E$51 -> 0 | I53: =I52*$E$51 -> 992879.015 | J53: 1939534.975 | K53: 2861563.67 | L53: =L52*$E$51 -> 3770070.185 | M53: 4680000 | N53: 4680000 | O53: 4680000 | P53: 3687120.985 | Q53: 2740465.025 | R53: =R52*$E$51 -> 1818436.33 | S53: 909929.8155 | T53: 0
B59: I.e. same penalty if two customers or all customers.
A61: Consequence 4 - Unauthorised access to, or use of, network data
H62: Penalties and Fines (cost)
B63: Likelihood | G63: Option 1
G64: Ramp up | H64: =H$10 -> 0 | I64: =I$10 -> 0.1935320415 | J64: 0.4279629855 | K64: 0.674770052 | L64: 0.8570185428 | M64: 1 | N64: 1 | O64: 1 | P64: 0.8064679585 | Q64: 0.5720370145 | R64: 0.325229948 | S64: 0.1429814572 | T64: 0
B65: Number of licence condition breaches as result of an attack | C65: 1 | D65: 1 | E65: 1 | G65: Benefit ($) | H65: =H64*$C$72 -> 0 | I65: =I64*$C$72 -> 0 | J65: 0 | K65: 0 | L65: 0 | M65: 0 | N65: 0 | O65: 0 | P65: 0 | Q65: 0 | R65: =R64*$C$72 -> 0 | S65: 0 | T65: 0
B66: Fine per licence condition breach | C66: >$250K | D66: As per Option 1 | E66: As per Option 1
C67: Not known – assumption never occurred and there is no precedent | G67: Option 2
G68: Ramp up | H68: =H$14 -> 0 | I68: =I$14 -> 0.2294003948 | J68: 0.4390765188 | K68: 0.6369957505 | L68: 0.8315539059 | M68: 1 | N68: 1 | O68: 1 | P68: 0.7705996052 | Q68: 0.5609234812 | R68: 0.3630042495 | S68: 0.1684460941 | T68: 0
B69: Consequence cost ($) | C69: 0 | D69: 0 | E69: 0 | G69: Benefit ($) | H69: =H68*$D$72 -> 0 | I69: =I68*$D$72 -> 0 | J69: 0 | K69: 0 | L69: 0 | M69: 0 | N69: 0 | O69: 0 | P69: 0 | Q69: 0 | R69: =R68*$D$72 -> 0 | S69: 0 | T69: 0
B71: Weighted Consequence Cost ($) | C71: =C69*C63 -> 0 | D71: =D69*D63 -> 0 | E71: 0 | G71: Option 3
B72: Annual Benefit ($) | C72: 0 | D72: =C71-D71 -> 0 | E72: =C71-E71 -> 0 | G72: Ramp up | H72: =H$18 -> 0 | I72: =I$18 -> 0.2121536357 | J72: 0.4144305502 | K72: 0.6114452285 | L72: 0.8055705523 | M72: 1 | N72: 1 | O72: 1 | P72: 0.7878463643 | Q72: 0.5855694498 | R72: 0.3885547715 | S72: 0.1944294477 | T72: 0
G73: Benefit ($) | H73: =H72*$E$72 -> 0 | I73: =I72*$E$72 -> 0 | J73: 0 | K73: 0 | L73: 0 | M73: 0 | N73: 0 | O73: 0 | P73: 0 | Q73: 0 | R73: =R72*$E$72 -> 0 | S73: 0 | T73: 0
B74: NOT CALCULATED - insufficient data
A76: Consequence 5 - Lost staff productivity due to reduced access to key corporate or operational systems
H77: Productvity loss (no cash impact)
B78: Likelihood | C78: 0.44 | D78: 0.3 | E78: 0.06 | G78: Option 1
G79: Ramp up | H79: =H$10 -> 0 | I79: =I$10 -> 0.1935320415 | J79: 0.4279629855 | K79: 0.674770052 | L79: 0.8570185428 | M79: 1 | N79: 1 | O79: 1 | P79: 0.8064679585 | Q79: 0.5720370145 | R79: 0.325229948 | S79: 0.1429814572 | T79: 0
B80: Number of Ausgrid staff impacted | C80: 1900 | D80: 1900 | E80: 1900 | G80: Benefit ($) | H80: =H79*$C$87 -> 0 | I80: =I79*$C$87 -> 0 | J80: 0 | K80: 0 | L80: 0 | M80: 0 | N80: 0 | O80: 0 | P80: 0 | Q80: 0 | R80: =R79*$C$87 -> 0 | S80: 0 | T80: 0
B81: Level of productivity during disruption | C81: 0.4 | D81: 0.6 | E81: 0.8
B82: Average duration of disruption due to cyber attack (Hours | C82: =C$26*8 -> 160 | D82: =D$26*8 -> 80 | E82: =E$26*8 -> 40 | G82: Option 2
B83: Ausgrid average labour rate (from Ausgrid Finance) ($/hour) | C83: 108 | D83: 108 | E83: 108 | G83: Ramp up | H83: =H$14 -> 0 | I83: =I$14 -> 0.2294003948 | J83: 0.4390765188 | K83: 0.6369957505 | L83: 0.8315539059 | M83: 1 | N83: 1 | O83: 1 | P83: 0.7705996052 | Q83: 0.5609234812 | R83: 0.3630042495 | S83: 0.1684460941 | T83: 0
B84: Consequence cost ($) | C84: =C80*(1-C81)*C82*C83 -> 19699200 | D84: =D80*(1-D81)*D82*D83 -> 6566400 | E84: 1641600 | G84: Benefit ($) | H84: =H83*$D$87 -> 0 | I84: =I83*$D$87 -> 1536461.447 | J84: 2940815.094 | K84: 4266424.274 | L84: 5569521.879 | M84: 6697728 | N84: =N83*$D$87 -> 6697728 | O84: =O83*$D$87 -> 6697728 | P84: 5161266.553 | Q84: 3756912.906 | R84: =R83*$D$87 -> 2431303.726 | S84: =S83*$D$87 -> 1128206.121 | T84: 0
B86: Weighted Consequence Cost ($) | C86: =C84*C78 -> 8667648 | D86: =D84*D78 -> 1969920 | E86: 98496 | G86: Option 3
B87: Annual Benefit ($) | C87: 0 | D87: =C86-D86 -> 6697728 | E87: =C86-E86 -> 8569152 | G87: Ramp up | H87: =H$18 -> 0 | I87: =I$18 -> 0.2121536357 | J87: 0.4144305502 | K87: 0.6114452285 | L87: 0.8055705523 | M87: 1 | N87: 1 | O87: 1 | P87: 0.7878463643 | Q87: 0.5855694498 | R87: 0.3885547715 | S87: 0.1944294477 | T87: 0
B88: SCS only | D88: =D87*$H$146*$H$147 -> 6367812.038 | E88: =E87*$H$146*$H$147 -> 8147053.637 | G88: Benefit ($) | H88: =H87*$E$87 -> 0 | I88: =I87*$E$87 -> 1817976.752 | J88: =J87*$E$87 -> 3551318.378 | K88: 5239567.103 | L88: 6903056.509 | M88: 8569152 | N88: 8569152 | O88: =O87*$E$87 -> 8569152 | P88: 6751175.248 | Q88: 5017833.622 | R88: =R87*$E$87 -> 3329584.897 | S88: =S87*$E$87 -> 1666095.491 | T88: 0
B89: Number of IT resources | C89: 300 | D89: 300 | E89: 300
B90: Number of hours of resource time for rectification | C90: =C82*2 -> 320 | D90: =D82*2 -> 160 | E90: =E82*2 -> 80
B91: Average cost of resources ($/hour) | C91: 250 | D91: 250 | E91: 250 | H91: Cost to rectify
B92: Consequence cost ($) | C92: =C90*C91*C89 -> 24000000 | D92: =D90*D91*D89 -> 12000000 | E92: 6000000 | G92: Option 1
G93: Ramp up | H93: =H$10 -> 0 | I93: =I$10 -> 0.1935320415 | J93: 0.4279629855 | K93: 0.674770052 | L93: 0.8570185428 | M93: 1 | N93: 1 | O93: 1 | P93: 0.8064679585 | Q93: 0.5720370145 | R93: 0.325229948 | S93: 0.1429814572 | T93: 0
B94: Weighted Consequence Cost ($) | C94: =C92*C78 -> 10560000 | D94: =D92*D78 -> 3600000 | E94: 360000 | G94: Benefit ($) | H94: =H93*$C$95 -> 0 | I94: =I93*$C$95 -> 0 | J94: 0 | K94: 0 | L94: 0 | M94: 0 | N94: 0 | O94: 0 | P94: 0 | Q94: 0 | R94: =R93*$C$95 -> 0 | S94: 0 | T94: 0
B95: Annual Benefit ($) | C95: 0 | D95: =C94-D94 -> 6960000 | E95: =C94-E94 -> 10200000
G96: Option 2
B97: Added resources working - IT staff - increase hourly rate to $250 and extend working hours | G97: Ramp up | H97: =H$14 -> 0 | I97: =I$14 -> 0.2294003948 | J97: 0.4390765188 | K97: 0.6369957505 | L97: 0.8315539059 | M97: 1 | N97: 1 | O97: 1 | P97: 0.7705996052 | Q97: 0.5609234812 | R97: 0.3630042495 | S97: 0.1684460941 | T97: 0
B98: 160 hour is 20 working days. IT hours doubled assuming resources working extended hours | G98: Benefit ($) | H98: =H97*$D$95 -> 0 | I98: =I97*$D$95 -> 1596626.748 | J98: =J97*$D$95 -> 3055972.571 | K98: 4433490.424 | L98: 5787615.185 | M98: 6960000 | N98: =N97*$D$95 -> 6960000 | O98: 6960000 | P98: 5363373.252 | Q98: 3904027.429 | R98: =R97*$D$95 -> 2526509.576 | S98: 1172384.815 | T98: 0
B100: Total consequence | C100: =C84+C92 -> 43699200 | D100: =D84+D92 -> 18566400 | E100: 7641600 | G100: Option 3
B101: Total avoided cost | D101: =C100-D100 -> 25132800 | E101: =C100-E100 -> 36057600 | G101: Ramp up | H101: =H$18 -> 0 | I101: =I$18 -> 0.2121536357 | J101: 0.4144305502 | K101: 0.6114452285 | L101: 0.8055705523 | M101: 1 | N101: 1 | O101: 1 | P101: 0.7878463643 | Q101: 0.5855694498 | R101: 0.3885547715 | S101: 0.1944294477 | T101: 0
G102: Benefit ($) | H102: =H101*$E$95 -> 0 | I102: =I101*$E$95 -> 2163967.084 | J102: 4227191.612 | K102: 6236741.331 | L102: 8216819.633 | M102: 10200000 | N102: 10200000 | O102: 10200000 | P102: 8036032.916 | Q102: 5972808.388 | R102: =R101*$E$95 -> 3963258.669 | S102: 1983180.367 | T102: 0
A104: Consequence 6 - Life support customers at risk of outages without notice
B106: Not quantified
A109: Consequence 7 – Delays to planned maintenance
H111: Productvity loss (no cash impact)
B112: Likelihood | C112: 0.44 | D112: 0.3 | E112: 0.06 | G112: Option 1
G113: Ramp up | H113: =H$10 -> 0 | I113: =I$10 -> 0.1935320415 | J113: 0.4279629855 | K113: 0.674770052 | L113: 0.8570185428 | M113: 1 | N113: 1 | O113: 1 | P113: 0.8064679585 | Q113: 0.5720370145 | R113: 0.325229948 | S113: 0.1429814572 | T113: 0
B114: Number of Ausgrid staff impacted | C114: 1400 | D114: 1400 | E114: 1400 | G114: Benefit ($) | H114: =H113*$C$121 -> 0 | I114: =I113*$C$121 -> 0 | J114: 0 | K114: 0 | L114: 0 | M114: 0 | N114: 0 | O114: 0 | P114: 0 | Q114: 0 | R114: =R113*$C$121 -> 0 | S114: 0 | T114: 0
B115: Level of productivity during disruption | C115: 0 | D115: 0 | E115: 0
B116: Average duration of disruption due to cyber attack (Hours | C116: =(C129/24)*8 -> 224 | D116: =(D129/24)*8 -> 134.3333333 | E116: =(E129/24)*8 -> 67 | G116: Option 2
B117: Ausgrid average labour rate (from Ausgrid Finance) ($/hour) | C117: 108 | D117: 108 | E117: 108 | G117: Ramp up | H117: =H$14 -> 0 | I117: =I$14 -> 0.2294003948 | J117: 0.4390765188 | K117: 0.6369957505 | L117: 0.8315539059 | M117: 1 | N117: 1 | O117: 1 | P117: 0.7705996052 | Q117: 0.5609234812 | R117: 0.3630042495 | S117: 0.1684460941 | T117: 0
B118: Consequence cost ($) | C118: =C114*(1-C115)*C116*C117 -> 33868800 | D118: =D114*(1-D115)*D116*D117 -> 20311200 | E118: 10130400 | G118: Benefit ($) | H118: =H117*$D$121 -> 0 | I118: =I117*$D$121 -> 2020767.89 | J118: =J117*$D$121 -> 3867786.415 | K118: 5611239.511 | L118: 7325085.18 | M118: 8808912 | N118: =N117*$D$121 -> 8808912 | O118: 8808912 | P118: 6788144.11 | Q118: 4941125.585 | R118: =R117*$D$121 -> 3197672.489 | S118: 1483826.82 | T118: 0
B119: Avoided cost | D119: =C118-D118 -> 13557600 | E119: =C118-E118 -> 23738400
B120: Weighted Consequence Cost ($) | C120: =C118*C112 -> 14902272 | D120: =D118*D112 -> 6093360 | E120: 607824 | G120: Option 3
B121: Annual Benefit ($) | C121: 0 | D121: =C120-D120 -> 8808912 | E121: =C120-E120 -> 14294448 | G121: Ramp up | H121: =H$18 -> 0 | I121: =I$18 -> 0.2121536357 | J121: 0.4144305502 | K121: 0.6114452285 | L121: 0.8055705523 | M121: 1 | N121: 1 | O121: 1 | P121: 0.7878463643 | Q121: 0.5855694498 | R121: 0.3885547715 | S121: 0.1944294477 | T121: 0
G122: Benefit ($) | H122: =H121*$E$121 -> 0 | I122: =I121*$E$121 -> 3032619.113 | J122: =J121*$E$121 -> 5924055.95 | K122: 8740272.024 | L122: 11515186.37 | M122: =M121*$E$121 -> 14294448 | N122: 14294448 | O122: 14294448 | P122: 11261828.89 | Q122: 8370392.05 | R122: =R121*$E$121 -> 5554175.976 | S122: 2779261.631 | T122: 0
A124: Consequence – Manual control of the grid | H124: Productvity loss (no cash impact)
B125: Likelihood | C125: 0.0044 | D125: 0.003 | E125: 0.0006 | G125: Option 1
G126: Ramp up | H126: =H$10 -> 0 | I126: =I$10 -> 0.1935320415 | J126: 0.4279629855 | K126: 0.674770052 | L126: 0.8570185428 | M126: 1 | N126: 1 | O126: 1 | P126: 0.8064679585 | Q126: 0.5720370145 | R126: 0.325229948 | S126: 0.1429814572 | T126: 0
B127: Number of Ausgrid staff impacted | C127: 400 | D127: 400 | E127: 400 | G127: Benefit ($) | H127: =H126*$C$121 -> 0 | I127: =I126*$C$121 -> 0 | J127: 0 | K127: 0 | L127: 0 | M127: 0 | N127: 0 | O127: 0 | P127: 0 | Q127: 0 | R127: =R126*$C$121 -> 0 | S127: 0 | T127: 0
B128: Level of productivity during disruption | C128: 1 | D128: 1 | E128: 1
B129: Average duration of disruption due to cyber attack (Hours | C129: 672 | D129: 403 | E129: 201 | G129: Option 2
B130: Ausgrid average labour rate (from Ausgrid Finance) ($/hour) | C130: 108 | D130: 108 | E130: 108 | G130: Ramp up | H130: =H$14 -> 0 | I130: =I$14 -> 0.2294003948 | J130: 0.4390765188 | K130: 0.6369957505 | L130: 0.8315539059 | M130: 1 | N130: 1 | O130: 1 | P130: 0.7705996052 | Q130: 0.5609234812 | R130: 0.3630042495 | S130: 0.1684460941 | T130: 0
B131: Consequence cost ($) | C131: =C127*(C128)*C129*C130 -> 29030400 | D131: =D127*(D128)*D129*D130 -> 17409600 | E131: =E127*(E128)*E129*E130 -> 8683200 | G131: Benefit ($) | H131: =H130*$D$134 -> 0 | I131: =I130*$D$134 -> 17320.86763 | J131: =J130*$D$134 -> 33152.45499 | K131: =K130*$D$134 -> 48096.33866 | L131: 62786.4444 | M131: 75504.96 | N131: 75504.96 | O131: =O130*$D$134 -> 75504.96 | P131: =P130*$D$134 -> 58184.09237 | Q131: 42352.50501 | R131: =R130*$D$134 -> 27408.62134 | S131: =S130*$D$134 -> 12718.5156 | T131: =T130*$D$134 -> 0
B132: Avoided cost | D132: =C131-D131 -> 11620800 | E132: =C131-E131 -> 20347200
B133: Weighted Consequence Cost ($) | C133: =C131*C125 -> 127733.76 | D133: =D131*D125 -> 52228.8 | E133: =E131*E125 -> 5209.92 | G133: Option 3
B134: Annual Benefit ($) | C134: 0 | D134: =C133-D133 -> 75504.96 | E134: =C133-E133 -> 122523.84 | G134: Ramp up | H134: =H$18 -> 0 | I134: =I$18 -> 0.2121536357 | J134: 0.4144305502 | K134: 0.6114452285 | L134: 0.8055705523 | M134: 1 | N134: 1 | O134: 1 | P134: 0.7878463643 | Q134: 0.5855694498 | R134: 0.3885547715 | S134: 0.1944294477 | T134: 0
G135: Benefit ($) | H135: =H134*$E$134 -> 0 | I135: =I134*$E$134 -> 25993.87811 | J135: 50777.62243 | K135: 74916.61735 | L135: 98701.59745 | M135: 122523.84 | N135: =N134*$E$134 -> 122523.84 | O135: 122523.84 | P135: 96529.96189 | Q135: 71746.21757 | R135: =R134*$E$134 -> 47607.22265 | S135: 23822.24255 | T135: 0
B137: Notes: SP-1 4 weeks of 24x7 manual control with 2 people in 200 substations at all times | M137: =M19+M33+M53+M73+M88+M102+M122+M135 -> 61084056.34
M138: =M137*H146*H147 -> 58075184.5
B139: People | C139: =C127+C114+C89+C80 -> 4000 | D139: =E28*0.6*24 -> 57600000 | E139: =28*0.3*24 -> 201.6
D140: =4*0.6 -> 2.4 | E140: =4*0.3 -> 1.2
D141: =C131-D131 -> 11620800 | E141: =C131-E131 -> 20347200
A146: Summary for input sheet | C146: Factor for conversion to FY24 dollars | H146: 1.098439 | I146: (assumption is that input data provided is in FY22 dollars)
H147: =Gen_A_Calcs!$C$31 -> 0.8655392862 | I147: (assumption that benefits need to SCS only)
H148: 2024/25 | I148: 2025/26 | J148: 2026/27 | K148: 2027/28 | L148: 2028/29 | M148: 2029/30 | N148: 2030/31 | O148: 2031/32 | P148: 2032/33 | Q148: 2033/34 | R148: 2034/35 | S148: 2035/36 | T148: 2036/37
C149: Option 1 | D149: Consequence 1 | E149: Customer Value (non cash) | H149: =H11*$H$146*$H$147 -> 0 | I149: =I11*$H$146*$H$147 -> 0 | J149: 0 | K149: 0 | L149: 0 | M149: 0 | N149: 0 | O149: 0 | P149: 0 | Q149: 0 | R149: =R11*$H$146*$H$147 -> 0 | S149: 0 | T149: 0
C150: Option 1 | D150: Consequence 2 | E150: Penalties and Fines | H150: =H25*$H$146*$H$147 -> 0 | I150: =I25*$H$146*$H$147 -> 0 | J150: 0 | K150: 0 | L150: 0 | M150: 0 | N150: 0 | O150: 0 | P150: 0 | Q150: 0 | R150: =R25*$H$146*$H$147 -> 0 | S150: 0 | T150: 0
C151: Option 1 | D151: Consequence 3 | E151: Penalties and Fines | H151: =H45*$H$146*$H$147 -> 0 | I151: =I45*$H$146*$H$147 -> 0 | J151: 0 | K151: 0 | L151: 0 | M151: 0 | N151: 0 | O151: 0 | P151: 0 | Q151: 0 | R151: =R45*$H$146*$H$147 -> 0 | S151: 0 | T151: 0
C152: Option 1 | D152: Consequence 5 | E152: Cost to rectify | H152: =H94*$H$146*$H$147 -> 0 | I152: 0 | J152: 0 | K152: 0 | L152: 0 | M152: 0 | N152: 0 | O152: 0 | P152: 0 | Q152: 0 | R152: =R94*$H$146*$H$147 -> 0 | S152: 0 | T152: 0
C153: Option 1 | D153: Consequence 5 | E153: Productvity (non-cash) | H153: =H80*$H$146*$H$147 -> 0 | I153: 0 | J153: 0 | K153: 0 | L153: 0 | M153: 0 | N153: 0 | O153: 0 | P153: 0 | Q153: 0 | R153: =R80*$H$146*$H$147 -> 0 | S153: 0 | T153: 0
C154: Option 1 | D154: Consequence 7 | E154: Productvity (non-cash) | H154: =H114*$H$146*$H$147 -> 0 | I154: 0 | J154: 0 | K154: 0 | L154: 0 | M154: 0 | N154: 0 | O154: 0 | P154: 0 | Q154: 0 | R154: =R114*$H$146*$H$147 -> 0 | S154: 0 | T154: 0
C156: Option 2 | D156: Consequence 1 | E156: Customer Value (non cash) | H156: =H15*$H$146*$H$147 -> 0 | I156: =I15*$H$146*$H$147 -> 1743490.892 | J156: 3337073.209 | K156: 4841300.689 | L156: 6319983.288 | M156: =M15*$H$146*$H$147 -> 7600208.77 | N156: 7600208.77 | O156: 7600208.77 | P156: 5856717.878 | Q156: =Q15*$H$146*$H$147 -> 4263135.561 | R156: =R15*$H$146*$H$147 -> 2758908.08 | S156: 1280225.482 | T156: 0
C157: Option 2 | D157: Consequence 2 | E157: Penalties and Fines | H157: =H29*$H$146*$H$147 -> 0 | I157: 122136.3444 | J157: 233771.1796 | K157: 339146.4623 | L157: 442732.2555 | M157: 532415.5805 | N157: 532415.5805 | O157: 532415.5805 | P157: 410279.2361 | Q157: 298644.4009 | R157: =R29*$H$146*$H$147 -> 193269.1182 | S157: 89683.32498 | T157: 0
C158: Option 2 | D158: Consequence 3 | E158: Penalties and Fines | H158: =H49*$H$146*$H$147 -> 0 | I158: 418753.1806 | J158: 801501.1873 | K158: 1162787.871 | L158: 1517939.162 | M158: 1825424.847 | N158: 1825424.847 | O158: 1825424.847 | P158: 1406671.667 | Q158: 1023923.66 | R158: =R49*$H$146*$H$147 -> 662636.9767 | S158: 307485.6857 | T158: 0
C159: Option 2 | D159: Consequence 5 | E159: Cost to rectify | H159: =H98*$H$146*$H$147 -> 0 | I159: 1517980.28 | J159: 2905441.804 | K159: 4215106.031 | L159: 5502529.461 | M159: 6617165.072 | N159: 6617165.072 | O159: 6617165.072 | P159: 5099184.792 | Q159: 3711723.268 | R159: =R98*$H$146*$H$147 -> 2402059.041 | S159: 1114635.611 | T159: 0
C160: Option 2 | D160: Consequence 5 | E160: Productvity (non-cash) | H160: =H84*$H$146*$H$147 -> 0 | I160: 1460778.595 | J160: 2795956.742 | K160: 4056269.208 | L160: 5295178.972 | M160: 6367812.038 | N160: 6367812.038 | O160: 6367812.038 | P160: 4907033.442 | Q160: 3571855.296 | R160: =R84*$H$146*$H$147 -> 2311542.83 | S160: 1072633.066 | T160: 0
C161: Option 2 | D161: Consequence 7 | E161: Productvity (non-cash) | H161: =H118*$H$146*$H$147 -> 0 | I161: 1921229.124 | J161: 3677267.41 | K161: 5334841.681 | L161: 6964266.926 | M161: 8375003.564 | N161: 8375003.564 | O161: 8375003.564 | P161: 6453774.44 | Q161: 4697736.154 | R161: =R118*$H$146*$H$147 -> 3040161.883 | S161: 1410736.639 | T161: 0
C162: Option 2 | D162: Consequence 7 | E162: Productvity (non-cash) | H162: =H131*$H$146*$H$147 -> 0 | I162: 16467.67821 | J162: 31519.43494 | K162: 45727.21441 | L162: 59693.71651 | M162: 71785.74484 | N162: 71785.74484 | O162: 71785.74484 | P162: 55318.06663 | Q162: 40266.30989 | R162: =R131*$H$146*$H$147 -> 26058.53043 | S162: 12092.02833 | T162: 0
C165: Option 3 | D165: Consequence 1 | E165: Customer Value (non cash) | H165: =H19*$H$146*$H$147 -> 0 | I165: 4376546.647 | J165: 8549345.05 | K165: 12613588.05 | L165: 16618226.16 | M165: 20629138.09 | N165: 20629138.09 | O165: 20629138.09 | P165: 16252591.44 | Q165: 12079793.04 | R165: =R19*$H$146*$H$147 -> 8015550.036 | S165: 4010911.926 | T165: 0
C166: Option 3 | D166: Consequence 2 | E166: Penalties and Fines | H166: =H33*$H$146*$H$147 -> 0 | I166: 306589.1601 | J166: 598905.194 | K166: 883616.6228 | L166: 1164152.564 | M166: 1445128.004 | N166: 1445128.004 | O166: 1445128.004 | P166: 1138538.844 | Q166: 846222.8103 | R166: =R33*$H$146*$H$147 -> 561511.3814 | S166: 280975.4398 | T166: 0
C167: Option 3 | D167: Consequence 3 | E167: Penalties and Fines | H167: =H53*$H$146*$H$147 -> 0 | I167: 943971.8878 | J167: 1843997.571 | K167: 2720609.076 | L167: 3584364.475 | M167: 4449473.066 | N167: 4449473.066 | O167: 4449473.066 | P167: 3505501.178 | Q167: 2605475.495 | R167: =R53*$H$146*$H$147 -> 1728863.99 | S167: 865108.5909 | T167: 0
C168: Option 3 | D168: Consequence 5 | E168: Cost to rectify | H168: =H102*$H$146*$H$147 -> 0 | I168: 2057374.627 | J168: 4018969.065 | K168: 5929532.6 | L168: 7812076.419 | M168: 9697569.502 | N168: 9697569.502 | O168: 9697569.502 | P168: 7640194.875 | Q168: 5678600.437 | R168: =R102*$H$146*$H$147 -> 3768036.901 | S168: 1885493.083 | T168: 0
C169: Option 3 | D169: Consequence 5 | E169: Productvity (non-cash) | H169: =H88*$H$146*$H$147 -> 0 | I169: 1728427.049 | J169: 3376387.921 | K169: 4981477.073 | L169: 6563026.497 | M169: 8147053.637 | N169: 8147053.637 | O169: 8147053.637 | P169: 6418626.587 | Q169: 4770665.715 | R169: =R88*$H$146*$H$147 -> 3165576.564 | S169: 1584027.139 | T169: 0
C170: Option 3 | D170: Consequence 7 | E170: Productvity (non-cash) | H170: =H122*$H$146*$H$147 -> 0 | I170: 2883238.689 | J170: 5632249.442 | K170: 8309744.649 | L170: 10947972.56 | M170: 13590333.62 | N170: 13590333.62 | O170: 13590333.62 | P170: 10707094.94 | Q170: 7958084.183 | R170: =R122*$H$146*$H$147 -> 5280588.975 | S170: 2642361.061 | T170: 0
C171: Option 3 | D171: Consequence 7 | E171: Productvity (non-cash) | H171: =H135*$H$146*$H$147 -> 0 | I171: 24713.47447 | J171: 48276.42379 | K171: 71226.38271 | L171: 93839.76483 | M171: 116488.5739 | N171: 116488.5739 | O171: 116488.5739 | P171: 91775.09945 | Q171: 68212.15014 | R171: =R135*$H$146*$H$147 -> 45262.19122 | S171: 22648.8091 | T171: 0
V173: To PB_Input
B174: For entry to input sheet | C174: Option 2 | E174: Customer Value (non cash) | H174: =H156 -> 0 | I174: =I156 -> 1743490.892 | J174: 3337073.209 | K174: 4841300.689 | L174: 6319983.288 | M174: 7600208.77 | N174: 7600208.77 | O174: 7600208.77 | P174: 5856717.878 | Q174: 4263135.561 | R174: =R156 -> 2758908.08 | S174: 1280225.482 | T174: 0 | V174: to row 48
C175: Option 2 | E175: Penalties and Fines | H175: =H157+H158 -> 0 | I175: =I157+I158 -> 540889.525 | J175: 1035272.367 | K175: 1501934.333 | L175: 1960671.417 | M175: 2357840.428 | N175: 2357840.428 | O175: 2357840.428 | P175: 1816950.903 | Q175: 1322568.061 | R175: =R157+R158 -> 855906.095 | S175: 397169.0106 | T175: 0 | V175: to row 56
C176: Option 2 | E176: Cost to rectify | H176: =H159 -> 0 | I176: =I159 -> 1517980.28 | J176: 2905441.804 | K176: 4215106.031 | L176: 5502529.461 | M176: 6617165.072 | N176: 6617165.072 | O176: 6617165.072 | P176: 5099184.792 | Q176: 3711723.268 | R176: =R159 -> 2402059.041 | S176: 1114635.611 | T176: 0 | V176: to row 53
C177: Option 2 | E177: Productvity (non-cash) | H177: =H160+H161+H162 -> 0 | I177: =I160+I161+I162 -> 3398475.398 | J177: =J160+J161+J162 -> 6504743.587 | K177: 9436838.103 | L177: 12319139.61 | M177: 14814601.35 | N177: 14814601.35 | O177: 14814601.35 | P177: 11416125.95 | Q177: 8309857.76 | R177: =R160+R161+R162 -> 5377763.243 | S177: 2495461.733 | T177: 0 | V177: to row 45
C179: Option 3 | E179: Customer Value (non cash) | H179: =H165 -> 0 | I179: =I165 -> 4376546.647 | J179: 8549345.05 | K179: 12613588.05 | L179: 16618226.16 | M179: 20629138.09 | N179: 20629138.09 | O179: 20629138.09 | P179: 16252591.44 | Q179: 12079793.04 | R179: =R165 -> 8015550.036 | S179: 4010911.926 | T179: 0 | V179: to row 76
C180: Option 3 | E180: Penalties and Fines | H180: =H166+H167 -> 0 | I180: =I166+I167 -> 1250561.048 | J180: 2442902.765 | K180: 3604225.698 | L180: 4748517.039 | M180: 5894601.07 | N180: 5894601.07 | O180: 5894601.07 | P180: 4644040.022 | Q180: 3451698.305 | R180: =R166+R167 -> 2290375.371 | S180: 1146084.031 | T180: 0 | V180: to row 84
C181: Option 3 | E181: Cost to rectify | H181: =H168 -> 0 | I181: =I168 -> 2057374.627 | J181: 4018969.065 | K181: 5929532.6 | L181: 7812076.419 | M181: 9697569.502 | N181: 9697569.502 | O181: 9697569.502 | P181: 7640194.875 | Q181: 5678600.437 | R181: =R168 -> 3768036.901 | S181: 1885493.083 | T181: 0 | V181: to row 81
C182: Option 3 | E182: Productvity (non-cash) | H182: =H169+H170+H171 -> 0 | I182: =I169+I170+I171 -> 4636379.212 | J182: =J169+J170+J171 -> 9056913.787 | K182: 13362448.1 | L182: 17604838.83 | M182: 21853875.84 | N182: 21853875.84 | O182: 21853875.84 | P182: 17217496.62 | Q182: 12796962.05 | R182: =R169+R170+R171 -> 8491427.73 | S182: 4249037.01 | T182: 0 | V182: to row 73
G186: Likelihood
A187: Consequence 1 - Increase length of unplanned outage | C187: Option 1 | D187: Consequence 1 | E187: Customer Value (non cash) | F187: 2nd | G187: =C9 -> 0.0044
A188: Consequence 2 - Delays in being able to to publish key data to the market | C188: Option 1 | D188: Consequence 2 | E188: Penalties and Fines | F188: 4th | G188: =C23 -> 0.44
A189: Consequence 3 - Unauthorised access to, or use of, personal data | C189: Option 1 | D189: Consequence 3 | E189: Penalties and Fines | F189: 1st | G189: =C43 -> 0.47
A190: Consequence 5 - Lost staff productivity due to reduced access to key corporate or operational systems | C190: Option 1 | D190: Consequence 5 | E190: Cost to rectify | F190: 5th | G190: =C78 -> 0.44
A191: Consequence 7 – Delays to planned maintenance | C191: Option 1 | D191: Consequence 7 | E191: Productvity (non-cash) | F191: 3rd | G191: =C112 -> 0.44
A192: Consequence 7 – Manual control of the grid | C192: Option 1 | D192: Consequence 7 | E192: Productvity (non-cash) | F192: 6th | G192: =C125 -> 0.0044
A194: Consequence 1 - Increase length of unplanned outage | C194: Option 2 | D194: Consequence 1 | E194: Customer Value (non cash) | F194: 2nd | G194: =D9 -> 0.003 | H194: =H156/1000000 -> 0 | I194: 1.743490892 | J194: 3.337073209 | K194: 4.841300689 | L194: 6.319983288 | M194: =M156/1000000 -> 7.60020877 | N194: 7.60020877 | O194: 7.60020877 | P194: 5.856717878 | Q194: 4.263135561 | R194: =R156/1000000 -> 2.75890808 | S194: 1.280225482 | T194: 0
A195: Consequence 2 - Delays in being able to to publish key data to the market | C195: Option 2 | D195: Consequence 2 | E195: Penalties and Fines | F195: 4th | G195: =D23 -> 0.3 | H195: =H157/1000000 -> 0 | I195: 0.1221363444 | J195: 0.2337711796 | K195: 0.3391464623 | L195: 0.4427322555 | M195: 0.5324155805 | N195: 0.5324155805 | O195: 0.5324155805 | P195: 0.4102792361 | Q195: 0.2986444009 | R195: =R157/1000000 -> 0.1932691182 | S195: 0.08968332498 | T195: 0
A196: Consequence 3 - Unauthorised access to, or use of, personal data | C196: Option 2 | D196: Consequence 3 | E196: Penalties and Fines | F196: 1st | G196: =D43 -> 0.31 | H196: =H158/1000000 -> 0 | I196: 0.4187531806 | J196: 0.8015011873 | K196: 1.162787871 | L196: 1.517939162 | M196: 1.825424847 | N196: 1.825424847 | O196: 1.825424847 | P196: 1.406671667 | Q196: 1.02392366 | R196: =R158/1000000 -> 0.6626369767 | S196: 0.3074856857 | T196: 0
A197: Consequence 5 - Lost staff productivity due to reduced access to key corporate or operational systems | C197: Option 2 | D197: Consequence 5 | E197: Cost to rectify | F197: 5th | G197: =D78 -> 0.3 | H197: =(H159+H160)/1000000 -> 0 | I197: 2.978758875 | J197: 5.701398546 | K197: 8.271375239 | L197: 10.79770843 | M197: 12.98497711 | N197: 12.98497711 | O197: 12.98497711 | P197: 10.00621823 | Q197: 7.283578564 | R197: =(R159+R160)/1000000 -> 4.71360187 | S197: 2.187268676 | T197: 0
A198: Consequence 7 – Delays to planned maintenance | C198: Option 2 | D198: Consequence 7 | E198: Productvity (non-cash) | F198: 3rd | G198: =D112 -> 0.3 | H198: =H161/1000000 -> 0 | I198: 1.921229124 | J198: 3.67726741 | K198: 5.334841681 | L198: 6.964266926 | M198: =M161/1000000 -> 8.375003564 | N198: 8.375003564 | O198: 8.375003564 | P198: 6.45377444 | Q198: 4.697736154 | R198: =R161/1000000 -> 3.040161883 | S198: 1.410736639 | T198: 0
A199: Consequence 7 – Manual control of the grid | C199: Option 2 | D199: Consequence 7 | E199: Productvity (non-cash) | F199: 6th | G199: =D125 -> 0.003 | H199: =H162/1000000 -> 0 | I199: =I162/1000000 -> 0.01646767821 | J199: =J162/1000000 -> 0.03151943494 | K199: =K162/1000000 -> 0.04572721441 | L199: =L162/1000000 -> 0.05969371651 | M199: =M162/1000000 -> 0.07178574484 | N199: =N162/1000000 -> 0.07178574484 | O199: 0.07178574484 | P199: 0.05531806663 | Q199: 0.04026630989 | R199: 0.02605853043 | S199: 0.01209202833 | T199: 0
A201: Consequence 1 - Increase length of unplanned outage | C201: Option 3 | D201: Consequence 1 | E201: Customer Value (non cash) | F201: 2nd | G201: =E9 -> 0.0006 | H201: =H165/1000000 -> 0 | I201: 4.376546647 | J201: 8.54934505 | K201: 12.61358805 | L201: 16.61822616 | M201: 20.62913809 | N201: 20.62913809 | O201: 20.62913809 | P201: 16.25259144 | Q201: 12.07979304 | R201: =R165/1000000 -> 8.015550036 | S201: 4.010911926 | T201: 0
A202: Consequence 2 - Delays in being able to to publish key data to the market | C202: Option 3 | D202: Consequence 2 | E202: Penalties and Fines | F202: 4th | G202: =E23 -> 0.06 | H202: =H166/1000000 -> 0 | I202: 0.3065891601 | J202: 0.598905194 | K202: 0.8836166228 | L202: 1.164152564 | M202: 1.445128004 | N202: 1.445128004 | O202: 1.445128004 | P202: 1.138538844 | Q202: 0.8462228103 | R202: =R166/1000000 -> 0.5615113814 | S202: 0.2809754398 | T202: 0
A203: Consequence 3 - Unauthorised access to, or use of, personal data | C203: Option 3 | D203: Consequence 3 | E203: Penalties and Fines | F203: 1st | G203: =E43 -> 0.08 | H203: =H167/1000000 -> 0 | I203: 0.9439718878 | J203: 1.843997571 | K203: 2.720609076 | L203: 3.584364475 | M203: 4.449473066 | N203: 4.449473066 | O203: 4.449473066 | P203: 3.505501178 | Q203: 2.605475495 | R203: =R167/1000000 -> 1.72886399 | S203: 0.8651085909 | T203: 0
A204: Consequence 5 - Lost staff productivity due to reduced access to key corporate or operational systems | C204: Option 3 | D204: Consequence 5 | E204: Cost to rectify | F204: 5th | G204: =E78 -> 0.06 | H204: =(H168+H169)/1000000 -> 0 | I204: 3.785801676 | J204: 7.395356986 | K204: 10.91100967 | L204: 14.37510292 | M204: 17.84462314 | N204: 17.84462314 | O204: 17.84462314 | P204: 14.05882146 | Q204: 10.44926615 | R204: =(R168+R169)/1000000 -> 6.933613465 | S204: 3.469520222 | T204: 0
A205: Consequence 7 – Delays to planned maintenance | C205: Option 3 | D205: Consequence 7 | E205: Productvity (non-cash) | F205: 3rd | G205: =E112 -> 0.06 | H205: =H170/1000000 -> 0 | I205: 2.883238689 | J205: 5.632249442 | K205: 8.309744649 | L205: 10.94797256 | M205: 13.59033362 | N205: 13.59033362 | O205: 13.59033362 | P205: 10.70709494 | Q205: 7.958084183 | R205: =R170/1000000 -> 5.280588975 | S205: 2.642361061 | T205: 0
A206: Consequence 7 – Manual control of the grid | C206: Option 3 | D206: Consequence 7 | E206: Productvity (non-cash) | F206: 6th | G206: =E125 -> 0.0006 | H206: =H171/1000000 -> 0 | I206: 0.02471347447 | J206: 0.04827642379 | K206: 0.07122638271 | L206: 0.09383976483 | M206: 0.1164885739 | N206: 0.1164885739 | O206: 0.1164885739 | P206: 0.09177509945 | Q206: 0.06821215014 | R206: =R171/1000000 -> 0.04526219122 | S206: 0.0226488091 | T206: 0
A209: Consequence 1 - Increase length of unplanned outage | C209: Opt 3 vs 2 | E209: Customer Value (non cash) | F209: 2nd | M209: =M201-M194 -> 13.02892932
A210: Consequence 2 - Delays in being able to to publish key data to the market | C210: Opt 3 vs 2 | E210: Penalties and Fines | F210: 4th | M210: 0.9127124237
A211: Consequence 3 - Unauthorised access to, or use of, personal data | C211: Opt 3 vs 2 | E211: Penalties and Fines | F211: 1st | M211: 2.624048218
A212: Consequence 5 - Lost staff productivity due to reduced access to key corporate or operational systems | C212: Opt 3 vs 2 | E212: Cost to rectify | F212: 5th | M212: 4.859646029
A213: Consequence 7 – Delays to planned maintenance | C213: Opt 3 vs 2 | E213: Productvity (non-cash) | F213: 3rd | M213: 5.21533006
A214: Consequence 7 – Manual control of the grid | C214: Opt 3 vs 2 | E214: Productvity (non-cash) | F214: =F206 -> 6th | M214: 0.04470282909
B217: Black start scenario | C217: Real $ | H217: Option 1 | I217: Option 2 | J217: Option 3 | L217: SP-2 (to current) | M217: SP-3 (to current) | N217: SP-3 benefit over SP-2
B218: Consequence 1 - Increase length of unplanned outage | G218: $ | H218: =C$16 -> 5709982238 | I218: =D$16 -> 5709982238 | J218: =E$16 -> 5709982238 | L218: =H218-I218 -> 0 | M218: =H218-J218 -> 0 | N218: =M218-L218 -> 0
B219: Consequence 5 - Lost staff productivity due to reduced access to key corporate or operational systems | G219: $ | H219: =C84+C92 -> 43699200 | I219: =D$84+D$92 -> 18566400 | J219: 7641600 | L219: =H219-I219 -> 25132800 | M219: =H219-J219 -> 36057600 | N219: =M219-L219 -> 10924800
B220: Consequence 7 – Delays to planned maintenance | G220: $ | H220: =C118 -> 33868800 | I220: =D118 -> 20311200 | J220: =E118 -> 10130400 | L220: 13557600 | M220: 23738400 | N220: 10180800
B221: Consequence - manual control of the grid | H221: =C131 -> 29030400 | I221: =D131 -> 17409600 | J221: =E131 -> 8683200 | L221: =H221-I221 -> 11620800 | M221: =H221-J221 -> 20347200 | N221: =M221-L221 -> 8726400
B222: Black start - Total of non-customer consequences | H222: =SUM(H219:H221) -> 106598400 | I222: =SUM(I219:I221) -> 56287200 | J222: 26455200 | L222: =H222-I222 -> 50311200 | M222: 80143200 | N222: 29832000
B223: TOTAL | G223: $ | H223: =SUM(H218:H220) -> 5787550238 | I223: =SUM(I218:I220) -> 5748859838 | J223: 5727754238 | L223: 38690400 | M223: 59796000 | N223: 21105600
B224: Consequence 2 - Delays in being able to to publish key data to the market | H224: =C28 -> 4000000 | I224: =D28 -> 4000000 | J224: =E28 -> 4000000 | L224: =H224-I224 -> 0 | M224: 0 | N224: 0
B225: Consequence 3 - Unauthorised access to, or use of, personal data | H225: =C48 -> 12000000 | I225: =D48 -> 12000000 | J225: =E48 -> 12000000 | L225: =H225-I225 -> 0 | M225: =H225-J225 -> 0 | N225: =M225-L225 -> 0
B226: TOTAL non-customer consequence | H226: =H222+H224+H225 -> 122598400 | I226: =I222+I224+I225 -> 72287200 | J226: 42455200 | L226: =H226-I226 -> 50311200 | M226: 80143200 | N226: 29832000
B228: Likelihood | G228: % | H228: =C9 -> 0.0044 | I228: =D9 -> 0.003 | J228: =E9 -> 0.0006 | L228: =H228-I228 -> 0.0014 | M228: =H228-J228 -> 0.0038 | N228: =M228-L228 -> 0.0024
B230: Consequence 1 - Increase length of unplanned outage | G230: hours | H230: =C13 -> 48 | I230: =D13 -> 48 | J230: =E13 -> 48 | L230: =H230-I230 -> 0 | M230: =H230-J230 -> 0 | N230: =M230-L230 -> 0
B232: customer value of unavailable time | G232: $ | H232: =H230*C14*C15 -> 3194.376 | I232: =I230*D14*D15 -> 3194.376 | J232: =J230*E14*E15 -> 3194.376 | L232: =H232-I232 -> 0 | M232: =H232-J232 -> 0 | N232: =M232-L232 -> 0
B234: Black start - Total of non-customer consequences | H234: =SUM(H219:H221) -> 106598400 | I234: =SUM(I219:I221) -> 56287200 | J234: 26455200 | L234: =H234-I234 -> 50311200 | M234: =H234-J234 -> 80143200 | N234: =M234-L234 -> 29832000
A236: was | B236: Level of productivity during disruption | C236: 0.6 | D236: 0.7 | E236: 0.8 | H236: This will change the cost from $19.4m; $7.3m; $2.4m to $29.1m; $9.7m; $2.4m
A237: to | B237: Level of productivity during disruption | C237: 0.4 | D237: 0.6 | E237: 0.8 | H237: This will change the savings from $12.1m; $17m to $19.4m; $26.6m
C241: SP-1 | D241: SP-2 | E241: SP-3
B242: Sum of consequences | C242: =C18+C30+C50+C86+C94+C120+C133 -> 66781575.61 | D242: =D18+D30+D50+D86+D94+D120+D133 -> 33765455.51 | E242: =E18+E30+E50+E86+E94+E120+E133 -> 5697519.263
B243: over 5 years | C243: =C242*5 -> 333907878 | D243: =D242*5 -> 168827277.6 | E243: 28487596.31
B244: Benefit over SP-1 | D244: =C243-D243 -> 165080600.5 | E244: =C243-E243 -> 305420281.7
B245: Benefit over SP-2 | E245: =D243-E243 -> 140339681.3
C246: 24000000 | D246: 63000000 | E246: 87500000
B247: Cost over SP-1 | M247: =63-24 -> 39
B248: Cost over SP-2 | M248: =87.5-63 -> 24.5
E249: 1.098439 | F249: (assumption is that input data provided is in FY22 dollars)
E250: =Gen_A_Calcs!$C$31 -> 0.8655392862 | F250: (assumption that benefits need to SCS only)
C251: SP-1 | D251: SP-2 | E251: SP-3
B252: Sum of consequences | C252: =C242*$E$249*$E$250 -> 63492055.97 | D252: =D242*$E$249*$E$250 -> 32102240.35 | E252: 5416871.475
B253: over 5 years | C253: =C243*$E$249*$E$250 -> 317460279.9 | D253: 160511201.8 | E253: 27084357.37
... 2 more rows

Sheet Benefit Calcs (Original)
A1: Probabilistic benefits Calculations
A2: Benefits calculated as the reduction in the expected consequence cost relative to the base case.
C5: Option 1 | D5: Option 2 | E5: Option 3 | H5: 2024/25 | I5: 2025/26 | J5: 2026/27 | K5: 2027/28 | L5: 2028/29 | M5: 2029/30 | N5: 2030/31 | O5: 2031/32 | P5: 2032/33 | Q5: 2033/34 | R5: 2034/35 | S5: 2035/36 | T5: 2036/37
D6: =C7-D7 -> 8007012.968 | E6: =C7-E7 -> 21726746.49
A7: Consequence 1 - Increase length of unplanned outage | C7: =C16/C8 -> 25154106.78 | D7: =D16/D8 -> 17147093.81 | E7: 3427360.287
C8: 227 | D8: 333 | E8: 1666 | H8: Customer Value Benefit
B9: Likelihood (based on the amount of controls in place) | C9: 0.0044 | D9: 0.003 | E9: 0.0006 | G9: Option 1
G10: Ramp up | H10: 0 | I10: 0.1935320415 | J10: 0.4279629855 | K10: 0.674770052 | L10: 0.8570185428 | M10: 1 | N10: 1 | O10: 1 | P10: =1-I10 -> 0.8064679585 | Q10: =1-J10 -> 0.5720370145 | R10: 0.325229948 | S10: 0.1429814572 | T10: 0
B11: Number of Ausgrid customers (NMIs) | C11: 1787511 | D11: 1787511 | E11: 1787511 | G11: Benefit | H11: =H10*$C$19 -> 0 | I11: =I10*$C$19 -> 0 | J11: 0 | K11: 0 | L11: 0 | M11: 0 | N11: 0 | O11: 0 | P11: 0 | Q11: 0 | R11: 0 | S11: 0 | T11: 0
B12: Proportion of customers (NMIs) impacted | C12: 1 | D12: 1 | E12: 1
B13: Average increase in length of unplanned outage due to cyber attack (hours) | C13: 48 | D13: 48 | E13: 48 | G13: Option 2
B14: Average consumption per customer (kW / hour) | C14: 1.594 | D14: 1.594 | E14: 1.594 | G14: Ramp up | H14: 0 | I14: 0.2294003948 | J14: 0.4390765188 | K14: 0.6369957505 | L14: 0.8315539059 | M14: 1 | N14: 1 | O14: 1 | P14: =1-I14 -> 0.7705996052 | Q14: =1-J14 -> 0.5609234812 | R14: 0.3630042495 | S14: 0.1684460941 | T14: 0
B15: Value of Customer Reliability (weighted for mix of customers impacted) ($/kWh) | C15: 41.75 | D15: 41.75 | E15: 41.75 | G15: Benefit ($) | H15: =H14*$D$19 -> 0 | I15: =I14*$D$19 -> 1833821.051 | J15: 3509966.773 | K15: =K14*$D$19 -> 5092128.19 | L15: =L14*$D$19 -> 6647421.246 | M15: 7993975.133 | N15: 7993975.133 | O15: 7993975.133 | P15: 6160154.082 | Q15: 4484008.36 | R15: 2901846.944 | S15: 1346553.888 | T15: 0
B16: Consequence Cost ($) | C16: =C11*C12*C13*C14*C15 -> 5709982238 | D16: =D11*D12*D13*D14*D15 -> 5709982238 | E16: 5709982238
G17: Option 3
B18: Weighted Consequence Cost ($) | C18: =C16*C9 -> 25123921.85 | D18: =D16*D9 -> 17129946.71 | E18: 3425989.343 | G18: Ramp up | H18: 0 | I18: 0.2121536357 | J18: 0.4144305502 | K18: 0.6114452285 | L18: 0.8055705523 | M18: 1 | N18: 1 | O18: 1 | P18: 0.7878463643 | Q18: 0.5855694498 | R18: 0.3885547715 | S18: 0.1944294477 | T18: =1-M18 -> 0
B19: Annual Benefit ($) | C19: 0 | D19: =C18-D18 -> 7993975.133 | E19: =C18-E18 -> 21697932.5 | G19: Benefit ($) | H19: =H18*$E$19 -> 0 | I19: =I18*$E$19 -> 4603295.268 | J19: 8992286.107 | K19: 13267097.3 | L19: =L18*$E$19 -> 17479215.47 | M19: 21697932.5 | N19: 21697932.5 | O19: 21697932.5 | P19: =P18*$E$19 -> 17094637.24 | Q19: 12705646.4 | R19: 8430835.205 | S19: 4218717.034 | T19: 0
A21: Consequence 2 - Delays in being able to to publish key data to the market
H22: Penalties and Fines
B23: Likelihood | C23: 0.44 | D23: 0.3 | E23: 0.06 | G23: Option 1
G24: Ramp up | H24: =H$10 -> 0 | I24: =I$10 -> 0.1935320415 | J24: 0.4279629855 | K24: 0.674770052 | L24: 0.8570185428 | M24: 1 | N24: 1 | O24: 1 | P24: 0.8064679585 | Q24: 0.5720370145 | R24: 0.325229948 | S24: 0.1429814572 | T24: 0
B25: Number of times data is to be published (per day) | C25: 1 | D25: 1 | E25: 1 | G25: Benefit ($) | H25: =H24*$C$31 -> 0 | I25: =I24*$C$31 -> 0 | J25: 0 | K25: 0 | L25: 0 | M25: 0 | N25: 0 | O25: 0 | P25: 0 | Q25: 0 | R25: 0 | S25: 0 | T25: 0
B26: Number of days to restore functionality (days) | C26: 20 | D26: 10 | E26: 5
B27: Fine per breach (see below) ($/breach) | C27: 4000000 | D27: =C27 -> 4000000 | E27: =D27 -> 4000000 | G27: Option 2
B28: Consequence cost ($) | C28: =C27 -> 4000000 | D28: =C28 -> 4000000 | E28: =D28 -> 4000000 | G28: Ramp up | H28: =H$14 -> 0 | I28: =I$14 -> 0.2294003948 | J28: 0.4390765188 | K28: 0.6369957505 | L28: 0.8315539059 | M28: 1 | N28: 1 | O28: 1 | P28: 0.7705996052 | Q28: 0.5609234812 | R28: 0.3630042495 | S28: 0.1684460941 | T28: 0
G29: Benefit ($) | H29: =H28*$D$31 -> 0 | I29: =I28*$D$31 -> 128464.2211 | J29: =J28*$D$31 -> 245882.8505 | K29: 356717.6203 | L29: 465670.1873 | M29: 560000 | N29: =N28*$D$31 -> 560000 | O29: 560000 | P29: 431535.7789 | Q29: 314117.1495 | R29: 203282.3797 | S29: 94329.81271 | T29: 0
B30: Weighted Consequence Cost ($) | C30: =C28*C23 -> 1760000 | D30: =D28*D23 -> 1200000 | E30: 240000
B31: Annual Benefit ($) | C31: 0 | D31: =C30-D30 -> 560000 | E31: =C30-E30 -> 1520000 | G31: Option 3
G32: Ramp up | H32: =H$18 -> 0 | I32: =I$18 -> 0.2121536357 | J32: 0.4144305502 | K32: 0.6114452285 | L32: 0.8055705523 | M32: 1 | N32: 1 | O32: 1 | P32: 0.7878463643 | Q32: 0.5855694498 | R32: 0.3885547715 | S32: 0.1944294477 | T32: 0
G33: Benefit ($) | H33: =H32*$E$31 -> 0 | I33: =I32*$E$31 -> 322473.5262 | J33: =J32*$E$31 -> 629934.4364 | K33: 929396.7474 | L33: 1224467.239 | M33: 1520000 | N33: 1520000 | O33: =O32*$E$31 -> 1520000 | P33: 1197526.474 | Q33: 890065.5636 | R33: =R32*$E$31 -> 590603.2526 | S33: =S32*$E$31 -> 295532.7606 | T33: 0
A41: Consequence 3 - Unauthorised access to, or use of, personal data
H42: Penalties and Fines
B43: Likelihood | C43: 0.47 | D43: 0.31 | E43: 0.08 | G43: Option 1
G44: Ramp up | H44: =H$10 -> 0 | I44: =I$10 -> 0.1935320415 | J44: 0.4279629855 | K44: 0.674770052 | L44: 0.8570185428 | M44: 1 | N44: 1 | O44: 1 | P44: 0.8064679585 | Q44: 0.5720370145 | R44: 0.325229948 | S44: 0.1429814572 | T44: 0
B45: Number of Ausgrid customers (NMIs) – proxy for records held | C45: 1787511 | D45: 1787511 | E45: 1787511 | G45: Benefit ($) | H45: =H44*$C$51 -> 0 | I45: =I44*$C$51 -> 0 | J45: 0 | K45: 0 | L45: 0 | M45: 0 | N45: 0 | O45: 0 | P45: 0 | Q45: 0 | R45: 0 | S45: 0 | T45: 0
B46: Proportion of records stolen | C46: 1 | D46: 1 | E46: 1
B47: Fine per breach ($/breach) | C47: 420000 | D47: =C47 -> 420000 | E47: =D47 -> 420000 | G47: Option 2
B48: Consequence cost ($) (see below) | C48: =C47 -> 420000 | D48: =D47 -> 420000 | E48: =E47 -> 420000 | G48: Ramp up | H48: =H$14 -> 0 | I48: =I$14 -> 0.2294003948 | J48: 0.4390765188 | K48: 0.6369957505 | L48: 0.8315539059 | M48: 1 | N48: 1 | O48: 1 | P48: 0.7705996052 | Q48: 0.5609234812 | R48: 0.3630042495 | S48: 0.1684460941 | T48: 0
G49: Benefit ($) | H49: =H48*$D$51 -> 0 | I49: =I48*$D$51 -> 15415.70653 | J49: =J48*$D$51 -> 29505.94206 | K49: 42806.11443 | L49: 55880.42248 | M49: 67200 | N49: =N48*$D$51 -> 67200 | O49: 67200 | P49: 51784.29347 | Q49: 37694.05794 | R49: 24393.88557 | S49: 11319.57752 | T49: 0
B50: Weighted Consequence Cost ($) | C50: =C48*C43 -> 197400 | D50: =D48*D43 -> 130200 | E50: 33600
B51: Annual Benefit ($) | C51: 0 | D51: =C50-D50 -> 67200 | E51: =C50-E50 -> 163800 | G51: Option 3
G52: Ramp up | H52: =H$18 -> 0 | I52: =I$18 -> 0.2121536357 | J52: 0.4144305502 | K52: 0.6114452285 | L52: 0.8055705523 | M52: 1 | N52: 1 | O52: 1 | P52: 0.7878463643 | Q52: 0.5855694498 | R52: 0.3885547715 | S52: 0.1944294477 | T52: 0
G53: Benefit ($) | H53: =H52*$E$51 -> 0 | I53: =I52*$E$51 -> 34750.76553 | J53: 67883.72413 | K53: 100154.7284 | L53: =L52*$E$51 -> 131952.4565 | M53: 163800 | N53: 163800 | O53: 163800 | P53: 129049.2345 | Q53: 95916.27587 | R53: 63645.27156 | S53: 31847.54354 | T53: 0
B59: I.e. same penalty if two customers or all customers.
A61: Consequence 4 - Unauthorised access to, or use of, network data
H62: Penalties and Fines (cost)
B63: Likelihood | G63: Option 1
G64: Ramp up | H64: =H$10 -> 0 | I64: =I$10 -> 0.1935320415 | J64: 0.4279629855 | K64: 0.674770052 | L64: 0.8570185428 | M64: 1 | N64: 1 | O64: 1 | P64: 0.8064679585 | Q64: 0.5720370145 | R64: 0.325229948 | S64: 0.1429814572 | T64: 0
B65: Number of licence condition breaches as result of an attack | C65: 1 | D65: 1 | E65: 1 | G65: Benefit ($) | H65: =H64*$C$72 -> 0 | I65: =I64*$C$72 -> 0 | J65: 0 | K65: 0 | L65: 0 | M65: 0 | N65: 0 | O65: 0 | P65: 0 | Q65: 0 | R65: 0 | S65: 0 | T65: 0
B66: Fine per licence condition breach | C66: >$250K | D66: As per Option 1 | E66: As per Option 1
C67: Not known – assumption never occurred and there is no precedent | G67: Option 2
G68: Ramp up | H68: =H$14 -> 0 | I68: =I$14 -> 0.2294003948 | J68: 0.4390765188 | K68: 0.6369957505 | L68: 0.8315539059 | M68: 1 | N68: 1 | O68: 1 | P68: 0.7705996052 | Q68: 0.5609234812 | R68: 0.3630042495 | S68: 0.1684460941 | T68: 0
B69: Consequence cost ($) | C69: 0 | D69: 0 | E69: 0 | G69: Benefit ($) | H69: =H68*$D$72 -> 0 | I69: =I68*$D$72 -> 0 | J69: 0 | K69: 0 | L69: 0 | M69: 0 | N69: 0 | O69: 0 | P69: 0 | Q69: 0 | R69: 0 | S69: 0 | T69: 0
B71: Weighted Consequence Cost ($) | C71: =C69*C63 -> 0 | D71: =D69*D63 -> 0 | E71: 0 | G71: Option 3
B72: Annual Benefit ($) | C72: 0 | D72: =C71-D71 -> 0 | E72: =C71-E71 -> 0 | G72: Ramp up | H72: =H$18 -> 0 | I72: =I$18 -> 0.2121536357 | J72: 0.4144305502 | K72: 0.6114452285 | L72: 0.8055705523 | M72: 1 | N72: 1 | O72: 1 | P72: 0.7878463643 | Q72: 0.5855694498 | R72: 0.3885547715 | S72: 0.1944294477 | T72: 0
G73: Benefit ($) | H73: =H72*$E$72 -> 0 | I73: =I72*$E$72 -> 0 | J73: 0 | K73: 0 | L73: 0 | M73: 0 | N73: 0 | O73: 0 | P73: 0 | Q73: 0 | R73: 0 | S73: 0 | T73: 0
B74: NOT CALCULATED - insufficient data
A76: Consequence 5 - Lost staff productivity due to reduced access to key corporate or operational systems
H77: Productvity loss (no cash impact)
B78: Likelihood | C78: 0.44 | D78: 0.3 | E78: 0.06 | G78: Option 1
G79: Ramp up | H79: =H$10 -> 0 | I79: =I$10 -> 0.1935320415 | J79: 0.4279629855 | K79: 0.674770052 | L79: 0.8570185428 | M79: 1 | N79: 1 | O79: 1 | P79: 0.8064679585 | Q79: 0.5720370145 | R79: 0.325229948 | S79: 0.1429814572 | T79: 0
B80: Number of Ausgrid staff impacted | C80: 1900 | D80: 1900 | E80: 1900 | G80: Benefit ($) | H80: =H79*$C$87 -> 0 | I80: =I79*$C$87 -> 0 | J80: 0 | K80: 0 | L80: 0 | M80: 0 | N80: 0 | O80: 0 | P80: 0 | Q80: 0 | R80: 0 | S80: 0 | T80: 0
B81: Level of productivity during disruption | C81: 0.4 | D81: 0.6 | E81: 0.8
B82: Average duration of disruption due to cyber attack (Hours | C82: =C$26*8 -> 160 | D82: =D$26*8 -> 80 | E82: =E$26*8 -> 40 | G82: Option 2
B83: Ausgrid average labour rate (from Ausgrid Finance) ($/hour) | C83: 108 | D83: 108 | E83: 108 | G83: Ramp up | H83: =H$14 -> 0 | I83: =I$14 -> 0.2294003948 | J83: 0.4390765188 | K83: 0.6369957505 | L83: 0.8315539059 | M83: 1 | N83: 1 | O83: 1 | P83: 0.7705996052 | Q83: 0.5609234812 | R83: 0.3630042495 | S83: 0.1684460941 | T83: 0
B84: Consequence cost ($) | C84: =C80*(1-C81)*C82*C83 -> 19699200 | D84: =D80*(1-D81)*D82*D83 -> 6566400 | E84: 1641600 | G84: Benefit ($) | H84: =H83*$D$87 -> 0 | I84: =I83*$D$87 -> 1536461.447 | J84: 2940815.094 | K84: 4266424.274 | L84: 5569521.879 | M84: 6697728 | N84: =N83*$D$87 -> 6697728 | O84: =O83*$D$87 -> 6697728 | P84: 5161266.553 | Q84: 3756912.906 | R84: =R83*$D$87 -> 2431303.726 | S84: =S83*$D$87 -> 1128206.121 | T84: 0
B86: Weighted Consequence Cost ($) | C86: =C84*C78 -> 8667648 | D86: =D84*D78 -> 1969920 | E86: 98496 | G86: Option 3
B87: Annual Benefit ($) | C87: 0 | D87: =C86-D86 -> 6697728 | E87: =C86-E86 -> 8569152 | G87: Ramp up | H87: =H$18 -> 0 | I87: =I$18 -> 0.2121536357 | J87: 0.4144305502 | K87: 0.6114452285 | L87: 0.8055705523 | M87: 1 | N87: 1 | O87: 1 | P87: 0.7878463643 | Q87: 0.5855694498 | R87: 0.3885547715 | S87: 0.1944294477 | T87: 0
B88: SCS only | D88: =D87*$H$146*$H$147 -> 6186088.757 | E88: =E87*$H$146*$H$147 -> 7914554.733 | G88: Benefit ($) | H88: =H87*$E$87 -> 0 | I88: =I87*$E$87 -> 1817976.752 | J88: =J87*$E$87 -> 3551318.378 | K88: 5239567.103 | L88: 6903056.509 | M88: 8569152 | N88: 8569152 | O88: =O87*$E$87 -> 8569152 | P88: 6751175.248 | Q88: 5017833.622 | R88: =R87*$E$87 -> 3329584.897 | S88: =S87*$E$87 -> 1666095.491 | T88: 0
B89: Number of IT resources | C89: 300 | D89: 300 | E89: 300
B90: Number of hours of resource time for rectification | C90: =C82*2 -> 320 | D90: =D82*2 -> 160 | E90: =E82*2 -> 80
B91: Average cost of resources ($/hour) | C91: 250 | D91: 250 | E91: 250 | H91: Cost to rectify
B92: Consequence cost ($) | C92: =C90*C91*C89 -> 24000000 | D92: =D90*D91*D89 -> 12000000 | E92: 6000000 | G92: Option 1
G93: Ramp up | H93: =H$10 -> 0 | I93: =I$10 -> 0.1935320415 | J93: 0.4279629855 | K93: 0.674770052 | L93: 0.8570185428 | M93: 1 | N93: 1 | O93: 1 | P93: 0.8064679585 | Q93: 0.5720370145 | R93: 0.325229948 | S93: 0.1429814572 | T93: 0
B94: Weighted Consequence Cost ($) | C94: =C92*C78 -> 10560000 | D94: =D92*D78 -> 3600000 | E94: 360000 | G94: Benefit ($) | H94: =H93*$C$95 -> 0 | I94: =I93*$C$95 -> 0 | J94: 0 | K94: 0 | L94: 0 | M94: 0 | N94: 0 | O94: 0 | P94: 0 | Q94: 0 | R94: 0 | S94: 0 | T94: 0
B95: Annual Benefit ($) | C95: 0 | D95: =C94-D94 -> 6960000 | E95: =C94-E94 -> 10200000
G96: Option 2
B97: Added resources working - IT staff - increase hourly rate to $250 and extend working hours | G97: Ramp up | H97: =H$14 -> 0 | I97: =I$14 -> 0.2294003948 | J97: 0.4390765188 | K97: 0.6369957505 | L97: 0.8315539059 | M97: 1 | N97: 1 | O97: 1 | P97: 0.7705996052 | Q97: 0.5609234812 | R97: 0.3630042495 | S97: 0.1684460941 | T97: 0
B98: 160 hour is 20 working days. IT hours doubled assuming resources working extended hours | G98: Benefit ($) | H98: =H97*$D$95 -> 0 | I98: =I97*$D$95 -> 1596626.748 | J98: =J97*$D$95 -> 3055972.571 | K98: 4433490.424 | L98: 5787615.185 | M98: 6960000 | N98: =N97*$D$95 -> 6960000 | O98: 6960000 | P98: 5363373.252 | Q98: 3904027.429 | R98: 2526509.576 | S98: 1172384.815 | T98: 0
B100: Total consequence | C100: =C84+C92 -> 43699200 | D100: =D84+D92 -> 18566400 | E100: 7641600 | G100: Option 3
B101: Total avoided cost | D101: =C100-D100 -> 25132800 | E101: =C100-E100 -> 36057600 | G101: Ramp up | H101: =H$18 -> 0 | I101: =I$18 -> 0.2121536357 | J101: 0.4144305502 | K101: 0.6114452285 | L101: 0.8055705523 | M101: 1 | N101: 1 | O101: 1 | P101: 0.7878463643 | Q101: 0.5855694498 | R101: 0.3885547715 | S101: 0.1944294477 | T101: 0
G102: Benefit ($) | H102: =H101*$E$95 -> 0 | I102: =I101*$E$95 -> 2163967.084 | J102: 4227191.612 | K102: 6236741.331 | L102: 8216819.633 | M102: 10200000 | N102: 10200000 | O102: 10200000 | P102: 8036032.916 | Q102: 5972808.388 | R102: 3963258.669 | S102: 1983180.367 | T102: 0
A104: Consequence 6 - Life support customers at risk of outages without notice
B106: Not quantified
A109: Consequence 7 – Delays to planned maintenance
H111: Productvity loss (no cash impact)
B112: Likelihood | C112: 0.44 | D112: 0.3 | E112: 0.06 | G112: Option 1
G113: Ramp up | H113: =H$10 -> 0 | I113: =I$10 -> 0.1935320415 | J113: 0.4279629855 | K113: 0.674770052 | L113: 0.8570185428 | M113: 1 | N113: 1 | O113: 1 | P113: 0.8064679585 | Q113: 0.5720370145 | R113: 0.325229948 | S113: 0.1429814572 | T113: 0
B114: Number of Ausgrid staff impacted | C114: 1400 | D114: 1400 | E114: 1400 | G114: Benefit ($) | H114: =H113*$C$121 -> 0 | I114: =I113*$C$121 -> 0 | J114: 0 | K114: 0 | L114: 0 | M114: 0 | N114: 0 | O114: 0 | P114: 0 | Q114: 0 | R114: 0 | S114: 0 | T114: 0
B115: Level of productivity during disruption | C115: 0 | D115: 0 | E115: 0
B116: Average duration of disruption due to cyber attack (Hours | C116: =(C129/24)*8 -> 224 | D116: =(D129/24)*8 -> 134.3333333 | E116: =(E129/24)*8 -> 67 | G116: Option 2
B117: Ausgrid average labour rate (from Ausgrid Finance) ($/hour) | C117: 108 | D117: 108 | E117: 108 | G117: Ramp up | H117: =H$14 -> 0 | I117: =I$14 -> 0.2294003948 | J117: 0.4390765188 | K117: 0.6369957505 | L117: 0.8315539059 | M117: 1 | N117: 1 | O117: 1 | P117: 0.7705996052 | Q117: 0.5609234812 | R117: 0.3630042495 | S117: 0.1684460941 | T117: 0
B118: Consequence cost ($) | C118: =C114*(1-C115)*C116*C117 -> 33868800 | D118: =D114*(1-D115)*D116*D117 -> 20311200 | E118: 10130400 | G118: Benefit ($) | H118: =H117*$D$121 -> 0 | I118: =I117*$D$121 -> 2020767.89 | J118: =J117*$D$121 -> 3867786.415 | K118: 5611239.511 | L118: 7325085.18 | M118: 8808912 | N118: =N117*$D$121 -> 8808912 | O118: 8808912 | P118: 6788144.11 | Q118: 4941125.585 | R118: 3197672.489 | S118: 1483826.82 | T118: 0
B119: Avoided cost | D119: =C118-D118 -> 13557600 | E119: =C118-E118 -> 23738400
B120: Weighted Consequence Cost ($) | C120: =C118*C112 -> 14902272 | D120: =D118*D112 -> 6093360 | E120: 607824 | G120: Option 3
B121: Annual Benefit ($) | C121: 0 | D121: =C120-D120 -> 8808912 | E121: =C120-E120 -> 14294448 | G121: Ramp up | H121: =H$18 -> 0 | I121: =I$18 -> 0.2121536357 | J121: 0.4144305502 | K121: 0.6114452285 | L121: 0.8055705523 | M121: 1 | N121: 1 | O121: 1 | P121: 0.7878463643 | Q121: 0.5855694498 | R121: 0.3885547715 | S121: 0.1944294477 | T121: 0
G122: Benefit ($) | H122: =H121*$E$121 -> 0 | I122: =I121*$E$121 -> 3032619.113 | J122: =J121*$E$121 -> 5924055.95 | K122: 8740272.024 | L122: 11515186.37 | M122: =M121*$E$121 -> 14294448 | N122: 14294448 | O122: 14294448 | P122: 11261828.89 | Q122: 8370392.05 | R122: 5554175.976 | S122: 2779261.631 | T122: 0
A124: Consequence – Manual control of the grid | H124: Productvity loss (no cash impact)
B125: Likelihood | C125: 0.0044 | D125: 0.003 | E125: 0.0006 | G125: Option 1
G126: Ramp up | H126: =H$10 -> 0 | I126: =I$10 -> 0.1935320415 | J126: 0.4279629855 | K126: 0.674770052 | L126: 0.8570185428 | M126: 1 | N126: 1 | O126: 1 | P126: 0.8064679585 | Q126: 0.5720370145 | R126: 0.325229948 | S126: 0.1429814572 | T126: 0
B127: Number of Ausgrid staff impacted | C127: 400 | D127: 400 | E127: 400 | G127: Benefit ($) | H127: =H126*$C$121 -> 0 | I127: =I126*$C$121 -> 0 | J127: 0 | K127: 0 | L127: 0 | M127: 0 | N127: 0 | O127: 0 | P127: 0 | Q127: 0 | R127: 0 | S127: 0 | T127: 0
B128: Level of productivity during disruption | C128: 1 | D128: 1 | E128: 1
B129: Average duration of disruption due to cyber attack (Hours | C129: 672 | D129: 403 | E129: 201 | G129: Option 2
B130: Ausgrid average labour rate (from Ausgrid Finance) ($/hour) | C130: 108 | D130: 108 | E130: 108 | G130: Ramp up | H130: =H$14 -> 0 | I130: =I$14 -> 0.2294003948 | J130: 0.4390765188 | K130: 0.6369957505 | L130: 0.8315539059 | M130: 1 | N130: 1 | O130: 1 | P130: 0.7705996052 | Q130: 0.5609234812 | R130: 0.3630042495 | S130: 0.1684460941 | T130: 0
B131: Consequence cost ($) | C131: =C127*(C128)*C129*C130 -> 29030400 | D131: =D127*(D128)*D129*D130 -> 17409600 | E131: =E127*(E128)*E129*E130 -> 8683200 | G131: Benefit ($) | H131: =H130*$D$134 -> 0 | I131: =I130*$D$134 -> 17320.86763 | J131: =J130*$D$134 -> 33152.45499 | K131: =K130*$D$134 -> 48096.33866 | L131: 62786.4444 | M131: 75504.96 | N131: 75504.96 | O131: =O130*$D$134 -> 75504.96 | P131: =P130*$D$134 -> 58184.09237 | Q131: 42352.50501 | R131: =R130*$D$134 -> 27408.62134 | S131: =S130*$D$134 -> 12718.5156 | T131: =T130*$D$134 -> 0
B132: Avoided cost | D132: =C131-D131 -> 11620800 | E132: =C131-E131 -> 20347200
B133: Weighted Consequence Cost ($) | C133: =C131*C125 -> 127733.76 | D133: =D131*D125 -> 52228.8 | E133: =E131*E125 -> 5209.92 | G133: Option 3
B134: Annual Benefit ($) | C134: 0 | D134: =C133-D133 -> 75504.96 | E134: =C133-E133 -> 122523.84 | G134: Ramp up | H134: =H$18 -> 0 | I134: =I$18 -> 0.2121536357 | J134: 0.4144305502 | K134: 0.6114452285 | L134: 0.8055705523 | M134: 1 | N134: 1 | O134: 1 | P134: 0.7878463643 | Q134: 0.5855694498 | R134: 0.3885547715 | S134: 0.1944294477 | T134: 0
G135: Benefit ($) | H135: =H134*$E$134 -> 0 | I135: =I134*$E$134 -> 25993.87811 | J135: 50777.62243 | K135: 74916.61735 | L135: 98701.59745 | M135: 122523.84 | N135: =N134*$E$134 -> 122523.84 | O135: 122523.84 | P135: 96529.96189 | Q135: 71746.21757 | R135: 47607.22265 | S135: 23822.24255 | T135: 0
B137: Notes: SP-1 4 weeks of 24x7 manual control with 2 people in 200 substations at all times | M137: =M19+M33+M53+M73+M88+M102+M122+M135 -> 56567856.34
M138: =M137*H146*H147 -> 52246639.48
B139: People | C139: =C127+C114+C89+C80 -> 4000 | D139: =E28*0.6*24 -> 57600000 | E139: =28*0.3*24 -> 201.6
D140: =4*0.6 -> 2.4 | E140: =4*0.3 -> 1.2
D141: =C131-D131 -> 11620800 | E141: =C131-E131 -> 20347200
A146: Summary for input sheet | C146: Factor for conversion to FY24 dollars | H146: =Gen_A_Calcs!$J$29 -> 1.067091979 | I146: (assumption is that input data provided is in FY22 dollars)
H147: =Gen_A_Calcs!$C$31 -> 0.8655392862 | I147: (assumption that benefits need to SCS only)
H148: 2024/25 | I148: 2025/26 | J148: 2026/27 | K148: 2027/28 | L148: 2028/29 | M148: 2029/30 | N148: 2030/31 | O148: 2031/32 | P148: 2032/33 | Q148: 2033/34 | R148: 2034/35 | S148: 2035/36 | T148: 2036/37
C149: Option 1 | D149: Consequence 1 | E149: Customer Value (non cash) | H149: =H11*$H$146*$H$147 -> 0 | I149: =I11*$H$146*$H$147 -> 0 | J149: 0 | K149: 0 | L149: 0 | M149: 0 | N149: 0 | O149: 0 | P149: 0 | Q149: 0 | R149: 0 | S149: 0 | T149: 0
C150: Option 1 | D150: Consequence 2 | E150: Penalties and Fines | H150: =H25*$H$146*$H$147 -> 0 | I150: =I25*$H$146*$H$147 -> 0 | J150: 0 | K150: 0 | L150: 0 | M150: 0 | N150: 0 | O150: 0 | P150: 0 | Q150: 0 | R150: 0 | S150: 0 | T150: 0
C151: Option 1 | D151: Consequence 3 | E151: Penalties and Fines | H151: =H45*$H$146*$H$147 -> 0 | I151: =I45*$H$146*$H$147 -> 0 | J151: 0 | K151: 0 | L151: 0 | M151: 0 | N151: 0 | O151: 0 | P151: 0 | Q151: 0 | R151: 0 | S151: 0 | T151: 0
C152: Option 1 | D152: Consequence 5 | E152: Cost to rectify | H152: =H94*$H$146*$H$147 -> 0 | I152: 0 | J152: 0 | K152: 0 | L152: 0 | M152: 0 | N152: 0 | O152: 0 | P152: 0 | Q152: 0 | R152: 0 | S152: 0 | T152: 0
C153: Option 1 | D153: Consequence 5 | E153: Productvity (non-cash) | H153: =H80*$H$146*$H$147 -> 0 | I153: 0 | J153: 0 | K153: 0 | L153: 0 | M153: 0 | N153: 0 | O153: 0 | P153: 0 | Q153: 0 | R153: 0 | S153: 0 | T153: 0
C154: Option 1 | D154: Consequence 7 | E154: Productvity (non-cash) | H154: =H114*$H$146*$H$147 -> 0 | I154: 0 | J154: 0 | K154: 0 | L154: 0 | M154: 0 | N154: 0 | O154: 0 | P154: 0 | Q154: 0 | R154: 0 | S154: 0 | T154: 0
C156: Option 2 | D156: Consequence 1 | E156: Customer Value (non cash) | H156: =H15*$H$146*$H$147 -> 0 | I156: =I15*$H$146*$H$147 -> 1693735.516 | J156: 3241840.515 | K156: 4703140.668 | L156: 6139624.934 | M156: =M15*$H$146*$H$147 -> 7383315.61 | N156: 7383315.61 | O156: 7383315.61 | P156: 5689580.094 | Q156: =Q15*$H$146*$H$147 -> 4141475.095 | R156: =R15*$H$146*$H$147 -> 2680174.942 | S156: 1243690.676 | T156: 0
C157: Option 2 | D157: Consequence 2 | E157: Penalties and Fines | H157: =H29*$H$146*$H$147 -> 0 | I157: 118650.843 | J157: 227099.8669 | K157: 329467.9719 | L157: 430097.6555 | M157: 517221.6166 | N157: 517221.6166 | O157: 517221.6166 | P157: 398570.7736 | Q157: 290121.7497 | R157: 187753.6448 | S157: 87123.96111 | T157: 0
C158: Option 2 | D158: Consequence 3 | E158: Penalties and Fines | H158: =H49*$H$146*$H$147 -> 0 | I158: 14238.10117 | J158: 27251.98402 | K158: 39536.15662 | L158: 51611.71866 | M158: 62066.59399 | N158: 62066.59399 | O158: 62066.59399 | P158: 47828.49283 | Q158: 34814.60997 | R158: 22530.43737 | S158: 10454.87533 | T158: 0
C159: Option 2 | D159: Consequence 5 | E159: Cost to rectify | H159: =H98*$H$146*$H$147 -> 0 | I159: 1474660.478 | J159: 2822526.917 | K159: 4094816.222 | L159: 5345499.433 | M159: 6428325.807 | N159: 6428325.807 | O159: 6428325.807 | P159: 4953665.329 | Q159: 3605798.89 | R159: 2333509.585 | S159: 1082826.374 | T159: 0
C160: Option 2 | D160: Consequence 5 | E160: Productvity (non-cash) | H160: =H84*$H$146*$H$147 -> 0 | I160: 1419091.203 | J160: 2716166.316 | K160: 3940512.25 | L160: 5144066.268 | M160: 6186088.757 | N160: 6186088.757 | O160: 6186088.757 | P160: 4766997.554 | Q160: 3469922.441 | R160: 2245576.506 | S160: 1042022.489 | T160: 0
C161: Option 2 | D161: Consequence 7 | E161: Productvity (non-cash) | H161: =H118*$H$146*$H$147 -> 0 | I161: 1866401.491 | J161: 3572326.326 | K161: 5182597.091 | L161: 6765522.141 | M161: 8135999.474 | N161: 8135999.474 | O161: 8135999.474 | P161: 6269597.983 | Q161: 4563673.148 | R161: 2953402.383 | S161: 1370477.333 | T161: 0
C162: Option 2 | D162: Consequence 7 | E162: Productvity (non-cash) | H162: =H131*$H$146*$H$147 -> 0 | I162: 15997.72707 | J162: 30619.93994 | K162: 44422.26078 | L162: 57990.18978 | M162: 69737.13835 | N162: 69737.13835 | O162: 69737.13835 | P162: 53739.41128 | Q162: 39117.19841 | R162: 25314.87757 | S162: 11746.94857 | T162: 0
C165: Option 3 | D165: Consequence 1 | E165: Customer Value (non cash) | H165: =H19*$H$146*$H$147 -> 0 | I165: 4251649.679 | J165: 8305365.638 | K165: 12253624.13 | L165: 16143978.72 | M165: 20040428.08 | N165: 20040428.08 | O165: 20040428.08 | P165: 15788778.41 | Q165: 11735062.45 | R165: 7786803.954 | S165: 3896449.365 | T165: 0
C166: Option 3 | D166: Consequence 2 | E166: Penalties and Fines | H166: =H33*$H$146*$H$147 -> 0 | I166: 297839.7831 | J166: 581813.7635 | K166: 858400.1574 | L166: 1130930.223 | M166: 1403887.245 | N166: 1403887.245 | O166: 1403887.245 | P166: 1106047.462 | Q166: 822073.4816 | R166: 545487.0877 | S166: 272957.0218 | T166: 0
C167: Option 3 | D167: Consequence 3 | E167: Penalties and Fines | H167: =H53*$H$146*$H$147 -> 0 | I167: 32096.15558 | J167: 62698.08846 | K167: 92503.9117 | L167: 121872.6122 | M167: 151287.3229 | N167: 151287.3229 | O167: 151287.3229 | P167: 119191.1673 | Q167: 88589.2344 | R167: 58783.41116 | S167: 29414.71064 | T167: 0
C168: Option 3 | D168: Consequence 5 | E168: Cost to rectify | H168: =H102*$H$146*$H$147 -> 0 | I168: 1998661.703 | J168: 3904276.571 | K168: 5760316.846 | L168: 7589137.025 | M168: 9420822.303 | N168: 9420822.303 | O168: 9420822.303 | P168: 7422160.6 | Q168: 5516545.732 | R168: 3660505.457 | S168: 1831685.278 | T168: 0
C169: Option 3 | D169: Consequence 5 | E169: Productvity (non-cash) | H169: =H88*$H$146*$H$147 -> 0 | I169: 1679101.561 | J169: 3280033.273 | K169: 4839316.728 | L169: 6375732.227 | M169: 7914554.733 | N169: 7914554.733 | O169: 7914554.733 | P169: 6235453.172 | Q169: 4634521.46 | R169: 3075238.005 | S169: 1538822.506 | T169: 0
C170: Option 3 | D170: Consequence 7 | E170: Productvity (non-cash) | H170: =H122*$H$146*$H$147 -> 0 | I170: 2800957.429 | J170: 5471517.492 | K170: 8072602.904 | L170: 10635541.62 | M170: 13202495.54 | N170: 13202495.54 | O170: 13202495.54 | P170: 10401538.11 | Q170: 7730978.05 | R170: 5129892.638 | S170: 2566953.917 | T170: 0
C171: Option 3 | D171: Consequence 7 | E171: Productvity (non-cash) | H171: =H135*$H$146*$H$147 -> 0 | I171: 24008.20654 | J171: 46898.72136 | K171: 69193.73918 | L171: 91161.78535 | M171: 113164.2475 | N171: 113164.2475 | O171: 113164.2475 | P171: 89156.04096 | Q171: 66265.52614 | R171: 43970.50832 | S171: 22002.46215 | T171: 0
V173: To PB_Input
B174: For entry to input sheet | C174: Option 2 | E174: Customer Value (non cash) | H174: =H156 -> 0 | I174: =I156 -> 1693735.516 | J174: 3241840.515 | K174: 4703140.668 | L174: 6139624.934 | M174: 7383315.61 | N174: 7383315.61 | O174: 7383315.61 | P174: 5689580.094 | Q174: 4141475.095 | R174: 2680174.942 | S174: 1243690.676 | T174: 0 | V174: to row 48
C175: Option 2 | E175: Penalties and Fines | H175: =H157+H158 -> 0 | I175: =I157+I158 -> 132888.9442 | J175: 254351.8509 | K175: 369004.1285 | L175: 481709.3742 | M175: 579288.2106 | N175: 579288.2106 | O175: 579288.2106 | P175: 446399.2664 | Q175: 324936.3597 | R175: 210284.0821 | S175: 97578.83645 | T175: 0 | V175: to row 56
C176: Option 2 | E176: Cost to rectify | H176: =H159 -> 0 | I176: =I159 -> 1474660.478 | J176: 2822526.917 | K176: 4094816.222 | L176: 5345499.433 | M176: 6428325.807 | N176: 6428325.807 | O176: 6428325.807 | P176: 4953665.329 | Q176: 3605798.89 | R176: 2333509.585 | S176: 1082826.374 | T176: 0 | V176: to row 53
C177: Option 2 | E177: Productvity (non-cash) | H177: =H160+H161+H162 -> 0 | I177: =I160+I161+I162 -> 3301490.421 | J177: =J160+J161+J162 -> 6319112.582 | K177: 9167531.602 | L177: 11967578.6 | M177: 14391825.37 | N177: 14391825.37 | O177: 14391825.37 | P177: 11090334.95 | Q177: 8072712.787 | R177: 5224293.767 | S177: 2424246.771 | T177: 0 | V177: to row 45
C179: Option 3 | E179: Customer Value (non cash) | H179: =H165 -> 0 | I179: =I165 -> 4251649.679 | J179: 8305365.638 | K179: 12253624.13 | L179: 16143978.72 | M179: 20040428.08 | N179: 20040428.08 | O179: 20040428.08 | P179: 15788778.41 | Q179: 11735062.45 | R179: 7786803.954 | S179: 3896449.365 | T179: 0 | V179: to row 76
C180: Option 3 | E180: Penalties and Fines | H180: =H166+H167 -> 0 | I180: =I166+I167 -> 329935.9387 | J180: 644511.8519 | K180: 950904.0691 | L180: 1252802.836 | M180: 1555174.568 | N180: 1555174.568 | O180: 1555174.568 | P180: 1225238.629 | Q180: 910662.716 | R180: 604270.4988 | S180: 302371.7324 | T180: 0 | V180: to row 84
C181: Option 3 | E181: Cost to rectify | H181: =H168 -> 0 | I181: =I168 -> 1998661.703 | J181: 3904276.571 | K181: 5760316.846 | L181: 7589137.025 | M181: 9420822.303 | N181: 9420822.303 | O181: 9420822.303 | P181: 7422160.6 | Q181: 5516545.732 | R181: 3660505.457 | S181: 1831685.278 | T181: 0 | V181: to row 81
C182: Option 3 | E182: Productvity (non-cash) | H182: =H169+H170+H171 -> 0 | I182: =I169+I170+I171 -> 4504067.197 | J182: =J169+J170+J171 -> 8798449.486 | K182: 12981113.37 | L182: 17102435.64 | M182: 21230214.52 | N182: 21230214.52 | O182: 21230214.52 | P182: 16726147.32 | Q182: 12431765.04 | R182: 8249101.151 | S182: 4127778.885 | T182: 0 | V182: to row 73
G186: Likelihood
A187: Consequence 1 - Increase length of unplanned outage | C187: Option 1 | D187: Consequence 1 | E187: Customer Value (non cash) | F187: 2nd | G187: =C9 -> 0.0044
A188: Consequence 2 - Delays in being able to to publish key data to the market | C188: Option 1 | D188: Consequence 2 | E188: Penalties and Fines | F188: 4th | G188: =C23 -> 0.44
A189: Consequence 3 - Unauthorised access to, or use of, personal data | C189: Option 1 | D189: Consequence 3 | E189: Penalties and Fines | F189: 1st | G189: =C43 -> 0.47
A190: Consequence 5 - Lost staff productivity due to reduced access to key corporate or operational systems | C190: Option 1 | D190: Consequence 5 | E190: Cost to rectify | F190: 5th | G190: =C78 -> 0.44
A191: Consequence 7 – Delays to planned maintenance | C191: Option 1 | D191: Consequence 7 | E191: Productvity (non-cash) | F191: 3rd | G191: =C112 -> 0.44
A192: Consequence 7 – Manual control of the grid | C192: Option 1 | D192: Consequence 7 | E192: Productvity (non-cash) | F192: 3rd | G192: =C125 -> 0.0044
A194: Consequence 1 - Increase length of unplanned outage | C194: Option 2 | D194: Consequence 1 | E194: Customer Value (non cash) | F194: 2nd | G194: =D9 -> 0.003 | H194: =H156/1000000 -> 0 | I194: 1.693735516 | J194: 3.241840515 | K194: 4.703140668 | L194: 6.139624934 | M194: =M156/1000000 -> 7.38331561 | N194: 7.38331561 | O194: 7.38331561 | P194: 5.689580094 | Q194: 4.141475095 | R194: 2.680174942 | S194: 1.243690676 | T194: 0
A195: Consequence 2 - Delays in being able to to publish key data to the market | C195: Option 2 | D195: Consequence 2 | E195: Penalties and Fines | F195: 4th | G195: =D23 -> 0.3 | H195: 0 | I195: 0.118650843 | J195: 0.2270998669 | K195: 0.3294679719 | L195: 0.4300976555 | M195: 0.5172216166 | N195: 0.5172216166 | O195: 0.5172216166 | P195: 0.3985707736 | Q195: 0.2901217497 | R195: 0.1877536448 | S195: 0.08712396111 | T195: 0
A196: Consequence 3 - Unauthorised access to, or use of, personal data | C196: Option 2 | D196: Consequence 3 | E196: Penalties and Fines | F196: 1st | G196: =D43 -> 0.31 | H196: 0 | I196: 0.01423810117 | J196: 0.02725198402 | K196: 0.03953615662 | L196: 0.05161171866 | M196: 0.06206659399 | N196: 0.06206659399 | O196: 0.06206659399 | P196: 0.04782849283 | Q196: 0.03481460997 | R196: 0.02253043737 | S196: 0.01045487533 | T196: 0
A197: Consequence 5 - Lost staff productivity due to reduced access to key corporate or operational systems | C197: Option 2 | D197: Consequence 5 | E197: Cost to rectify | F197: 5th | G197: =D78 -> 0.3 | H197: =(H159+H160)/1000000 -> 0 | I197: 2.893751681 | J197: 5.538693233 | K197: 8.035328472 | L197: 10.4895657 | M197: 12.61441456 | N197: 12.61441456 | O197: 12.61441456 | P197: 9.720662883 | Q197: 7.07572133 | R197: 4.579086091 | S197: 2.124848863 | T197: 0
A198: Consequence 7 – Delays to planned maintenance | C198: Option 2 | D198: Consequence 7 | E198: Productvity (non-cash) | F198: 3rd | G198: =D112 -> 0.3 | H198: =H161/1000000 -> 0 | I198: 1.866401491 | J198: 3.572326326 | K198: 5.182597091 | L198: 6.765522141 | M198: =M161/1000000 -> 8.135999474 | N198: 8.135999474 | O198: 8.135999474 | P198: 6.269597983 | Q198: 4.563673148 | R198: 2.953402383 | S198: 1.370477333 | T198: 0
A199: Consequence 7 – Manual control of the grid | C199: Option 2 | D199: Consequence 7 | E199: Productvity (non-cash) | F199: 6th | G199: =D125 -> 0.003 | H199: =H162/1000000 -> 0 | I199: =I162/1000000 -> 0.01599772707 | J199: =J162/1000000 -> 0.03061993994 | K199: =K162/1000000 -> 0.04442226078 | L199: =L162/1000000 -> 0.05799018978 | M199: =M162/1000000 -> 0.06973713835 | N199: 0.06973713835 | O199: 0.06973713835 | P199: 0.05373941128 | Q199: 0.03911719841 | R199: 0.02531487757 | S199: 0.01174694857 | T199: 0
A201: Consequence 1 - Increase length of unplanned outage | C201: Option 3 | D201: Consequence 1 | E201: Customer Value (non cash) | F201: 2nd | G201: =E9 -> 0.0006 | H201: =H165/1000000 -> 0 | I201: 4.251649679 | J201: 8.305365638 | K201: 12.25362413 | L201: 16.14397872 | M201: 20.04042808 | N201: 20.04042808 | O201: 20.04042808 | P201: 15.78877841 | Q201: 11.73506245 | R201: 7.786803954 | S201: 3.896449365 | T201: 0
A202: Consequence 2 - Delays in being able to to publish key data to the market | C202: Option 3 | D202: Consequence 2 | E202: Penalties and Fines | F202: 4th | G202: =E23 -> 0.06 | H202: 0 | I202: 0.2978397831 | J202: 0.5818137635 | K202: 0.8584001574 | L202: 1.130930223 | M202: 1.403887245 | N202: 1.403887245 | O202: 1.403887245 | P202: 1.106047462 | Q202: 0.8220734816 | R202: 0.5454870877 | S202: 0.2729570218 | T202: 0
A203: Consequence 3 - Unauthorised access to, or use of, personal data | C203: Option 3 | D203: Consequence 3 | E203: Penalties and Fines | F203: 1st | G203: =E43 -> 0.08 | H203: 0 | I203: 0.03209615558 | J203: 0.06269808846 | K203: 0.0925039117 | L203: 0.1218726122 | M203: 0.1512873229 | N203: 0.1512873229 | O203: 0.1512873229 | P203: 0.1191911673 | Q203: 0.0885892344 | R203: 0.05878341116 | S203: 0.02941471064 | T203: 0
A204: Consequence 5 - Lost staff productivity due to reduced access to key corporate or operational systems | C204: Option 3 | D204: Consequence 5 | E204: Cost to rectify | F204: 5th | G204: =E78 -> 0.06 | H204: =(H168+H169)/1000000 -> 0 | I204: 3.677763264 | J204: 7.184309844 | K204: 10.59963357 | L204: 13.96486925 | M204: 17.33537704 | N204: 17.33537704 | O204: 17.33537704 | P204: 13.65761377 | Q204: 10.15106719 | R204: 6.735743462 | S204: 3.370507784 | T204: 0
A205: Consequence 7 – Delays to planned maintenance | C205: Option 3 | D205: Consequence 7 | E205: Productvity (non-cash) | F205: 3rd | G205: =E112 -> 0.06 | H205: =H170/1000000 -> 0 | I205: 2.800957429 | J205: 5.471517492 | K205: 8.072602904 | L205: 10.63554162 | M205: 13.20249554 | N205: 13.20249554 | O205: 13.20249554 | P205: 10.40153811 | Q205: 7.73097805 | R205: 5.129892638 | S205: 2.566953917 | T205: 0
A206: Consequence 7 – Manual control of the grid | C206: Option 3 | D206: Consequence 7 | E206: Productvity (non-cash) | F206: 6th | G206: =E125 -> 0.0006 | H206: 0 | I206: 0.02400820654 | J206: 0.04689872136 | K206: 0.06919373918 | L206: 0.09116178535 | M206: 0.1131642475 | N206: 0.1131642475 | O206: 0.1131642475 | P206: 0.08915604096 | Q206: 0.06626552614 | R206: 0.04397050832 | S206: 0.02200246215 | T206: 0
A209: Consequence 1 - Increase length of unplanned outage | C209: Opt 3 vs 2 | E209: Customer Value (non cash) | F209: 2nd | M209: =M201-M194 -> 12.65711247
A210: Consequence 2 - Delays in being able to to publish key data to the market | C210: Opt 3 vs 2 | E210: Penalties and Fines | F210: 4th | M210: 0.8866656285
A211: Consequence 3 - Unauthorised access to, or use of, personal data | C211: Opt 3 vs 2 | E211: Penalties and Fines | F211: 1st | M211: 0.08922072887
A212: Consequence 5 - Lost staff productivity due to reduced access to key corporate or operational systems | C212: Opt 3 vs 2 | E212: Cost to rectify | F212: 5th | M212: 4.720962472
A213: Consequence 7 – Delays to planned maintenance | C213: Opt 3 vs 2 | E213: Productvity (non-cash) | F213: 3rd | M213: 5.066496068
A214: Consequence 7 – Manual control of the grid | C214: Opt 3 vs 2 | E214: Productvity (non-cash) | F214: =F206 -> 6th | M214: 0.04342710915
B217: Black start scenario | C217: Real $ | H217: Option 1 | I217: Option 2 | J217: Option 3 | L217: SP-2 (to current) | M217: SP-3 (to current) | N217: SP-3 benefit over SP-2
B218: Consequence 1 - Increase length of unplanned outage | G218: $ | H218: =C$16 -> 5709982238 | I218: =D$16 -> 5709982238 | J218: =E$16 -> 5709982238 | L218: =H218-I218 -> 0 | M218: =H218-J218 -> 0 | N218: =M218-L218 -> 0
B219: Consequence 5 - Lost staff productivity due to reduced access to key corporate or operational systems | G219: $ | H219: =C84+C92 -> 43699200 | I219: =D$84+D$92 -> 18566400 | J219: 7641600 | L219: =H219-I219 -> 25132800 | M219: =H219-J219 -> 36057600 | N219: =M219-L219 -> 10924800
B220: Consequence 7 – Delays to planned maintenance | G220: $ | H220: =C118 -> 33868800 | I220: =D118 -> 20311200 | J220: =E118 -> 10130400 | L220: 13557600 | M220: 23738400 | N220: 10180800
B221: Consequence - manual control of the grid | H221: =C131 -> 29030400 | I221: =D131 -> 17409600 | J221: =E131 -> 8683200 | L221: 11620800 | M221: 20347200 | N221: 8726400
B222: Black start - Total of non-customer consequences | H222: =SUM(H219:H221) -> 106598400 | I222: =SUM(I219:I221) -> 56287200 | J222: 26455200 | L222: =H222-I222 -> 50311200 | M222: 80143200 | N222: 29832000
B223: TOTAL | G223: $ | H223: =SUM(H218:H220) -> 5787550238 | I223: =SUM(I218:I220) -> 5748859838 | J223: 5727754238 | L223: 38690400 | M223: 59796000 | N223: 21105600
B224: Consequence 2 - Delays in being able to to publish key data to the market | H224: =C28 -> 4000000 | I224: =D28 -> 4000000 | J224: =E28 -> 4000000 | L224: =H224-I224 -> 0 | M224: 0 | N224: 0
B225: Consequence 3 - Unauthorised access to, or use of, personal data | H225: =C48 -> 420000 | I225: =D48 -> 420000 | J225: =E48 -> 420000 | L225: =H225-I225 -> 0 | M225: 0 | N225: 0
B226: TOTAL non-customer consequence | H226: =H222+H224+H225 -> 111018400 | I226: =I222+I224+I225 -> 60707200 | J226: 30875200 | L226: =H226-I226 -> 50311200 | M226: 80143200 | N226: 29832000
B228: Likelihood | G228: % | H228: =C9 -> 0.0044 | I228: =D9 -> 0.003 | J228: =E9 -> 0.0006 | L228: =H228-I228 -> 0.0014 | M228: =H228-J228 -> 0.0038 | N228: =M228-L228 -> 0.0024
B230: Consequence 1 - Increase length of unplanned outage | G230: hours | H230: 24 | I230: =D13 -> 48 | J230: =E13 -> 48 | L230: =H230-I230 -> -24 | M230: =H230-J230 -> -24 | N230: =M230-L230 -> 0
B232: customer value of unavailable time | G232: $ | H232: =H230*C14*C15 -> 1597.188 | I232: =I230*D14*D15 -> 3194.376 | J232: =J230*E14*E15 -> 3194.376 | L232: =H232-I232 -> -1597.188 | M232: =H232-J232 -> -1597.188 | N232: =M232-L232 -> 0
B234: Black start - Total of non-customer consequences | H234: =SUM(H219:H221) -> 106598400 | I234: =SUM(I219:I221) -> 56287200 | J234: 26455200 | L234: =H234-I234 -> 50311200 | M234: =H234-J234 -> 80143200 | N234: =M234-L234 -> 29832000
A236: was | B236: Level of productivity during disruption | C236: 0.6 | D236: 0.7 | E236: 0.8 | H236: This will change the cost from $19.4m; $7.3m; $2.4m to $29.1m; $9.7m; $2.4m
A237: to | B237: Level of productivity during disruption | C237: 0.4 | D237: 0.6 | E237: 0.8 | H237: This will change the savings from $12.1m; $17m to $19.4m; $26.6m
C241: SP-1 | D241: SP-2 | E241: SP-3
B242: Sum of consequences | C242: =C18+C30+C50+C86+C94+C120+C133 -> 61338975.61 | D242: =D18+D30+D50+D86+D94+D120+D133 -> 30175655.51 | E242: =E18+E30+E50+E86+E94+E120+E133 -> 4771119.263
B243: over 5 years | C243: =C242*5 -> 306694878 | D243: =D242*5 -> 150878277.6 | E243: 23855596.31
B244: Benefit over SP-1 | D244: =C243-D243 -> 155816600.5 | E244: =C243-E243 -> 282839281.7
B245: Benefit over SP-2 | E245: =D243-E243 -> 127022681.3
C246: 24000000 | D246: 63000000 | E246: 87500000
B247: Cost over SP-1 | M247: =63-24 -> 39
B248: Cost over SP-2 | M248: =87.5-63 -> 24.5
E249: =Gen_A_Calcs!$J$29 -> 1.067091979 | F249: (assumption is that input data provided is in FY22 dollars)
E250: =Gen_A_Calcs!$C$31 -> 0.8655392862 | F250: (assumption that benefits need to SCS only)
C251: SP-1 | D251: SP-2 | E251: SP-3
B252: Sum of consequences | C252: =C242*$E$249*$E$250 -> 56653293.08 | D252: =D242*$E$249*$E$250 -> 27870538.09 | E252: 4406653.604
B253: over 5 years | C253: =C243*$E$249*$E$250 -> 283266465.4 | D253: 139352690.4 | E253: 22033268.02
... 2 more rows

Sheet PB_benefit_compliance risks_A
A1: Proposed ICT Expenditure – Program Brief Cost-Benefit Analysis
A2: =RIGHT(CELL("filename",A1),LEN(CELL("filename",A1))-FIND("]",CELL("filename",A1))) -> PB_benefit_compliance risks_A
A3: =_xlfn.SHEET() -> 12
A5: =$A$3&"."&COUNTA($A$3:A4) -> 12.1 | B5: Input sheet - compliance risk
H7: Total potential penalties
B8: Title of legislation | C8: Penalties ($) | D8: Penalties (description) | E8: Details | F8: Source | H8: Option 1 | I8: Option 2 | J8: Option 3
B9: Total | H9: =SUMIFS($C$12:$C$245,$H$12:$H$245,"Yes") -> 0 | I9: =SUMIFS($C$12:$C$245,$I$12:$I$245,"Yes") -> 0 | J9: =SUMIFS($C$12:$C$245,$J$12:$J$245,"Yes") -> 0
H11: Relevant to option?
B12: Electricity Supply Act 1995 (NSW) | C12: 1000000 | D12: ≥ $500K | F12: Ausgrid PLUS ES Legislative Register 2021 | H12: No | I12: No | J12: No
B13: National Energy Retail Law 2012 (NSW) | C13: 1000000 | D13: ≥ $500K | F13: Ausgrid PLUS ES Legislative Register 2021 | H13: No | I13: No | J13: No
B14: Protection of the Environment Operations Act 1997 (NSW) | C14: 1000000 | D14: ≥ $500K | F14: Ausgrid PLUS ES Legislative Register 2021 | H14: No | I14: No | J14: No
B15: Competition and Consumer Act 2010 (Cth) | C15: 1000000 | D15: ≥ $500K | F15: Ausgrid PLUS ES Legislative Register 2021 | H15: No | I15: No | J15: No
B16: Heavy Vehicle National Law 2014 (NSW) | C16: 1000000 | D16: ≥ $500K | F16: Ausgrid PLUS ES Legislative Register 2021 | H16: No | I16: No | J16: No
B17: Contaminated Land Management Act 1997 (NSW) | C17: 1000000 | D17: ≥ $500K | F17: Ausgrid PLUS ES Legislative Register 2021 | H17: No | I17: No | J17: No
B18: Gas and Electricity (Consumer Safety) Act 2017 (NSW) | C18: 1000000 | D18: ≥ $500K | F18: Ausgrid PLUS ES Legislative Register 2021 | H18: No | I18: No | J18: No
B19: Biodiversity Conservation Act 2016 (NSW) | C19: 1000000 | D19: ≥ $500K | F19: Ausgrid PLUS ES Legislative Register 2021 | H19: No | I19: No | J19: No
B20: Forestry Act 2012 (NSW) | C20: 1000000 | D20: ≥ $500K | F20: Ausgrid PLUS ES Legislative Register 2021 | H20: No | I20: No | J20: No
B21: Pesticides Act 1999 (NSW) | C21: 1000000 | D21: ≥ $500K | F21: Ausgrid PLUS ES Legislative Register 2021 | H21: No | I21: No | J21: No
B22: Protection of the Environment Operations Amendment (Asbestos Waste) Act 2018 (NSW) | C22: 1000000 | D22: ≥ $500K | F22: Ausgrid PLUS ES Legislative Register 2021 | H22: No | I22: No | J22: No
B23: Taxation Administration Act 1953 (Cth) | C23: 1000000 | D23: ≥ $500K | F23: Ausgrid PLUS ES Legislative Register 2021 | H23: No | I23: No | J23: No
B24: Building Products (Safety) Act 2017 (NSW) | C24: 1000000 | D24: ≥ $500K | F24: Ausgrid PLUS ES Legislative Register 2021 | H24: No | I24: No | J24: No
B25: Public Health (COVID-19 Gatherings) Order (No 2) 2020 | C25: 1000000 | D25: ≥ $500K | F25: Ausgrid PLUS ES Legislative Register 2021 | H25: No | I25: No | J25: No
B26: Public Health (COVID-19 Quarantine) Order 2020 (NSW) | C26: 1000000 | D26: ≥ $500K | F26: Ausgrid PLUS ES Legislative Register 2021 | H26: No | I26: No | J26: No
B27: Rail Safety National Law 2012 (NSW) and Rail Safety (Adoption of National Law) Act 2012 | C27: 1000000 | D27: ≥ $500K | F27: Ausgrid PLUS ES Legislative Register 2021 | H27: No | I27: No | J27: No
B28: Occupational Health and Safety Act 1984 (WA) ** in Feb 2022 this Act will be replaced by a new WHS Act 2020 as shown in row below | C28: 1000000 | D28: ≥ $500K | F28: Ausgrid PLUS ES Legislative Register 2021 | H28: No | I28: No | J28: No
B29: Work Health and Safety Act 2020 (WA) effective Feb 2022 | C29: 1000000 | D29: ≥ $500K | F29: Ausgrid PLUS ES Legislative Register 2021 | H29: No | I29: No | J29: No
B30: Occupational Health and Safety Act 2004 (Vic) | C30: 1000000 | D30: ≥ $500K | F30: Ausgrid PLUS ES Legislative Register 2021 | H30: No | I30: No | J30: No
B31: Work Health and Safety Act 2012 (SA) | C31: 1000000 | D31: ≥ $500K | F31: Ausgrid PLUS ES Legislative Register 2021 | H31: No | I31: No | J31: No
B32: Work Health and Safety Act 2011 (ACT) | C32: 1000000 | D32: ≥ $500K | F32: Ausgrid PLUS ES Legislative Register 2021 | H32: No | I32: No | J32: No
B33: Work Health and Safety Act 2011 (Qld) | C33: 1000000 | D33: ≥ $500K | F33: Ausgrid PLUS ES Legislative Register 2021 | H33: No | I33: No | J33: No
B34: Work Health and Safety Act 2012 (Tas) | C34: 1000000 | D34: ≥ $500K | F34: Ausgrid PLUS ES Legislative Register 2021 | H34: No | I34: No | J34: No
B35: Home Building Act 1989 (NSW) | C35: 1000000 | D35: ≥ $500K | F35: Ausgrid PLUS ES Legislative Register 2021 | H35: No | I35: No | J35: No
B36: Radio Communications Act 1992 (Cth) | C36: 1000000 | D36: ≥ $500K | F36: Ausgrid PLUS ES Legislative Register 2021 | H36: No | I36: No | J36: No
B37: Telecommunications (Interception and Access) Act 1979 (Cth) | C37: 1000000 | D37: ≥ $500K | F37: Ausgrid PLUS ES Legislative Register 2021 | H37: No | I37: No | J37: No
B38: Treasury Laws Amendment (Consumer Data Right) Act (Cth) 2019 | C38: 1000000 | D38: ≥ $500K | F38: Ausgrid PLUS ES Legislative Register 2021 | H38: No | I38: No | J38: No
B39: Invasion of Privacy Act 1971 (Qld) | C39: 1000000 | D39: ≥ $500K | F39: Ausgrid PLUS ES Legislative Register 2021 | H39: No | I39: No | J39: No
B40: Listening Devices Act 1991 (Tas) | C40: 1000000 | D40: ≥ $500K | F40: Ausgrid PLUS ES Legislative Register 2021 | H40: No | I40: No | J40: No
B41: Surveillance Devices Act 1998 (SA) | C41: 1000000 | D41: ≥ $500K | F41: Ausgrid PLUS ES Legislative Register 2021 | H41: No | I41: No | J41: No
B42: Australian Securities and Investments Commission Act 2001 (Cth) | C42: 1000000 | D42: ≥ $500K | F42: Ausgrid PLUS ES Legislative Register 2021 | H42: No | I42: No | J42: No
B43: Modern Slavery Act 2018 (NSW) | C43: 1000000 | D43: ≥ $500K | F43: Ausgrid PLUS ES Legislative Register 2021 | H43: No | I43: No | J43: No
B44: State Emergency and Rescue Management Act 1989 (NSW) | C44: 1000000 | D44: ≥ $500K | F44: Ausgrid PLUS ES Legislative Register 2021 | H44: No | I44: No | J44: No
B45: Corporations Act 2001 (Cth) | C45: 1000000 | D45: ≥ $500K | F45: Ausgrid PLUS ES Legislative Register 2021 | H45: No | I45: No | J45: No
B46: Court Suppression and Non-publication Orders Act 2010 No 106 | C46: 1000000 | D46: ≥ $500K | F46: Ausgrid PLUS ES Legislative Register 2021 | H46: No | I46: No | J46: No
B47: Crimes Act 1900 (NSW) | C47: 1000000 | D47: ≥ $500K | F47: Ausgrid PLUS ES Legislative Register 2021 | H47: No | I47: No | J47: No
B48: Environment Protection and Biodiversity Conservation Act 1999 (Cth) | C48: 1000000 | D48: ≥ $500K | F48: Ausgrid PLUS ES Legislative Register 2021 | H48: No | I48: No | J48: No
B49: Environmental Planning and Assessment Act 1979 (NSW) | C49: 1000000 | D49: ≥ $500K | F49: Ausgrid PLUS ES Legislative Register 2021 | H49: No | I49: No | J49: No
B50: Marine Pollution Act 2012 (NSW) | C50: 1000000 | D50: ≥ $500K | F50: Ausgrid PLUS ES Legislative Register 2021 | H50: No | I50: No | J50: No
B51: National Measurement Act 1960 (Cth) | C51: 1000000 | D51: ≥ $500K | F51: Ausgrid PLUS ES Legislative Register 2021 | H51: No | I51: No | J51: No
B52: Ozone Protection and Synthetic Greenhouse Gas Management Act 1989 (Cth) | C52: 1000000 | D52: ≥ $500K | F52: Ausgrid PLUS ES Legislative Register 2021 | H52: No | I52: No | J52: No
B53: Security of Critical Infrastructure Act 2018 (Cth) | C53: 1000000 | D53: ≥ $500K | F53: Ausgrid PLUS ES Legislative Register 2021 | H53: No | I53: No | J53: No
B54: Trade Support Loans Act 2014 (Cth) | C54: 1000000 | D54: ≥ $500K | F54: Ausgrid PLUS ES Legislative Register 2021 | H54: No | I54: No | J54: No
B55: Utilities Act 2000 (ACT) | C55: 1000000 | D55: ≥ $500K | F55: Ausgrid PLUS ES Legislative Register 2021 | H55: No | I55: No | J55: No
B56: National Electricity (New South Wales) Act 1997 (NSW) | C56: 1000000 | D56: ≥ $500K | F56: Ausgrid PLUS ES Legislative Register 2021 | H56: No | I56: No | J56: No
B57: Aboriginal Cultural Heritage Act 2003 (Qld | C57: 1000000 | D57: ≥ $500K | F57: Ausgrid PLUS ES Legislative Register 2021 | H57: No | I57: No | J57: No
B58: Aboriginal Heritage Act 2006 (Vic) | C58: 1000000 | D58: ≥ $500K | F58: Ausgrid PLUS ES Legislative Register 2021 | H58: No | I58: No | J58: No
B59: Crimes Act 1958 (Vic) | C59: 1000000 | D59: ≥ $500K | F59: Ausgrid PLUS ES Legislative Register 2021 | H59: No | I59: No | J59: No
B60: Dangerous Goods (Road and Rail Transport) Act 2010 (Tas) | C60: 1000000 | D60: ≥ $500K | F60: Ausgrid PLUS ES Legislative Register 2021 | H60: No | I60: No | J60: No
B61: Dangerous Goods (Road Transport) Act 2009 (ACT) | C61: 1000000 | D61: ≥ $500K | F61: Ausgrid PLUS ES Legislative Register 2021 | H61: No | I61: No | J61: No
B62: Dangerous Goods Act 1985 (Vic) | C62: 1000000 | D62: ≥ $500K | F62: Ausgrid PLUS ES Legislative Register 2021 | H62: No | I62: No | J62: No
B63: Dangerous Goods Safety Act 2004 (WA) | C63: 1000000 | D63: ≥ $500K | F63: Ausgrid PLUS ES Legislative Register 2021 | H63: No | I63: No | J63: No
B64: Labour Hire Licensing Act 2017 (Qld) | C64: 1000000 | D64: ≥ $500K | F64: Ausgrid PLUS ES Legislative Register 2021 | H64: No | I64: No | J64: No
B65: Labour Hire Licensing Act 2020 (ACT) | C65: 1000000 | D65: ≥ $500K | F65: Ausgrid PLUS ES Legislative Register 2021 | H65: No | I65: No | J65: No
B66: Privacy Act 1988 (Cth) | C66: 499000 | D66: ≥ 250k ≤$499k | F66: Ausgrid PLUS ES Legislative Register 2021 | H66: No | I66: No | J66: No
B67: Civil Liability Act (NSW) 2002 | C67: 499000 | D67: ≥ 250k ≤$499k | F67: Ausgrid PLUS ES Legislative Register 2021 | H67: No | I67: No | J67: No
B68: Surveillance Devices Act 2007 (NSW) | C68: 499000 | D68: ≥ 250k ≤$499k | F68: Ausgrid PLUS ES Legislative Register 2021 | H68: No | I68: No | J68: No
B69: Telecommunications Act 1997 (Cth) | C69: 499000 | D69: ≥ 250k ≤$499k | F69: Ausgrid PLUS ES Legislative Register 2021 | H69: No | I69: No | J69: No
B70: Australian Radiation Protection and Nuclear Safety Act 1998 (Cth) | C70: 499000 | D70: ≥ 250k ≤$499k | F70: Ausgrid PLUS ES Legislative Register 2021 | H70: No | I70: No | J70: No
B71: National Greenhouse and Energy Reporting Act 2007 (Cth) | C71: 499000 | D71: ≥ 250k ≤$499k | F71: Ausgrid PLUS ES Legislative Register 2021 | H71: No | I71: No | J71: No
B72: Water NSW Act 2014 (NSW) | C72: 499000 | D72: ≥ 250k ≤$499k | F72: Ausgrid PLUS ES Legislative Register 2021 | H72: No | I72: No | J72: No
B73: Clean Energy Legislation (Carbon Tax Repeal) Act 2014 (Cth) | C73: 499000 | D73: ≥ 250k ≤$499k | F73: Ausgrid PLUS ES Legislative Register 2021 | H73: No | I73: No | J73: No
B74: Dangerous Substances Act 1979 (SA) | C74: 499000 | D74: ≥ 250k ≤$499k | F74: Ausgrid PLUS ES Legislative Register 2021 | H74: No | I74: No | J74: No
B75: Work Health and Safety Act 2011 (NSW) | C75: 250000 | D75: > $250k | F75: Ausgrid PLUS ES Legislative Register 2021 | H75: No | I75: No | J75: No
B76: A New Tax System (Goods and Services Tax) Act 1999 (Cth) | C76: 250000 | D76: > $250k | F76: Ausgrid PLUS ES Legislative Register 2021 | H76: No | I76: No | J76: No
B77: Fringe Benefits Tax Act 1986 (Cth) | C77: 250000 | D77: > $250k | F77: Ausgrid PLUS ES Legislative Register 2021 | H77: No | I77: No | J77: No
B78: Dangerous Goods (Road and Rail Transport) Act 2008 (NSW) | C78: 250000 | D78: > $250k | F78: Ausgrid PLUS ES Legislative Register 2021 | H78: No | I78: No | J78: No
B79: Coastal Management Act 2016 (NSW) | C79: 250000 | D79: > $250k | F79: Ausgrid PLUS ES Legislative Register 2021 | H79: No | I79: No | J79: No
B80: Environmentally Hazardous Chemicals Act 1985 (NSW) | C80: 250000 | D80: > $250k | F80: Ausgrid PLUS ES Legislative Register 2021 | H80: No | I80: No | J80: No
B81: Heritage Act 1977 (NSW) | C81: 250000 | D81: > $250k | F81: Ausgrid PLUS ES Legislative Register 2021 | H81: No | I81: No | J81: No
B82: Independent Pricing and Regulatory Tribunal Act 1992 (NSW) | C82: 250000 | D82: > $250k | F82: Ausgrid PLUS ES Legislative Register 2021 | H82: No | I82: No | J82: No
B83: National Environment Protection Council (New South Wales) Act 1995 (NSW) | C83: 250000 | D83: > $250k | F83: Ausgrid PLUS ES Legislative Register 2021 | H83: No | I83: No | J83: No
B84: National Parks and Wildlife Act 1974 (NSW) | C84: 250000 | D84: > $250k | F84: Ausgrid PLUS ES Legislative Register 2021 | H84: No | I84: No | J84: No
B85: Natural Resources Commission Act 2003 (NSW) | C85: 250000 | D85: > $250k | F85: Ausgrid PLUS ES Legislative Register 2021 | H85: No | I85: No | J85: No
B86: Protection of the Environment Administration Act 1991 (NSW) | C86: 250000 | D86: > $250k | F86: Ausgrid PLUS ES Legislative Register 2021 | H86: No | I86: No | J86: No
B87: Radiation Control Act 1990 (NSW) | C87: 250000 | D87: > $250k | F87: Ausgrid PLUS ES Legislative Register 2021 | H87: No | I87: No | J87: No
B88: Soil Conservation Act 1938 (NSW) | C88: 250000 | D88: > $250k | F88: Ausgrid PLUS ES Legislative Register 2021 | H88: No | I88: No | J88: No
B89: Waste Avoidance and Resource Recovery Act 2001 (NSW) | C89: 250000 | D89: > $250k | F89: Ausgrid PLUS ES Legislative Register 2021 | H89: No | I89: No | J89: No
B90: Wilderness Act 1987 (NSW) | C90: 250000 | D90: > $250k | F90: Ausgrid PLUS ES Legislative Register 2021 | H90: No | I90: No | J90: No
B91: Electricity Network Assets (Authorised Transactions) Act 2015 | C91: 250000 | D91: > $250k | F91: Ausgrid PLUS ES Legislative Register 2021 | H91: No | I91: No | J91: No
B92: Fringe Benefits Tax Assessment Act 1986 (Cth) | C92: 250000 | D92: > $250k | F92: Ausgrid PLUS ES Legislative Register 2021 | H92: No | I92: No | J92: No
B93: Fuel Tax Act 2006 (Cth) | C93: 250000 | D93: > $250k | F93: Ausgrid PLUS ES Legislative Register 2021 | H93: No | I93: No | J93: No
B94: Superannuation Contributions Tax Imposition Act 1997 (Cth) | C94: 250000 | D94: > $250k | F94: Ausgrid PLUS ES Legislative Register 2021 | H94: No | I94: No | J94: No
B95: Superannuation Guarantee (Administration) Act 1992 (Cth) | C95: 250000 | D95: > $250k | F95: Ausgrid PLUS ES Legislative Register 2021 | H95: No | I95: No | J95: No
B96: Superannuation Guarantee Charge Act 1992 (Cth) | C96: 250000 | D96: > $250k | F96: Ausgrid PLUS ES Legislative Register 2021 | H96: No | I96: No | J96: No
B97: Superannuation Industry (Supervision) Act 1993 (Cth) | C97: 250000 | D97: > $250k | F97: Ausgrid PLUS ES Legislative Register 2021 | H97: No | I97: No | J97: No
B98: Access to Neighbouring Land Act 2000 (NSW) | C98: 250000 | D98: > $250k | F98: Ausgrid PLUS ES Legislative Register 2021 | H98: No | I98: No | J98: No
B99: Building and Construction Industry Security of Payment Act 1999 (NSW) | C99: 250000 | D99: > $250k | F99: Ausgrid PLUS ES Legislative Register 2021 | H99: No | I99: No | J99: No
B100: Electricity Market Operation Rules (NSW) | C100: 250000 | D100: > $250k | F100: Ausgrid PLUS ES Legislative Register 2021 | H100: No | I100: No | J100: No
B101: Essential Services Act 1988 (NSW) | C101: 250000 | D101: > $250k | F101: Ausgrid PLUS ES Legislative Register 2021 | H101: No | I101: No | J101: No
B102: Fair Trading Act 1987 (NSW) | C102: 250000 | D102: > $250k | F102: Ausgrid PLUS ES Legislative Register 2021 | H102: No | I102: No | J102: No
B103: Government Telecommunications Act 1991 (NSW) | C103: 250000 | D103: > $250k | F103: Ausgrid PLUS ES Legislative Register 2021 | H103: No | I103: No | J103: No
B104: Independent Contractors Act 2006 (Cth) | C104: 250000 | D104: > $250k | F104: Ausgrid PLUS ES Legislative Register 2021 | H104: No | I104: No | J104: No
B105: Mutual Recognition (Automatic Licensed Occupations Recognition) Act 2014 (NSW) | C105: 250000 | D105: > $250k | F105: Ausgrid PLUS ES Legislative Register 2021 | H105: No | I105: No | J105: No
B106: Service and Installation Rules of New South Wales | C106: 250000 | D106: > $250k | F106: Ausgrid PLUS ES Legislative Register 2021 | H106: No | I106: No | J106: No
B107: Coronavirus Economic Response Package (Payments and Benefits) Act 2020 | C107: 250000 | D107: > $250k | F107: Ausgrid PLUS ES Legislative Register 2021 | H107: No | I107: No | J107: No
B108: Health Records and Information Privacy Act 2002 (NSW) | C108: 250000 | D108: > $250k | F108: Ausgrid PLUS ES Legislative Register 2021 | H108: No | I108: No | J108: No
B109: Marine Safety Act 1998 (NSW) | C109: 250000 | D109: > $250k | F109: Ausgrid PLUS ES Legislative Register 2021 | H109: No | I109: No | J109: No
B110: Security Industry Act 1997 (NSW) | C110: 250000 | D110: > $250k | F110: Ausgrid PLUS ES Legislative Register 2021 | H110: No | I110: No | J110: No
B111: Smoke-Free Environment Act 2000 (NSW) | C111: 250000 | D111: > $250k | F111: Ausgrid PLUS ES Legislative Register 2021 | H111: No | I111: No | J111: No
B112: Workers Compensation (Dust Diseases) Act 1942 (NSW) | C112: 250000 | D112: > $250k | F112: Ausgrid PLUS ES Legislative Register 2021 | H112: No | I112: No | J112: No
B113: Workers Compensation Act 1987 (NSW) | C113: 250000 | D113: > $250k | F113: Ausgrid PLUS ES Legislative Register 2021 | H113: No | I113: No | J113: No
B114: Workplace Injury Management and Workers Compensation Act 1998 (NSW) | C114: 250000 | D114: > $250k | F114: Ausgrid PLUS ES Legislative Register 2021 | H114: No | I114: No | J114: No
B115: Workplace Surveillance Act 2005 (NSW) | C115: 250000 | D115: > $250k | F115: Ausgrid PLUS ES Legislative Register 2021 | H115: No | I115: No | J115: No
B116: Electronic Transactions Act 1999 (Cth) | C116: 250000 | D116: > $250k | F116: Ausgrid PLUS ES Legislative Register 2021 | H116: No | I116: No | J116: No
B117: Electronic Transactions Act 2000 (NSW) | C117: 250000 | D117: > $250k | F117: Ausgrid PLUS ES Legislative Register 2021 | H117: No | I117: No | J117: No
B118: Evidence Act 1995 (NSW) | C118: 250000 | D118: > $250k | F118: Ausgrid PLUS ES Legislative Register 2021 | H118: No | I118: No | J118: No
B119: Workplace Surveillance Act 2005 (NSW) | C119: 250000 | D119: > $250k | F119: Ausgrid PLUS ES Legislative Register 2021 | H119: No | I119: No | J119: No
B120: Rural Fires Act 1997 (NSW) | C120: 250000 | D120: > $250k | F120: Ausgrid PLUS ES Legislative Register 2021 | H120: No | I120: No | J120: No
B121: Biosecurity (Human Biosecurity Emergency) (Human Coronavirus with Pandemic Potential) (Overseas Travel Ban Emergency Requirements) Determination 2020 (Cth) | C121: 250000 | D121: > $250k | F121: Ausgrid PLUS ES Legislative Register 2021 | H121: No | I121: No | J121: No
B122: Electricity Industry Act 2000 (VIC) | C122: 250000 | D122: > $250k | F122: Ausgrid PLUS ES Legislative Register 2021 | H122: No | I122: No | J122: No
B123: Accident Compensation Act 1985 (Vic) | C123: 250000 | D123: > $250k | F123: Ausgrid PLUS ES Legislative Register 2021 | H123: No | I123: No | J123: No
B124: Asbestos Diseases Compensation Act 2008 (Vic) | C124: 250000 | D124: > $250k | F124: Ausgrid PLUS ES Legislative Register 2021 | H124: No | I124: No | J124: No
B125: COVID-19 Emergency Response Act 2020 (ACT) | C125: 250000 | D125: > $250k | F125: Ausgrid PLUS ES Legislative Register 2021 | H125: No | I125: No | J125: No
B126: COVID-19 Emergency Response Act 2020 (Qld) | C126: 250000 | D126: > $250k | F126: Ausgrid PLUS ES Legislative Register 2021 | H126: No | I126: No | J126: No
B127: COVID-19 Omnibus (Emergency Measures) Act 2020 (Vic) | C127: 250000 | D127: > $250k | F127: Ausgrid PLUS ES Legislative Register 2021 | H127: No | I127: No | J127: No
B128: Electrical Safety Act 2013 (Qld) | C128: 250000 | D128: > $250k | F128: Ausgrid PLUS ES Legislative Register 2021 | H128: No | I128: No | J128: No
B129: Electricity (National Scheme) Act 1997 (ACT) | C129: 250000 | D129: > $250k | F129: Ausgrid PLUS ES Legislative Register 2021 | H129: No | I129: No | J129: No
B130: Electricity Act 1945 (WA) | C130: 250000 | D130: > $250k | F130: Ausgrid PLUS ES Legislative Register 2021 | H130: No | I130: No | J130: No
B131: Workers Compensation Act 1951 (ACT) | C131: 250000 | D131: > $250k | F131: Ausgrid PLUS ES Legislative Register 2021 | H131: No | I131: No | J131: No
B132: Workers Compensation and Injury Management Act 1981 (WA) | C132: 250000 | D132: > $250k | F132: Ausgrid PLUS ES Legislative Register 2021 | H132: No | I132: No | J132: No
B133: Workers Rehabilitation and Compensation Act 1988 (Tas) | C133: 250000 | D133: > $250k | F133: Ausgrid PLUS ES Legislative Register 2021 | H133: No | I133: No | J133: No
B134: Workers’ Compensation and Rehabilitation Act 2003 (Qld) | C134: 250000 | D134: > $250k | F134: Ausgrid PLUS ES Legislative Register 2021 | H134: No | I134: No | J134: No
B135: Aboriginal and Torres Strait Islander Heritage Protection Act 1984 (Cth) | C135: 250000 | D135: > $250k | F135: Ausgrid PLUS ES Legislative Register 2021 | H135: No | I135: No | J135: No
B136: Aboriginal Land Rights Act 1983 (NSW) | C136: 250000 | D136: > $250k | F136: Ausgrid PLUS ES Legislative Register 2021 | H136: No | I136: No | J136: No
B137: Age Discrimination Act 2004 (Cth) | C137: 250000 | D137: > $250k | F137: Ausgrid PLUS ES Legislative Register 2021 | H137: No | I137: No | J137: No
B138: Agricultural and Veterinary Chemicals Code Act 1994 (Cth) | C138: 250000 | D138: > $250k | F138: Ausgrid PLUS ES Legislative Register 2021 | H138: No | I138: No | J138: No
B139: Annual Holidays Act 1944 (NSW) | C139: 250000 | D139: > $250k | F139: Ausgrid PLUS ES Legislative Register 2021 | H139: No | I139: No | J139: No
B140: Anti-Discrimination Act 1977 (NSW) | C140: 250000 | D140: > $250k | F140: Ausgrid PLUS ES Legislative Register 2021 | H140: No | I140: No | J140: No
B141: Apprenticeship and Traineeship Act 2001 (NSW) | C141: 250000 | D141: > $250k | F141: Ausgrid PLUS ES Legislative Register 2021 | H141: No | I141: No | J141: No
B142: Australian Business Growth Fund (Coronavirus Economic Response Package) Act 2020 | C142: 250000 | D142: > $250k | F142: Ausgrid PLUS ES Legislative Register 2021 | H142: No | I142: No | J142: No
B143: Australian Human Rights Commission Act 1986 (Cth) | C143: 250000 | D143: > $250k | F143: Ausgrid PLUS ES Legislative Register 2021 | H143: No | I143: No | J143: No
B144: Australian Jobs Act 2013 (Cth) | C144: 250000 | D144: > $250k | F144: Ausgrid PLUS ES Legislative Register 2021 | H144: No | I144: No | J144: No
B145: Building and Construction Industry Long Service Payments Act 1986 (NSW) | C145: 250000 | D145: > $250k | F145: Ausgrid PLUS ES Legislative Register 2021 | H145: No | I145: No | J145: No
B146: Building Energy Efficiency Disclosure Act 2010 (Cth) | C146: 250000 | D146: > $250k | F146: Ausgrid PLUS ES Legislative Register 2021 | H146: No | I146: No | J146: No
B147: Coal Mine Subsidence Compensation Act 2017 (NSW) | C147: 250000 | D147: > $250k | F147: Ausgrid PLUS ES Legislative Register 2021 | H147: No | I147: No | J147: No
B148: Community Land Development Act 1989 (NSW) | C148: 250000 | D148: > $250k | F148: Ausgrid PLUS ES Legislative Register 2021 | H148: No | I148: No | J148: No
B149: Community Land Management Act 1989 (NSW) | C149: 250000 | D149: > $250k | F149: Ausgrid PLUS ES Legislative Register 2021 | H149: No | I149: No | J149: No
B150: Conveyancing Act 1919 (NSW) | C150: 250000 | D150: > $250k | F150: Ausgrid PLUS ES Legislative Register 2021 | H150: No | I150: No | J150: No
B151: Conveyancing Legislation Amendment Act 2018 (NSW) | C151: 250000 | D151: > $250k | F151: Ausgrid PLUS ES Legislative Register 2021 | H151: No | I151: No | J151: No
B152: Conveyancing Legislation Amendment Act 2018 (NSW) No 75 | C152: 250000 | D152: > $250k | F152: Ausgrid PLUS ES Legislative Register 2021 | H152: No | I152: No | J152: No
B153: Corporations Amendment (Strengthening Protections for Employee Entitlements) Act 2010 | C153: 250000 | D153: > $250k | F153: Ausgrid PLUS ES Legislative Register 2021 | H153: No | I153: No | J153: No
B154: Crown Land Management Act 2016 (NSW) | C154: 250000 | D154: > $250k | F154: Ausgrid PLUS ES Legislative Register 2021 | H154: No | I154: No | J154: No
B155: Crown Lands Act 1989 (NSW) | C155: 250000 | D155: > $250k | F155: Ausgrid PLUS ES Legislative Register 2021 | H155: No | I155: No | J155: No
B156: Defamation Act 2005 (NSW) | C156: 250000 | D156: > $250k | F156: Ausgrid PLUS ES Legislative Register 2021 | H156: No | I156: No | J156: No
B157: Designs Act 2003 (Cth) | C157: 250000 | D157: > $250k | F157: Ausgrid PLUS ES Legislative Register 2021 | H157: No | I157: No | J157: No
B158: Disability Discrimination Act 1992 (Cth) | C158: 250000 | D158: > $250k | F158: Ausgrid PLUS ES Legislative Register 2021 | H158: No | I158: No | J158: No
B159: Dividing Fences Act 1991 (NSW) | C159: 250000 | D159: > $250k | F159: Ausgrid PLUS ES Legislative Register 2021 | H159: No | I159: No | J159: No
B160: Education Services for Overseas Students Act 2000 (Cth) | C160: 250000 | D160: > $250k | F160: Ausgrid PLUS ES Legislative Register 2021 | H160: No | I160: No | J160: No
B161: Electricity Network Assets (Authorised Transactions) Act 2015 (NSW) | C161: 250000 | D161: > $250k | F161: Ausgrid PLUS ES Legislative Register 2021 | H161: No | I161: No | J161: No
B162: Electricity Network Assets (Authorised Transactions) Act 2015 (NSW) | C162: 250000 | D162: > $250k | F162: Ausgrid PLUS ES Legislative Register 2021 | H162: No | I162: No | J162: No
B163: Electricity Network Assets (Authorised Transactions) Act 2015 (NSW) | C163: 250000 | D163: > $250k | F163: Ausgrid PLUS ES Legislative Register 2021 | H163: No | I163: No | J163: No
B164: Electricity Retained Interest Corporations Act 2015 (NSW) | C164: 250000 | D164: > $250k | F164: Ausgrid PLUS ES Legislative Register 2021 | H164: No | I164: No | J164: No
B165: Electronic Conveyancing (Adoption of National Law) Act 2012 (NSW) | C165: 250000 | D165: > $250k | F165: Ausgrid PLUS ES Legislative Register 2021 | H165: No | I165: No | J165: No
B166: Employees Liability Act 1991 (NSW) | C166: 250000 | D166: > $250k | F166: Ausgrid PLUS ES Legislative Register 2021 | H166: No | I166: No | J166: No
B167: Employment Protection Act 1982 (NSW) | C167: 250000 | D167: > $250k | F167: Ausgrid PLUS ES Legislative Register 2021 | H167: No | I167: No | J167: No
B168: Encroachment of Buildings Act 1922 (NSW) | C168: 250000 | D168: > $250k | F168: Ausgrid PLUS ES Legislative Register 2021 | H168: No | I168: No | J168: No
B169: Energy and Utilities Administration Act 1987 (NSW) | C169: 250000 | D169: > $250k | F169: Ausgrid PLUS ES Legislative Register 2021 | H169: No | I169: No | J169: No
B170: Fair Work Act 2009 (Cth) | C170: 250000 | D170: > $250k | F170: Ausgrid PLUS ES Legislative Register 2021 | H170: No | I170: No | J170: No
B171: Fisheries Management Act 1994 (NSW) | C171: 250000 | D171: > $250k | F171: Ausgrid PLUS ES Legislative Register 2021 | H171: No | I171: No | J171: No
B172: Greenhouse and Energy Minimum Standards Act 2012 (Cth) | C172: 250000 | D172: > $250k | F172: Ausgrid PLUS ES Legislative Register 2021 | H172: No | I172: No | J172: No
B173: Hunter Water Act 1991 (NSW) | C173: 250000 | D173: > $250k | F173: Ausgrid PLUS ES Legislative Register 2021 | H173: No | I173: No | J173: No
B174: Inclosed Lands Protection Act 1901 (Cth) | C174: 250000 | D174: > $250k | F174: Ausgrid PLUS ES Legislative Register 2021 | H174: No | I174: No | J174: No
B175: Industrial Relations (Child Employment) Act 2006 (NSW) | C175: 250000 | D175: > $250k | F175: Ausgrid PLUS ES Legislative Register 2021 | H175: No | I175: No | J175: No
B176: Industrial Relations Act 1996 (NSW) | C176: 250000 | D176: > $250k | F176: Ausgrid PLUS ES Legislative Register 2021 | H176: No | I176: No | J176: No
B177: Jury Act 1977 (NSW) | C177: 250000 | D177: > $250k | F177: Ausgrid PLUS ES Legislative Register 2021 | H177: No | I177: No | J177: No
B178: Land and Environment Court Act 1979 (NSW) | C178: 250000 | D178: > $250k | F178: Ausgrid PLUS ES Legislative Register 2021 | H178: No | I178: No | J178: No
B179: Local Government Act 1993 (NSW) | C179: 250000 | D179: > $250k | F179: Ausgrid PLUS ES Legislative Register 2021 | H179: No | I179: No | J179: No
B180: Local Government Amendment (Governance and Planning) 2016 (NSW) | C180: 250000 | D180: > $250k | F180: Ausgrid PLUS ES Legislative Register 2021 | H180: No | I180: No | J180: No
B181: Local Land Services Act 2013 (NSW) | C181: 250000 | D181: > $250k | F181: Ausgrid PLUS ES Legislative Register 2021 | H181: No | I181: No | J181: No
B182: Long Service Leave Act 1955 (NSW) | C182: 250000 | D182: > $250k | F182: Ausgrid PLUS ES Legislative Register 2021 | H182: No | I182: No | J182: No
B183: Marine Estate Management Act 2014 (NSW) | C183: 250000 | D183: > $250k | F183: Ausgrid PLUS ES Legislative Register 2021 | H183: No | I183: No | J183: No
B184: Multicultural NSW Act 2000 (NSW) | C184: 250000 | D184: > $250k | F184: Ausgrid PLUS ES Legislative Register 2021 | H184: No | I184: No | J184: No
B185: National Environment Protection Measures (Implementation) Act 1998 (Cth) | C185: 250000 | D185: > $250k | F185: Ausgrid PLUS ES Legislative Register 2021 | H185: No | I185: No | J185: No
B186: National Vocational Education and Training Regulator Act 2011 (Cth) | C186: 250000 | D186: > $250k | F186: Ausgrid PLUS ES Legislative Register 2021 | H186: No | I186: No | J186: No
B187: National Vocational Education and Training Regulator Act 2011 (Cth) | C187: 250000 | D187: > $250k | F187: Ausgrid PLUS ES Legislative Register 2021 | H187: No | I187: No | J187: No
B188: Native Title (New South Wales) Act 1994 (NSW) | C188: 250000 | D188: > $250k | F188: Ausgrid PLUS ES Legislative Register 2021 | H188: No | I188: No | J188: No
B189: Native Title Act 1993 (Cth) | C189: 250000 | D189: > $250k | F189: Ausgrid PLUS ES Legislative Register 2021 | H189: No | I189: No | J189: No
B190: Paid Parental Leave Act 2010 (Cth) | C190: 250000 | D190: > $250k | F190: Ausgrid PLUS ES Legislative Register 2021 | H190: No | I190: No | J190: No
B191: Paid Parental Leave Amendment (Work Test) Act 2019 (Cth) | C191: 250000 | D191: > $250k | F191: Ausgrid PLUS ES Legislative Register 2021 | H191: No | I191: No | J191: No
B192: Plant Diseases Act 1924 (NSW) | C192: 250000 | D192: > $250k | F192: Ausgrid PLUS ES Legislative Register 2021 | H192: No | I192: No | J192: No
B193: Property, Stock and Business Agents Act 2002 (NSW) | C193: 250000 | D193: > $250k | F193: Ausgrid PLUS ES Legislative Register 2021 | H193: No | I193: No | J193: No
B194: Racial Discrimination Act 1975 (Cth) | C194: 250000 | D194: > $250k | F194: Ausgrid PLUS ES Legislative Register 2021 | H194: No | I194: No | J194: No
B195: Real Property Act 1900 (NSW) | C195: 250000 | D195: > $250k | F195: Ausgrid PLUS ES Legislative Register 2021 | H195: No | I195: No | J195: No
B196: Renewable Energy (Electricity) Act 2000 (Cth) | C196: 250000 | D196: > $250k | F196: Ausgrid PLUS ES Legislative Register 2021 | H196: No | I196: No | J196: No
B197: Retail Leases Act 1994 (NSW) | C197: 250000 | D197: > $250k | F197: Ausgrid PLUS ES Legislative Register 2021 | H197: No | I197: No | J197: No
B198: Road Transport Act 2013 (NSW) | C198: 250000 | D198: > $250k | F198: Ausgrid PLUS ES Legislative Register 2021 | H198: No | I198: No | J198: No
B199: Security of Critical Infrastructure (Consequential and Transitional Provisions) Act 2018 (Cth) | C199: 250000 | D199: > $250k | F199: Ausgrid PLUS ES Legislative Register 2021 | H199: No | I199: No | J199: No
B200: Sex Discrimination Act 1984 (Cth) | C200: 250000 | D200: > $250k | F200: Ausgrid PLUS ES Legislative Register 2021 | H200: No | I200: No | J200: No
B201: Statute Law (Miscellaneous Provisions) Act 2019 (NSW) No 1 | C201: 250000 | D201: > $250k | F201: Ausgrid PLUS ES Legislative Register 2021 | H201: No | I201: No | J201: No
B202: Strata Scheme Management Act 2015 (NSW) | C202: 250000 | D202: > $250k | F202: Ausgrid PLUS ES Legislative Register 2021 | H202: No | I202: No | J202: No
B203: Valuation of Land Act 1916 (NSW) | C203: 250000 | D203: > $250k | F203: Ausgrid PLUS ES Legislative Register 2021 | H203: No | I203: No | J203: No
... 42 more rows

Sheet PB_Input
A1: Proposed ICT Expenditure – Program Brief Cost-Benefit Analysis
A2: =RIGHT(CELL("filename",A1),LEN(CELL("filename",A1))-FIND("]",CELL("filename",A1))) -> PB_Input
A3: =_xlfn.SHEET() -> 13
A5: =$A$3&"."&COUNTA($A$3:A4) -> 13.1 | B5: Option 1 Input Sheet for Ausgrid NPV Model
T7: QuickCalc
B8: Category | C8: Category name in Ausgrid NPV model | D8: Description | F8: 2024/25 | G8: 2025/26 | H8: 2026/27 | I8: 2027/28 | J8: 2028/29 | K8: 2029/30 | L8: 2030/31 | M8: 2031/32 | N8: 2032/33 | O8: 2033/34 | P8: 2034/35 | Q8: 2035/36 | R8: 2036/37 | T8: Reference
B9: Capex | C9: Capex cost | D9: Capital expenditure | F9: -801816.5529 | G9: -2429830.775 | H9: -3696454.086 | I9: -1000839.695 | J9: -387950.634 | K9: 0 | L9: 0 | M9: 0 | N9: 0 | O9: 0 | P9: 0 | Q9: 0 | R9: 0 | T9: to row 22
B10: Capex benefit | C10: Capex benefits | D10: Reductions in capex (entered as positive) | F10: 0 | G10: 0 | H10: 0 | I10: 0 | J10: 0 | K10: 0 | L10: 0 | M10: 0 | N10: 0 | O10: 0 | P10: 0 | Q10: 0 | R10: 0 | T10: to row 24
B11: One-off opex | C11: Investment opex | D11: One off opex, no perpetuity impact | F11: -1848299.51 | G11: -975816.2618 | H11: -1574807.142 | I11: -2234193.19 | J11: -1245526.266 | K11: 0 | L11: 0 | M11: 0 | N11: 0 | O11: 0 | P11: 0 | Q11: 0 | R11: 0 | T11: to row 28
B12: New opex | C12: n/a | F12: -1065317.175 | G12: -1358221.93 | H12: -1516840.07 | I12: -1683389.117 | J12: -1858265.616 | K12: -1858265.616 | L12: -1858265.616 | M12: -1858265.616 | N12: -1858265.616 | O12: -1858265.616 | P12: -1858265.616 | Q12: -1858265.616 | R12: -1858265.616
B13: Opex cost reduction | C13: n/a | F13: 0 | G13: 0 | H13: 0 | I13: 0 | J13: 0 | K13: 0 | L13: 0 | M13: 0 | N13: 0 | O13: 0 | P13: 0 | Q13: 0 | R13: 0
B14: Ongoing opex productivity benefit | C14: n/a | D14: Include here if these are ongoing (below if one-off) | F14: 0 | G14: 0 | H14: 0 | I14: 0 | J14: 0 | K14: 0 | L14: 0 | M14: 0 | N14: 0 | O14: 0 | P14: 0 | Q14: 0 | R14: 0
B15: Opex | C15: Total ongoing opex | F15: -1065317.175 | G15: -1358221.93 | H15: -1516840.07 | I15: -1683389.117 | J15: -1858265.616 | K15: -1858265.616 | L15: -1858265.616 | M15: -1858265.616 | N15: -1858265.616 | O15: -1858265.616 | P15: -1858265.616 | Q15: -1858265.616 | R15: -1858265.616 | T15: to row 29
B17: One off opex productivity benefits | C17: Decrease in Opex Costs | D17: Include here if one off (and not running into perpetuity) | F17: =SUM('Benefit Calcs'!H153:H154) -> 0 | G17: =SUM('Benefit Calcs'!I153:I154) -> 0 | H17: =SUM('Benefit Calcs'!J153:J154) -> 0 | I17: =SUM('Benefit Calcs'!K153:K154) -> 0 | J17: =SUM('Benefit Calcs'!L153:L154) -> 0 | K17: =SUM('Benefit Calcs'!M153:M154) -> 0 | L17: =SUM('Benefit Calcs'!N153:N154) -> 0 | M17: =SUM('Benefit Calcs'!O153:O154) -> 0 | N17: =SUM('Benefit Calcs'!P153:P154) -> 0 | O17: =SUM('Benefit Calcs'!Q153:Q154) -> 0 | P17: =SUM('Benefit Calcs'!R153:R154) -> 0 | Q17: =SUM('Benefit Calcs'!S153:S154) -> 0 | R17: =SUM('Benefit Calcs'!T153:T154) -> 0 | T17: to row 51
B18: Note that for risk-related benefits, Option 1 is used as the baseline and as such risk-related benefits for Option 1 should generally be zero
B19: Customer time saved | D19: For time based customer benefits
B20: Reliable electricity supply risks | D20: For VCR based customer risk | F20: ='Benefit Calcs'!H149 -> 0 | G20: ='Benefit Calcs'!I149 -> 0 | H20: ='Benefit Calcs'!J149 -> 0 | I20: ='Benefit Calcs'!K149 -> 0 | J20: ='Benefit Calcs'!L149 -> 0 | K20: ='Benefit Calcs'!M149 -> 0 | L20: ='Benefit Calcs'!N149 -> 0 | M20: ='Benefit Calcs'!O149 -> 0 | N20: ='Benefit Calcs'!P149 -> 0 | O20: ='Benefit Calcs'!Q149 -> 0 | P20: ='Benefit Calcs'!R149 -> 0 | Q20: ='Benefit Calcs'!S149 -> 0 | R20: ='Benefit Calcs'!T149 -> 0
B21: Total | C21: Customer value | F21: =SUM(F19:F20) -> 0 | G21: =SUM(G19:G20) -> 0 | H21: 0 | I21: 0 | J21: 0 | K21: 0 | L21: 0 | M21: 0 | N21: 0 | O21: 0 | P21: =SUM(P19:P20) -> 0 | Q21: 0 | R21: 0 | T21: to row 56
B24: System outages | D24: For rectification costs
B25: System functionality | D25: For rectification / response costs | F25: ='Benefit Calcs'!H152 -> 0 | G25: ='Benefit Calcs'!I152 -> 0 | H25: ='Benefit Calcs'!J152 -> 0 | I25: ='Benefit Calcs'!K152 -> 0 | J25: ='Benefit Calcs'!L152 -> 0 | K25: ='Benefit Calcs'!M152 -> 0 | L25: ='Benefit Calcs'!N152 -> 0 | M25: ='Benefit Calcs'!O152 -> 0 | N25: ='Benefit Calcs'!P152 -> 0 | O25: ='Benefit Calcs'!Q152 -> 0 | P25: ='Benefit Calcs'!R152 -> 0 | Q25: ='Benefit Calcs'!S152 -> 0 | R25: ='Benefit Calcs'!T152 -> 0
B26: Total | C26: Cost to respond to crisis | F26: =SUM(F24:F25) -> 0 | G26: =SUM(G24:G25) -> 0 | H26: 0 | I26: 0 | J26: 0 | K26: 0 | L26: 0 | M26: 0 | N26: 0 | O26: 0 | P26: =SUM(P24:P25) -> 0 | Q26: 0 | R26: 0 | T26: to row 40
B28: Compliance & contractual risks | C28: Fines and penalties | F28: =SUM('Benefit Calcs'!H150:H151) -> 0 | G28: =SUM('Benefit Calcs'!I150:I151) -> 0 | H28: =SUM('Benefit Calcs'!J150:J151) -> 0 | I28: =SUM('Benefit Calcs'!K150:K151) -> 0 | J28: =SUM('Benefit Calcs'!L150:L151) -> 0 | K28: =SUM('Benefit Calcs'!M150:M151) -> 0 | L28: =SUM('Benefit Calcs'!N150:N151) -> 0 | M28: =SUM('Benefit Calcs'!O150:O151) -> 0 | N28: =SUM('Benefit Calcs'!P150:P151) -> 0 | O28: =SUM('Benefit Calcs'!Q150:Q151) -> 0 | P28: =SUM('Benefit Calcs'!R150:R151) -> 0 | Q28: =SUM('Benefit Calcs'!S150:S151) -> 0 | R28: =SUM('Benefit Calcs'!T150:T151) -> 0 | T28: to row 44
B29: Safety risks | C29: Safety risk | F29: 0 | G29: 0 | H29: 0 | I29: 0 | J29: 0 | K29: 0 | L29: 0 | M29: 0 | N29: 0 | O29: 0 | P29: 0 | Q29: 0 | R29: 0 | T29: to row 31
B30: Environmental risks | C30: Environment risk | F30: 0 | G30: 0 | H30: 0 | I30: 0 | J30: 0 | K30: 0 | L30: 0 | M30: 0 | N30: 0 | O30: 0 | P30: 0 | Q30: 0 | R30: 0 | T30: to row 33
B31: Bushfire risks | C31: Fire risk | F31: 0 | G31: 0 | H31: 0 | I31: 0 | J31: 0 | K31: 0 | L31: 0 | M31: 0 | N31: 0 | O31: 0 | P31: 0 | Q31: 0 | R31: 0 | T31: to row 32
A33: =$A$3&"."&COUNTA($A$3:A32) -> 13.2 | B33: Option 2 Input Sheet for Ausgrid NPV Model
B36: Category | C36: Category name in Ausgrid NPV model | D36: Description | F36: 2024/25 | G36: 2025/26 | H36: 2026/27 | I36: 2027/28 | J36: 2028/29 | K36: 2029/30 | L36: 2030/31 | M36: 2031/32 | N36: 2032/33 | O36: 2033/34 | P36: 2034/35 | Q36: 2035/36 | R36: 2036/37
B37: Capex | C37: Capex cost | D37: Capital expenditure | F37: -6047930.978 | G37: -6556013.832 | H37: -7077305.129 | I37: -4556832.972 | J37: -4349221.149 | K37: 0 | L37: 0 | M37: 0 | N37: 0 | O37: 0 | P37: 0 | Q37: 0 | R37: 0 | T37: to row 22
B38: Capex benefit | C38: Capex benefits | D38: Reductions in capex (entered as positive) | F38: 0 | G38: 0 | H38: 0 | I38: 0 | J38: 0 | K38: 0 | L38: 0 | M38: 0 | N38: 0 | O38: 0 | P38: 0 | Q38: 0 | R38: 0 | T38: to row 24
B39: One-off opex | C39: Investment opex | D39: One off opex, no perpetuity impact | F39: -8153845.325 | G39: -4494723.851 | H39: -4674791.12 | I39: -5169769.603 | J39: -4760216.645 | K39: 0 | L39: 0 | M39: 0 | N39: 0 | O39: 0 | P39: 0 | Q39: 0 | R39: 0 | T39: to row 28
B40: New opex | C40: n/a | F40: -1942277.563 | G40: -2939294.879 | H40: -3807444.84 | I40: -4123274.891 | J40: -4454896.444 | K40: -4454896.444 | L40: -4454896.444 | M40: -4454896.444 | N40: -4454896.444 | O40: -4454896.444 | P40: -4454896.444 | Q40: -4454896.444 | R40: -4454896.444 | T40: to row 29
B41: Opex cost reduction | C41: n/a | F41: 0 | G41: 0 | H41: 0 | I41: 0 | J41: 0 | K41: 0 | L41: 0 | M41: 0 | N41: 0 | O41: 0 | P41: 0 | Q41: 0 | R41: 0
B42: Ongoing opex productivity benefit | C42: n/a | D42: Include here if these are ongoing (below if one-off) | F42: 0 | G42: 0 | H42: 0 | I42: 0 | J42: 0 | K42: 0 | L42: 0 | M42: 0 | N42: 0 | O42: 0 | P42: 0 | Q42: 0 | R42: 0
B43: Opex | C43: Total ongoing opex | F43: -1942277.563 | G43: -2939294.879 | H43: -3807444.84 | I43: -4123274.891 | J43: -4454896.444 | K43: -4454896.444 | L43: -4454896.444 | M43: -4454896.444 | N43: -4454896.444 | O43: -4454896.444 | P43: -4454896.444 | Q43: -4454896.444 | R43: -4454896.444
B45: One off opex productivity benefits | C45: Decrease in Opex Costs | D45: Include here if one off (and not running into perpetuity) | F45: ='Benefit Calcs'!H177 -> 0 | G45: ='Benefit Calcs'!I177 -> 3398475.398 | H45: ='Benefit Calcs'!J177 -> 6504743.587 | I45: ='Benefit Calcs'!K177 -> 9436838.103 | J45: ='Benefit Calcs'!L177 -> 12319139.61 | K45: ='Benefit Calcs'!M177 -> 14814601.35 | L45: ='Benefit Calcs'!N177 -> 14814601.35 | M45: ='Benefit Calcs'!O177 -> 14814601.35 | N45: ='Benefit Calcs'!P177 -> 11416125.95 | O45: ='Benefit Calcs'!Q177 -> 8309857.76 | P45: ='Benefit Calcs'!R177 -> 5377763.243 | Q45: ='Benefit Calcs'!S177 -> 2495461.733 | R45: ='Benefit Calcs'!T177 -> 0 | T45: to row 51
B47: Customer time saved | D47: For time based customer benefit | F47: =PB_benefit_A!AD58 -> 0 | G47: =PB_benefit_A!AE58 -> 0 | H47: =PB_benefit_A!AF58 -> 0 | I47: =PB_benefit_A!AG58 -> 0 | J47: =PB_benefit_A!AH58 -> 0 | K47: =PB_benefit_A!AI58 -> 0 | L47: =PB_benefit_A!AJ58 -> 0 | M47: =PB_benefit_A!AK58 -> 0 | N47: =PB_benefit_A!AL58 -> 0 | O47: =PB_benefit_A!AM58 -> 0 | P47: =PB_benefit_A!AN58 -> 0 | Q47: =PB_benefit_A!AO58 -> 0 | R47: =PB_benefit_A!AP58 -> 0
B48: Reliable electricity supply risks | D48: For VCR based customer benefit (relative to Base Case) | F48: ='Benefit Calcs'!H174 -> 0 | G48: ='Benefit Calcs'!I174 -> 1743490.892 | H48: ='Benefit Calcs'!J174 -> 3337073.209 | I48: ='Benefit Calcs'!K174 -> 4841300.689 | J48: ='Benefit Calcs'!L174 -> 6319983.288 | K48: ='Benefit Calcs'!M174 -> 7600208.77 | L48: ='Benefit Calcs'!N174 -> 7600208.77 | M48: ='Benefit Calcs'!O174 -> 7600208.77 | N48: ='Benefit Calcs'!P174 -> 5856717.878 | O48: ='Benefit Calcs'!Q174 -> 4263135.561 | P48: ='Benefit Calcs'!R174 -> 2758908.08 | Q48: ='Benefit Calcs'!S174 -> 1280225.482 | R48: ='Benefit Calcs'!T174 -> 0
B49: Total | C49: Customer value | F49: =SUM(F47:F48) -> 0 | G49: 1743490.892 | H49: 3337073.209 | I49: 4841300.689 | J49: 6319983.288 | K49: 7600208.77 | L49: 7600208.77 | M49: 7600208.77 | N49: 5856717.878 | O49: 4263135.561 | P49: =SUM(P47:P48) -> 2758908.08 | Q49: 1280225.482 | R49: 0 | T49: to row 56
B52: System outages | D52: For rectification costs | F52: =PB_benefit_A!AD63 -> 0 | G52: =PB_benefit_A!AE63 -> 0 | H52: =PB_benefit_A!AF63 -> 0 | I52: =PB_benefit_A!AG63 -> 0 | J52: =PB_benefit_A!AH63 -> 0 | K52: =PB_benefit_A!AI63 -> 0 | L52: =PB_benefit_A!AJ63 -> 0 | M52: =PB_benefit_A!AK63 -> 0 | N52: =PB_benefit_A!AL63 -> 0 | O52: =PB_benefit_A!AM63 -> 0 | P52: =PB_benefit_A!AN63 -> 0 | Q52: =PB_benefit_A!AO63 -> 0 | R52: =PB_benefit_A!AP63 -> 0
B53: System functionality | D53: For rectification / response costs | F53: ='Benefit Calcs'!H176 -> 0 | G53: ='Benefit Calcs'!I176 -> 1517980.28 | H53: ='Benefit Calcs'!J176 -> 2905441.804 | I53: ='Benefit Calcs'!K176 -> 4215106.031 | J53: ='Benefit Calcs'!L176 -> 5502529.461 | K53: ='Benefit Calcs'!M176 -> 6617165.072 | L53: ='Benefit Calcs'!N176 -> 6617165.072 | M53: ='Benefit Calcs'!O176 -> 6617165.072 | N53: ='Benefit Calcs'!P176 -> 5099184.792 | O53: ='Benefit Calcs'!Q176 -> 3711723.268 | P53: ='Benefit Calcs'!R176 -> 2402059.041 | Q53: ='Benefit Calcs'!S176 -> 1114635.611 | R53: ='Benefit Calcs'!T176 -> 0
B54: Total | C54: Cost to respond to crisis | F54: =SUM(F51:F53) -> 0 | G54: 1517980.28 | H54: 2905441.804 | I54: 4215106.031 | J54: 5502529.461 | K54: 6617165.072 | L54: 6617165.072 | M54: 6617165.072 | N54: 5099184.792 | O54: 3711723.268 | P54: =SUM(P51:P53) -> 2402059.041 | Q54: 1114635.611 | R54: 0 | T54: to row 40
B56: Compliance & contractual risks | C56: Fines and penalties | F56: ='Benefit Calcs'!H175 -> 0 | G56: ='Benefit Calcs'!I175 -> 540889.525 | H56: ='Benefit Calcs'!J175 -> 1035272.367 | I56: ='Benefit Calcs'!K175 -> 1501934.333 | J56: ='Benefit Calcs'!L175 -> 1960671.417 | K56: ='Benefit Calcs'!M175 -> 2357840.428 | L56: ='Benefit Calcs'!N175 -> 2357840.428 | M56: ='Benefit Calcs'!O175 -> 2357840.428 | N56: ='Benefit Calcs'!P175 -> 1816950.903 | O56: ='Benefit Calcs'!Q175 -> 1322568.061 | P56: ='Benefit Calcs'!R175 -> 855906.095 | Q56: ='Benefit Calcs'!S175 -> 397169.0106 | R56: ='Benefit Calcs'!T175 -> 0 | T56: to row 44
B57: Safety risks | C57: Safety risk | F57: =PB_benefit_A!AD73 -> 0 | G57: =PB_benefit_A!AE73 -> 0 | H57: =PB_benefit_A!AF73 -> 0 | I57: =PB_benefit_A!AG73 -> 0 | J57: =PB_benefit_A!AH73 -> 0 | K57: =PB_benefit_A!AI73 -> 0 | L57: =PB_benefit_A!AJ73 -> 0 | M57: =PB_benefit_A!AK73 -> 0 | N57: =PB_benefit_A!AL73 -> 0 | O57: =PB_benefit_A!AM73 -> 0 | P57: =PB_benefit_A!AN73 -> 0 | Q57: =PB_benefit_A!AO73 -> 0 | R57: =PB_benefit_A!AP73 -> 0 | T57: to row 31
B58: Environmental risks | C58: Environment risk | F58: =PB_benefit_A!AD74 -> 0 | G58: =PB_benefit_A!AE74 -> 0 | H58: =PB_benefit_A!AF74 -> 0 | I58: =PB_benefit_A!AG74 -> 0 | J58: =PB_benefit_A!AH74 -> 0 | K58: =PB_benefit_A!AI74 -> 0 | L58: =PB_benefit_A!AJ74 -> 0 | M58: =PB_benefit_A!AK74 -> 0 | N58: =PB_benefit_A!AL74 -> 0 | O58: =PB_benefit_A!AM74 -> 0 | P58: =PB_benefit_A!AN74 -> 0 | Q58: =PB_benefit_A!AO74 -> 0 | R58: =PB_benefit_A!AP74 -> 0 | T58: to row 33
B59: Bushfire risks | C59: Fire risk | F59: =PB_benefit_A!AD75 -> 0 | G59: =PB_benefit_A!AE75 -> 0 | H59: =PB_benefit_A!AF75 -> 0 | I59: =PB_benefit_A!AG75 -> 0 | J59: =PB_benefit_A!AH75 -> 0 | K59: =PB_benefit_A!AI75 -> 0 | L59: =PB_benefit_A!AJ75 -> 0 | M59: =PB_benefit_A!AK75 -> 0 | N59: =PB_benefit_A!AL75 -> 0 | O59: =PB_benefit_A!AM75 -> 0 | P59: =PB_benefit_A!AN75 -> 0 | Q59: =PB_benefit_A!AO75 -> 0 | R59: =PB_benefit_A!AP75 -> 0 | T59: to row 32
A61: =$A$3&"."&COUNTA($A$3:A60) -> 13.3 | B61: Option 3 Input Sheet for Ausgrid NPV Model
B64: Category | C64: Category name in Ausgrid NPV model | D64: Description | F64: 2024/25 | G64: 2025/26 | H64: 2026/27 | I64: 2027/28 | J64: 2028/29 | K64: 2029/30 | L64: 2030/31 | M64: 2031/32 | N64: 2032/33 | O64: 2033/34 | P64: 2034/35 | Q64: 2035/36 | R64: 2036/37
B65: Capex | C65: Capex cost | D65: Capital expenditure | F65: -7360437.521 | G65: -6662150.413 | H65: -8017158.58 | I65: -6544862.115 | J65: -6250696.363 | K65: 0 | L65: 0 | M65: 0 | N65: 0 | O65: 0 | P65: 0 | Q65: 0 | R65: 0 | T65: to row 22
B66: Capex benefit | C66: Capex benefits | D66: Reductions in capex (entered as positive) | F66: 0 | G66: 0 | H66: 0 | I66: 0 | J66: 0 | K66: 0 | L66: 0 | M66: 0 | N66: 0 | O66: 0 | P66: 0 | Q66: 0 | R66: 0 | T66: to row 24
B67: One-off opex | C67: Investment opex | D67: One off opex, no perpetuity impact | F67: -9675971.376 | G67: -5753489.06 | H67: -6441380.692 | I67: -6849805.247 | J67: -6654793.857 | K67: 0 | L67: 0 | M67: 0 | N67: 0 | O67: 0 | P67: 0 | Q67: 0 | R67: 0 | T67: to row 28
B68: New opex | C68: n/a | F68: -2005674.129 | G68: -3047323.901 | H68: -3963238.978 | I68: -4330213.543 | J68: -4716627.091 | K68: -4716627.091 | L68: -4716627.091 | M68: -4716627.091 | N68: -4716627.091 | O68: -4716627.091 | P68: -4716627.091 | Q68: -4716627.091 | R68: -4716627.091 | T68: to row 29
B69: Opex cost reduction | C69: n/a | F69: 0 | G69: 0 | H69: 0 | I69: 0 | J69: 0 | K69: 0 | L69: 0 | M69: 0 | N69: 0 | O69: 0 | P69: 0 | Q69: 0 | R69: 0
B70: Ongoing opex productivity benefit | C70: n/a | D70: Include here if these are ongoing (below if one-off) | F70: 0 | G70: 0 | H70: 0 | I70: 0 | J70: 0 | K70: 0 | L70: 0 | M70: 0 | N70: 0 | O70: 0 | P70: 0 | Q70: 0 | R70: 0
B71: Opex | C71: Total ongoing opex | F71: -2005674.129 | G71: -3047323.901 | H71: -3963238.978 | I71: -4330213.543 | J71: -4716627.091 | K71: -4716627.091 | L71: -4716627.091 | M71: -4716627.091 | N71: -4716627.091 | O71: -4716627.091 | P71: -4716627.091 | Q71: -4716627.091 | R71: -4716627.091
B73: One off opex productivity benefits | C73: Decrease in Opex Costs | D73: Include here if one off (and not running into perpetuity) | F73: ='Benefit Calcs'!H182 -> 0 | G73: ='Benefit Calcs'!I182 -> 4636379.212 | H73: ='Benefit Calcs'!J182 -> 9056913.787 | I73: ='Benefit Calcs'!K182 -> 13362448.1 | J73: ='Benefit Calcs'!L182 -> 17604838.83 | K73: ='Benefit Calcs'!M182 -> 21853875.84 | L73: ='Benefit Calcs'!N182 -> 21853875.84 | M73: ='Benefit Calcs'!O182 -> 21853875.84 | N73: ='Benefit Calcs'!P182 -> 17217496.62 | O73: ='Benefit Calcs'!Q182 -> 12796962.05 | P73: ='Benefit Calcs'!R182 -> 8491427.73 | Q73: ='Benefit Calcs'!S182 -> 4249037.01 | R73: ='Benefit Calcs'!T182 -> 0 | T73: to row 51
B75: Customer time saved | D75: For time based customer benefit | F75: =PB_benefit_A!AD94 -> 0 | G75: =PB_benefit_A!AE94 -> 0 | H75: =PB_benefit_A!AF94 -> 0 | I75: =PB_benefit_A!AG94 -> 0 | J75: =PB_benefit_A!AH94 -> 0 | K75: =PB_benefit_A!AI94 -> 0 | L75: =PB_benefit_A!AJ94 -> 0 | M75: =PB_benefit_A!AK94 -> 0 | N75: =PB_benefit_A!AL94 -> 0 | O75: =PB_benefit_A!AM94 -> 0 | P75: =PB_benefit_A!AN94 -> 0 | Q75: =PB_benefit_A!AO94 -> 0 | R75: =PB_benefit_A!AP94 -> 0
B76: Reliable electricity supply risks | D76: For VCR based customer benefit | F76: ='Benefit Calcs'!H179 -> 0 | G76: ='Benefit Calcs'!I179 -> 4376546.647 | H76: ='Benefit Calcs'!J179 -> 8549345.05 | I76: ='Benefit Calcs'!K179 -> 12613588.05 | J76: ='Benefit Calcs'!L179 -> 16618226.16 | K76: ='Benefit Calcs'!M179 -> 20629138.09 | L76: ='Benefit Calcs'!N179 -> 20629138.09 | M76: ='Benefit Calcs'!O179 -> 20629138.09 | N76: ='Benefit Calcs'!P179 -> 16252591.44 | O76: ='Benefit Calcs'!Q179 -> 12079793.04 | P76: ='Benefit Calcs'!R179 -> 8015550.036 | Q76: ='Benefit Calcs'!S179 -> 4010911.926 | R76: ='Benefit Calcs'!T179 -> 0
B77: Total | C77: Customer value | F77: =SUM(F75:F76) -> 0 | G77: 4376546.647 | H77: =SUM(H75:H76) -> 8549345.05 | I77: 12613588.05 | J77: 16618226.16 | K77: 20629138.09 | L77: 20629138.09 | M77: 20629138.09 | N77: 16252591.44 | O77: 12079793.04 | P77: =SUM(P75:P76) -> 8015550.036 | Q77: 4010911.926 | R77: 0 | T77: to row 56
B80: System outages | D80: For rectification costs | F80: =PB_benefit_A!AD99 -> 0 | G80: =PB_benefit_A!AE99 -> 0 | H80: =PB_benefit_A!AF99 -> 0 | I80: =PB_benefit_A!AG99 -> 0 | J80: =PB_benefit_A!AH99 -> 0 | K80: =PB_benefit_A!AI99 -> 0 | L80: =PB_benefit_A!AJ99 -> 0 | M80: =PB_benefit_A!AK99 -> 0 | N80: =PB_benefit_A!AL99 -> 0 | O80: =PB_benefit_A!AM99 -> 0 | P80: =PB_benefit_A!AN99 -> 0 | Q80: =PB_benefit_A!AO99 -> 0 | R80: =PB_benefit_A!AP99 -> 0
B81: System functionality | D81: For rectification / response costs | F81: ='Benefit Calcs'!H181 -> 0 | G81: ='Benefit Calcs'!I181 -> 2057374.627 | H81: ='Benefit Calcs'!J181 -> 4018969.065 | I81: ='Benefit Calcs'!K181 -> 5929532.6 | J81: ='Benefit Calcs'!L181 -> 7812076.419 | K81: ='Benefit Calcs'!M181 -> 9697569.502 | L81: ='Benefit Calcs'!N181 -> 9697569.502 | M81: ='Benefit Calcs'!O181 -> 9697569.502 | N81: ='Benefit Calcs'!P181 -> 7640194.875 | O81: ='Benefit Calcs'!Q181 -> 5678600.437 | P81: ='Benefit Calcs'!R181 -> 3768036.901 | Q81: ='Benefit Calcs'!S181 -> 1885493.083 | R81: ='Benefit Calcs'!T181 -> 0
B82: Total | C82: Cost to respond to crisis | F82: =SUM(F79:F81) -> 0 | G82: 2057374.627 | H82: =SUM(H79:H81) -> 4018969.065 | I82: 5929532.6 | J82: 7812076.419 | K82: 9697569.502 | L82: 9697569.502 | M82: 9697569.502 | N82: 7640194.875 | O82: 5678600.437 | P82: =SUM(P79:P81) -> 3768036.901 | Q82: 1885493.083 | R82: 0 | T82: to row 40
B84: Compliance & contractual risks | C84: Fines and penalties | F84: ='Benefit Calcs'!H180 -> 0 | G84: ='Benefit Calcs'!I180 -> 1250561.048 | H84: ='Benefit Calcs'!J180 -> 2442902.765 | I84: ='Benefit Calcs'!K180 -> 3604225.698 | J84: ='Benefit Calcs'!L180 -> 4748517.039 | K84: ='Benefit Calcs'!M180 -> 5894601.07 | L84: ='Benefit Calcs'!N180 -> 5894601.07 | M84: ='Benefit Calcs'!O180 -> 5894601.07 | N84: ='Benefit Calcs'!P180 -> 4644040.022 | O84: ='Benefit Calcs'!Q180 -> 3451698.305 | P84: ='Benefit Calcs'!R180 -> 2290375.371 | Q84: ='Benefit Calcs'!S180 -> 1146084.031 | R84: ='Benefit Calcs'!T180 -> 0 | T84: to row 44
B85: Safety risks | C85: Safety risk | F85: =PB_benefit_A!AD109 -> 0 | G85: =PB_benefit_A!AE109 -> 0 | H85: =PB_benefit_A!AF109 -> 0 | I85: =PB_benefit_A!AG109 -> 0 | J85: =PB_benefit_A!AH109 -> 0 | K85: =PB_benefit_A!AI109 -> 0 | L85: =PB_benefit_A!AJ109 -> 0 | M85: =PB_benefit_A!AK109 -> 0 | N85: =PB_benefit_A!AL109 -> 0 | O85: =PB_benefit_A!AM109 -> 0 | P85: =PB_benefit_A!AN109 -> 0 | Q85: =PB_benefit_A!AO109 -> 0 | R85: =PB_benefit_A!AP109 -> 0 | T85: to row 31
B86: Environmental risks | C86: Environment risk | F86: =PB_benefit_A!AD110 -> 0 | G86: =PB_benefit_A!AE110 -> 0 | H86: =PB_benefit_A!AF110 -> 0 | I86: =PB_benefit_A!AG110 -> 0 | J86: =PB_benefit_A!AH110 -> 0 | K86: =PB_benefit_A!AI110 -> 0 | L86: =PB_benefit_A!AJ110 -> 0 | M86: =PB_benefit_A!AK110 -> 0 | N86: =PB_benefit_A!AL110 -> 0 | O86: =PB_benefit_A!AM110 -> 0 | P86: =PB_benefit_A!AN110 -> 0 | Q86: =PB_benefit_A!AO110 -> 0 | R86: =PB_benefit_A!AP110 -> 0 | T86: to row 33
B87: Bushfire risks | C87: Fire risk | F87: =PB_benefit_A!AD111 -> 0 | G87: =PB_benefit_A!AE111 -> 0 | H87: =PB_benefit_A!AF111 -> 0 | I87: =PB_benefit_A!AG111 -> 0 | J87: =PB_benefit_A!AH111 -> 0 | K87: =PB_benefit_A!AI111 -> 0 | L87: =PB_benefit_A!AJ111 -> 0 | M87: =PB_benefit_A!AK111 -> 0 | N87: =PB_benefit_A!AL111 -> 0 | O87: =PB_benefit_A!AM111 -> 0 | P87: =PB_benefit_A!AN111 -> 0 | Q87: =PB_benefit_A!AO111 -> 0 | R87: =PB_benefit_A!AP111 -> 0 | T87: to row 32

Sheet Ausgrid NPV Model>>

Sheet Release Notes
B3: Date | C3: Version | D3: Description
B4: XX | C4: 1.00 | D4: Model issued and approved by IGC
B5: 2021-12-08 | C5: 1.01 | D5: 1. Simple 1 page input: Includes a summary 1 page for simple NPV input situations.
D6: 2. Ongoing STPIS customer benefits: the original version of the model provided benefit for Ausgrid, cost to customer for up to five years for every dollar of forecast STPIS improvement. The updated model includes a trailing customer benefit into perpetuity. This reflects the increase in the baseline reliability level that the customer experiences as a result of the enhancement delivered by the project. Furthermore there is an additional functionality to manually include the benefit manually as Unserved energy.
D7: 3. Included Investment opex: additional functionality to cope with the one off opex arising from SaaS investments. The cost split will is 21% shareholder, 79% customer based on the modelled outputs of an equivalent EBSS impact (6 years for shareholders, perpetuity for customers (curtailed at 50 years in the model))
D8: 4. Capex benefits: New functionality to enable projects to recognise the value of capex benefits being realised. This would equate to every dollar of capex saved by a project a benefit is assumed based on the CESS split (30% shareholder, 70% customer)
D9: 5. Included Summary output tables: 2 tables including a capex and opex summary
D10: 6. Rolled over the model to start in 2022 to and updated key assumptions (E.g WAAC, Inflation)
D11: 7. Updated User guide instructions
B13: 2022-02-23 | C13: 1.02 | D13: Output tables updated to pick up all categories correctly
D14: Impacts of reliability improvements have been corrected to reflect a customer benefit from the date of the improvement which is offset by the payment of STPIS costs for five (5) years
D15: Updated guidance re STPIS benefits under the output charts to explain STPIS benefits are a cost to the customer and benefit to the shareholder in years three (3) to seven (7) after each incremental improvement to reliability
B17: 2022-03-22 | C17: 1.03 | D17: Updated the "Investment NPV perspective summary tables" Shareholder check formuala to include Revenue (Output_charts!I58)
B19: 2022-05-01 | C19: 1.04 | D19: change start date to FY24
D20: Remove "CESS" from capex benefits from all chart legend
D21: Remove "EBSS" from opex benefits from all chart legend
D22: Update discount rate to 2.90%
D23: Removed all sample inputs in the quick calc section

Sheet QuickCalc
A1: Ausgrid investment evaluation model
B2: =RIGHT(CELL("filename",A1),LEN(CELL("filename",A1))-FIND("]",CELL("filename",A1))) -> QuickCalc | E2: ="FY"&RIGHT(Assumptions!$L$19+E9,2) -> FY24 | F2: ="FY"&RIGHT(Assumptions!$L$19+F9,2) -> FY25 | G2: ="FY"&RIGHT(Assumptions!$L$19+G9,2) -> FY26 | H2: ="FY"&RIGHT(Assumptions!$L$19+H9,2) -> FY27 | I2: ="FY"&RIGHT(Assumptions!$L$19+I9,2) -> FY28 | J2: ="FY"&RIGHT(Assumptions!$L$19+J9,2) -> FY29 | K2: ="FY"&RIGHT(Assumptions!$L$19+K9,2) -> FY30 | L2: ="FY"&RIGHT(Assumptions!$L$19+L9,2) -> FY31 | M2: ="FY"&RIGHT(Assumptions!$L$19+M9,2) -> FY32 | N2: ="FY"&RIGHT(Assumptions!$L$19+N9,2) -> FY33 | O2: ="FY"&RIGHT(Assumptions!$L$19+O9,2) -> FY34 | P2: ="FY"&RIGHT(Assumptions!$L$19+P9,2) -> FY35 | Q2: ="FY"&RIGHT(Assumptions!$L$19+Q9,2) -> FY36 | R2: ="FY"&RIGHT(Assumptions!$L$19+R9,2) -> FY37 | S2: ="FY"&RIGHT(Assumptions!$L$19+S9,2) -> FY38 | T2: ="FY"&RIGHT(Assumptions!$L$19+T9,2) -> FY39 | U2: ="FY"&RIGHT(Assumptions!$L$19+U9,2) -> FY40 | V2: ="FY"&RIGHT(Assumptions!$L$19+V9,2) -> FY41 | W2: ="FY"&RIGHT(Assumptions!$L$19+W9,2) -> FY42 | X2: ="FY"&RIGHT(Assumptions!$L$19+X9,2) -> FY43 | Y2: ="FY"&RIGHT(Assumptions!$L$19+Y9,2) -> FY44 | Z2: ="FY"&RIGHT(Assumptions!$L$19+Z9,2) -> FY45 | AA2: ="FY"&RIGHT(Assumptions!$L$19+AA9,2) -> FY46 | AB2: ="FY"&RIGHT(Assumptions!$L$19+AB9,2) -> FY47 | AC2: ="FY"&RIGHT(Assumptions!$L$19+AC9,2) -> FY48 | AD2: ="FY"&RIGHT(Assumptions!$L$19+AD9,2) -> FY49 | AE2: ="FY"&RIGHT(Assumptions!$L$19+AE9,2) -> FY50 | AF2: ="FY"&RIGHT(Assumptions!$L$19+AF9,2) -> FY51 | AG2: ="FY"&RIGHT(Assumptions!$L$19+AG9,2) -> FY52 | AH2: ="FY"&RIGHT(Assumptions!$L$19+AH9,2) -> FY53 | AI2: ="FY"&RIGHT(Assumptions!$L$19+AI9,2) -> FY54 | AJ2: ="FY"&RIGHT(Assumptions!$L$19+AJ9,2) -> FY55 | AK2: ="FY"&RIGHT(Assumptions!$L$19+AK9,2) -> FY56 | AL2: ="FY"&RIGHT(Assumptions!$L$19+AL9,2) -> FY57 | AM2: ="FY"&RIGHT(Assumptions!$L$19+AM9,2) -> FY58 | AN2: ="FY"&RIGHT(Assumptions!$L$19+AN9,2) -> FY59 | AO2: ="FY"&RIGHT(Assumptions!$L$19+AO9,2) -> FY60 | AP2: ="FY"&RIGHT(Assumptions!$L$19+AP9,2) -> FY61 | AQ2: ="FY"&RIGHT(Assumptions!$L$19+AQ9,2) -> FY62 | AR2: ="FY"&RIGHT(Assumptions!$L$19+AR9,2) -> FY63 | AS2: ="FY"&RIGHT(Assumptions!$L$19+AS9,2) -> FY64 | AT2: ="FY"&RIGHT(Assumptions!$L$19+AT9,2) -> FY65 | AU2: ="FY"&RIGHT(Assumptions!$L$19+AU9,2) -> FY66 | AV2: ="FY"&RIGHT(Assumptions!$L$19+AV9,2) -> FY67 | AW2: ="FY"&RIGHT(Assumptions!$L$19+AW9,2) -> FY68 | AX2: ="FY"&RIGHT(Assumptions!$L$19+AX9,2) -> FY69 | AY2: ="FY"&RIGHT(Assumptions!$L$19+AY9,2) -> FY70 | AZ2: ="FY"&RIGHT(Assumptions!$L$19+AZ9,2) -> FY71 | BA2: ="FY"&RIGHT(Assumptions!$L$19+BA9,2) -> FY72 | BB2: ="FY"&RIGHT(Assumptions!$L$19+BB9,2) -> FY73
D4: Legend | E4: Input | F4: Calculation | G4: Select | H4: Internal | I4: Assumptions | J4: Instructions | K4: Change in formula pattern
B7: Simple investment evaluation
D9: Model year | E9: 0 | F9: =E9+1 -> 1 | G9: =F9+1 -> 2 | H9: 3 | I9: 4 | J9: 5 | K9: 6 | L9: 7 | M9: 8 | N9: 9 | O9: 10 | P9: 11 | Q9: 12 | R9: 13 | S9: 14 | T9: 15 | U9: 16 | V9: 17 | W9: 18 | X9: 19 | Y9: 20 | Z9: 21 | AA9: 22 | AB9: 23 | AC9: 24 | AD9: 25 | AE9: 26 | AF9: 27 | AG9: 28 | AH9: 29 | AI9: 30 | AJ9: 31 | AK9: 32 | AL9: 33 | AM9: 34 | AN9: 35 | AO9: 36 | AP9: 37 | AQ9: 38 | AR9: 39 | AS9: 40 | AT9: 41 | AU9: 42 | AV9: 43 | AW9: 44 | AX9: 45 | AY9: 46 | AZ9: 47 | BA9: 48 | BB9: 49
D11: Inputs
D20: Item ($) | E20: ="FY"&RIGHT(Assumptions!$L$19+E9,2) -> FY24 | F20: ="FY"&RIGHT(Assumptions!$L$19+F9,2) -> FY25 | G20: ="FY"&RIGHT(Assumptions!$L$19+G9,2) -> FY26 | H20: ="FY"&RIGHT(Assumptions!$L$19+H9,2) -> FY27 | I20: ="FY"&RIGHT(Assumptions!$L$19+I9,2) -> FY28 | J20: ="FY"&RIGHT(Assumptions!$L$19+J9,2) -> FY29 | K20: ="FY"&RIGHT(Assumptions!$L$19+K9,2) -> FY30 | L20: ="FY"&RIGHT(Assumptions!$L$19+L9,2) -> FY31 | M20: ="FY"&RIGHT(Assumptions!$L$19+M9,2) -> FY32 | N20: ="FY"&RIGHT(Assumptions!$L$19+N9,2) -> FY33 | O20: ="FY"&RIGHT(Assumptions!$L$19+O9,2) -> FY34 | P20: ="FY"&RIGHT(Assumptions!$L$19+P9,2) -> FY35 | Q20: ="FY"&RIGHT(Assumptions!$L$19+Q9,2) -> FY36 | R20: ="FY"&RIGHT(Assumptions!$L$19+R9,2) -> FY37 | S20: ="FY"&RIGHT(Assumptions!$L$19+S9,2) -> FY38 | T20: ="FY"&RIGHT(Assumptions!$L$19+T9,2) -> FY39 | U20: ="FY"&RIGHT(Assumptions!$L$19+U9,2) -> FY40 | V20: ="FY"&RIGHT(Assumptions!$L$19+V9,2) -> FY41 | W20: ="FY"&RIGHT(Assumptions!$L$19+W9,2) -> FY42 | X20: ="FY"&RIGHT(Assumptions!$L$19+X9,2) -> FY43 | Y20: ="FY"&RIGHT(Assumptions!$L$19+Y9,2) -> FY44 | Z20: ="FY"&RIGHT(Assumptions!$L$19+Z9,2) -> FY45 | AA20: ="FY"&RIGHT(Assumptions!$L$19+AA9,2) -> FY46 | AB20: ="FY"&RIGHT(Assumptions!$L$19+AB9,2) -> FY47 | AC20: ="FY"&RIGHT(Assumptions!$L$19+AC9,2) -> FY48 | AD20: ="FY"&RIGHT(Assumptions!$L$19+AD9,2) -> FY49 | AE20: ="FY"&RIGHT(Assumptions!$L$19+AE9,2) -> FY50 | AF20: ="FY"&RIGHT(Assumptions!$L$19+AF9,2) -> FY51 | AG20: ="FY"&RIGHT(Assumptions!$L$19+AG9,2) -> FY52 | AH20: ="FY"&RIGHT(Assumptions!$L$19+AH9,2) -> FY53 | AI20: ="FY"&RIGHT(Assumptions!$L$19+AI9,2) -> FY54 | AJ20: ="FY"&RIGHT(Assumptions!$L$19+AJ9,2) -> FY55 | AK20: ="FY"&RIGHT(Assumptions!$L$19+AK9,2) -> FY56 | AL20: ="FY"&RIGHT(Assumptions!$L$19+AL9,2) -> FY57 | AM20: ="FY"&RIGHT(Assumptions!$L$19+AM9,2) -> FY58 | AN20: ="FY"&RIGHT(Assumptions!$L$19+AN9,2) -> FY59 | AO20: ="FY"&RIGHT(Assumptions!$L$19+AO9,2) -> FY60 | AP20: ="FY"&RIGHT(Assumptions!$L$19+AP9,2) -> FY61 | AQ20: ="FY"&RIGHT(Assumptions!$L$19+AQ9,2) -> FY62 | AR20: ="FY"&RIGHT(Assumptions!$L$19+AR9,2) -> FY63 | AS20: ="FY"&RIGHT(Assumptions!$L$19+AS9,2) -> FY64 | AT20: ="FY"&RIGHT(Assumptions!$L$19+AT9,2) -> FY65 | AU20: ="FY"&RIGHT(Assumptions!$L$19+AU9,2) -> FY66 | AV20: ="FY"&RIGHT(Assumptions!$L$19+AV9,2) -> FY67 | AW20: ="FY"&RIGHT(Assumptions!$L$19+AW9,2) -> FY68 | AX20: ="FY"&RIGHT(Assumptions!$L$19+AX9,2) -> FY69 | AY20: ="FY"&RIGHT(Assumptions!$L$19+AY9,2) -> FY70 | AZ20: ="FY"&RIGHT(Assumptions!$L$19+AZ9,2) -> FY71 | BA20: ="FY"&RIGHT(Assumptions!$L$19+BA9,2) -> FY72 | BB20: ="FY"&RIGHT(Assumptions!$L$19+BB9,2) -> FY73
D22: Capex cost | F22: -7360437.521 | G22: -6662150.413 | H22: -8017158.58 | I22: -6544862.115 | J22: -6250696.363 | K22: 0 | L22: 0 | M22: 0 | N22: 0 | O22: 0 | P22: 0 | Q22: 0 | R22: 0
D23: Future capex cost
D24: Capex benefits | F24: 0 | G24: 0 | H24: 0 | I24: 0 | J24: 0 | K24: 0 | L24: 0 | M24: 0 | N24: 0 | O24: 0 | P24: 0 | Q24: 0 | R24: 0
D25: Regulated revenue - Incentive schemes (STPIS)
D26: Regulated revenue - ACS revenue
D27: Unregulated revenue
D28: Investment opex | F28: -9675971.376 | G28: -5753489.06 | H28: -6441380.692 | I28: -6849805.247 | J28: -6654793.857 | K28: 0 | L28: 0 | M28: 0 | N28: 0 | O28: 0 | P28: 0 | Q28: 0 | R28: 0
D29: Ongoing new opex | F29: -2005674.129 | G29: -3047323.901 | H29: -3963238.978 | I29: -4330213.543 | J29: -4716627.091 | K29: -4716627.091 | L29: -4716627.091 | M29: -4716627.091 | N29: -4716627.091 | O29: -4716627.091 | P29: -4716627.091 | Q29: -4716627.091 | R29: -4716627.091
D30: Probabilistic inputs
D31: Safety risk | F31: 0 | G31: 0 | H31: 0 | I31: 0 | J31: 0 | K31: 0 | L31: 0 | M31: 0 | N31: 0 | O31: 0 | P31: 0 | Q31: 0 | R31: 0
D32: Fire risk | F32: 0 | G32: 0 | H32: 0 | I32: 0 | J32: 0 | K32: 0 | L32: 0 | M32: 0 | N32: 0 | O32: 0 | P32: 0 | Q32: 0 | R32: 0
D33: Environment risk | F33: 0 | G33: 0 | H33: 0 | I33: 0 | J33: 0 | K33: 0 | L33: 0 | M33: 0 | N33: 0 | O33: 0 | P33: 0 | Q33: 0 | R33: 0
D34: Network asset failure EUE
D35: Reactive replacement cost
D36: 3rd party property damage risk
D37: Construction EUE risk
D38: Carbon emissions
D39: Protective security risk
D40: Cost to respond to crisis | F40: 0 | G40: 2057374.627 | H40: 4018969.065 | I40: 5929532.6 | J40: 7812076.419 | K40: 9697569.502 | L40: 9697569.502 | M40: 9697569.502 | N40: 7640194.875 | O40: 5678600.437 | P40: 3768036.901 | Q40: 1885493.083 | R40: 0
D41: Loss productive time
D42: Additional capex completed without additional labour cost
D43: Decrease in opex costs
D44: Fines and penalties | F44: 0 | G44: 1250561.048 | H44: 2442902.765 | I44: 3604225.698 | J44: 4748517.039 | K44: 5894601.07 | L44: 5894601.07 | M44: 5894601.07 | N44: 4644040.022 | O44: 3451698.305 | P44: 2290375.371 | Q44: 1146084.031 | R44: 0
D45: Damage / theft of assets
D46: Loss of data
D47: ICT/OT hardware or software failure risk
D48: Cost of manual intervention
D49: Loss productive time
D50: Additional capex completed without additional labour cost
D51: Decrease in opex costs | F51: 0 | G51: 4636379.212 | H51: 9056913.787 | I51: 13362448.1 | J51: 17604838.83 | K51: 21853875.84 | L51: 21853875.84 | M51: 21853875.84 | N51: 17217496.62 | O51: 12796962.05 | P51: 8491427.73 | Q51: 4249037.01 | R51: 0
D52: Safety risk
D53: Employee engagement
D54: Additional capex completed without additional labour cost
D55: Decrease in opex costs
D56: Customer value | F56: 0 | G56: 4376546.647 | H56: 8549345.05 | I56: 12613588.05 | J56: 16618226.16 | K56: 20629138.09 | L56: 20629138.09 | M56: 20629138.09 | N56: 16252591.44 | O56: 12079793.04 | P56: 8015550.036 | Q56: 4010911.926 | R56: 0
D58: Outputs
D62: Output measure | E62: IRR | F62: IRR | G62: IRR | I62: Market NPV | J62: Cust. NPV | K62: Shar. NPV
D63: Detail | E63: Market | F63: Customer | G63: Shareholder | I63: w/ prob. | J63: Total | K63: Total
D65: Result | E65: =Output_charts!D22 -> 0.6288924078 | F65: =Output_charts!E22 -> 0.6162251688 | G65: =Output_charts!F22 -> 0.6391882242 | I65: =Output_charts!J22 -> 152032745.5 | J65: =Output_charts!L22 -> 35065323.07 | K65: =Output_charts!O22 -> 116967422.4
I69: 811125042.3 | J69: 756716420.9 | K69: 54408621.34

Sheet Input
A1: Ausgrid investment evaluation model
B2: =RIGHT(CELL("filename",A1),LEN(CELL("filename",A1))-FIND("]",CELL("filename",A1))) -> Input
D4: Legend | E4: Input | F4: Calculation | G4: Select | H4: Internal | I4: Assumptions | J4: Instructions | K4: Change in formula pattern | Q4: Year index | R4: ="FY"&RIGHT(Assumptions!$L$19+R68,2) -> FY24 | S4: ="FY"&RIGHT(Assumptions!$L$19+S68,2) -> FY25 | T4: ="FY"&RIGHT(Assumptions!$L$19+T68,2) -> FY26 | U4: ="FY"&RIGHT(Assumptions!$L$19+U68,2) -> FY27 | V4: ="FY"&RIGHT(Assumptions!$L$19+V68,2) -> FY28 | W4: ="FY"&RIGHT(Assumptions!$L$19+W68,2) -> FY29 | X4: ="FY"&RIGHT(Assumptions!$L$19+X68,2) -> FY30 | Y4: ="FY"&RIGHT(Assumptions!$L$19+Y68,2) -> FY31 | Z4: ="FY"&RIGHT(Assumptions!$L$19+Z68,2) -> FY32 | AA4: ="FY"&RIGHT(Assumptions!$L$19+AA68,2) -> FY33 | AB4: ="FY"&RIGHT(Assumptions!$L$19+AB68,2) -> FY34 | AC4: ="FY"&RIGHT(Assumptions!$L$19+AC68,2) -> FY35 | AD4: ="FY"&RIGHT(Assumptions!$L$19+AD68,2) -> FY36 | AE4: ="FY"&RIGHT(Assumptions!$L$19+AE68,2) -> FY37 | AF4: ="FY"&RIGHT(Assumptions!$L$19+AF68,2) -> FY38 | AG4: ="FY"&RIGHT(Assumptions!$L$19+AG68,2) -> FY39 | AH4: ="FY"&RIGHT(Assumptions!$L$19+AH68,2) -> FY40 | AI4: ="FY"&RIGHT(Assumptions!$L$19+AI68,2) -> FY41 | AJ4: ="FY"&RIGHT(Assumptions!$L$19+AJ68,2) -> FY42 | AK4: ="FY"&RIGHT(Assumptions!$L$19+AK68,2) -> FY43 | AL4: ="FY"&RIGHT(Assumptions!$L$19+AL68,2) -> FY44 | AM4: ="FY"&RIGHT(Assumptions!$L$19+AM68,2) -> FY45 | AN4: ="FY"&RIGHT(Assumptions!$L$19+AN68,2) -> FY46 | AO4: ="FY"&RIGHT(Assumptions!$L$19+AO68,2) -> FY47 | AP4: ="FY"&RIGHT(Assumptions!$L$19+AP68,2) -> FY48 | AQ4: ="FY"&RIGHT(Assumptions!$L$19+AQ68,2) -> FY49 | AR4: ="FY"&RIGHT(Assumptions!$L$19+AR68,2) -> FY50 | AS4: ="FY"&RIGHT(Assumptions!$L$19+AS68,2) -> FY51 | AT4: ="FY"&RIGHT(Assumptions!$L$19+AT68,2) -> FY52 | AU4: ="FY"&RIGHT(Assumptions!$L$19+AU68,2) -> FY53 | AV4: ="FY"&RIGHT(Assumptions!$L$19+AV68,2) -> FY54 | AW4: ="FY"&RIGHT(Assumptions!$L$19+AW68,2) -> FY55 | AX4: ="FY"&RIGHT(Assumptions!$L$19+AX68,2) -> FY56 | AY4: ="FY"&RIGHT(Assumptions!$L$19+AY68,2) -> FY57 | AZ4: ="FY"&RIGHT(Assumptions!$L$19+AZ68,2) -> FY58 | BA4: ="FY"&RIGHT(Assumptions!$L$19+BA68,2) -> FY59 | BB4: ="FY"&RIGHT(Assumptions!$L$19+BB68,2) -> FY60 | BC4: ="FY"&RIGHT(Assumptions!$L$19+BC68,2) -> FY61 | BD4: ="FY"&RIGHT(Assumptions!$L$19+BD68,2) -> FY62 | BE4: ="FY"&RIGHT(Assumptions!$L$19+BE68,2) -> FY63 | BF4: ="FY"&RIGHT(Assumptions!$L$19+BF68,2) -> FY64 | BG4: ="FY"&RIGHT(Assumptions!$L$19+BG68,2) -> FY65 | BH4: ="FY"&RIGHT(Assumptions!$L$19+BH68,2) -> FY66 | BI4: ="FY"&RIGHT(Assumptions!$L$19+BI68,2) -> FY67 | BJ4: ="FY"&RIGHT(Assumptions!$L$19+BJ68,2) -> FY68 | BK4: ="FY"&RIGHT(Assumptions!$L$19+BK68,2) -> FY69 | BL4: ="FY"&RIGHT(Assumptions!$L$19+BL68,2) -> FY70 | BM4: ="FY"&RIGHT(Assumptions!$L$19+BM68,2) -> FY71 | BN4: ="FY"&RIGHT(Assumptions!$L$19+BN68,2) -> FY72 | BO4: ="FY"&RIGHT(Assumptions!$L$19+BO68,2) -> FY73 | BP4: ="FY"&RIGHT(Assumptions!$L$19+BP68,2) -> FY74
C21: Business case author
C23: Gate approval stage | E23: Gate 2
C24: Date
C25: Name
C26: Reg ID
C27: Investment type | E27: Project
C28: Investment area | E28: Network
C29: Need date
C30: Investment driver
D32: Brief project/program description
B34: Investment overview and details
H47: Standard network project / AER category | J47: Type | K47: Asset | L47: Asset life
D49: Asset description | H49: Regulatory | J49: Distribution | K49: IT systems | L49: =IF($H$49=Assumptions!$D$48,INDEX(Assumptions!$C$55:$E$100,MATCH(Input!$K$49,Assumptions!$C$55:$C$100,0),3),INDEX(Assumptions!$C$104:$E$142,MATCH(Input!$K$49,Assumptions!$C$104:$C$142,0),3)) -> 5
D50: Manual asset life input | L50: 15
D51: Asset life used in calculations | L51: =IF(ISBLANK($L$50),$L$49,$L$50) -> 15
L53: Last year
D55: Last year of longest useful asset life option
B57: NPV inputs
C59: Capex cost
F67: Description (if required) | M67: ="FY"&RIGHT(Assumptions!$L$19+M68,2) -> FY19 | N67: ="FY"&RIGHT(Assumptions!$L$19+N68,2) -> FY20 | O67: ="FY"&RIGHT(Assumptions!$L$19+O68,2) -> FY21 | P67: ="FY"&RIGHT(Assumptions!$L$19+P68,2) -> FY22 | Q67: ="FY"&RIGHT(Assumptions!$L$19+Q68,2) -> FY23 | R67: ="FY"&RIGHT(Assumptions!$L$19+R68,2) -> FY24 | S67: ="FY"&RIGHT(Assumptions!$L$19+S68,2) -> FY25 | T67: ="FY"&RIGHT(Assumptions!$L$19+T68,2) -> FY26 | U67: ="FY"&RIGHT(Assumptions!$L$19+U68,2) -> FY27 | V67: ="FY"&RIGHT(Assumptions!$L$19+V68,2) -> FY28 | W67: ="FY"&RIGHT(Assumptions!$L$19+W68,2) -> FY29 | X67: ="FY"&RIGHT(Assumptions!$L$19+X68,2) -> FY30 | Y67: ="FY"&RIGHT(Assumptions!$L$19+Y68,2) -> FY31 | Z67: ="FY"&RIGHT(Assumptions!$L$19+Z68,2) -> FY32 | AA67: ="FY"&RIGHT(Assumptions!$L$19+AA68,2) -> FY33 | AB67: ="FY"&RIGHT(Assumptions!$L$19+AB68,2) -> FY34 | AC67: ="FY"&RIGHT(Assumptions!$L$19+AC68,2) -> FY35 | AD67: ="FY"&RIGHT(Assumptions!$L$19+AD68,2) -> FY36 | AE67: ="FY"&RIGHT(Assumptions!$L$19+AE68,2) -> FY37 | AF67: ="FY"&RIGHT(Assumptions!$L$19+AF68,2) -> FY38 | AG67: ="FY"&RIGHT(Assumptions!$L$19+AG68,2) -> FY39 | AH67: ="FY"&RIGHT(Assumptions!$L$19+AH68,2) -> FY40 | AI67: ="FY"&RIGHT(Assumptions!$L$19+AI68,2) -> FY41 | AJ67: ="FY"&RIGHT(Assumptions!$L$19+AJ68,2) -> FY42 | AK67: ="FY"&RIGHT(Assumptions!$L$19+AK68,2) -> FY43 | AL67: ="FY"&RIGHT(Assumptions!$L$19+AL68,2) -> FY44 | AM67: ="FY"&RIGHT(Assumptions!$L$19+AM68,2) -> FY45 | AN67: ="FY"&RIGHT(Assumptions!$L$19+AN68,2) -> FY46 | AO67: ="FY"&RIGHT(Assumptions!$L$19+AO68,2) -> FY47 | AP67: ="FY"&RIGHT(Assumptions!$L$19+AP68,2) -> FY48 | AQ67: ="FY"&RIGHT(Assumptions!$L$19+AQ68,2) -> FY49 | AR67: ="FY"&RIGHT(Assumptions!$L$19+AR68,2) -> FY50 | AS67: ="FY"&RIGHT(Assumptions!$L$19+AS68,2) -> FY51 | AT67: ="FY"&RIGHT(Assumptions!$L$19+AT68,2) -> FY52 | AU67: ="FY"&RIGHT(Assumptions!$L$19+AU68,2) -> FY53 | AV67: ="FY"&RIGHT(Assumptions!$L$19+AV68,2) -> FY54 | AW67: ="FY"&RIGHT(Assumptions!$L$19+AW68,2) -> FY55 | AX67: ="FY"&RIGHT(Assumptions!$L$19+AX68,2) -> FY56 | AY67: ="FY"&RIGHT(Assumptions!$L$19+AY68,2) -> FY57 | AZ67: ="FY"&RIGHT(Assumptions!$L$19+AZ68,2) -> FY58 | BA67: ="FY"&RIGHT(Assumptions!$L$19+BA68,2) -> FY59 | BB67: ="FY"&RIGHT(Assumptions!$L$19+BB68,2) -> FY60 | BC67: ="FY"&RIGHT(Assumptions!$L$19+BC68,2) -> FY61 | BD67: ="FY"&RIGHT(Assumptions!$L$19+BD68,2) -> FY62 | BE67: ="FY"&RIGHT(Assumptions!$L$19+BE68,2) -> FY63 | BF67: ="FY"&RIGHT(Assumptions!$L$19+BF68,2) -> FY64 | BG67: ="FY"&RIGHT(Assumptions!$L$19+BG68,2) -> FY65 | BH67: ="FY"&RIGHT(Assumptions!$L$19+BH68,2) -> FY66 | BI67: ="FY"&RIGHT(Assumptions!$L$19+BI68,2) -> FY67 | BJ67: ="FY"&RIGHT(Assumptions!$L$19+BJ68,2) -> FY68 | BK67: ="FY"&RIGHT(Assumptions!$L$19+BK68,2) -> FY69 | BL67: ="FY"&RIGHT(Assumptions!$L$19+BL68,2) -> FY70 | BM67: ="FY"&RIGHT(Assumptions!$L$19+BM68,2) -> FY71 | BN67: ="FY"&RIGHT(Assumptions!$L$19+BN68,2) -> FY72 | BO67: ="FY"&RIGHT(Assumptions!$L$19+BO68,2) -> FY73 | BP67: ="FY"&RIGHT(Assumptions!$L$19+BP68,2) -> FY74
F68: year index vs current year | M68: =N68-1 -> -5 | N68: -4 | O68: -3 | P68: -2 | Q68: -1 | R68: 0 | S68: =R68+1 -> 1 | T68: 2 | U68: 3 | V68: 4 | W68: 5 | X68: 6 | Y68: 7 | Z68: 8 | AA68: 9 | AB68: 10 | AC68: 11 | AD68: 12 | AE68: 13 | AF68: 14 | AG68: 15 | AH68: 16 | AI68: 17 | AJ68: 18 | AK68: 19 | AL68: 20 | AM68: 21 | AN68: 22 | AO68: 23 | AP68: 24 | AQ68: 25 | AR68: 26 | AS68: 27 | AT68: 28 | AU68: 29 | AV68: 30 | AW68: 31 | AX68: 32 | AY68: 33 | AZ68: 34 | BA68: 35 | BB68: 36 | BC68: 37 | BD68: 38 | BE68: 39 | BF68: 40 | BG68: 41 | BH68: 42 | BI68: 43 | BJ68: 44 | BK68: 45 | BL68: 46 | BM68: 47 | BN68: 48 | BO68: 49 | BP68: 50
D70: Component 1 | R70: =SUM(R71:R75) -> 0 | S70: =SUM(S71:S75) -> -7360437.521 | T70: -6662150.413 | U70: -8017158.58 | V70: -6544862.115 | W70: -6250696.363 | X70: 0 | Y70: 0 | Z70: 0 | AA70: 0 | AB70: 0 | AC70: 0 | AD70: 0 | AE70: 0 | AF70: 0 | AG70: 0 | AH70: 0 | AI70: 0 | AJ70: 0 | AK70: 0 | AL70: 0 | AM70: 0 | AN70: 0 | AO70: 0 | AP70: 0 | AQ70: 0 | AR70: 0 | AS70: 0 | AT70: 0 | AU70: 0 | AV70: 0 | AW70: 0 | AX70: 0 | AY70: 0 | AZ70: 0 | BA70: 0 | BB70: 0 | BC70: 0 | BD70: 0 | BE70: 0 | BF70: 0 | BG70: 0 | BH70: 0 | BI70: 0 | BJ70: 0 | BK70: 0 | BL70: 0 | BM70: 0 | BN70: 0 | BO70: 0 | BP70: 0
D71: Direct labour
D72: Materials
D73: Contracted services
D74: Indirect labour / overheads
D75: Other | F75: Used for QuickCalc, override if using full inputs | R75: =QuickCalc!E22 -> 0 | S75: =QuickCalc!F22 -> -7360437.521 | T75: =QuickCalc!G22 -> -6662150.413 | U75: =QuickCalc!H22 -> -8017158.58 | V75: =QuickCalc!I22 -> -6544862.115 | W75: =QuickCalc!J22 -> -6250696.363 | X75: =QuickCalc!K22 -> 0 | Y75: =QuickCalc!L22 -> 0 | Z75: =QuickCalc!M22 -> 0 | AA75: =QuickCalc!N22 -> 0 | AB75: =QuickCalc!O22 -> 0 | AC75: =QuickCalc!P22 -> 0 | AD75: =QuickCalc!Q22 -> 0 | AE75: =QuickCalc!R22 -> 0 | AF75: =QuickCalc!S22 -> 0 | AG75: =QuickCalc!T22 -> 0 | AH75: =QuickCalc!U22 -> 0 | AI75: =QuickCalc!V22 -> 0 | AJ75: =QuickCalc!W22 -> 0 | AK75: =QuickCalc!X22 -> 0 | AL75: =QuickCalc!Y22 -> 0 | AM75: =QuickCalc!Z22 -> 0 | AN75: =QuickCalc!AA22 -> 0 | AO75: =QuickCalc!AB22 -> 0 | AP75: =QuickCalc!AC22 -> 0 | AQ75: =QuickCalc!AD22 -> 0 | AR75: =QuickCalc!AE22 -> 0 | AS75: =QuickCalc!AF22 -> 0 | AT75: =QuickCalc!AG22 -> 0 | AU75: =QuickCalc!AH22 -> 0 | AV75: =QuickCalc!AI22 -> 0 | AW75: =QuickCalc!AJ22 -> 0 | AX75: =QuickCalc!AK22 -> 0 | AY75: =QuickCalc!AL22 -> 0 | AZ75: =QuickCalc!AM22 -> 0 | BA75: =QuickCalc!AN22 -> 0 | BB75: =QuickCalc!AO22 -> 0 | BC75: =QuickCalc!AP22 -> 0 | BD75: =QuickCalc!AQ22 -> 0 | BE75: =QuickCalc!AR22 -> 0 | BF75: =QuickCalc!AS22 -> 0 | BG75: =QuickCalc!AT22 -> 0 | BH75: =QuickCalc!AU22 -> 0 | BI75: =QuickCalc!AV22 -> 0 | BJ75: =QuickCalc!AW22 -> 0 | BK75: =QuickCalc!AX22 -> 0 | BL75: =QuickCalc!AY22 -> 0 | BM75: =QuickCalc!AZ22 -> 0 | BN75: =QuickCalc!BA22 -> 0 | BO75: =QuickCalc!BB22 -> 0 | BP75: =QuickCalc!BC22 -> 0
D77: Component 2 (if required) | R77: =SUM(R78:R82) -> 0 | S77: 0 | T77: 0 | U77: 0 | V77: 0 | W77: 0 | X77: 0 | Y77: 0 | Z77: 0 | AA77: 0 | AB77: 0 | AC77: 0 | AD77: 0 | AE77: 0 | AF77: 0 | AG77: 0 | AH77: 0 | AI77: 0 | AJ77: 0 | AK77: 0 | AL77: 0 | AM77: 0 | AN77: 0 | AO77: 0 | AP77: 0 | AQ77: 0 | AR77: 0 | AS77: 0 | AT77: 0 | AU77: 0 | AV77: 0 | AW77: 0 | AX77: 0 | AY77: 0 | AZ77: 0 | BA77: 0 | BB77: 0 | BC77: 0 | BD77: 0 | BE77: 0 | BF77: 0 | BG77: 0 | BH77: 0 | BI77: 0 | BJ77: 0 | BK77: 0 | BL77: 0 | BM77: 0 | BN77: 0 | BO77: 0 | BP77: 0
D78: Direct labour
D79: Materials
D80: Contracted services
D81: Indirect labour / overheads
D82: Other
D84: Component 3 (if required) | R84: =SUM(R85:R89) -> 0 | S84: 0 | T84: 0 | U84: 0 | V84: 0 | W84: 0 | X84: 0 | Y84: 0 | Z84: 0 | AA84: 0 | AB84: 0 | AC84: 0 | AD84: 0 | AE84: 0 | AF84: 0 | AG84: 0 | AH84: 0 | AI84: 0 | AJ84: 0 | AK84: 0 | AL84: 0 | AM84: 0 | AN84: 0 | AO84: 0 | AP84: 0 | AQ84: 0 | AR84: 0 | AS84: 0 | AT84: 0 | AU84: 0 | AV84: 0 | AW84: 0 | AX84: 0 | AY84: 0 | AZ84: 0 | BA84: 0 | BB84: 0 | BC84: 0 | BD84: 0 | BE84: 0 | BF84: 0 | BG84: 0 | BH84: 0 | BI84: 0 | BJ84: 0 | BK84: 0 | BL84: 0 | BM84: 0 | BN84: 0 | BO84: 0 | BP84: 0
D85: Direct labour
D86: Materials
D87: Contracted services
D88: Indirect labour / overheads
D89: Other
D91: Component 4 (if required) | R91: =SUM(R92:R96) -> 0 | S91: 0 | T91: 0 | U91: 0 | V91: 0 | W91: 0 | X91: 0 | Y91: 0 | Z91: 0 | AA91: 0 | AB91: 0 | AC91: 0 | AD91: 0 | AE91: 0 | AF91: 0 | AG91: 0 | AH91: 0 | AI91: 0 | AJ91: 0 | AK91: 0 | AL91: 0 | AM91: 0 | AN91: 0 | AO91: 0 | AP91: 0 | AQ91: 0 | AR91: 0 | AS91: 0 | AT91: 0 | AU91: 0 | AV91: 0 | AW91: 0 | AX91: 0 | AY91: 0 | AZ91: 0 | BA91: 0 | BB91: 0 | BC91: 0 | BD91: 0 | BE91: 0 | BF91: 0 | BG91: 0 | BH91: 0 | BI91: 0 | BJ91: 0 | BK91: 0 | BL91: 0 | BM91: 0 | BN91: 0 | BO91: 0 | BP91: 0
D92: Direct labour
D93: Materials
D94: Contracted services
D95: Indirect labour / overheads
D96: Other
D98: Proceeds of sale | R98: =SUM(R99:R103) -> 0 | S98: 0 | T98: 0 | U98: 0 | V98: 0 | W98: 0 | X98: 0 | Y98: 0 | Z98: 0 | AA98: 0 | AB98: 0 | AC98: 0 | AD98: 0 | AE98: 0 | AF98: 0 | AG98: 0 | AH98: 0 | AI98: 0 | AJ98: 0 | AK98: 0 | AL98: 0 | AM98: 0 | AN98: 0 | AO98: 0 | AP98: 0 | AQ98: 0 | AR98: 0 | AS98: 0 | AT98: 0 | AU98: 0 | AV98: 0 | AW98: 0 | AX98: 0 | AY98: 0 | AZ98: 0 | BA98: 0 | BB98: 0 | BC98: 0 | BD98: 0 | BE98: 0 | BF98: 0 | BG98: 0 | BH98: 0 | BI98: 0 | BJ98: 0 | BK98: 0 | BL98: 0 | BM98: 0 | BN98: 0 | BO98: 0 | BP98: 0
D99: Direct labour
D100: Materials
D101: Contracted services
D102: Indirect labour / overheads
D103: Other
D105: Contingency
D107: Land
C109: Sunk cost
F114: Description (if required) | M114: ="FY"&RIGHT(Assumptions!$L$19+M68,2) -> FY19 | N114: ="FY"&RIGHT(Assumptions!$L$19+N68,2) -> FY20 | O114: ="FY"&RIGHT(Assumptions!$L$19+O68,2) -> FY21 | P114: ="FY"&RIGHT(Assumptions!$L$19+P68,2) -> FY22 | Q114: ="FY"&RIGHT(Assumptions!$L$19+Q68,2) -> FY23
D116: Previous capex costs excl land
C118: Future capex cost
F127: Description (if required) | R127: ="FY"&RIGHT(Assumptions!$L$19+R68,2) -> FY24 | S127: ="FY"&RIGHT(Assumptions!$L$19+S68,2) -> FY25 | T127: ="FY"&RIGHT(Assumptions!$L$19+T68,2) -> FY26 | U127: ="FY"&RIGHT(Assumptions!$L$19+U68,2) -> FY27 | V127: ="FY"&RIGHT(Assumptions!$L$19+V68,2) -> FY28 | W127: ="FY"&RIGHT(Assumptions!$L$19+W68,2) -> FY29 | X127: ="FY"&RIGHT(Assumptions!$L$19+X68,2) -> FY30 | Y127: ="FY"&RIGHT(Assumptions!$L$19+Y68,2) -> FY31 | Z127: ="FY"&RIGHT(Assumptions!$L$19+Z68,2) -> FY32 | AA127: ="FY"&RIGHT(Assumptions!$L$19+AA68,2) -> FY33 | AB127: ="FY"&RIGHT(Assumptions!$L$19+AB68,2) -> FY34 | AC127: ="FY"&RIGHT(Assumptions!$L$19+AC68,2) -> FY35 | AD127: ="FY"&RIGHT(Assumptions!$L$19+AD68,2) -> FY36 | AE127: ="FY"&RIGHT(Assumptions!$L$19+AE68,2) -> FY37 | AF127: ="FY"&RIGHT(Assumptions!$L$19+AF68,2) -> FY38 | AG127: ="FY"&RIGHT(Assumptions!$L$19+AG68,2) -> FY39 | AH127: ="FY"&RIGHT(Assumptions!$L$19+AH68,2) -> FY40 | AI127: ="FY"&RIGHT(Assumptions!$L$19+AI68,2) -> FY41 | AJ127: ="FY"&RIGHT(Assumptions!$L$19+AJ68,2) -> FY42 | AK127: ="FY"&RIGHT(Assumptions!$L$19+AK68,2) -> FY43 | AL127: ="FY"&RIGHT(Assumptions!$L$19+AL68,2) -> FY44 | AM127: ="FY"&RIGHT(Assumptions!$L$19+AM68,2) -> FY45 | AN127: ="FY"&RIGHT(Assumptions!$L$19+AN68,2) -> FY46 | AO127: ="FY"&RIGHT(Assumptions!$L$19+AO68,2) -> FY47 | AP127: ="FY"&RIGHT(Assumptions!$L$19+AP68,2) -> FY48 | AQ127: ="FY"&RIGHT(Assumptions!$L$19+AQ68,2) -> FY49 | AR127: ="FY"&RIGHT(Assumptions!$L$19+AR68,2) -> FY50 | AS127: ="FY"&RIGHT(Assumptions!$L$19+AS68,2) -> FY51 | AT127: ="FY"&RIGHT(Assumptions!$L$19+AT68,2) -> FY52 | AU127: ="FY"&RIGHT(Assumptions!$L$19+AU68,2) -> FY53 | AV127: ="FY"&RIGHT(Assumptions!$L$19+AV68,2) -> FY54 | AW127: ="FY"&RIGHT(Assumptions!$L$19+AW68,2) -> FY55 | AX127: ="FY"&RIGHT(Assumptions!$L$19+AX68,2) -> FY56 | AY127: ="FY"&RIGHT(Assumptions!$L$19+AY68,2) -> FY57 | AZ127: ="FY"&RIGHT(Assumptions!$L$19+AZ68,2) -> FY58 | BA127: ="FY"&RIGHT(Assumptions!$L$19+BA68,2) -> FY59 | BB127: ="FY"&RIGHT(Assumptions!$L$19+BB68,2) -> FY60 | BC127: ="FY"&RIGHT(Assumptions!$L$19+BC68,2) -> FY61 | BD127: ="FY"&RIGHT(Assumptions!$L$19+BD68,2) -> FY62 | BE127: ="FY"&RIGHT(Assumptions!$L$19+BE68,2) -> FY63 | BF127: ="FY"&RIGHT(Assumptions!$L$19+BF68,2) -> FY64 | BG127: ="FY"&RIGHT(Assumptions!$L$19+BG68,2) -> FY65 | BH127: ="FY"&RIGHT(Assumptions!$L$19+BH68,2) -> FY66 | BI127: ="FY"&RIGHT(Assumptions!$L$19+BI68,2) -> FY67 | BJ127: ="FY"&RIGHT(Assumptions!$L$19+BJ68,2) -> FY68 | BK127: ="FY"&RIGHT(Assumptions!$L$19+BK68,2) -> FY69 | BL127: ="FY"&RIGHT(Assumptions!$L$19+BL68,2) -> FY70 | BM127: ="FY"&RIGHT(Assumptions!$L$19+BM68,2) -> FY71 | BN127: ="FY"&RIGHT(Assumptions!$L$19+BN68,2) -> FY72 | BO127: ="FY"&RIGHT(Assumptions!$L$19+BO68,2) -> FY73 | BP127: ="FY"&RIGHT(Assumptions!$L$19+BP68,2) -> FY74
D129: Phase 1
D130: Phase 2 (if required)
D131: Phase 3 (if required)
D132: Phase 4 (if required)
D133: Phase 5 (if required) | F133: Used for QuickCalc, override if using full inputs | R133: =QuickCalc!E23 -> 0 | S133: =QuickCalc!F23 -> 0 | T133: =QuickCalc!G23 -> 0 | U133: =QuickCalc!H23 -> 0 | V133: =QuickCalc!I23 -> 0 | W133: =QuickCalc!J23 -> 0 | X133: =QuickCalc!K23 -> 0 | Y133: =QuickCalc!L23 -> 0 | Z133: =QuickCalc!M23 -> 0 | AA133: =QuickCalc!N23 -> 0 | AB133: =QuickCalc!O23 -> 0 | AC133: =QuickCalc!P23 -> 0 | AD133: =QuickCalc!Q23 -> 0 | AE133: =QuickCalc!R23 -> 0 | AF133: =QuickCalc!S23 -> 0 | AG133: =QuickCalc!T23 -> 0 | AH133: =QuickCalc!U23 -> 0 | AI133: =QuickCalc!V23 -> 0 | AJ133: =QuickCalc!W23 -> 0 | AK133: =QuickCalc!X23 -> 0 | AL133: =QuickCalc!Y23 -> 0 | AM133: =QuickCalc!Z23 -> 0 | AN133: =QuickCalc!AA23 -> 0 | AO133: =QuickCalc!AB23 -> 0 | AP133: =QuickCalc!AC23 -> 0 | AQ133: =QuickCalc!AD23 -> 0 | AR133: =QuickCalc!AE23 -> 0 | AS133: =QuickCalc!AF23 -> 0 | AT133: =QuickCalc!AG23 -> 0 | AU133: =QuickCalc!AH23 -> 0 | AV133: =QuickCalc!AI23 -> 0 | AW133: =QuickCalc!AJ23 -> 0 | AX133: =QuickCalc!AK23 -> 0 | AY133: =QuickCalc!AL23 -> 0 | AZ133: =QuickCalc!AM23 -> 0 | BA133: =QuickCalc!AN23 -> 0 | BB133: =QuickCalc!AO23 -> 0 | BC133: =QuickCalc!AP23 -> 0 | BD133: =QuickCalc!AQ23 -> 0 | BE133: =QuickCalc!AR23 -> 0 | BF133: =QuickCalc!AS23 -> 0 | BG133: =QuickCalc!AT23 -> 0 | BH133: =QuickCalc!AU23 -> 0 | BI133: =QuickCalc!AV23 -> 0 | BJ133: =QuickCalc!AW23 -> 0 | BK133: =QuickCalc!AX23 -> 0 | BL133: =QuickCalc!AY23 -> 0 | BM133: =QuickCalc!AZ23 -> 0 | BN133: =QuickCalc!BA23 -> 0 | BO133: =QuickCalc!BB23 -> 0 | BP133: =QuickCalc!BC23 -> 0
D135: Land
C137: Capex benefits
F143: Description (if required) | R143: ="FY"&RIGHT(Assumptions!$L$19+R68,2) -> FY24 | S143: ="FY"&RIGHT(Assumptions!$L$19+S68,2) -> FY25 | T143: ="FY"&RIGHT(Assumptions!$L$19+T68,2) -> FY26 | U143: ="FY"&RIGHT(Assumptions!$L$19+U68,2) -> FY27 | V143: ="FY"&RIGHT(Assumptions!$L$19+V68,2) -> FY28 | W143: ="FY"&RIGHT(Assumptions!$L$19+W68,2) -> FY29 | X143: ="FY"&RIGHT(Assumptions!$L$19+X68,2) -> FY30 | Y143: ="FY"&RIGHT(Assumptions!$L$19+Y68,2) -> FY31 | Z143: ="FY"&RIGHT(Assumptions!$L$19+Z68,2) -> FY32 | AA143: ="FY"&RIGHT(Assumptions!$L$19+AA68,2) -> FY33 | AB143: ="FY"&RIGHT(Assumptions!$L$19+AB68,2) -> FY34 | AC143: ="FY"&RIGHT(Assumptions!$L$19+AC68,2) -> FY35 | AD143: ="FY"&RIGHT(Assumptions!$L$19+AD68,2) -> FY36 | AE143: ="FY"&RIGHT(Assumptions!$L$19+AE68,2) -> FY37 | AF143: ="FY"&RIGHT(Assumptions!$L$19+AF68,2) -> FY38 | AG143: ="FY"&RIGHT(Assumptions!$L$19+AG68,2) -> FY39 | AH143: ="FY"&RIGHT(Assumptions!$L$19+AH68,2) -> FY40 | AI143: ="FY"&RIGHT(Assumptions!$L$19+AI68,2) -> FY41 | AJ143: ="FY"&RIGHT(Assumptions!$L$19+AJ68,2) -> FY42 | AK143: ="FY"&RIGHT(Assumptions!$L$19+AK68,2) -> FY43 | AL143: ="FY"&RIGHT(Assumptions!$L$19+AL68,2) -> FY44 | AM143: ="FY"&RIGHT(Assumptions!$L$19+AM68,2) -> FY45 | AN143: ="FY"&RIGHT(Assumptions!$L$19+AN68,2) -> FY46 | AO143: ="FY"&RIGHT(Assumptions!$L$19+AO68,2) -> FY47 | AP143: ="FY"&RIGHT(Assumptions!$L$19+AP68,2) -> FY48 | AQ143: ="FY"&RIGHT(Assumptions!$L$19+AQ68,2) -> FY49 | AR143: ="FY"&RIGHT(Assumptions!$L$19+AR68,2) -> FY50 | AS143: ="FY"&RIGHT(Assumptions!$L$19+AS68,2) -> FY51 | AT143: ="FY"&RIGHT(Assumptions!$L$19+AT68,2) -> FY52 | AU143: ="FY"&RIGHT(Assumptions!$L$19+AU68,2) -> FY53 | AV143: ="FY"&RIGHT(Assumptions!$L$19+AV68,2) -> FY54 | AW143: ="FY"&RIGHT(Assumptions!$L$19+AW68,2) -> FY55 | AX143: ="FY"&RIGHT(Assumptions!$L$19+AX68,2) -> FY56 | AY143: ="FY"&RIGHT(Assumptions!$L$19+AY68,2) -> FY57 | AZ143: ="FY"&RIGHT(Assumptions!$L$19+AZ68,2) -> FY58 | BA143: ="FY"&RIGHT(Assumptions!$L$19+BA68,2) -> FY59 | BB143: ="FY"&RIGHT(Assumptions!$L$19+BB68,2) -> FY60 | BC143: ="FY"&RIGHT(Assumptions!$L$19+BC68,2) -> FY61 | BD143: ="FY"&RIGHT(Assumptions!$L$19+BD68,2) -> FY62 | BE143: ="FY"&RIGHT(Assumptions!$L$19+BE68,2) -> FY63 | BF143: ="FY"&RIGHT(Assumptions!$L$19+BF68,2) -> FY64 | BG143: ="FY"&RIGHT(Assumptions!$L$19+BG68,2) -> FY65 | BH143: ="FY"&RIGHT(Assumptions!$L$19+BH68,2) -> FY66 | BI143: ="FY"&RIGHT(Assumptions!$L$19+BI68,2) -> FY67 | BJ143: ="FY"&RIGHT(Assumptions!$L$19+BJ68,2) -> FY68 | BK143: ="FY"&RIGHT(Assumptions!$L$19+BK68,2) -> FY69 | BL143: ="FY"&RIGHT(Assumptions!$L$19+BL68,2) -> FY70 | BM143: ="FY"&RIGHT(Assumptions!$L$19+BM68,2) -> FY71 | BN143: ="FY"&RIGHT(Assumptions!$L$19+BN68,2) -> FY72 | BO143: ="FY"&RIGHT(Assumptions!$L$19+BO68,2) -> FY73 | BP143: ="FY"&RIGHT(Assumptions!$L$19+BP68,2) -> FY74
D145: Benefit 1
D146: Benefit 2
D147: Benefit 3 | F147: Used for QuickCalc, override if using full inputs | R147: =QuickCalc!E24 -> 0 | S147: =QuickCalc!F24 -> 0 | T147: =QuickCalc!G24 -> 0 | U147: =QuickCalc!H24 -> 0 | V147: =QuickCalc!I24 -> 0 | W147: =QuickCalc!J24 -> 0 | X147: =QuickCalc!K24 -> 0 | Y147: =QuickCalc!L24 -> 0 | Z147: =QuickCalc!M24 -> 0 | AA147: =QuickCalc!N24 -> 0 | AB147: =QuickCalc!O24 -> 0 | AC147: =QuickCalc!P24 -> 0 | AD147: =QuickCalc!Q24 -> 0 | AE147: =QuickCalc!R24 -> 0 | AF147: =QuickCalc!S24 -> 0 | AG147: =QuickCalc!T24 -> 0 | AH147: =QuickCalc!U24 -> 0 | AI147: =QuickCalc!V24 -> 0 | AJ147: =QuickCalc!W24 -> 0 | AK147: =QuickCalc!X24 -> 0 | AL147: =QuickCalc!Y24 -> 0 | AM147: =QuickCalc!Z24 -> 0 | AN147: =QuickCalc!AA24 -> 0 | AO147: =QuickCalc!AB24 -> 0 | AP147: =QuickCalc!AC24 -> 0 | AQ147: =QuickCalc!AD24 -> 0 | AR147: =QuickCalc!AE24 -> 0 | AS147: =QuickCalc!AF24 -> 0 | AT147: =QuickCalc!AG24 -> 0 | AU147: =QuickCalc!AH24 -> 0 | AV147: =QuickCalc!AI24 -> 0 | AW147: =QuickCalc!AJ24 -> 0 | AX147: =QuickCalc!AK24 -> 0 | AY147: =QuickCalc!AL24 -> 0 | AZ147: =QuickCalc!AM24 -> 0 | BA147: =QuickCalc!AN24 -> 0 | BB147: =QuickCalc!AO24 -> 0 | BC147: =QuickCalc!AP24 -> 0 | BD147: =QuickCalc!AQ24 -> 0 | BE147: =QuickCalc!AR24 -> 0 | BF147: =QuickCalc!AS24 -> 0 | BG147: =QuickCalc!AT24 -> 0 | BH147: =QuickCalc!AU24 -> 0 | BI147: =QuickCalc!AV24 -> 0 | BJ147: =QuickCalc!AW24 -> 0 | BK147: =QuickCalc!AX24 -> 0 | BL147: =QuickCalc!AY24 -> 0 | BM147: =QuickCalc!AZ24 -> 0 | BN147: =QuickCalc!BA24 -> 0 | BO147: =QuickCalc!BB24 -> 0 | BP147: =QuickCalc!BC24 -> 0
C149: Regulated revenue - Incentive schemes
F161: Description (if required) | R161: ="FY"&RIGHT(Assumptions!$L$19+R68,2) -> FY24 | S161: ="FY"&RIGHT(Assumptions!$L$19+S68,2) -> FY25 | T161: ="FY"&RIGHT(Assumptions!$L$19+T68,2) -> FY26 | U161: ="FY"&RIGHT(Assumptions!$L$19+U68,2) -> FY27 | V161: ="FY"&RIGHT(Assumptions!$L$19+V68,2) -> FY28 | W161: ="FY"&RIGHT(Assumptions!$L$19+W68,2) -> FY29 | X161: ="FY"&RIGHT(Assumptions!$L$19+X68,2) -> FY30 | Y161: ="FY"&RIGHT(Assumptions!$L$19+Y68,2) -> FY31 | Z161: ="FY"&RIGHT(Assumptions!$L$19+Z68,2) -> FY32 | AA161: ="FY"&RIGHT(Assumptions!$L$19+AA68,2) -> FY33 | AB161: ="FY"&RIGHT(Assumptions!$L$19+AB68,2) -> FY34 | AC161: ="FY"&RIGHT(Assumptions!$L$19+AC68,2) -> FY35 | AD161: ="FY"&RIGHT(Assumptions!$L$19+AD68,2) -> FY36 | AE161: ="FY"&RIGHT(Assumptions!$L$19+AE68,2) -> FY37 | AF161: ="FY"&RIGHT(Assumptions!$L$19+AF68,2) -> FY38 | AG161: ="FY"&RIGHT(Assumptions!$L$19+AG68,2) -> FY39 | AH161: ="FY"&RIGHT(Assumptions!$L$19+AH68,2) -> FY40 | AI161: ="FY"&RIGHT(Assumptions!$L$19+AI68,2) -> FY41 | AJ161: ="FY"&RIGHT(Assumptions!$L$19+AJ68,2) -> FY42 | AK161: ="FY"&RIGHT(Assumptions!$L$19+AK68,2) -> FY43 | AL161: ="FY"&RIGHT(Assumptions!$L$19+AL68,2) -> FY44 | AM161: ="FY"&RIGHT(Assumptions!$L$19+AM68,2) -> FY45 | AN161: ="FY"&RIGHT(Assumptions!$L$19+AN68,2) -> FY46 | AO161: ="FY"&RIGHT(Assumptions!$L$19+AO68,2) -> FY47 | AP161: ="FY"&RIGHT(Assumptions!$L$19+AP68,2) -> FY48 | AQ161: ="FY"&RIGHT(Assumptions!$L$19+AQ68,2) -> FY49 | AR161: ="FY"&RIGHT(Assumptions!$L$19+AR68,2) -> FY50 | AS161: ="FY"&RIGHT(Assumptions!$L$19+AS68,2) -> FY51 | AT161: ="FY"&RIGHT(Assumptions!$L$19+AT68,2) -> FY52 | AU161: ="FY"&RIGHT(Assumptions!$L$19+AU68,2) -> FY53 | AV161: ="FY"&RIGHT(Assumptions!$L$19+AV68,2) -> FY54 | AW161: ="FY"&RIGHT(Assumptions!$L$19+AW68,2) -> FY55 | AX161: ="FY"&RIGHT(Assumptions!$L$19+AX68,2) -> FY56 | AY161: ="FY"&RIGHT(Assumptions!$L$19+AY68,2) -> FY57 | AZ161: ="FY"&RIGHT(Assumptions!$L$19+AZ68,2) -> FY58 | BA161: ="FY"&RIGHT(Assumptions!$L$19+BA68,2) -> FY59 | BB161: ="FY"&RIGHT(Assumptions!$L$19+BB68,2) -> FY60 | BC161: ="FY"&RIGHT(Assumptions!$L$19+BC68,2) -> FY61 | BD161: ="FY"&RIGHT(Assumptions!$L$19+BD68,2) -> FY62 | BE161: ="FY"&RIGHT(Assumptions!$L$19+BE68,2) -> FY63 | BF161: ="FY"&RIGHT(Assumptions!$L$19+BF68,2) -> FY64 | BG161: ="FY"&RIGHT(Assumptions!$L$19+BG68,2) -> FY65 | BH161: ="FY"&RIGHT(Assumptions!$L$19+BH68,2) -> FY66 | BI161: ="FY"&RIGHT(Assumptions!$L$19+BI68,2) -> FY67 | BJ161: ="FY"&RIGHT(Assumptions!$L$19+BJ68,2) -> FY68 | BK161: ="FY"&RIGHT(Assumptions!$L$19+BK68,2) -> FY69 | BL161: ="FY"&RIGHT(Assumptions!$L$19+BL68,2) -> FY70 | BM161: ="FY"&RIGHT(Assumptions!$L$19+BM68,2) -> FY71 | BN161: ="FY"&RIGHT(Assumptions!$L$19+BN68,2) -> FY72 | BO161: ="FY"&RIGHT(Assumptions!$L$19+BO68,2) -> FY73 | BP161: ="FY"&RIGHT(Assumptions!$L$19+BP68,2) -> FY74
D163: STPIS | F163: Used for QuickCalc, override if using full inputs | R163: =QuickCalc!E25 -> 0 | S163: =QuickCalc!F25 -> 0 | T163: =QuickCalc!G25 -> 0 | U163: =QuickCalc!H25 -> 0 | V163: =QuickCalc!I25 -> 0 | W163: =QuickCalc!J25 -> 0 | X163: =QuickCalc!K25 -> 0 | Y163: =QuickCalc!L25 -> 0 | Z163: =QuickCalc!M25 -> 0 | AA163: =QuickCalc!N25 -> 0 | AB163: =QuickCalc!O25 -> 0 | AC163: =QuickCalc!P25 -> 0 | AD163: =QuickCalc!Q25 -> 0 | AE163: =QuickCalc!R25 -> 0 | AF163: =QuickCalc!S25 -> 0 | AG163: =QuickCalc!T25 -> 0 | AH163: =QuickCalc!U25 -> 0 | AI163: =QuickCalc!V25 -> 0 | AJ163: =QuickCalc!W25 -> 0 | AK163: =QuickCalc!X25 -> 0 | AL163: =QuickCalc!Y25 -> 0 | AM163: =QuickCalc!Z25 -> 0 | AN163: =QuickCalc!AA25 -> 0 | AO163: =QuickCalc!AB25 -> 0 | AP163: =QuickCalc!AC25 -> 0 | AQ163: =QuickCalc!AD25 -> 0 | AR163: =QuickCalc!AE25 -> 0 | AS163: =QuickCalc!AF25 -> 0 | AT163: =QuickCalc!AG25 -> 0 | AU163: =QuickCalc!AH25 -> 0 | AV163: =QuickCalc!AI25 -> 0 | AW163: =QuickCalc!AJ25 -> 0 | AX163: =QuickCalc!AK25 -> 0 | AY163: =QuickCalc!AL25 -> 0 | AZ163: =QuickCalc!AM25 -> 0 | BA163: =QuickCalc!AN25 -> 0 | BB163: =QuickCalc!AO25 -> 0 | BC163: =QuickCalc!AP25 -> 0 | BD163: =QuickCalc!AQ25 -> 0 | BE163: =QuickCalc!AR25 -> 0 | BF163: =QuickCalc!AS25 -> 0 | BG163: =QuickCalc!AT25 -> 0 | BH163: =QuickCalc!AU25 -> 0 | BI163: =QuickCalc!AV25 -> 0 | BJ163: =QuickCalc!AW25 -> 0 | BK163: =QuickCalc!AX25 -> 0 | BL163: =QuickCalc!AY25 -> 0 | BM163: =QuickCalc!AZ25 -> 0 | BN163: =QuickCalc!BA25 -> 0 | BO163: =QuickCalc!BB25 -> 0 | BP163: =QuickCalc!BC25 -> 0
D164: DMIS | K164: DMIS incentive % | L164: 0.5
C166: Regulated revenue - ACS revenue
F173: Description (if required) | R173: ="FY"&RIGHT(Assumptions!$L$19+R68,2) -> FY24 | S173: ="FY"&RIGHT(Assumptions!$L$19+S68,2) -> FY25 | T173: ="FY"&RIGHT(Assumptions!$L$19+T68,2) -> FY26 | U173: ="FY"&RIGHT(Assumptions!$L$19+U68,2) -> FY27 | V173: ="FY"&RIGHT(Assumptions!$L$19+V68,2) -> FY28 | W173: ="FY"&RIGHT(Assumptions!$L$19+W68,2) -> FY29 | X173: ="FY"&RIGHT(Assumptions!$L$19+X68,2) -> FY30 | Y173: ="FY"&RIGHT(Assumptions!$L$19+Y68,2) -> FY31 | Z173: ="FY"&RIGHT(Assumptions!$L$19+Z68,2) -> FY32 | AA173: ="FY"&RIGHT(Assumptions!$L$19+AA68,2) -> FY33 | AB173: ="FY"&RIGHT(Assumptions!$L$19+AB68,2) -> FY34 | AC173: ="FY"&RIGHT(Assumptions!$L$19+AC68,2) -> FY35 | AD173: ="FY"&RIGHT(Assumptions!$L$19+AD68,2) -> FY36 | AE173: ="FY"&RIGHT(Assumptions!$L$19+AE68,2) -> FY37 | AF173: ="FY"&RIGHT(Assumptions!$L$19+AF68,2) -> FY38 | AG173: ="FY"&RIGHT(Assumptions!$L$19+AG68,2) -> FY39 | AH173: ="FY"&RIGHT(Assumptions!$L$19+AH68,2) -> FY40 | AI173: ="FY"&RIGHT(Assumptions!$L$19+AI68,2) -> FY41 | AJ173: ="FY"&RIGHT(Assumptions!$L$19+AJ68,2) -> FY42 | AK173: ="FY"&RIGHT(Assumptions!$L$19+AK68,2) -> FY43 | AL173: ="FY"&RIGHT(Assumptions!$L$19+AL68,2) -> FY44 | AM173: ="FY"&RIGHT(Assumptions!$L$19+AM68,2) -> FY45 | AN173: ="FY"&RIGHT(Assumptions!$L$19+AN68,2) -> FY46 | AO173: ="FY"&RIGHT(Assumptions!$L$19+AO68,2) -> FY47 | AP173: ="FY"&RIGHT(Assumptions!$L$19+AP68,2) -> FY48 | AQ173: ="FY"&RIGHT(Assumptions!$L$19+AQ68,2) -> FY49 | AR173: ="FY"&RIGHT(Assumptions!$L$19+AR68,2) -> FY50 | AS173: ="FY"&RIGHT(Assumptions!$L$19+AS68,2) -> FY51 | AT173: ="FY"&RIGHT(Assumptions!$L$19+AT68,2) -> FY52 | AU173: ="FY"&RIGHT(Assumptions!$L$19+AU68,2) -> FY53 | AV173: ="FY"&RIGHT(Assumptions!$L$19+AV68,2) -> FY54 | AW173: ="FY"&RIGHT(Assumptions!$L$19+AW68,2) -> FY55 | AX173: ="FY"&RIGHT(Assumptions!$L$19+AX68,2) -> FY56 | AY173: ="FY"&RIGHT(Assumptions!$L$19+AY68,2) -> FY57 | AZ173: ="FY"&RIGHT(Assumptions!$L$19+AZ68,2) -> FY58 | BA173: ="FY"&RIGHT(Assumptions!$L$19+BA68,2) -> FY59 | BB173: ="FY"&RIGHT(Assumptions!$L$19+BB68,2) -> FY60 | BC173: ="FY"&RIGHT(Assumptions!$L$19+BC68,2) -> FY61 | BD173: ="FY"&RIGHT(Assumptions!$L$19+BD68,2) -> FY62 | BE173: ="FY"&RIGHT(Assumptions!$L$19+BE68,2) -> FY63 | BF173: ="FY"&RIGHT(Assumptions!$L$19+BF68,2) -> FY64 | BG173: ="FY"&RIGHT(Assumptions!$L$19+BG68,2) -> FY65 | BH173: ="FY"&RIGHT(Assumptions!$L$19+BH68,2) -> FY66 | BI173: ="FY"&RIGHT(Assumptions!$L$19+BI68,2) -> FY67 | BJ173: ="FY"&RIGHT(Assumptions!$L$19+BJ68,2) -> FY68 | BK173: ="FY"&RIGHT(Assumptions!$L$19+BK68,2) -> FY69 | BL173: ="FY"&RIGHT(Assumptions!$L$19+BL68,2) -> FY70 | BM173: ="FY"&RIGHT(Assumptions!$L$19+BM68,2) -> FY71 | BN173: ="FY"&RIGHT(Assumptions!$L$19+BN68,2) -> FY72 | BO173: ="FY"&RIGHT(Assumptions!$L$19+BO68,2) -> FY73 | BP173: ="FY"&RIGHT(Assumptions!$L$19+BP68,2) -> FY74
D175: ACS revenue | F175: Used for QuickCalc, override if using full inputs | R175: =QuickCalc!E26 -> 0 | S175: =QuickCalc!F26 -> 0 | T175: =QuickCalc!G26 -> 0 | U175: =QuickCalc!H26 -> 0 | V175: =QuickCalc!I26 -> 0 | W175: =QuickCalc!J26 -> 0 | X175: =QuickCalc!K26 -> 0 | Y175: =QuickCalc!L26 -> 0 | Z175: =QuickCalc!M26 -> 0 | AA175: =QuickCalc!N26 -> 0 | AB175: =QuickCalc!O26 -> 0 | AC175: =QuickCalc!P26 -> 0 | AD175: =QuickCalc!Q26 -> 0 | AE175: =QuickCalc!R26 -> 0 | AF175: =QuickCalc!S26 -> 0 | AG175: =QuickCalc!T26 -> 0 | AH175: =QuickCalc!U26 -> 0 | AI175: =QuickCalc!V26 -> 0 | AJ175: =QuickCalc!W26 -> 0 | AK175: =QuickCalc!X26 -> 0 | AL175: =QuickCalc!Y26 -> 0 | AM175: =QuickCalc!Z26 -> 0 | AN175: =QuickCalc!AA26 -> 0 | AO175: =QuickCalc!AB26 -> 0 | AP175: =QuickCalc!AC26 -> 0 | AQ175: =QuickCalc!AD26 -> 0 | AR175: =QuickCalc!AE26 -> 0 | AS175: =QuickCalc!AF26 -> 0 | AT175: =QuickCalc!AG26 -> 0 | AU175: =QuickCalc!AH26 -> 0 | AV175: =QuickCalc!AI26 -> 0 | AW175: =QuickCalc!AJ26 -> 0 | AX175: =QuickCalc!AK26 -> 0 | AY175: =QuickCalc!AL26 -> 0 | AZ175: =QuickCalc!AM26 -> 0 | BA175: =QuickCalc!AN26 -> 0 | BB175: =QuickCalc!AO26 -> 0 | BC175: =QuickCalc!AP26 -> 0 | BD175: =QuickCalc!AQ26 -> 0 | BE175: =QuickCalc!AR26 -> 0 | BF175: =QuickCalc!AS26 -> 0 | BG175: =QuickCalc!AT26 -> 0 | BH175: =QuickCalc!AU26 -> 0 | BI175: =QuickCalc!AV26 -> 0 | BJ175: =QuickCalc!AW26 -> 0 | BK175: =QuickCalc!AX26 -> 0 | BL175: =QuickCalc!AY26 -> 0 | BM175: =QuickCalc!AZ26 -> 0 | BN175: =QuickCalc!BA26 -> 0 | BO175: =QuickCalc!BB26 -> 0 | BP175: =QuickCalc!BC26 -> 0
C177: Unregulated revenue
F184: Description (if required) | R184: ="FY"&RIGHT(Assumptions!$L$19+R68,2) -> FY24 | S184: ="FY"&RIGHT(Assumptions!$L$19+S68,2) -> FY25 | T184: ="FY"&RIGHT(Assumptions!$L$19+T68,2) -> FY26 | U184: ="FY"&RIGHT(Assumptions!$L$19+U68,2) -> FY27 | V184: ="FY"&RIGHT(Assumptions!$L$19+V68,2) -> FY28 | W184: ="FY"&RIGHT(Assumptions!$L$19+W68,2) -> FY29 | X184: ="FY"&RIGHT(Assumptions!$L$19+X68,2) -> FY30 | Y184: ="FY"&RIGHT(Assumptions!$L$19+Y68,2) -> FY31 | Z184: ="FY"&RIGHT(Assumptions!$L$19+Z68,2) -> FY32 | AA184: ="FY"&RIGHT(Assumptions!$L$19+AA68,2) -> FY33 | AB184: ="FY"&RIGHT(Assumptions!$L$19+AB68,2) -> FY34 | AC184: ="FY"&RIGHT(Assumptions!$L$19+AC68,2) -> FY35 | AD184: ="FY"&RIGHT(Assumptions!$L$19+AD68,2) -> FY36 | AE184: ="FY"&RIGHT(Assumptions!$L$19+AE68,2) -> FY37 | AF184: ="FY"&RIGHT(Assumptions!$L$19+AF68,2) -> FY38 | AG184: ="FY"&RIGHT(Assumptions!$L$19+AG68,2) -> FY39 | AH184: ="FY"&RIGHT(Assumptions!$L$19+AH68,2) -> FY40 | AI184: ="FY"&RIGHT(Assumptions!$L$19+AI68,2) -> FY41 | AJ184: ="FY"&RIGHT(Assumptions!$L$19+AJ68,2) -> FY42 | AK184: ="FY"&RIGHT(Assumptions!$L$19+AK68,2) -> FY43 | AL184: ="FY"&RIGHT(Assumptions!$L$19+AL68,2) -> FY44 | AM184: ="FY"&RIGHT(Assumptions!$L$19+AM68,2) -> FY45 | AN184: ="FY"&RIGHT(Assumptions!$L$19+AN68,2) -> FY46 | AO184: ="FY"&RIGHT(Assumptions!$L$19+AO68,2) -> FY47 | AP184: ="FY"&RIGHT(Assumptions!$L$19+AP68,2) -> FY48 | AQ184: ="FY"&RIGHT(Assumptions!$L$19+AQ68,2) -> FY49 | AR184: ="FY"&RIGHT(Assumptions!$L$19+AR68,2) -> FY50 | AS184: ="FY"&RIGHT(Assumptions!$L$19+AS68,2) -> FY51 | AT184: ="FY"&RIGHT(Assumptions!$L$19+AT68,2) -> FY52 | AU184: ="FY"&RIGHT(Assumptions!$L$19+AU68,2) -> FY53 | AV184: ="FY"&RIGHT(Assumptions!$L$19+AV68,2) -> FY54 | AW184: ="FY"&RIGHT(Assumptions!$L$19+AW68,2) -> FY55 | AX184: ="FY"&RIGHT(Assumptions!$L$19+AX68,2) -> FY56 | AY184: ="FY"&RIGHT(Assumptions!$L$19+AY68,2) -> FY57 | AZ184: ="FY"&RIGHT(Assumptions!$L$19+AZ68,2) -> FY58 | BA184: ="FY"&RIGHT(Assumptions!$L$19+BA68,2) -> FY59 | BB184: ="FY"&RIGHT(Assumptions!$L$19+BB68,2) -> FY60 | BC184: ="FY"&RIGHT(Assumptions!$L$19+BC68,2) -> FY61 | BD184: ="FY"&RIGHT(Assumptions!$L$19+BD68,2) -> FY62 | BE184: ="FY"&RIGHT(Assumptions!$L$19+BE68,2) -> FY63 | BF184: ="FY"&RIGHT(Assumptions!$L$19+BF68,2) -> FY64 | BG184: ="FY"&RIGHT(Assumptions!$L$19+BG68,2) -> FY65 | BH184: ="FY"&RIGHT(Assumptions!$L$19+BH68,2) -> FY66 | BI184: ="FY"&RIGHT(Assumptions!$L$19+BI68,2) -> FY67 | BJ184: ="FY"&RIGHT(Assumptions!$L$19+BJ68,2) -> FY68 | BK184: ="FY"&RIGHT(Assumptions!$L$19+BK68,2) -> FY69 | BL184: ="FY"&RIGHT(Assumptions!$L$19+BL68,2) -> FY70 | BM184: ="FY"&RIGHT(Assumptions!$L$19+BM68,2) -> FY71 | BN184: ="FY"&RIGHT(Assumptions!$L$19+BN68,2) -> FY72 | BO184: ="FY"&RIGHT(Assumptions!$L$19+BO68,2) -> FY73 | BP184: ="FY"&RIGHT(Assumptions!$L$19+BP68,2) -> FY74
D186: Unregulatory revenue subject to SAG? | L186: Yes
D187: Unregulated revenue | F187: Used for QuickCalc, override if using full inputs | R187: =QuickCalc!E27 -> 0 | S187: =QuickCalc!F27 -> 0 | T187: =QuickCalc!G27 -> 0 | U187: =QuickCalc!H27 -> 0 | V187: =QuickCalc!I27 -> 0 | W187: =QuickCalc!J27 -> 0 | X187: =QuickCalc!K27 -> 0 | Y187: =QuickCalc!L27 -> 0 | Z187: =QuickCalc!M27 -> 0 | AA187: =QuickCalc!N27 -> 0 | AB187: =QuickCalc!O27 -> 0 | AC187: =QuickCalc!P27 -> 0 | AD187: =QuickCalc!Q27 -> 0 | AE187: =QuickCalc!R27 -> 0 | AF187: =QuickCalc!S27 -> 0 | AG187: =QuickCalc!T27 -> 0 | AH187: =QuickCalc!U27 -> 0 | AI187: =QuickCalc!V27 -> 0 | AJ187: =QuickCalc!W27 -> 0 | AK187: =QuickCalc!X27 -> 0 | AL187: =QuickCalc!Y27 -> 0 | AM187: =QuickCalc!Z27 -> 0 | AN187: =QuickCalc!AA27 -> 0 | AO187: =QuickCalc!AB27 -> 0 | AP187: =QuickCalc!AC27 -> 0 | AQ187: =QuickCalc!AD27 -> 0 | AR187: =QuickCalc!AE27 -> 0 | AS187: =QuickCalc!AF27 -> 0 | AT187: =QuickCalc!AG27 -> 0 | AU187: =QuickCalc!AH27 -> 0 | AV187: =QuickCalc!AI27 -> 0 | AW187: =QuickCalc!AJ27 -> 0 | AX187: =QuickCalc!AK27 -> 0 | AY187: =QuickCalc!AL27 -> 0 | AZ187: =QuickCalc!AM27 -> 0 | BA187: =QuickCalc!AN27 -> 0 | BB187: =QuickCalc!AO27 -> 0 | BC187: =QuickCalc!AP27 -> 0 | BD187: =QuickCalc!AQ27 -> 0 | BE187: =QuickCalc!AR27 -> 0 | BF187: =QuickCalc!AS27 -> 0 | BG187: =QuickCalc!AT27 -> 0 | BH187: =QuickCalc!AU27 -> 0 | BI187: =QuickCalc!AV27 -> 0 | BJ187: =QuickCalc!AW27 -> 0 | BK187: =QuickCalc!AX27 -> 0 | BL187: =QuickCalc!AY27 -> 0 | BM187: =QuickCalc!AZ27 -> 0 | BN187: =QuickCalc!BA27 -> 0 | BO187: =QuickCalc!BB27 -> 0 | BP187: =QuickCalc!BC27 -> 0
C189: Opex investment
F195: Description (if required) | R195: ="FY"&RIGHT(Assumptions!$L$19+R68,2) -> FY24 | S195: ="FY"&RIGHT(Assumptions!$L$19+S68,2) -> FY25 | T195: ="FY"&RIGHT(Assumptions!$L$19+T68,2) -> FY26 | U195: ="FY"&RIGHT(Assumptions!$L$19+U68,2) -> FY27 | V195: ="FY"&RIGHT(Assumptions!$L$19+V68,2) -> FY28 | W195: ="FY"&RIGHT(Assumptions!$L$19+W68,2) -> FY29 | X195: ="FY"&RIGHT(Assumptions!$L$19+X68,2) -> FY30 | Y195: ="FY"&RIGHT(Assumptions!$L$19+Y68,2) -> FY31 | Z195: ="FY"&RIGHT(Assumptions!$L$19+Z68,2) -> FY32 | AA195: ="FY"&RIGHT(Assumptions!$L$19+AA68,2) -> FY33 | AB195: ="FY"&RIGHT(Assumptions!$L$19+AB68,2) -> FY34 | AC195: ="FY"&RIGHT(Assumptions!$L$19+AC68,2) -> FY35 | AD195: ="FY"&RIGHT(Assumptions!$L$19+AD68,2) -> FY36 | AE195: ="FY"&RIGHT(Assumptions!$L$19+AE68,2) -> FY37 | AF195: ="FY"&RIGHT(Assumptions!$L$19+AF68,2) -> FY38 | AG195: ="FY"&RIGHT(Assumptions!$L$19+AG68,2) -> FY39 | AH195: ="FY"&RIGHT(Assumptions!$L$19+AH68,2) -> FY40 | AI195: ="FY"&RIGHT(Assumptions!$L$19+AI68,2) -> FY41 | AJ195: ="FY"&RIGHT(Assumptions!$L$19+AJ68,2) -> FY42 | AK195: ="FY"&RIGHT(Assumptions!$L$19+AK68,2) -> FY43 | AL195: ="FY"&RIGHT(Assumptions!$L$19+AL68,2) -> FY44 | AM195: ="FY"&RIGHT(Assumptions!$L$19+AM68,2) -> FY45 | AN195: ="FY"&RIGHT(Assumptions!$L$19+AN68,2) -> FY46 | AO195: ="FY"&RIGHT(Assumptions!$L$19+AO68,2) -> FY47 | AP195: ="FY"&RIGHT(Assumptions!$L$19+AP68,2) -> FY48 | AQ195: ="FY"&RIGHT(Assumptions!$L$19+AQ68,2) -> FY49 | AR195: ="FY"&RIGHT(Assumptions!$L$19+AR68,2) -> FY50 | AS195: ="FY"&RIGHT(Assumptions!$L$19+AS68,2) -> FY51 | AT195: ="FY"&RIGHT(Assumptions!$L$19+AT68,2) -> FY52 | AU195: ="FY"&RIGHT(Assumptions!$L$19+AU68,2) -> FY53 | AV195: ="FY"&RIGHT(Assumptions!$L$19+AV68,2) -> FY54 | AW195: ="FY"&RIGHT(Assumptions!$L$19+AW68,2) -> FY55 | AX195: ="FY"&RIGHT(Assumptions!$L$19+AX68,2) -> FY56 | AY195: ="FY"&RIGHT(Assumptions!$L$19+AY68,2) -> FY57 | AZ195: ="FY"&RIGHT(Assumptions!$L$19+AZ68,2) -> FY58 | BA195: ="FY"&RIGHT(Assumptions!$L$19+BA68,2) -> FY59 | BB195: ="FY"&RIGHT(Assumptions!$L$19+BB68,2) -> FY60 | BC195: ="FY"&RIGHT(Assumptions!$L$19+BC68,2) -> FY61 | BD195: ="FY"&RIGHT(Assumptions!$L$19+BD68,2) -> FY62 | BE195: ="FY"&RIGHT(Assumptions!$L$19+BE68,2) -> FY63 | BF195: ="FY"&RIGHT(Assumptions!$L$19+BF68,2) -> FY64 | BG195: ="FY"&RIGHT(Assumptions!$L$19+BG68,2) -> FY65 | BH195: ="FY"&RIGHT(Assumptions!$L$19+BH68,2) -> FY66 | BI195: ="FY"&RIGHT(Assumptions!$L$19+BI68,2) -> FY67 | BJ195: ="FY"&RIGHT(Assumptions!$L$19+BJ68,2) -> FY68 | BK195: ="FY"&RIGHT(Assumptions!$L$19+BK68,2) -> FY69 | BL195: ="FY"&RIGHT(Assumptions!$L$19+BL68,2) -> FY70 | BM195: ="FY"&RIGHT(Assumptions!$L$19+BM68,2) -> FY71 | BN195: ="FY"&RIGHT(Assumptions!$L$19+BN68,2) -> FY72 | BO195: ="FY"&RIGHT(Assumptions!$L$19+BO68,2) -> FY73 | BP195: ="FY"&RIGHT(Assumptions!$L$19+BP68,2) -> FY74
D197: Shareholder/customer switch | F197: See note above - Shareholder = 1, Customer = 0 | R197: 0 | S197: 0 | T197: 0 | U197: 0 | V197: 0 | W197: 0 | X197: 0 | Y197: 0 | Z197: 0 | AA197: 0 | AB197: 0 | AC197: 0 | AD197: 0 | AE197: 0 | AF197: 0 | AG197: 0 | AH197: 0 | AI197: 0 | AJ197: 0 | AK197: 0 | AL197: 0 | AM197: 0 | AN197: 0 | AO197: 0 | AP197: 0 | AQ197: 0 | AR197: 0 | AS197: 0 | AT197: 0 | AU197: 0 | AV197: 0 | AW197: 0 | AX197: 0 | AY197: 0 | AZ197: 0 | BA197: 0 | BB197: 0 | BC197: 0 | BD197: 0 | BE197: 0 | BF197: 0 | BG197: 0 | BH197: 0 | BI197: 0 | BJ197: 0 | BK197: 0 | BL197: 0 | BM197: 0 | BN197: 0 | BO197: 0 | BP197: 0
D199: Component 1
D200: Component 2
D201: Component 3 | F201: Used for QuickCalc, override if using full inputs | R201: =QuickCalc!E28 -> 0 | S201: =QuickCalc!F28 -> -9675971.376 | T201: =QuickCalc!G28 -> -5753489.06 | U201: =QuickCalc!H28 -> -6441380.692 | V201: =QuickCalc!I28 -> -6849805.247 | W201: =QuickCalc!J28 -> -6654793.857 | X201: =QuickCalc!K28 -> 0 | Y201: =QuickCalc!L28 -> 0 | Z201: =QuickCalc!M28 -> 0 | AA201: =QuickCalc!N28 -> 0 | AB201: =QuickCalc!O28 -> 0 | AC201: =QuickCalc!P28 -> 0 | AD201: =QuickCalc!Q28 -> 0 | AE201: =QuickCalc!R28 -> 0 | AF201: =QuickCalc!S28 -> 0 | AG201: =QuickCalc!T28 -> 0 | AH201: =QuickCalc!U28 -> 0 | AI201: =QuickCalc!V28 -> 0 | AJ201: =QuickCalc!W28 -> 0 | AK201: =QuickCalc!X28 -> 0 | AL201: =QuickCalc!Y28 -> 0 | AM201: =QuickCalc!Z28 -> 0 | AN201: =QuickCalc!AA28 -> 0 | AO201: =QuickCalc!AB28 -> 0 | AP201: =QuickCalc!AC28 -> 0 | AQ201: =QuickCalc!AD28 -> 0 | AR201: =QuickCalc!AE28 -> 0 | AS201: =QuickCalc!AF28 -> 0 | AT201: =QuickCalc!AG28 -> 0 | AU201: =QuickCalc!AH28 -> 0 | AV201: =QuickCalc!AI28 -> 0 | AW201: =QuickCalc!AJ28 -> 0 | AX201: =QuickCalc!AK28 -> 0 | AY201: =QuickCalc!AL28 -> 0 | AZ201: =QuickCalc!AM28 -> 0 | BA201: =QuickCalc!AN28 -> 0 | BB201: =QuickCalc!AO28 -> 0 | BC201: =QuickCalc!AP28 -> 0 | BD201: =QuickCalc!AQ28 -> 0 | BE201: =QuickCalc!AR28 -> 0 | BF201: =QuickCalc!AS28 -> 0 | BG201: =QuickCalc!AT28 -> 0 | BH201: =QuickCalc!AU28 -> 0 | BI201: =QuickCalc!AV28 -> 0 | BJ201: =QuickCalc!AW28 -> 0 | BK201: =QuickCalc!AX28 -> 0 | BL201: =QuickCalc!AY28 -> 0 | BM201: =QuickCalc!AZ28 -> 0 | BN201: =QuickCalc!BA28 -> 0 | BO201: =QuickCalc!BB28 -> 0 | BP201: =QuickCalc!BC28 -> 0
C203: Ongoing new opex
F216: Description (if required) | R216: ="FY"&RIGHT(Assumptions!$L$19+R68,2) -> FY24 | S216: ="FY"&RIGHT(Assumptions!$L$19+S68,2) -> FY25 | T216: ="FY"&RIGHT(Assumptions!$L$19+T68,2) -> FY26 | U216: ="FY"&RIGHT(Assumptions!$L$19+U68,2) -> FY27 | V216: ="FY"&RIGHT(Assumptions!$L$19+V68,2) -> FY28 | W216: ="FY"&RIGHT(Assumptions!$L$19+W68,2) -> FY29 | X216: ="FY"&RIGHT(Assumptions!$L$19+X68,2) -> FY30 | Y216: ="FY"&RIGHT(Assumptions!$L$19+Y68,2) -> FY31 | Z216: ="FY"&RIGHT(Assumptions!$L$19+Z68,2) -> FY32 | AA216: ="FY"&RIGHT(Assumptions!$L$19+AA68,2) -> FY33 | AB216: ="FY"&RIGHT(Assumptions!$L$19+AB68,2) -> FY34 | AC216: ="FY"&RIGHT(Assumptions!$L$19+AC68,2) -> FY35 | AD216: ="FY"&RIGHT(Assumptions!$L$19+AD68,2) -> FY36 | AE216: ="FY"&RIGHT(Assumptions!$L$19+AE68,2) -> FY37 | AF216: ="FY"&RIGHT(Assumptions!$L$19+AF68,2) -> FY38 | AG216: ="FY"&RIGHT(Assumptions!$L$19+AG68,2) -> FY39 | AH216: ="FY"&RIGHT(Assumptions!$L$19+AH68,2) -> FY40 | AI216: ="FY"&RIGHT(Assumptions!$L$19+AI68,2) -> FY41 | AJ216: ="FY"&RIGHT(Assumptions!$L$19+AJ68,2) -> FY42 | AK216: ="FY"&RIGHT(Assumptions!$L$19+AK68,2) -> FY43 | AL216: ="FY"&RIGHT(Assumptions!$L$19+AL68,2) -> FY44 | AM216: ="FY"&RIGHT(Assumptions!$L$19+AM68,2) -> FY45 | AN216: ="FY"&RIGHT(Assumptions!$L$19+AN68,2) -> FY46 | AO216: ="FY"&RIGHT(Assumptions!$L$19+AO68,2) -> FY47 | AP216: ="FY"&RIGHT(Assumptions!$L$19+AP68,2) -> FY48 | AQ216: ="FY"&RIGHT(Assumptions!$L$19+AQ68,2) -> FY49 | AR216: ="FY"&RIGHT(Assumptions!$L$19+AR68,2) -> FY50 | AS216: ="FY"&RIGHT(Assumptions!$L$19+AS68,2) -> FY51 | AT216: ="FY"&RIGHT(Assumptions!$L$19+AT68,2) -> FY52 | AU216: ="FY"&RIGHT(Assumptions!$L$19+AU68,2) -> FY53 | AV216: ="FY"&RIGHT(Assumptions!$L$19+AV68,2) -> FY54 | AW216: ="FY"&RIGHT(Assumptions!$L$19+AW68,2) -> FY55 | AX216: ="FY"&RIGHT(Assumptions!$L$19+AX68,2) -> FY56 | AY216: ="FY"&RIGHT(Assumptions!$L$19+AY68,2) -> FY57 | AZ216: ="FY"&RIGHT(Assumptions!$L$19+AZ68,2) -> FY58 | BA216: ="FY"&RIGHT(Assumptions!$L$19+BA68,2) -> FY59 | BB216: ="FY"&RIGHT(Assumptions!$L$19+BB68,2) -> FY60 | BC216: ="FY"&RIGHT(Assumptions!$L$19+BC68,2) -> FY61 | BD216: ="FY"&RIGHT(Assumptions!$L$19+BD68,2) -> FY62 | BE216: ="FY"&RIGHT(Assumptions!$L$19+BE68,2) -> FY63 | BF216: ="FY"&RIGHT(Assumptions!$L$19+BF68,2) -> FY64 | BG216: ="FY"&RIGHT(Assumptions!$L$19+BG68,2) -> FY65 | BH216: ="FY"&RIGHT(Assumptions!$L$19+BH68,2) -> FY66 | BI216: ="FY"&RIGHT(Assumptions!$L$19+BI68,2) -> FY67 | BJ216: ="FY"&RIGHT(Assumptions!$L$19+BJ68,2) -> FY68 | BK216: ="FY"&RIGHT(Assumptions!$L$19+BK68,2) -> FY69 | BL216: ="FY"&RIGHT(Assumptions!$L$19+BL68,2) -> FY70 | BM216: ="FY"&RIGHT(Assumptions!$L$19+BM68,2) -> FY71 | BN216: ="FY"&RIGHT(Assumptions!$L$19+BN68,2) -> FY72 | BO216: ="FY"&RIGHT(Assumptions!$L$19+BO68,2) -> FY73 | BP216: ="FY"&RIGHT(Assumptions!$L$19+BP68,2) -> FY74
D218: EBSS years of customer benefits | F218: 50 | G218: Leave as 50 unless there is a specific reason to curtail opex cost/benefit
D220: Repairs & maintenance (Planned & unplanned) | R220: =SUM(R221:R225) -> 0 | S220: 0 | T220: 0 | U220: 0 | V220: 0 | W220: 0 | X220: 0 | Y220: 0 | Z220: 0 | AA220: 0 | AB220: 0 | AC220: 0 | AD220: 0 | AE220: 0 | AF220: 0 | AG220: 0 | AH220: 0 | AI220: 0 | AJ220: 0 | AK220: 0 | AL220: 0 | AM220: 0 | AN220: 0 | AO220: 0 | AP220: 0 | AQ220: 0 | AR220: 0 | AS220: 0 | AT220: 0 | AU220: 0 | AV220: 0 | AW220: 0 | AX220: =SUM(AX221:AX225) -> 0 | AY220: 0 | AZ220: 0 | BA220: 0 | BB220: 0 | BC220: 0 | BD220: 0 | BE220: 0 | BF220: 0 | BG220: 0 | BH220: 0 | BI220: 0 | BJ220: 0 | BK220: 0 | BL220: 0 | BM220: 0 | BN220: 0 | BO220: 0 | BP220: 0
D221: Direct labour
D222: Materials
D223: Contracted services
D224: Indirect labour / overheads
D225: Other
D227: Demand management opex | R227: =SUM(R228:R232) -> 0 | S227: 0 | T227: 0 | U227: 0 | V227: 0 | W227: 0 | X227: 0 | Y227: 0 | Z227: 0 | AA227: 0 | AB227: 0 | AC227: 0 | AD227: 0 | AE227: 0 | AF227: 0 | AG227: 0 | AH227: 0 | AI227: 0 | AJ227: 0 | AK227: 0 | AL227: 0 | AM227: 0 | AN227: 0 | AO227: 0 | AP227: 0 | AQ227: 0 | AR227: 0 | AS227: 0 | AT227: 0 | AU227: 0 | AV227: 0 | AW227: 0 | AX227: 0 | AY227: 0 | AZ227: 0 | BA227: 0 | BB227: 0 | BC227: 0 | BD227: 0 | BE227: 0 | BF227: 0 | BG227: 0 | BH227: 0 | BI227: 0 | BJ227: 0 | BK227: 0 | BL227: 0 | BM227: 0 | BN227: 0 | BO227: 0 | BP227: 0
D228: Direct labour
D229: Materials
D230: Contracted services
D231: Indirect labour / overheads
D232: Other
D234: Opex benefit 1 | R234: =SUM(R235:R239) -> 0 | S234: 0 | T234: 0 | U234: 0 | V234: 0 | W234: 0 | X234: 0 | Y234: 0 | Z234: 0 | AA234: 0 | AB234: 0 | AC234: 0 | AD234: 0 | AE234: 0 | AF234: 0 | AG234: 0 | AH234: 0 | AI234: 0 | AJ234: 0 | AK234: 0 | AL234: 0 | AM234: 0 | AN234: 0 | AO234: 0 | AP234: 0 | AQ234: 0 | AR234: 0 | AS234: 0 | AT234: 0 | AU234: 0 | AV234: 0 | AW234: 0 | AX234: 0 | AY234: 0 | AZ234: 0 | BA234: 0 | BB234: 0 | BC234: 0 | BD234: 0 | BE234: 0 | BF234: 0 | BG234: 0 | BH234: 0 | BI234: 0 | BJ234: 0 | BK234: 0 | BL234: 0 | BM234: 0 | BN234: 0 | BO234: 0 | BP234: 0
D235: Direct labour
D236: Materials
D237: Contracted services
D238: Indirect labour / overheads
D239: Other
D241: Opex cost 1 | R241: =SUM(R242:R246) -> 0 | S241: 0 | T241: 0 | U241: 0 | V241: 0 | W241: 0 | X241: 0 | Y241: 0 | Z241: 0 | AA241: 0 | AB241: 0 | AC241: 0 | AD241: 0 | AE241: 0 | AF241: 0 | AG241: 0 | AH241: 0 | AI241: 0 | AJ241: 0 | AK241: 0 | AL241: 0 | AM241: 0 | AN241: 0 | AO241: 0 | AP241: 0 | AQ241: 0 | AR241: 0 | AS241: 0 | AT241: 0 | AU241: 0 | AV241: 0 | AW241: 0 | AX241: 0 | AY241: 0 | AZ241: 0 | BA241: 0 | BB241: 0 | BC241: 0 | BD241: 0 | BE241: 0 | BF241: 0 | BG241: 0 | BH241: 0 | BI241: 0 | BJ241: 0 | BK241: 0 | BL241: 0 | BM241: 0 | BN241: 0 | BO241: 0 | BP241: 0
D242: Direct labour
D243: Materials
D244: Contracted services
D245: Indirect labour / overheads
D246: Other
D248: Component 3 (if required) | R248: =SUM(R249:R253) -> 0 | S248: 0 | T248: 0 | U248: 0 | V248: 0 | W248: 0 | X248: 0 | Y248: 0 | Z248: 0 | AA248: 0 | AB248: 0 | AC248: 0 | AD248: 0 | AE248: 0 | AF248: 0 | AG248: 0 | AH248: 0 | AI248: 0 | AJ248: 0 | AK248: 0 | AL248: 0 | AM248: 0 | AN248: 0 | AO248: 0 | AP248: 0 | AQ248: 0 | AR248: 0 | AS248: 0 | AT248: 0 | AU248: 0 | AV248: 0 | AW248: 0 | AX248: 0 | AY248: 0 | AZ248: 0 | BA248: 0 | BB248: 0 | BC248: 0 | BD248: 0 | BE248: 0 | BF248: 0 | BG248: 0 | BH248: 0 | BI248: 0 | BJ248: 0 | BK248: 0 | BL248: 0 | BM248: 0 | BN248: 0 | BO248: 0 | BP248: 0
D249: Direct labour
D250: Materials
D251: Contracted services
D252: Indirect labour / overheads
D253: Other
D255: Component 4 (if required) | R255: =SUM(R256:R260) -> 0 | S255: -2005674.129 | T255: -3047323.901 | U255: -3963238.978 | V255: -4330213.543 | W255: -4716627.091 | X255: -4716627.091 | Y255: -4716627.091 | Z255: -4716627.091 | AA255: -4716627.091 | AB255: -4716627.091 | AC255: -4716627.091 | AD255: -4716627.091 | AE255: -4716627.091 | AF255: 0 | AG255: 0 | AH255: 0 | AI255: 0 | AJ255: 0 | AK255: 0 | AL255: 0 | AM255: 0 | AN255: 0 | AO255: 0 | AP255: 0 | AQ255: 0 | AR255: 0 | AS255: 0 | AT255: 0 | AU255: 0 | AV255: 0 | AW255: 0 | AX255: 0 | AY255: 0 | AZ255: 0 | BA255: 0 | BB255: 0 | BC255: 0 | BD255: 0 | BE255: 0 | BF255: 0 | BG255: 0 | BH255: 0 | BI255: 0 | BJ255: 0 | BK255: 0 | BL255: 0 | BM255: 0 | BN255: 0 | BO255: 0 | BP255: 0
D256: Direct labour
D257: Materials
D258: Contracted services
D259: Indirect labour / overheads
D260: Other | F260: Used for QuickCalc, override if using full inputs | R260: =QuickCalc!E29 -> 0 | S260: =QuickCalc!F29 -> -2005674.129 | T260: =QuickCalc!G29 -> -3047323.901 | U260: =QuickCalc!H29 -> -3963238.978 | V260: =QuickCalc!I29 -> -4330213.543 | W260: =QuickCalc!J29 -> -4716627.091 | X260: =QuickCalc!K29 -> -4716627.091 | Y260: =QuickCalc!L29 -> -4716627.091 | Z260: =QuickCalc!M29 -> -4716627.091 | AA260: =QuickCalc!N29 -> -4716627.091 | AB260: =QuickCalc!O29 -> -4716627.091 | AC260: =QuickCalc!P29 -> -4716627.091 | AD260: =QuickCalc!Q29 -> -4716627.091 | AE260: =QuickCalc!R29 -> -4716627.091 | AF260: =QuickCalc!S29 -> 0 | AG260: =QuickCalc!T29 -> 0 | AH260: =QuickCalc!U29 -> 0 | AI260: =QuickCalc!V29 -> 0 | AJ260: =QuickCalc!W29 -> 0 | AK260: =QuickCalc!X29 -> 0 | AL260: =QuickCalc!Y29 -> 0 | AM260: =QuickCalc!Z29 -> 0 | AN260: =QuickCalc!AA29 -> 0 | AO260: =QuickCalc!AB29 -> 0 | AP260: =QuickCalc!AC29 -> 0 | AQ260: =QuickCalc!AD29 -> 0 | AR260: =QuickCalc!AE29 -> 0 | AS260: =QuickCalc!AF29 -> 0 | AT260: =QuickCalc!AG29 -> 0 | AU260: =QuickCalc!AH29 -> 0 | AV260: =QuickCalc!AI29 -> 0 | AW260: =QuickCalc!AJ29 -> 0 | AX260: =QuickCalc!AK29 -> 0 | AY260: =QuickCalc!AL29 -> 0 | AZ260: =QuickCalc!AM29 -> 0 | BA260: =QuickCalc!AN29 -> 0 | BB260: =QuickCalc!AO29 -> 0 | BC260: =QuickCalc!AP29 -> 0 | BD260: =QuickCalc!AQ29 -> 0 | BE260: =QuickCalc!AR29 -> 0 | BF260: =QuickCalc!AS29 -> 0 | BG260: =QuickCalc!AT29 -> 0 | BH260: =QuickCalc!AU29 -> 0 | BI260: =QuickCalc!AV29 -> 0 | BJ260: =QuickCalc!AW29 -> 0 | BK260: =QuickCalc!AX29 -> 0 | BL260: =QuickCalc!AY29 -> 0 | BM260: =QuickCalc!AZ29 -> 0 | BN260: =QuickCalc!BA29 -> 0 | BO260: =QuickCalc!BB29 -> 0 | BP260: =QuickCalc!BC29 -> 0
C262: Probabilistic cost & benefits
F276: Description (if required) | R276: ="FY"&RIGHT(Assumptions!$L$19+R68,2) -> FY24 | S276: ="FY"&RIGHT(Assumptions!$L$19+S68,2) -> FY25 | T276: ="FY"&RIGHT(Assumptions!$L$19+T68,2) -> FY26 | U276: ="FY"&RIGHT(Assumptions!$L$19+U68,2) -> FY27 | V276: ="FY"&RIGHT(Assumptions!$L$19+V68,2) -> FY28 | W276: ="FY"&RIGHT(Assumptions!$L$19+W68,2) -> FY29 | X276: ="FY"&RIGHT(Assumptions!$L$19+X68,2) -> FY30 | Y276: ="FY"&RIGHT(Assumptions!$L$19+Y68,2) -> FY31 | Z276: ="FY"&RIGHT(Assumptions!$L$19+Z68,2) -> FY32 | AA276: ="FY"&RIGHT(Assumptions!$L$19+AA68,2) -> FY33 | AB276: ="FY"&RIGHT(Assumptions!$L$19+AB68,2) -> FY34 | AC276: ="FY"&RIGHT(Assumptions!$L$19+AC68,2) -> FY35 | AD276: ="FY"&RIGHT(Assumptions!$L$19+AD68,2) -> FY36 | AE276: ="FY"&RIGHT(Assumptions!$L$19+AE68,2) -> FY37 | AF276: ="FY"&RIGHT(Assumptions!$L$19+AF68,2) -> FY38 | AG276: ="FY"&RIGHT(Assumptions!$L$19+AG68,2) -> FY39 | AH276: ="FY"&RIGHT(Assumptions!$L$19+AH68,2) -> FY40 | AI276: ="FY"&RIGHT(Assumptions!$L$19+AI68,2) -> FY41 | AJ276: ="FY"&RIGHT(Assumptions!$L$19+AJ68,2) -> FY42 | AK276: ="FY"&RIGHT(Assumptions!$L$19+AK68,2) -> FY43 | AL276: ="FY"&RIGHT(Assumptions!$L$19+AL68,2) -> FY44 | AM276: ="FY"&RIGHT(Assumptions!$L$19+AM68,2) -> FY45 | AN276: ="FY"&RIGHT(Assumptions!$L$19+AN68,2) -> FY46 | AO276: ="FY"&RIGHT(Assumptions!$L$19+AO68,2) -> FY47 | AP276: ="FY"&RIGHT(Assumptions!$L$19+AP68,2) -> FY48 | AQ276: ="FY"&RIGHT(Assumptions!$L$19+AQ68,2) -> FY49 | AR276: ="FY"&RIGHT(Assumptions!$L$19+AR68,2) -> FY50 | AS276: ="FY"&RIGHT(Assumptions!$L$19+AS68,2) -> FY51 | AT276: ="FY"&RIGHT(Assumptions!$L$19+AT68,2) -> FY52 | AU276: ="FY"&RIGHT(Assumptions!$L$19+AU68,2) -> FY53 | AV276: ="FY"&RIGHT(Assumptions!$L$19+AV68,2) -> FY54 | AW276: ="FY"&RIGHT(Assumptions!$L$19+AW68,2) -> FY55 | AX276: ="FY"&RIGHT(Assumptions!$L$19+AX68,2) -> FY56 | AY276: ="FY"&RIGHT(Assumptions!$L$19+AY68,2) -> FY57 | AZ276: ="FY"&RIGHT(Assumptions!$L$19+AZ68,2) -> FY58 | BA276: ="FY"&RIGHT(Assumptions!$L$19+BA68,2) -> FY59 | BB276: ="FY"&RIGHT(Assumptions!$L$19+BB68,2) -> FY60 | BC276: ="FY"&RIGHT(Assumptions!$L$19+BC68,2) -> FY61 | BD276: ="FY"&RIGHT(Assumptions!$L$19+BD68,2) -> FY62 | BE276: ="FY"&RIGHT(Assumptions!$L$19+BE68,2) -> FY63 | BF276: ="FY"&RIGHT(Assumptions!$L$19+BF68,2) -> FY64 | BG276: ="FY"&RIGHT(Assumptions!$L$19+BG68,2) -> FY65 | BH276: ="FY"&RIGHT(Assumptions!$L$19+BH68,2) -> FY66 | BI276: ="FY"&RIGHT(Assumptions!$L$19+BI68,2) -> FY67 | BJ276: ="FY"&RIGHT(Assumptions!$L$19+BJ68,2) -> FY68 | BK276: ="FY"&RIGHT(Assumptions!$L$19+BK68,2) -> FY69 | BL276: ="FY"&RIGHT(Assumptions!$L$19+BL68,2) -> FY70 | BM276: ="FY"&RIGHT(Assumptions!$L$19+BM68,2) -> FY71 | BN276: ="FY"&RIGHT(Assumptions!$L$19+BN68,2) -> FY72 | BO276: ="FY"&RIGHT(Assumptions!$L$19+BO68,2) -> FY73 | BP276: ="FY"&RIGHT(Assumptions!$L$19+BP68,2) -> FY74
D278: Safety risk | F278: Used for QuickCalc, override if using full inputs | R278: =QuickCalc!E31 -> 0 | S278: =QuickCalc!F31 -> 0 | T278: =QuickCalc!G31 -> 0 | U278: =QuickCalc!H31 -> 0 | V278: =QuickCalc!I31 -> 0 | W278: =QuickCalc!J31 -> 0 | X278: =QuickCalc!K31 -> 0 | Y278: =QuickCalc!L31 -> 0 | Z278: =QuickCalc!M31 -> 0 | AA278: =QuickCalc!N31 -> 0 | AB278: =QuickCalc!O31 -> 0 | AC278: =QuickCalc!P31 -> 0 | AD278: =QuickCalc!Q31 -> 0 | AE278: =QuickCalc!R31 -> 0 | AF278: =QuickCalc!S31 -> 0 | AG278: =QuickCalc!T31 -> 0 | AH278: =QuickCalc!U31 -> 0 | AI278: =QuickCalc!V31 -> 0 | AJ278: =QuickCalc!W31 -> 0 | AK278: =QuickCalc!X31 -> 0 | AL278: =QuickCalc!Y31 -> 0 | AM278: =QuickCalc!Z31 -> 0 | AN278: =QuickCalc!AA31 -> 0 | AO278: =QuickCalc!AB31 -> 0 | AP278: =QuickCalc!AC31 -> 0 | AQ278: =QuickCalc!AD31 -> 0 | AR278: =QuickCalc!AE31 -> 0 | AS278: =QuickCalc!AF31 -> 0 | AT278: =QuickCalc!AG31 -> 0 | AU278: =QuickCalc!AH31 -> 0 | AV278: =QuickCalc!AI31 -> 0 | AW278: =QuickCalc!AJ31 -> 0 | AX278: =QuickCalc!AK31 -> 0 | AY278: =QuickCalc!AL31 -> 0 | AZ278: =QuickCalc!AM31 -> 0 | BA278: =QuickCalc!AN31 -> 0 | BB278: =QuickCalc!AO31 -> 0 | BC278: =QuickCalc!AP31 -> 0 | BD278: =QuickCalc!AQ31 -> 0 | BE278: =QuickCalc!AR31 -> 0 | BF278: =QuickCalc!AS31 -> 0 | BG278: =QuickCalc!AT31 -> 0 | BH278: =QuickCalc!AU31 -> 0 | BI278: =QuickCalc!AV31 -> 0 | BJ278: =QuickCalc!AW31 -> 0 | BK278: =QuickCalc!AX31 -> 0 | BL278: =QuickCalc!AY31 -> 0 | BM278: =QuickCalc!AZ31 -> 0 | BN278: =QuickCalc!BA31 -> 0 | BO278: =QuickCalc!BB31 -> 0 | BP278: =QuickCalc!BC31 -> 0
D279: Fire risk | F279: Used for QuickCalc, override if using full inputs | R279: =QuickCalc!E32 -> 0 | S279: =QuickCalc!F32 -> 0 | T279: =QuickCalc!G32 -> 0 | U279: =QuickCalc!H32 -> 0 | V279: =QuickCalc!I32 -> 0 | W279: =QuickCalc!J32 -> 0 | X279: =QuickCalc!K32 -> 0 | Y279: =QuickCalc!L32 -> 0 | Z279: =QuickCalc!M32 -> 0 | AA279: =QuickCalc!N32 -> 0 | AB279: =QuickCalc!O32 -> 0 | AC279: =QuickCalc!P32 -> 0 | AD279: =QuickCalc!Q32 -> 0 | AE279: =QuickCalc!R32 -> 0 | AF279: =QuickCalc!S32 -> 0 | AG279: =QuickCalc!T32 -> 0 | AH279: =QuickCalc!U32 -> 0 | AI279: =QuickCalc!V32 -> 0 | AJ279: =QuickCalc!W32 -> 0 | AK279: =QuickCalc!X32 -> 0 | AL279: =QuickCalc!Y32 -> 0 | AM279: =QuickCalc!Z32 -> 0 | AN279: =QuickCalc!AA32 -> 0 | AO279: =QuickCalc!AB32 -> 0 | AP279: =QuickCalc!AC32 -> 0 | AQ279: =QuickCalc!AD32 -> 0 | AR279: =QuickCalc!AE32 -> 0 | AS279: =QuickCalc!AF32 -> 0 | AT279: =QuickCalc!AG32 -> 0 | AU279: =QuickCalc!AH32 -> 0 | AV279: =QuickCalc!AI32 -> 0 | AW279: =QuickCalc!AJ32 -> 0 | AX279: =QuickCalc!AK32 -> 0 | AY279: =QuickCalc!AL32 -> 0 | AZ279: =QuickCalc!AM32 -> 0 | BA279: =QuickCalc!AN32 -> 0 | BB279: =QuickCalc!AO32 -> 0 | BC279: =QuickCalc!AP32 -> 0 | BD279: =QuickCalc!AQ32 -> 0 | BE279: =QuickCalc!AR32 -> 0 | BF279: =QuickCalc!AS32 -> 0 | BG279: =QuickCalc!AT32 -> 0 | BH279: =QuickCalc!AU32 -> 0 | BI279: =QuickCalc!AV32 -> 0 | BJ279: =QuickCalc!AW32 -> 0 | BK279: =QuickCalc!AX32 -> 0 | BL279: =QuickCalc!AY32 -> 0 | BM279: =QuickCalc!AZ32 -> 0 | BN279: =QuickCalc!BA32 -> 0 | BO279: =QuickCalc!BB32 -> 0 | BP279: =QuickCalc!BC32 -> 0
D280: Environment risk | F280: Used for QuickCalc, override if using full inputs | R280: =QuickCalc!E33 -> 0 | S280: =QuickCalc!F33 -> 0 | T280: =QuickCalc!G33 -> 0 | U280: =QuickCalc!H33 -> 0 | V280: =QuickCalc!I33 -> 0 | W280: =QuickCalc!J33 -> 0 | X280: =QuickCalc!K33 -> 0 | Y280: =QuickCalc!L33 -> 0 | Z280: =QuickCalc!M33 -> 0 | AA280: =QuickCalc!N33 -> 0 | AB280: =QuickCalc!O33 -> 0 | AC280: =QuickCalc!P33 -> 0 | AD280: =QuickCalc!Q33 -> 0 | AE280: =QuickCalc!R33 -> 0 | AF280: =QuickCalc!S33 -> 0 | AG280: =QuickCalc!T33 -> 0 | AH280: =QuickCalc!U33 -> 0 | AI280: =QuickCalc!V33 -> 0 | AJ280: =QuickCalc!W33 -> 0 | AK280: =QuickCalc!X33 -> 0 | AL280: =QuickCalc!Y33 -> 0 | AM280: =QuickCalc!Z33 -> 0 | AN280: =QuickCalc!AA33 -> 0 | AO280: =QuickCalc!AB33 -> 0 | AP280: =QuickCalc!AC33 -> 0 | AQ280: =QuickCalc!AD33 -> 0 | AR280: =QuickCalc!AE33 -> 0 | AS280: =QuickCalc!AF33 -> 0 | AT280: =QuickCalc!AG33 -> 0 | AU280: =QuickCalc!AH33 -> 0 | AV280: =QuickCalc!AI33 -> 0 | AW280: =QuickCalc!AJ33 -> 0 | AX280: =QuickCalc!AK33 -> 0 | AY280: =QuickCalc!AL33 -> 0 | AZ280: =QuickCalc!AM33 -> 0 | BA280: =QuickCalc!AN33 -> 0 | BB280: =QuickCalc!AO33 -> 0 | BC280: =QuickCalc!AP33 -> 0 | BD280: =QuickCalc!AQ33 -> 0 | BE280: =QuickCalc!AR33 -> 0 | BF280: =QuickCalc!AS33 -> 0 | BG280: =QuickCalc!AT33 -> 0 | BH280: =QuickCalc!AU33 -> 0 | BI280: =QuickCalc!AV33 -> 0 | BJ280: =QuickCalc!AW33 -> 0 | BK280: =QuickCalc!AX33 -> 0 | BL280: =QuickCalc!AY33 -> 0 | BM280: =QuickCalc!AZ33 -> 0 | BN280: =QuickCalc!BA33 -> 0 | BO280: =QuickCalc!BB33 -> 0 | BP280: =QuickCalc!BC33 -> 0
D281: Network asset failure EUE | F281: Used for QuickCalc, override if using full inputs | R281: =QuickCalc!E34 -> 0 | S281: =QuickCalc!F34 -> 0 | T281: =QuickCalc!G34 -> 0 | U281: =QuickCalc!H34 -> 0 | V281: =QuickCalc!I34 -> 0 | W281: =QuickCalc!J34 -> 0 | X281: =QuickCalc!K34 -> 0 | Y281: =QuickCalc!L34 -> 0 | Z281: =QuickCalc!M34 -> 0 | AA281: =QuickCalc!N34 -> 0 | AB281: =QuickCalc!O34 -> 0 | AC281: =QuickCalc!P34 -> 0 | AD281: =QuickCalc!Q34 -> 0 | AE281: =QuickCalc!R34 -> 0 | AF281: =QuickCalc!S34 -> 0 | AG281: =QuickCalc!T34 -> 0 | AH281: =QuickCalc!U34 -> 0 | AI281: =QuickCalc!V34 -> 0 | AJ281: =QuickCalc!W34 -> 0 | AK281: =QuickCalc!X34 -> 0 | AL281: =QuickCalc!Y34 -> 0 | AM281: =QuickCalc!Z34 -> 0 | AN281: =QuickCalc!AA34 -> 0 | AO281: =QuickCalc!AB34 -> 0 | AP281: =QuickCalc!AC34 -> 0 | AQ281: =QuickCalc!AD34 -> 0 | AR281: =QuickCalc!AE34 -> 0 | AS281: =QuickCalc!AF34 -> 0 | AT281: =QuickCalc!AG34 -> 0 | AU281: =QuickCalc!AH34 -> 0 | AV281: =QuickCalc!AI34 -> 0 | AW281: =QuickCalc!AJ34 -> 0 | AX281: =QuickCalc!AK34 -> 0 | AY281: =QuickCalc!AL34 -> 0 | AZ281: =QuickCalc!AM34 -> 0 | BA281: =QuickCalc!AN34 -> 0 | BB281: =QuickCalc!AO34 -> 0 | BC281: =QuickCalc!AP34 -> 0 | BD281: =QuickCalc!AQ34 -> 0 | BE281: =QuickCalc!AR34 -> 0 | BF281: =QuickCalc!AS34 -> 0 | BG281: =QuickCalc!AT34 -> 0 | BH281: =QuickCalc!AU34 -> 0 | BI281: =QuickCalc!AV34 -> 0 | BJ281: =QuickCalc!AW34 -> 0 | BK281: =QuickCalc!AX34 -> 0 | BL281: =QuickCalc!AY34 -> 0 | BM281: =QuickCalc!AZ34 -> 0 | BN281: =QuickCalc!BA34 -> 0 | BO281: =QuickCalc!BB34 -> 0 | BP281: =QuickCalc!BC34 -> 0
D282: Reactive replacement cost | F282: Used for QuickCalc, override if using full inputs | R282: =QuickCalc!E35 -> 0 | S282: =QuickCalc!F35 -> 0 | T282: =QuickCalc!G35 -> 0 | U282: =QuickCalc!H35 -> 0 | V282: =QuickCalc!I35 -> 0 | W282: =QuickCalc!J35 -> 0 | X282: =QuickCalc!K35 -> 0 | Y282: =QuickCalc!L35 -> 0 | Z282: =QuickCalc!M35 -> 0 | AA282: =QuickCalc!N35 -> 0 | AB282: =QuickCalc!O35 -> 0 | AC282: =QuickCalc!P35 -> 0 | AD282: =QuickCalc!Q35 -> 0 | AE282: =QuickCalc!R35 -> 0 | AF282: =QuickCalc!S35 -> 0 | AG282: =QuickCalc!T35 -> 0 | AH282: =QuickCalc!U35 -> 0 | AI282: =QuickCalc!V35 -> 0 | AJ282: =QuickCalc!W35 -> 0 | AK282: =QuickCalc!X35 -> 0 | AL282: =QuickCalc!Y35 -> 0 | AM282: =QuickCalc!Z35 -> 0 | AN282: =QuickCalc!AA35 -> 0 | AO282: =QuickCalc!AB35 -> 0 | AP282: =QuickCalc!AC35 -> 0 | AQ282: =QuickCalc!AD35 -> 0 | AR282: =QuickCalc!AE35 -> 0 | AS282: =QuickCalc!AF35 -> 0 | AT282: =QuickCalc!AG35 -> 0 | AU282: =QuickCalc!AH35 -> 0 | AV282: =QuickCalc!AI35 -> 0 | AW282: =QuickCalc!AJ35 -> 0 | AX282: =QuickCalc!AK35 -> 0 | AY282: =QuickCalc!AL35 -> 0 | AZ282: =QuickCalc!AM35 -> 0 | BA282: =QuickCalc!AN35 -> 0 | BB282: =QuickCalc!AO35 -> 0 | BC282: =QuickCalc!AP35 -> 0 | BD282: =QuickCalc!AQ35 -> 0 | BE282: =QuickCalc!AR35 -> 0 | BF282: =QuickCalc!AS35 -> 0 | BG282: =QuickCalc!AT35 -> 0 | BH282: =QuickCalc!AU35 -> 0 | BI282: =QuickCalc!AV35 -> 0 | BJ282: =QuickCalc!AW35 -> 0 | BK282: =QuickCalc!AX35 -> 0 | BL282: =QuickCalc!AY35 -> 0 | BM282: =QuickCalc!AZ35 -> 0 | BN282: =QuickCalc!BA35 -> 0 | BO282: =QuickCalc!BB35 -> 0 | BP282: =QuickCalc!BC35 -> 0
D283: 3rd party property damage risk | F283: Used for QuickCalc, override if using full inputs | R283: =QuickCalc!E36 -> 0 | S283: =QuickCalc!F36 -> 0 | T283: =QuickCalc!G36 -> 0 | U283: =QuickCalc!H36 -> 0 | V283: =QuickCalc!I36 -> 0 | W283: =QuickCalc!J36 -> 0 | X283: =QuickCalc!K36 -> 0 | Y283: =QuickCalc!L36 -> 0 | Z283: =QuickCalc!M36 -> 0 | AA283: =QuickCalc!N36 -> 0 | AB283: =QuickCalc!O36 -> 0 | AC283: =QuickCalc!P36 -> 0 | AD283: =QuickCalc!Q36 -> 0 | AE283: =QuickCalc!R36 -> 0 | AF283: =QuickCalc!S36 -> 0 | AG283: =QuickCalc!T36 -> 0 | AH283: =QuickCalc!U36 -> 0 | AI283: =QuickCalc!V36 -> 0 | AJ283: =QuickCalc!W36 -> 0 | AK283: =QuickCalc!X36 -> 0 | AL283: =QuickCalc!Y36 -> 0 | AM283: =QuickCalc!Z36 -> 0 | AN283: =QuickCalc!AA36 -> 0 | AO283: =QuickCalc!AB36 -> 0 | AP283: =QuickCalc!AC36 -> 0 | AQ283: =QuickCalc!AD36 -> 0 | AR283: =QuickCalc!AE36 -> 0 | AS283: =QuickCalc!AF36 -> 0 | AT283: =QuickCalc!AG36 -> 0 | AU283: =QuickCalc!AH36 -> 0 | AV283: =QuickCalc!AI36 -> 0 | AW283: =QuickCalc!AJ36 -> 0 | AX283: =QuickCalc!AK36 -> 0 | AY283: =QuickCalc!AL36 -> 0 | AZ283: =QuickCalc!AM36 -> 0 | BA283: =QuickCalc!AN36 -> 0 | BB283: =QuickCalc!AO36 -> 0 | BC283: =QuickCalc!AP36 -> 0 | BD283: =QuickCalc!AQ36 -> 0 | BE283: =QuickCalc!AR36 -> 0 | BF283: =QuickCalc!AS36 -> 0 | BG283: =QuickCalc!AT36 -> 0 | BH283: =QuickCalc!AU36 -> 0 | BI283: =QuickCalc!AV36 -> 0 | BJ283: =QuickCalc!AW36 -> 0 | BK283: =QuickCalc!AX36 -> 0 | BL283: =QuickCalc!AY36 -> 0 | BM283: =QuickCalc!AZ36 -> 0 | BN283: =QuickCalc!BA36 -> 0 | BO283: =QuickCalc!BB36 -> 0 | BP283: =QuickCalc!BC36 -> 0
D284: Construction EUE risk | F284: Used for QuickCalc, override if using full inputs | R284: =QuickCalc!E37 -> 0 | S284: =QuickCalc!F37 -> 0 | T284: =QuickCalc!G37 -> 0 | U284: =QuickCalc!H37 -> 0 | V284: =QuickCalc!I37 -> 0 | W284: =QuickCalc!J37 -> 0 | X284: =QuickCalc!K37 -> 0 | Y284: =QuickCalc!L37 -> 0 | Z284: =QuickCalc!M37 -> 0 | AA284: =QuickCalc!N37 -> 0 | AB284: =QuickCalc!O37 -> 0 | AC284: =QuickCalc!P37 -> 0 | AD284: =QuickCalc!Q37 -> 0 | AE284: =QuickCalc!R37 -> 0 | AF284: =QuickCalc!S37 -> 0 | AG284: =QuickCalc!T37 -> 0 | AH284: =QuickCalc!U37 -> 0 | AI284: =QuickCalc!V37 -> 0 | AJ284: =QuickCalc!W37 -> 0 | AK284: =QuickCalc!X37 -> 0 | AL284: =QuickCalc!Y37 -> 0 | AM284: =QuickCalc!Z37 -> 0 | AN284: =QuickCalc!AA37 -> 0 | AO284: =QuickCalc!AB37 -> 0 | AP284: =QuickCalc!AC37 -> 0 | AQ284: =QuickCalc!AD37 -> 0 | AR284: =QuickCalc!AE37 -> 0 | AS284: =QuickCalc!AF37 -> 0 | AT284: =QuickCalc!AG37 -> 0 | AU284: =QuickCalc!AH37 -> 0 | AV284: =QuickCalc!AI37 -> 0 | AW284: =QuickCalc!AJ37 -> 0 | AX284: =QuickCalc!AK37 -> 0 | AY284: =QuickCalc!AL37 -> 0 | AZ284: =QuickCalc!AM37 -> 0 | BA284: =QuickCalc!AN37 -> 0 | BB284: =QuickCalc!AO37 -> 0 | BC284: =QuickCalc!AP37 -> 0 | BD284: =QuickCalc!AQ37 -> 0 | BE284: =QuickCalc!AR37 -> 0 | BF284: =QuickCalc!AS37 -> 0 | BG284: =QuickCalc!AT37 -> 0 | BH284: =QuickCalc!AU37 -> 0 | BI284: =QuickCalc!AV37 -> 0 | BJ284: =QuickCalc!AW37 -> 0 | BK284: =QuickCalc!AX37 -> 0 | BL284: =QuickCalc!AY37 -> 0 | BM284: =QuickCalc!AZ37 -> 0 | BN284: =QuickCalc!BA37 -> 0 | BO284: =QuickCalc!BB37 -> 0 | BP284: =QuickCalc!BC37 -> 0
D285: Carbon emissions | F285: Used for QuickCalc, override if using full inputs | R285: =QuickCalc!E38 -> 0 | S285: =QuickCalc!F38 -> 0 | T285: =QuickCalc!G38 -> 0 | U285: =QuickCalc!H38 -> 0 | V285: =QuickCalc!I38 -> 0 | W285: =QuickCalc!J38 -> 0 | X285: =QuickCalc!K38 -> 0 | Y285: =QuickCalc!L38 -> 0 | Z285: =QuickCalc!M38 -> 0 | AA285: =QuickCalc!N38 -> 0 | AB285: =QuickCalc!O38 -> 0 | AC285: =QuickCalc!P38 -> 0 | AD285: =QuickCalc!Q38 -> 0 | AE285: =QuickCalc!R38 -> 0 | AF285: =QuickCalc!S38 -> 0 | AG285: =QuickCalc!T38 -> 0 | AH285: =QuickCalc!U38 -> 0 | AI285: =QuickCalc!V38 -> 0 | AJ285: =QuickCalc!W38 -> 0 | AK285: =QuickCalc!X38 -> 0 | AL285: =QuickCalc!Y38 -> 0 | AM285: =QuickCalc!Z38 -> 0 | AN285: =QuickCalc!AA38 -> 0 | AO285: =QuickCalc!AB38 -> 0 | AP285: =QuickCalc!AC38 -> 0 | AQ285: =QuickCalc!AD38 -> 0 | AR285: =QuickCalc!AE38 -> 0 | AS285: =QuickCalc!AF38 -> 0 | AT285: =QuickCalc!AG38 -> 0 | AU285: =QuickCalc!AH38 -> 0 | AV285: =QuickCalc!AI38 -> 0 | AW285: =QuickCalc!AJ38 -> 0 | AX285: =QuickCalc!AK38 -> 0 | AY285: =QuickCalc!AL38 -> 0 | AZ285: =QuickCalc!AM38 -> 0 | BA285: =QuickCalc!AN38 -> 0 | BB285: =QuickCalc!AO38 -> 0 | BC285: =QuickCalc!AP38 -> 0 | BD285: =QuickCalc!AQ38 -> 0 | BE285: =QuickCalc!AR38 -> 0 | BF285: =QuickCalc!AS38 -> 0 | BG285: =QuickCalc!AT38 -> 0 | BH285: =QuickCalc!AU38 -> 0 | BI285: =QuickCalc!AV38 -> 0 | BJ285: =QuickCalc!AW38 -> 0 | BK285: =QuickCalc!AX38 -> 0 | BL285: =QuickCalc!AY38 -> 0 | BM285: =QuickCalc!AZ38 -> 0 | BN285: =QuickCalc!BA38 -> 0 | BO285: =QuickCalc!BB38 -> 0 | BP285: =QuickCalc!BC38 -> 0
D286: Protective security risk
D287: Cost to respond to crisis | F287: Used for QuickCalc, override if using full inputs | R287: =QuickCalc!E40 -> 0 | S287: =QuickCalc!F40 -> 0 | T287: =QuickCalc!G40 -> 2057374.627 | U287: =QuickCalc!H40 -> 4018969.065 | V287: =QuickCalc!I40 -> 5929532.6 | W287: =QuickCalc!J40 -> 7812076.419 | X287: =QuickCalc!K40 -> 9697569.502 | Y287: =QuickCalc!L40 -> 9697569.502 | Z287: =QuickCalc!M40 -> 9697569.502 | AA287: =QuickCalc!N40 -> 7640194.875 | AB287: =QuickCalc!O40 -> 5678600.437 | AC287: =QuickCalc!P40 -> 3768036.901 | AD287: =QuickCalc!Q40 -> 1885493.083 | AE287: =QuickCalc!R40 -> 0 | AF287: =QuickCalc!S40 -> 0 | AG287: =QuickCalc!T40 -> 0 | AH287: =QuickCalc!U40 -> 0 | AI287: =QuickCalc!V40 -> 0 | AJ287: =QuickCalc!W40 -> 0 | AK287: =QuickCalc!X40 -> 0 | AL287: =QuickCalc!Y40 -> 0 | AM287: =QuickCalc!Z40 -> 0 | AN287: =QuickCalc!AA40 -> 0 | AO287: =QuickCalc!AB40 -> 0 | AP287: =QuickCalc!AC40 -> 0 | AQ287: =QuickCalc!AD40 -> 0 | AR287: =QuickCalc!AE40 -> 0 | AS287: =QuickCalc!AF40 -> 0 | AT287: =QuickCalc!AG40 -> 0 | AU287: =QuickCalc!AH40 -> 0 | AV287: =QuickCalc!AI40 -> 0 | AW287: =QuickCalc!AJ40 -> 0 | AX287: =QuickCalc!AK40 -> 0 | AY287: =QuickCalc!AL40 -> 0 | AZ287: =QuickCalc!AM40 -> 0 | BA287: =QuickCalc!AN40 -> 0 | BB287: =QuickCalc!AO40 -> 0 | BC287: =QuickCalc!AP40 -> 0 | BD287: =QuickCalc!AQ40 -> 0 | BE287: =QuickCalc!AR40 -> 0 | BF287: =QuickCalc!AS40 -> 0 | BG287: =QuickCalc!AT40 -> 0 | BH287: =QuickCalc!AU40 -> 0 | BI287: =QuickCalc!AV40 -> 0 | BJ287: =QuickCalc!AW40 -> 0 | BK287: =QuickCalc!AX40 -> 0 | BL287: =QuickCalc!AY40 -> 0 | BM287: =QuickCalc!AZ40 -> 0 | BN287: =QuickCalc!BA40 -> 0 | BO287: =QuickCalc!BB40 -> 0 | BP287: =QuickCalc!BC40 -> 0
D288: Loss productive time
D289: Additional capex completed without additional labour cost | F289: Used for QuickCalc, override if using full inputs | R289: =QuickCalc!E42 -> 0 | S289: =QuickCalc!F42 -> 0 | T289: =QuickCalc!G42 -> 0 | U289: =QuickCalc!H42 -> 0 | V289: =QuickCalc!I42 -> 0 | W289: =QuickCalc!J42 -> 0 | X289: =QuickCalc!K42 -> 0 | Y289: =QuickCalc!L42 -> 0 | Z289: =QuickCalc!M42 -> 0 | AA289: =QuickCalc!N42 -> 0 | AB289: =QuickCalc!O42 -> 0 | AC289: =QuickCalc!P42 -> 0 | AD289: =QuickCalc!Q42 -> 0 | AE289: =QuickCalc!R42 -> 0 | AF289: =QuickCalc!S42 -> 0 | AG289: =QuickCalc!T42 -> 0 | AH289: =QuickCalc!U42 -> 0 | AI289: =QuickCalc!V42 -> 0 | AJ289: =QuickCalc!W42 -> 0 | AK289: =QuickCalc!X42 -> 0 | AL289: =QuickCalc!Y42 -> 0 | AM289: =QuickCalc!Z42 -> 0 | AN289: =QuickCalc!AA42 -> 0 | AO289: =QuickCalc!AB42 -> 0 | AP289: =QuickCalc!AC42 -> 0 | AQ289: =QuickCalc!AD42 -> 0 | AR289: =QuickCalc!AE42 -> 0 | AS289: =QuickCalc!AF42 -> 0 | AT289: =QuickCalc!AG42 -> 0 | AU289: =QuickCalc!AH42 -> 0 | AV289: =QuickCalc!AI42 -> 0 | AW289: =QuickCalc!AJ42 -> 0 | AX289: =QuickCalc!AK42 -> 0 | AY289: =QuickCalc!AL42 -> 0 | AZ289: =QuickCalc!AM42 -> 0 | BA289: =QuickCalc!AN42 -> 0 | BB289: =QuickCalc!AO42 -> 0 | BC289: =QuickCalc!AP42 -> 0 | BD289: =QuickCalc!AQ42 -> 0 | BE289: =QuickCalc!AR42 -> 0 | BF289: =QuickCalc!AS42 -> 0 | BG289: =QuickCalc!AT42 -> 0 | BH289: =QuickCalc!AU42 -> 0 | BI289: =QuickCalc!AV42 -> 0 | BJ289: =QuickCalc!AW42 -> 0 | BK289: =QuickCalc!AX42 -> 0 | BL289: =QuickCalc!AY42 -> 0 | BM289: =QuickCalc!AZ42 -> 0 | BN289: =QuickCalc!BA42 -> 0 | BO289: =QuickCalc!BB42 -> 0 | BP289: =QuickCalc!BC42 -> 0
D290: Decrease in opex costs | F290: Used for QuickCalc, override if using full inputs | R290: =QuickCalc!E43 -> 0 | S290: =QuickCalc!F43 -> 0 | T290: =QuickCalc!G43 -> 0 | U290: =QuickCalc!H43 -> 0 | V290: =QuickCalc!I43 -> 0 | W290: =QuickCalc!J43 -> 0 | X290: =QuickCalc!K43 -> 0 | Y290: =QuickCalc!L43 -> 0 | Z290: =QuickCalc!M43 -> 0 | AA290: =QuickCalc!N43 -> 0 | AB290: =QuickCalc!O43 -> 0 | AC290: =QuickCalc!P43 -> 0 | AD290: =QuickCalc!Q43 -> 0 | AE290: =QuickCalc!R43 -> 0 | AF290: =QuickCalc!S43 -> 0 | AG290: =QuickCalc!T43 -> 0 | AH290: =QuickCalc!U43 -> 0 | AI290: =QuickCalc!V43 -> 0 | AJ290: =QuickCalc!W43 -> 0 | AK290: =QuickCalc!X43 -> 0 | AL290: =QuickCalc!Y43 -> 0 | AM290: =QuickCalc!Z43 -> 0 | AN290: =QuickCalc!AA43 -> 0 | AO290: =QuickCalc!AB43 -> 0 | AP290: =QuickCalc!AC43 -> 0 | AQ290: =QuickCalc!AD43 -> 0 | AR290: =QuickCalc!AE43 -> 0 | AS290: =QuickCalc!AF43 -> 0 | AT290: =QuickCalc!AG43 -> 0 | AU290: =QuickCalc!AH43 -> 0 | AV290: =QuickCalc!AI43 -> 0 | AW290: =QuickCalc!AJ43 -> 0 | AX290: =QuickCalc!AK43 -> 0 | AY290: =QuickCalc!AL43 -> 0 | AZ290: =QuickCalc!AM43 -> 0 | BA290: =QuickCalc!AN43 -> 0 | BB290: =QuickCalc!AO43 -> 0 | BC290: =QuickCalc!AP43 -> 0 | BD290: =QuickCalc!AQ43 -> 0 | BE290: =QuickCalc!AR43 -> 0 | BF290: =QuickCalc!AS43 -> 0 | BG290: =QuickCalc!AT43 -> 0 | BH290: =QuickCalc!AU43 -> 0 | BI290: =QuickCalc!AV43 -> 0 | BJ290: =QuickCalc!AW43 -> 0 | BK290: =QuickCalc!AX43 -> 0 | BL290: =QuickCalc!AY43 -> 0 | BM290: =QuickCalc!AZ43 -> 0 | BN290: =QuickCalc!BA43 -> 0 | BO290: =QuickCalc!BB43 -> 0 | BP290: =QuickCalc!BC43 -> 0
D291: Fines and penalties | F291: Used for QuickCalc, override if using full inputs | R291: =QuickCalc!E44 -> 0 | S291: =QuickCalc!F44 -> 0 | T291: =QuickCalc!G44 -> 1250561.048 | U291: =QuickCalc!H44 -> 2442902.765 | V291: =QuickCalc!I44 -> 3604225.698 | W291: =QuickCalc!J44 -> 4748517.039 | X291: =QuickCalc!K44 -> 5894601.07 | Y291: =QuickCalc!L44 -> 5894601.07 | Z291: =QuickCalc!M44 -> 5894601.07 | AA291: =QuickCalc!N44 -> 4644040.022 | AB291: =QuickCalc!O44 -> 3451698.305 | AC291: =QuickCalc!P44 -> 2290375.371 | AD291: =QuickCalc!Q44 -> 1146084.031 | AE291: =QuickCalc!R44 -> 0 | AF291: =QuickCalc!S44 -> 0 | AG291: =QuickCalc!T44 -> 0 | AH291: =QuickCalc!U44 -> 0 | AI291: =QuickCalc!V44 -> 0 | AJ291: =QuickCalc!W44 -> 0 | AK291: =QuickCalc!X44 -> 0 | AL291: =QuickCalc!Y44 -> 0 | AM291: =QuickCalc!Z44 -> 0 | AN291: =QuickCalc!AA44 -> 0 | AO291: =QuickCalc!AB44 -> 0 | AP291: =QuickCalc!AC44 -> 0 | AQ291: =QuickCalc!AD44 -> 0 | AR291: =QuickCalc!AE44 -> 0 | AS291: =QuickCalc!AF44 -> 0 | AT291: =QuickCalc!AG44 -> 0 | AU291: =QuickCalc!AH44 -> 0 | AV291: =QuickCalc!AI44 -> 0 | AW291: =QuickCalc!AJ44 -> 0 | AX291: =QuickCalc!AK44 -> 0 | AY291: =QuickCalc!AL44 -> 0 | AZ291: =QuickCalc!AM44 -> 0 | BA291: =QuickCalc!AN44 -> 0 | BB291: =QuickCalc!AO44 -> 0 | BC291: =QuickCalc!AP44 -> 0 | BD291: =QuickCalc!AQ44 -> 0 | BE291: =QuickCalc!AR44 -> 0 | BF291: =QuickCalc!AS44 -> 0 | BG291: =QuickCalc!AT44 -> 0 | BH291: =QuickCalc!AU44 -> 0 | BI291: =QuickCalc!AV44 -> 0 | BJ291: =QuickCalc!AW44 -> 0 | BK291: =QuickCalc!AX44 -> 0 | BL291: =QuickCalc!AY44 -> 0 | BM291: =QuickCalc!AZ44 -> 0 | BN291: =QuickCalc!BA44 -> 0 | BO291: =QuickCalc!BB44 -> 0 | BP291: =QuickCalc!BC44 -> 0
D292: Damage / theft of assets | F292: Used for QuickCalc, override if using full inputs | R292: =QuickCalc!E45 -> 0 | S292: =QuickCalc!F45 -> 0 | T292: =QuickCalc!G45 -> 0 | U292: =QuickCalc!H45 -> 0 | V292: =QuickCalc!I45 -> 0 | W292: =QuickCalc!J45 -> 0 | X292: =QuickCalc!K45 -> 0 | Y292: =QuickCalc!L45 -> 0 | Z292: =QuickCalc!M45 -> 0 | AA292: =QuickCalc!N45 -> 0 | AB292: =QuickCalc!O45 -> 0 | AC292: =QuickCalc!P45 -> 0 | AD292: =QuickCalc!Q45 -> 0 | AE292: =QuickCalc!R45 -> 0 | AF292: =QuickCalc!S45 -> 0 | AG292: =QuickCalc!T45 -> 0 | AH292: =QuickCalc!U45 -> 0 | AI292: =QuickCalc!V45 -> 0 | AJ292: =QuickCalc!W45 -> 0 | AK292: =QuickCalc!X45 -> 0 | AL292: =QuickCalc!Y45 -> 0 | AM292: =QuickCalc!Z45 -> 0 | AN292: =QuickCalc!AA45 -> 0 | AO292: =QuickCalc!AB45 -> 0 | AP292: =QuickCalc!AC45 -> 0 | AQ292: =QuickCalc!AD45 -> 0 | AR292: =QuickCalc!AE45 -> 0 | AS292: =QuickCalc!AF45 -> 0 | AT292: =QuickCalc!AG45 -> 0 | AU292: =QuickCalc!AH45 -> 0 | AV292: =QuickCalc!AI45 -> 0 | AW292: =QuickCalc!AJ45 -> 0 | AX292: =QuickCalc!AK45 -> 0 | AY292: =QuickCalc!AL45 -> 0 | AZ292: =QuickCalc!AM45 -> 0 | BA292: =QuickCalc!AN45 -> 0 | BB292: =QuickCalc!AO45 -> 0 | BC292: =QuickCalc!AP45 -> 0 | BD292: =QuickCalc!AQ45 -> 0 | BE292: =QuickCalc!AR45 -> 0 | BF292: =QuickCalc!AS45 -> 0 | BG292: =QuickCalc!AT45 -> 0 | BH292: =QuickCalc!AU45 -> 0 | BI292: =QuickCalc!AV45 -> 0 | BJ292: =QuickCalc!AW45 -> 0 | BK292: =QuickCalc!AX45 -> 0 | BL292: =QuickCalc!AY45 -> 0 | BM292: =QuickCalc!AZ45 -> 0 | BN292: =QuickCalc!BA45 -> 0 | BO292: =QuickCalc!BB45 -> 0 | BP292: =QuickCalc!BC45 -> 0
D293: Loss of data | F293: Used for QuickCalc, override if using full inputs | R293: =QuickCalc!E46 -> 0 | S293: =QuickCalc!F46 -> 0 | T293: =QuickCalc!G46 -> 0 | U293: =QuickCalc!H46 -> 0 | V293: =QuickCalc!I46 -> 0 | W293: =QuickCalc!J46 -> 0 | X293: =QuickCalc!K46 -> 0 | Y293: =QuickCalc!L46 -> 0 | Z293: =QuickCalc!M46 -> 0 | AA293: =QuickCalc!N46 -> 0 | AB293: =QuickCalc!O46 -> 0 | AC293: =QuickCalc!P46 -> 0 | AD293: =QuickCalc!Q46 -> 0 | AE293: =QuickCalc!R46 -> 0 | AF293: =QuickCalc!S46 -> 0 | AG293: =QuickCalc!T46 -> 0 | AH293: =QuickCalc!U46 -> 0 | AI293: =QuickCalc!V46 -> 0 | AJ293: =QuickCalc!W46 -> 0 | AK293: =QuickCalc!X46 -> 0 | AL293: =QuickCalc!Y46 -> 0 | AM293: =QuickCalc!Z46 -> 0 | AN293: =QuickCalc!AA46 -> 0 | AO293: =QuickCalc!AB46 -> 0 | AP293: =QuickCalc!AC46 -> 0 | AQ293: =QuickCalc!AD46 -> 0 | AR293: =QuickCalc!AE46 -> 0 | AS293: =QuickCalc!AF46 -> 0 | AT293: =QuickCalc!AG46 -> 0 | AU293: =QuickCalc!AH46 -> 0 | AV293: =QuickCalc!AI46 -> 0 | AW293: =QuickCalc!AJ46 -> 0 | AX293: =QuickCalc!AK46 -> 0 | AY293: =QuickCalc!AL46 -> 0 | AZ293: =QuickCalc!AM46 -> 0 | BA293: =QuickCalc!AN46 -> 0 | BB293: =QuickCalc!AO46 -> 0 | BC293: =QuickCalc!AP46 -> 0 | BD293: =QuickCalc!AQ46 -> 0 | BE293: =QuickCalc!AR46 -> 0 | BF293: =QuickCalc!AS46 -> 0 | BG293: =QuickCalc!AT46 -> 0 | BH293: =QuickCalc!AU46 -> 0 | BI293: =QuickCalc!AV46 -> 0 | BJ293: =QuickCalc!AW46 -> 0 | BK293: =QuickCalc!AX46 -> 0 | BL293: =QuickCalc!AY46 -> 0 | BM293: =QuickCalc!AZ46 -> 0 | BN293: =QuickCalc!BA46 -> 0 | BO293: =QuickCalc!BB46 -> 0 | BP293: =QuickCalc!BC46 -> 0
D294: ICT/OT hardware or software failure risk
D295: Cost of manual intervention | F295: Used for QuickCalc, override if using full inputs | R295: =QuickCalc!E48 -> 0 | S295: =QuickCalc!F48 -> 0 | T295: =QuickCalc!G48 -> 0 | U295: =QuickCalc!H48 -> 0 | V295: =QuickCalc!I48 -> 0 | W295: =QuickCalc!J48 -> 0 | X295: =QuickCalc!K48 -> 0 | Y295: =QuickCalc!L48 -> 0 | Z295: =QuickCalc!M48 -> 0 | AA295: =QuickCalc!N48 -> 0 | AB295: =QuickCalc!O48 -> 0 | AC295: =QuickCalc!P48 -> 0 | AD295: =QuickCalc!Q48 -> 0 | AE295: =QuickCalc!R48 -> 0 | AF295: =QuickCalc!S48 -> 0 | AG295: =QuickCalc!T48 -> 0 | AH295: =QuickCalc!U48 -> 0 | AI295: =QuickCalc!V48 -> 0 | AJ295: =QuickCalc!W48 -> 0 | AK295: =QuickCalc!X48 -> 0 | AL295: =QuickCalc!Y48 -> 0 | AM295: =QuickCalc!Z48 -> 0 | AN295: =QuickCalc!AA48 -> 0 | AO295: =QuickCalc!AB48 -> 0 | AP295: =QuickCalc!AC48 -> 0 | AQ295: =QuickCalc!AD48 -> 0 | AR295: =QuickCalc!AE48 -> 0 | AS295: =QuickCalc!AF48 -> 0 | AT295: =QuickCalc!AG48 -> 0 | AU295: =QuickCalc!AH48 -> 0 | AV295: =QuickCalc!AI48 -> 0 | AW295: =QuickCalc!AJ48 -> 0 | AX295: =QuickCalc!AK48 -> 0 | AY295: =QuickCalc!AL48 -> 0 | AZ295: =QuickCalc!AM48 -> 0 | BA295: =QuickCalc!AN48 -> 0 | BB295: =QuickCalc!AO48 -> 0 | BC295: =QuickCalc!AP48 -> 0 | BD295: =QuickCalc!AQ48 -> 0 | BE295: =QuickCalc!AR48 -> 0 | BF295: =QuickCalc!AS48 -> 0 | BG295: =QuickCalc!AT48 -> 0 | BH295: =QuickCalc!AU48 -> 0 | BI295: =QuickCalc!AV48 -> 0 | BJ295: =QuickCalc!AW48 -> 0 | BK295: =QuickCalc!AX48 -> 0 | BL295: =QuickCalc!AY48 -> 0 | BM295: =QuickCalc!AZ48 -> 0 | BN295: =QuickCalc!BA48 -> 0 | BO295: =QuickCalc!BB48 -> 0 | BP295: =QuickCalc!BC48 -> 0
D296: Loss productive time
D297: Additional capex completed without additional labour cost | F297: Used for QuickCalc, override if using full inputs | R297: =QuickCalc!E50 -> 0 | S297: =QuickCalc!F50 -> 0 | T297: =QuickCalc!G50 -> 0 | U297: =QuickCalc!H50 -> 0 | V297: =QuickCalc!I50 -> 0 | W297: =QuickCalc!J50 -> 0 | X297: =QuickCalc!K50 -> 0 | Y297: =QuickCalc!L50 -> 0 | Z297: =QuickCalc!M50 -> 0 | AA297: =QuickCalc!N50 -> 0 | AB297: =QuickCalc!O50 -> 0 | AC297: =QuickCalc!P50 -> 0 | AD297: =QuickCalc!Q50 -> 0 | AE297: =QuickCalc!R50 -> 0 | AF297: =QuickCalc!S50 -> 0 | AG297: =QuickCalc!T50 -> 0 | AH297: =QuickCalc!U50 -> 0 | AI297: =QuickCalc!V50 -> 0 | AJ297: =QuickCalc!W50 -> 0 | AK297: =QuickCalc!X50 -> 0 | AL297: =QuickCalc!Y50 -> 0 | AM297: =QuickCalc!Z50 -> 0 | AN297: =QuickCalc!AA50 -> 0 | AO297: =QuickCalc!AB50 -> 0 | AP297: =QuickCalc!AC50 -> 0 | AQ297: =QuickCalc!AD50 -> 0 | AR297: =QuickCalc!AE50 -> 0 | AS297: =QuickCalc!AF50 -> 0 | AT297: =QuickCalc!AG50 -> 0 | AU297: =QuickCalc!AH50 -> 0 | AV297: =QuickCalc!AI50 -> 0 | AW297: =QuickCalc!AJ50 -> 0 | AX297: =QuickCalc!AK50 -> 0 | AY297: =QuickCalc!AL50 -> 0 | AZ297: =QuickCalc!AM50 -> 0 | BA297: =QuickCalc!AN50 -> 0 | BB297: =QuickCalc!AO50 -> 0 | BC297: =QuickCalc!AP50 -> 0 | BD297: =QuickCalc!AQ50 -> 0 | BE297: =QuickCalc!AR50 -> 0 | BF297: =QuickCalc!AS50 -> 0 | BG297: =QuickCalc!AT50 -> 0 | BH297: =QuickCalc!AU50 -> 0 | BI297: =QuickCalc!AV50 -> 0 | BJ297: =QuickCalc!AW50 -> 0 | BK297: =QuickCalc!AX50 -> 0 | BL297: =QuickCalc!AY50 -> 0 | BM297: =QuickCalc!AZ50 -> 0 | BN297: =QuickCalc!BA50 -> 0 | BO297: =QuickCalc!BB50 -> 0 | BP297: =QuickCalc!BC50 -> 0
D298: Decrease in opex costs | F298: Used for QuickCalc, override if using full inputs | R298: =QuickCalc!E51 -> 0 | S298: =QuickCalc!F51 -> 0 | T298: =QuickCalc!G51 -> 4636379.212 | U298: =QuickCalc!H51 -> 9056913.787 | V298: =QuickCalc!I51 -> 13362448.1 | W298: =QuickCalc!J51 -> 17604838.83 | X298: =QuickCalc!K51 -> 21853875.84 | Y298: =QuickCalc!L51 -> 21853875.84 | Z298: =QuickCalc!M51 -> 21853875.84 | AA298: =QuickCalc!N51 -> 17217496.62 | AB298: =QuickCalc!O51 -> 12796962.05 | AC298: =QuickCalc!P51 -> 8491427.73 | AD298: =QuickCalc!Q51 -> 4249037.01 | AE298: =QuickCalc!R51 -> 0 | AF298: =QuickCalc!S51 -> 0 | AG298: =QuickCalc!T51 -> 0 | AH298: =QuickCalc!U51 -> 0 | AI298: =QuickCalc!V51 -> 0 | AJ298: =QuickCalc!W51 -> 0 | AK298: =QuickCalc!X51 -> 0 | AL298: =QuickCalc!Y51 -> 0 | AM298: =QuickCalc!Z51 -> 0 | AN298: =QuickCalc!AA51 -> 0 | AO298: =QuickCalc!AB51 -> 0 | AP298: =QuickCalc!AC51 -> 0 | AQ298: =QuickCalc!AD51 -> 0 | AR298: =QuickCalc!AE51 -> 0 | AS298: =QuickCalc!AF51 -> 0 | AT298: =QuickCalc!AG51 -> 0 | AU298: =QuickCalc!AH51 -> 0 | AV298: =QuickCalc!AI51 -> 0 | AW298: =QuickCalc!AJ51 -> 0 | AX298: =QuickCalc!AK51 -> 0 | AY298: =QuickCalc!AL51 -> 0 | AZ298: =QuickCalc!AM51 -> 0 | BA298: =QuickCalc!AN51 -> 0 | BB298: =QuickCalc!AO51 -> 0 | BC298: =QuickCalc!AP51 -> 0 | BD298: =QuickCalc!AQ51 -> 0 | BE298: =QuickCalc!AR51 -> 0 | BF298: =QuickCalc!AS51 -> 0 | BG298: =QuickCalc!AT51 -> 0 | BH298: =QuickCalc!AU51 -> 0 | BI298: =QuickCalc!AV51 -> 0 | BJ298: =QuickCalc!AW51 -> 0 | BK298: =QuickCalc!AX51 -> 0 | BL298: =QuickCalc!AY51 -> 0 | BM298: =QuickCalc!AZ51 -> 0 | BN298: =QuickCalc!BA51 -> 0 | BO298: =QuickCalc!BB51 -> 0 | BP298: =QuickCalc!BC51 -> 0
D299: Safety risk | F299: Used for QuickCalc, override if using full inputs | R299: =QuickCalc!E52 -> 0 | S299: =QuickCalc!F52 -> 0 | T299: =QuickCalc!G52 -> 0 | U299: =QuickCalc!H52 -> 0 | V299: =QuickCalc!I52 -> 0 | W299: =QuickCalc!J52 -> 0 | X299: =QuickCalc!K52 -> 0 | Y299: =QuickCalc!L52 -> 0 | Z299: =QuickCalc!M52 -> 0 | AA299: =QuickCalc!N52 -> 0 | AB299: =QuickCalc!O52 -> 0 | AC299: =QuickCalc!P52 -> 0 | AD299: =QuickCalc!Q52 -> 0 | AE299: =QuickCalc!R52 -> 0 | AF299: =QuickCalc!S52 -> 0 | AG299: =QuickCalc!T52 -> 0 | AH299: =QuickCalc!U52 -> 0 | AI299: =QuickCalc!V52 -> 0 | AJ299: =QuickCalc!W52 -> 0 | AK299: =QuickCalc!X52 -> 0 | AL299: =QuickCalc!Y52 -> 0 | AM299: =QuickCalc!Z52 -> 0 | AN299: =QuickCalc!AA52 -> 0 | AO299: =QuickCalc!AB52 -> 0 | AP299: =QuickCalc!AC52 -> 0 | AQ299: =QuickCalc!AD52 -> 0 | AR299: =QuickCalc!AE52 -> 0 | AS299: =QuickCalc!AF52 -> 0 | AT299: =QuickCalc!AG52 -> 0 | AU299: =QuickCalc!AH52 -> 0 | AV299: =QuickCalc!AI52 -> 0 | AW299: =QuickCalc!AJ52 -> 0 | AX299: =QuickCalc!AK52 -> 0 | AY299: =QuickCalc!AL52 -> 0 | AZ299: =QuickCalc!AM52 -> 0 | BA299: =QuickCalc!AN52 -> 0 | BB299: =QuickCalc!AO52 -> 0 | BC299: =QuickCalc!AP52 -> 0 | BD299: =QuickCalc!AQ52 -> 0 | BE299: =QuickCalc!AR52 -> 0 | BF299: =QuickCalc!AS52 -> 0 | BG299: =QuickCalc!AT52 -> 0 | BH299: =QuickCalc!AU52 -> 0 | BI299: =QuickCalc!AV52 -> 0 | BJ299: =QuickCalc!AW52 -> 0 | BK299: =QuickCalc!AX52 -> 0 | BL299: =QuickCalc!AY52 -> 0 | BM299: =QuickCalc!AZ52 -> 0 | BN299: =QuickCalc!BA52 -> 0 | BO299: =QuickCalc!BB52 -> 0 | BP299: =QuickCalc!BC52 -> 0
D300: Employee engagement
D301: Additional capex completed without additional labour cost | F301: Used for QuickCalc, override if using full inputs | R301: =QuickCalc!E54 -> 0 | S301: =QuickCalc!F54 -> 0 | T301: =QuickCalc!G54 -> 0 | U301: =QuickCalc!H54 -> 0 | V301: =QuickCalc!I54 -> 0 | W301: =QuickCalc!J54 -> 0 | X301: =QuickCalc!K54 -> 0 | Y301: =QuickCalc!L54 -> 0 | Z301: =QuickCalc!M54 -> 0 | AA301: =QuickCalc!N54 -> 0 | AB301: =QuickCalc!O54 -> 0 | AC301: =QuickCalc!P54 -> 0 | AD301: =QuickCalc!Q54 -> 0 | AE301: =QuickCalc!R54 -> 0 | AF301: =QuickCalc!S54 -> 0 | AG301: =QuickCalc!T54 -> 0 | AH301: =QuickCalc!U54 -> 0 | AI301: =QuickCalc!V54 -> 0 | AJ301: =QuickCalc!W54 -> 0 | AK301: =QuickCalc!X54 -> 0 | AL301: =QuickCalc!Y54 -> 0 | AM301: =QuickCalc!Z54 -> 0 | AN301: =QuickCalc!AA54 -> 0 | AO301: =QuickCalc!AB54 -> 0 | AP301: =QuickCalc!AC54 -> 0 | AQ301: =QuickCalc!AD54 -> 0 | AR301: =QuickCalc!AE54 -> 0 | AS301: =QuickCalc!AF54 -> 0 | AT301: =QuickCalc!AG54 -> 0 | AU301: =QuickCalc!AH54 -> 0 | AV301: =QuickCalc!AI54 -> 0 | AW301: =QuickCalc!AJ54 -> 0 | AX301: =QuickCalc!AK54 -> 0 | AY301: =QuickCalc!AL54 -> 0 | AZ301: =QuickCalc!AM54 -> 0 | BA301: =QuickCalc!AN54 -> 0 | BB301: =QuickCalc!AO54 -> 0 | BC301: =QuickCalc!AP54 -> 0 | BD301: =QuickCalc!AQ54 -> 0 | BE301: =QuickCalc!AR54 -> 0 | BF301: =QuickCalc!AS54 -> 0 | BG301: =QuickCalc!AT54 -> 0 | BH301: =QuickCalc!AU54 -> 0 | BI301: =QuickCalc!AV54 -> 0 | BJ301: =QuickCalc!AW54 -> 0 | BK301: =QuickCalc!AX54 -> 0 | BL301: =QuickCalc!AY54 -> 0 | BM301: =QuickCalc!AZ54 -> 0 | BN301: =QuickCalc!BA54 -> 0 | BO301: =QuickCalc!BB54 -> 0 | BP301: =QuickCalc!BC54 -> 0
D302: Decrease in opex costs | F302: Used for QuickCalc, override if using full inputs | R302: =QuickCalc!E55 -> 0 | S302: =QuickCalc!F55 -> 0 | T302: =QuickCalc!G55 -> 0 | U302: =QuickCalc!H55 -> 0 | V302: =QuickCalc!I55 -> 0 | W302: =QuickCalc!J55 -> 0 | X302: =QuickCalc!K55 -> 0 | Y302: =QuickCalc!L55 -> 0 | Z302: =QuickCalc!M55 -> 0 | AA302: =QuickCalc!N55 -> 0 | AB302: =QuickCalc!O55 -> 0 | AC302: =QuickCalc!P55 -> 0 | AD302: =QuickCalc!Q55 -> 0 | AE302: =QuickCalc!R55 -> 0 | AF302: =QuickCalc!S55 -> 0 | AG302: =QuickCalc!T55 -> 0 | AH302: =QuickCalc!U55 -> 0 | AI302: =QuickCalc!V55 -> 0 | AJ302: =QuickCalc!W55 -> 0 | AK302: =QuickCalc!X55 -> 0 | AL302: =QuickCalc!Y55 -> 0 | AM302: =QuickCalc!Z55 -> 0 | AN302: =QuickCalc!AA55 -> 0 | AO302: =QuickCalc!AB55 -> 0 | AP302: =QuickCalc!AC55 -> 0 | AQ302: =QuickCalc!AD55 -> 0 | AR302: =QuickCalc!AE55 -> 0 | AS302: =QuickCalc!AF55 -> 0 | AT302: =QuickCalc!AG55 -> 0 | AU302: =QuickCalc!AH55 -> 0 | AV302: =QuickCalc!AI55 -> 0 | AW302: =QuickCalc!AJ55 -> 0 | AX302: =QuickCalc!AK55 -> 0 | AY302: =QuickCalc!AL55 -> 0 | AZ302: =QuickCalc!AM55 -> 0 | BA302: =QuickCalc!AN55 -> 0 | BB302: =QuickCalc!AO55 -> 0 | BC302: =QuickCalc!AP55 -> 0 | BD302: =QuickCalc!AQ55 -> 0 | BE302: =QuickCalc!AR55 -> 0 | BF302: =QuickCalc!AS55 -> 0 | BG302: =QuickCalc!AT55 -> 0 | BH302: =QuickCalc!AU55 -> 0 | BI302: =QuickCalc!AV55 -> 0 | BJ302: =QuickCalc!AW55 -> 0 | BK302: =QuickCalc!AX55 -> 0 | BL302: =QuickCalc!AY55 -> 0 | BM302: =QuickCalc!AZ55 -> 0 | BN302: =QuickCalc!BA55 -> 0 | BO302: =QuickCalc!BB55 -> 0 | BP302: =QuickCalc!BC55 -> 0
D303: Customer value | F303: Used for QuickCalc, override if using full inputs | R303: =QuickCalc!E56 -> 0 | S303: =QuickCalc!F56 -> 0 | T303: =QuickCalc!G56 -> 4376546.647 | U303: =QuickCalc!H56 -> 8549345.05 | V303: =QuickCalc!I56 -> 12613588.05 | W303: =QuickCalc!J56 -> 16618226.16 | X303: =QuickCalc!K56 -> 20629138.09 | Y303: =QuickCalc!L56 -> 20629138.09 | Z303: =QuickCalc!M56 -> 20629138.09 | AA303: =QuickCalc!N56 -> 16252591.44 | AB303: =QuickCalc!O56 -> 12079793.04 | AC303: =QuickCalc!P56 -> 8015550.036 | AD303: =QuickCalc!Q56 -> 4010911.926 | AE303: =QuickCalc!R56 -> 0 | AF303: =QuickCalc!S56 -> 0 | AG303: =QuickCalc!T56 -> 0 | AH303: =QuickCalc!U56 -> 0 | AI303: =QuickCalc!V56 -> 0 | AJ303: =QuickCalc!W56 -> 0 | AK303: =QuickCalc!X56 -> 0 | AL303: =QuickCalc!Y56 -> 0 | AM303: =QuickCalc!Z56 -> 0 | AN303: =QuickCalc!AA56 -> 0 | AO303: =QuickCalc!AB56 -> 0 | AP303: =QuickCalc!AC56 -> 0 | AQ303: =QuickCalc!AD56 -> 0 | AR303: =QuickCalc!AE56 -> 0 | AS303: =QuickCalc!AF56 -> 0 | AT303: =QuickCalc!AG56 -> 0 | AU303: =QuickCalc!AH56 -> 0 | AV303: =QuickCalc!AI56 -> 0 | AW303: =QuickCalc!AJ56 -> 0 | AX303: =QuickCalc!AK56 -> 0 | AY303: =QuickCalc!AL56 -> 0 | AZ303: =QuickCalc!AM56 -> 0 | BA303: =QuickCalc!AN56 -> 0 | BB303: =QuickCalc!AO56 -> 0 | BC303: =QuickCalc!AP56 -> 0 | BD303: =QuickCalc!AQ56 -> 0 | BE303: =QuickCalc!AR56 -> 0 | BF303: =QuickCalc!AS56 -> 0 | BG303: =QuickCalc!AT56 -> 0 | BH303: =QuickCalc!AU56 -> 0 | BI303: =QuickCalc!AV56 -> 0 | BJ303: =QuickCalc!AW56 -> 0 | BK303: =QuickCalc!AX56 -> 0 | BL303: =QuickCalc!AY56 -> 0 | BM303: =QuickCalc!AZ56 -> 0 | BN303: =QuickCalc!BA56 -> 0 | BO303: =QuickCalc!BB56 -> 0 | BP303: =QuickCalc!BC56 -> 0

Sheet Output_charts
A1: Ausgrid investment evaluation model
B2: =RIGHT(CELL("filename",A1),LEN(CELL("filename",A1))-FIND("]",CELL("filename",A1))) -> Output_charts
D4: Legend | E4: Input | F4: Calculation | G4: Select | H4: Internal | I4: Assumptions | J4: Instructions | K4: Change in formula pattern
AH6: Error checks
AH7: =IF(-SUM(Calcs!$L$58,Calcs!$L$39)-SUM(Calcs!$L$85,Calcs!$L$91)>0,"Ok","Check") -> Ok | AI7: Total depreciation < Total capex excl land + Total future capex excl land
AH8: =IF(MAX(Calcs!R33:BP38,Calcs!R40:BP40,Calcs!R53:BP57,Calcs!R59:BP59)<=0,"Ok","Check") -> Ok | AI8: All capex & future capex negative. Check if positive cash flow is correct
AH9: =IF(AND(T56="Ok",T60="Ok",AN105="Ok",AN145="Ok",AN183="Ok",AN220="Ok",AN254="Ok",AN295="Ok"),"Ok","Check") -> Ok | AI9: Checks all NPV table checks (Investment NPV perspective summary tables and tables behind graphs in NPV graphing)
E13: Shareholder | F13: Customer | H13: EBSS switch | I13: CESS switch | P13: Switch | Q13: Last year | U13: Switch
D14: WACC | E14: Low | F14: Low | H14: TRUE | I14: FALSE | O14: Use longest useful asset life valuation period | P14: Off | Q14: =IF($P$14="On",Input!$L$55,"End of model") -> End of model | R14: =IF(P14="On","If this is 0, there is no year input in the Input sheet","") ->  | T14: Automatic STPIS / customer calculation | U14: No
D15: Avg WACC | E15: =Assumptions!$J$33 -> 0.03428510638 | F15: =Assumptions!$J$39 -> 0.03428510638
B17: Summary for prioritisation
D19: IRR | E19: IRR | F19: IRR | H19: VIR | I19: VIR | J19: Market NPV | K19: Market NPV | L19: Cust. NPV | M19: Cust. NPV | N19: Cust. NPV | O19: Shar. NPV | P19: Shar. NPV | Q19: Shar. NPV | R19: Investment | S19: Investment | T19: Investment | U19: Investment
D20: Market | E20: Customer | F20: Shareholder | H20: w/ prob. | I20: w/o prob. | J20: w/ prob. | K20: w/o prob. | L20: Total | M20: Probabilistic | N20: Other | O20: Total | P20: Probabilistic | Q20: Other | R20: Total | S20: Capex | T20: Future | U20: Opex
D22: =Calcs!$E$15 -> 0.6288924078 | E22: =Calcs!$F$15 -> 0.6162251688 | F22: =Calcs!$G$15 -> 0.6391882242 | H22: =$J$22/-$R$22 -> 3.966119512 | I22: =$K$22/-$R$22 -> -4.444592287 | J22: =$L$22+$O$22 -> 152032745.5 | K22: =$N$22+$Q$22 -> -170373980.4 | L22: =Calcs!$K$448 -> 35065323.07 | M22: =SUM(Calcs!$K$421:$K$446) -> 178952401.5 | N22: =$L$22-$M$22 -> -143887078.5 | O22: =Calcs!$K$369 -> 116967422.4 | P22: =SUM(Calcs!$K$342:$K$367) -> 143454324.3 | Q22: =$O$22-$P$22 -> -26486901.88 | R22: =$S$22+$T$22+$U$22 -> -38332870.46 | S22: =Calcs!$K$304 -> -31580586.32 | T22: =Calcs!$K$309 -> 0 | U22: =Calcs!$K$331 -> -6752284.133
C24: Additional investment cost breakdown
D29: Investment breakdown over time | J29: ="FY"&RIGHT(Assumptions!$L$19+J377,2) -> FY24 | K29: ="FY"&RIGHT(Assumptions!$L$19+K377,2) -> FY25 | L29: ="FY"&RIGHT(Assumptions!$L$19+L377,2) -> FY26 | M29: ="FY"&RIGHT(Assumptions!$L$19+M377,2) -> FY27 | N29: ="FY"&RIGHT(Assumptions!$L$19+N377,2) -> FY28 | O29: ="FY"&RIGHT(Assumptions!$L$19+O377,2) -> FY29 | P29: ="FY"&RIGHT(Assumptions!$L$19+P377,2) -> FY30 | Q29: ="FY"&RIGHT(Assumptions!$L$19+Q377,2) -> FY31 | R29: ="FY"&RIGHT(Assumptions!$L$19+R377,2) -> FY32 | S29: ="FY"&RIGHT(Assumptions!$L$19+S377,2) -> FY33 | T29: ="FY"&RIGHT(Assumptions!$L$19+T377,2) -> FY34 | U29: ="FY"&RIGHT(Assumptions!$L$19+U377,2) -> FY35 | V29: ="FY"&RIGHT(Assumptions!$L$19+V377,2) -> FY36 | W29: ="FY"&RIGHT(Assumptions!$L$19+W377,2) -> FY37 | X29: ="FY"&RIGHT(Assumptions!$L$19+X377,2) -> FY38 | Y29: ="FY"&RIGHT(Assumptions!$L$19+Y377,2) -> FY39 | Z29: ="FY"&RIGHT(Assumptions!$L$19+Z377,2) -> FY40 | AA29: ="FY"&RIGHT(Assumptions!$L$19+AA377,2) -> FY41 | AB29: ="FY"&RIGHT(Assumptions!$L$19+AB377,2) -> FY42 | AC29: ="FY"&RIGHT(Assumptions!$L$19+AC377,2) -> FY43 | AD29: ="FY"&RIGHT(Assumptions!$L$19+AD377,2) -> FY44 | AE29: ="FY"&RIGHT(Assumptions!$L$19+AE377,2) -> FY45 | AF29: ="FY"&RIGHT(Assumptions!$L$19+AF377,2) -> FY46 | AG29: ="FY"&RIGHT(Assumptions!$L$19+AG377,2) -> FY47 | AH29: ="FY"&RIGHT(Assumptions!$L$19+AH377,2) -> FY48 | AI29: ="FY"&RIGHT(Assumptions!$L$19+AI377,2) -> FY49 | AJ29: ="FY"&RIGHT(Assumptions!$L$19+AJ377,2) -> FY50 | AK29: ="FY"&RIGHT(Assumptions!$L$19+AK377,2) -> FY51 | AL29: ="FY"&RIGHT(Assumptions!$L$19+AL377,2) -> FY52 | AM29: ="FY"&RIGHT(Assumptions!$L$19+AM377,2) -> FY53 | AN29: ="FY"&RIGHT(Assumptions!$L$19+AN377,2) -> FY54 | AO29: ="FY"&RIGHT(Assumptions!$L$19+AO377,2) -> FY55 | AP29: ="FY"&RIGHT(Assumptions!$L$19+AP377,2) -> FY56 | AQ29: ="FY"&RIGHT(Assumptions!$L$19+AQ377,2) -> FY57 | AR29: ="FY"&RIGHT(Assumptions!$L$19+AR377,2) -> FY58 | AS29: ="FY"&RIGHT(Assumptions!$L$19+AS377,2) -> FY59 | AT29: ="FY"&RIGHT(Assumptions!$L$19+AT377,2) -> FY60 | AU29: ="FY"&RIGHT(Assumptions!$L$19+AU377,2) -> FY61 | AV29: ="FY"&RIGHT(Assumptions!$L$19+AV377,2) -> FY62 | AW29: ="FY"&RIGHT(Assumptions!$L$19+AW377,2) -> FY63 | AX29: ="FY"&RIGHT(Assumptions!$L$19+AX377,2) -> FY64 | AY29: ="FY"&RIGHT(Assumptions!$L$19+AY377,2) -> FY65 | AZ29: ="FY"&RIGHT(Assumptions!$L$19+AZ377,2) -> FY66 | BA29: ="FY"&RIGHT(Assumptions!$L$19+BA377,2) -> FY67 | BB29: ="FY"&RIGHT(Assumptions!$L$19+BB377,2) -> FY68 | BC29: ="FY"&RIGHT(Assumptions!$L$19+BC377,2) -> FY69 | BD29: ="FY"&RIGHT(Assumptions!$L$19+BD377,2) -> FY70 | BE29: ="FY"&RIGHT(Assumptions!$L$19+BE377,2) -> FY71 | BF29: ="FY"&RIGHT(Assumptions!$L$19+BF377,2) -> FY72 | BG29: ="FY"&RIGHT(Assumptions!$L$19+BG377,2) -> FY73 | BH29: ="FY"&RIGHT(Assumptions!$L$19+BH377,2) -> FY74
D31: Capex cost excl Land | I31: =SUM(J31:BH31) -> -34835304.99 | J31: =SUM(J32:J36) -> 0 | K31: =SUM(K32:K36) -> -7360437.521 | L31: -6662150.413 | M31: -8017158.58 | N31: -6544862.115 | O31: -6250696.363 | P31: 0 | Q31: 0 | R31: 0 | S31: 0 | T31: 0 | U31: 0 | V31: 0 | W31: 0 | X31: 0 | Y31: 0 | Z31: 0 | AA31: 0 | AB31: 0 | AC31: 0 | AD31: 0 | AE31: 0 | AF31: 0 | AG31: 0 | AH31: 0 | AI31: 0 | AJ31: 0 | AK31: 0 | AL31: 0 | AM31: 0 | AN31: 0 | AO31: 0 | AP31: 0 | AQ31: 0 | AR31: 0 | AS31: 0 | AT31: 0 | AU31: 0 | AV31: 0 | AW31: 0 | AX31: 0 | AY31: 0 | AZ31: 0 | BA31: 0 | BB31: 0 | BC31: 0 | BD31: 0 | BE31: 0 | BF31: 0 | BG31: 0 | BH31: =SUM(BH32:BH36) -> 0
D32: Direct labour | I32: =SUM(J32:BH32) -> 0 | J32: =SUMIF(Input!$D$67:$D$108,Output_charts!$D32,Input!R$67:R$108) -> 0 | K32: =SUMIF(Input!$D$67:$D$108,Output_charts!$D32,Input!S$67:S$108) -> 0 | L32: =SUMIF(Input!$D$67:$D$108,Output_charts!$D32,Input!T$67:T$108) -> 0 | M32: =SUMIF(Input!$D$67:$D$108,Output_charts!$D32,Input!U$67:U$108) -> 0 | N32: =SUMIF(Input!$D$67:$D$108,Output_charts!$D32,Input!V$67:V$108) -> 0 | O32: =SUMIF(Input!$D$67:$D$108,Output_charts!$D32,Input!W$67:W$108) -> 0 | P32: =SUMIF(Input!$D$67:$D$108,Output_charts!$D32,Input!X$67:X$108) -> 0 | Q32: =SUMIF(Input!$D$67:$D$108,Output_charts!$D32,Input!Y$67:Y$108) -> 0 | R32: =SUMIF(Input!$D$67:$D$108,Output_charts!$D32,Input!Z$67:Z$108) -> 0 | S32: =SUMIF(Input!$D$67:$D$108,Output_charts!$D32,Input!AA$67:AA$108) -> 0 | T32: =SUMIF(Input!$D$67:$D$108,Output_charts!$D32,Input!AB$67:AB$108) -> 0 | U32: =SUMIF(Input!$D$67:$D$108,Output_charts!$D32,Input!AC$67:AC$108) -> 0 | V32: =SUMIF(Input!$D$67:$D$108,Output_charts!$D32,Input!AD$67:AD$108) -> 0 | W32: =SUMIF(Input!$D$67:$D$108,Output_charts!$D32,Input!AE$67:AE$108) -> 0 | X32: =SUMIF(Input!$D$67:$D$108,Output_charts!$D32,Input!AF$67:AF$108) -> 0 | Y32: =SUMIF(Input!$D$67:$D$108,Output_charts!$D32,Input!AG$67:AG$108) -> 0 | Z32: =SUMIF(Input!$D$67:$D$108,Output_charts!$D32,Input!AH$67:AH$108) -> 0 | AA32: =SUMIF(Input!$D$67:$D$108,Output_charts!$D32,Input!AI$67:AI$108) -> 0 | AB32: =SUMIF(Input!$D$67:$D$108,Output_charts!$D32,Input!AJ$67:AJ$108) -> 0 | AC32: =SUMIF(Input!$D$67:$D$108,Output_charts!$D32,Input!AK$67:AK$108) -> 0 | AD32: =SUMIF(Input!$D$67:$D$108,Output_charts!$D32,Input!AL$67:AL$108) -> 0 | AE32: =SUMIF(Input!$D$67:$D$108,Output_charts!$D32,Input!AM$67:AM$108) -> 0 | AF32: =SUMIF(Input!$D$67:$D$108,Output_charts!$D32,Input!AN$67:AN$108) -> 0 | AG32: =SUMIF(Input!$D$67:$D$108,Output_charts!$D32,Input!AO$67:AO$108) -> 0 | AH32: =SUMIF(Input!$D$67:$D$108,Output_charts!$D32,Input!AP$67:AP$108) -> 0 | AI32: =SUMIF(Input!$D$67:$D$108,Output_charts!$D32,Input!AQ$67:AQ$108) -> 0 | AJ32: =SUMIF(Input!$D$67:$D$108,Output_charts!$D32,Input!AR$67:AR$108) -> 0 | AK32: =SUMIF(Input!$D$67:$D$108,Output_charts!$D32,Input!AS$67:AS$108) -> 0 | AL32: =SUMIF(Input!$D$67:$D$108,Output_charts!$D32,Input!AT$67:AT$108) -> 0 | AM32: =SUMIF(Input!$D$67:$D$108,Output_charts!$D32,Input!AU$67:AU$108) -> 0 | AN32: =SUMIF(Input!$D$67:$D$108,Output_charts!$D32,Input!AV$67:AV$108) -> 0 | AO32: =SUMIF(Input!$D$67:$D$108,Output_charts!$D32,Input!AW$67:AW$108) -> 0 | AP32: =SUMIF(Input!$D$67:$D$108,Output_charts!$D32,Input!AX$67:AX$108) -> 0 | AQ32: =SUMIF(Input!$D$67:$D$108,Output_charts!$D32,Input!AY$67:AY$108) -> 0 | AR32: =SUMIF(Input!$D$67:$D$108,Output_charts!$D32,Input!AZ$67:AZ$108) -> 0 | AS32: =SUMIF(Input!$D$67:$D$108,Output_charts!$D32,Input!BA$67:BA$108) -> 0 | AT32: =SUMIF(Input!$D$67:$D$108,Output_charts!$D32,Input!BB$67:BB$108) -> 0 | AU32: =SUMIF(Input!$D$67:$D$108,Output_charts!$D32,Input!BC$67:BC$108) -> 0 | AV32: =SUMIF(Input!$D$67:$D$108,Output_charts!$D32,Input!BD$67:BD$108) -> 0 | AW32: =SUMIF(Input!$D$67:$D$108,Output_charts!$D32,Input!BE$67:BE$108) -> 0 | AX32: =SUMIF(Input!$D$67:$D$108,Output_charts!$D32,Input!BF$67:BF$108) -> 0 | AY32: =SUMIF(Input!$D$67:$D$108,Output_charts!$D32,Input!BG$67:BG$108) -> 0 | AZ32: =SUMIF(Input!$D$67:$D$108,Output_charts!$D32,Input!BH$67:BH$108) -> 0 | BA32: =SUMIF(Input!$D$67:$D$108,Output_charts!$D32,Input!BI$67:BI$108) -> 0 | BB32: =SUMIF(Input!$D$67:$D$108,Output_charts!$D32,Input!BJ$67:BJ$108) -> 0 | BC32: =SUMIF(Input!$D$67:$D$108,Output_charts!$D32,Input!BK$67:BK$108) -> 0 | BD32: =SUMIF(Input!$D$67:$D$108,Output_charts!$D32,Input!BL$67:BL$108) -> 0 | BE32: =SUMIF(Input!$D$67:$D$108,Output_charts!$D32,Input!BM$67:BM$108) -> 0 | BF32: =SUMIF(Input!$D$67:$D$108,Output_charts!$D32,Input!BN$67:BN$108) -> 0 | BG32: =SUMIF(Input!$D$67:$D$108,Output_charts!$D32,Input!BO$67:BO$108) -> 0 | BH32: =SUMIF(Input!$D$67:$D$108,Output_charts!$D32,Input!BP$67:BP$108) -> 0
D33: Materials | I33: 0 | J33: =SUMIF(Input!$D$67:$D$108,Output_charts!$D33,Input!R$67:R$108) -> 0 | K33: =SUMIF(Input!$D$67:$D$108,Output_charts!$D33,Input!S$67:S$108) -> 0 | L33: =SUMIF(Input!$D$67:$D$108,Output_charts!$D33,Input!T$67:T$108) -> 0 | M33: =SUMIF(Input!$D$67:$D$108,Output_charts!$D33,Input!U$67:U$108) -> 0 | N33: =SUMIF(Input!$D$67:$D$108,Output_charts!$D33,Input!V$67:V$108) -> 0 | O33: =SUMIF(Input!$D$67:$D$108,Output_charts!$D33,Input!W$67:W$108) -> 0 | P33: =SUMIF(Input!$D$67:$D$108,Output_charts!$D33,Input!X$67:X$108) -> 0 | Q33: =SUMIF(Input!$D$67:$D$108,Output_charts!$D33,Input!Y$67:Y$108) -> 0 | R33: =SUMIF(Input!$D$67:$D$108,Output_charts!$D33,Input!Z$67:Z$108) -> 0 | S33: =SUMIF(Input!$D$67:$D$108,Output_charts!$D33,Input!AA$67:AA$108) -> 0 | T33: =SUMIF(Input!$D$67:$D$108,Output_charts!$D33,Input!AB$67:AB$108) -> 0 | U33: =SUMIF(Input!$D$67:$D$108,Output_charts!$D33,Input!AC$67:AC$108) -> 0 | V33: =SUMIF(Input!$D$67:$D$108,Output_charts!$D33,Input!AD$67:AD$108) -> 0 | W33: =SUMIF(Input!$D$67:$D$108,Output_charts!$D33,Input!AE$67:AE$108) -> 0 | X33: =SUMIF(Input!$D$67:$D$108,Output_charts!$D33,Input!AF$67:AF$108) -> 0 | Y33: =SUMIF(Input!$D$67:$D$108,Output_charts!$D33,Input!AG$67:AG$108) -> 0 | Z33: =SUMIF(Input!$D$67:$D$108,Output_charts!$D33,Input!AH$67:AH$108) -> 0 | AA33: =SUMIF(Input!$D$67:$D$108,Output_charts!$D33,Input!AI$67:AI$108) -> 0 | AB33: =SUMIF(Input!$D$67:$D$108,Output_charts!$D33,Input!AJ$67:AJ$108) -> 0 | AC33: =SUMIF(Input!$D$67:$D$108,Output_charts!$D33,Input!AK$67:AK$108) -> 0 | AD33: =SUMIF(Input!$D$67:$D$108,Output_charts!$D33,Input!AL$67:AL$108) -> 0 | AE33: =SUMIF(Input!$D$67:$D$108,Output_charts!$D33,Input!AM$67:AM$108) -> 0 | AF33: =SUMIF(Input!$D$67:$D$108,Output_charts!$D33,Input!AN$67:AN$108) -> 0 | AG33: =SUMIF(Input!$D$67:$D$108,Output_charts!$D33,Input!AO$67:AO$108) -> 0 | AH33: =SUMIF(Input!$D$67:$D$108,Output_charts!$D33,Input!AP$67:AP$108) -> 0 | AI33: =SUMIF(Input!$D$67:$D$108,Output_charts!$D33,Input!AQ$67:AQ$108) -> 0 | AJ33: =SUMIF(Input!$D$67:$D$108,Output_charts!$D33,Input!AR$67:AR$108) -> 0 | AK33: =SUMIF(Input!$D$67:$D$108,Output_charts!$D33,Input!AS$67:AS$108) -> 0 | AL33: =SUMIF(Input!$D$67:$D$108,Output_charts!$D33,Input!AT$67:AT$108) -> 0 | AM33: =SUMIF(Input!$D$67:$D$108,Output_charts!$D33,Input!AU$67:AU$108) -> 0 | AN33: =SUMIF(Input!$D$67:$D$108,Output_charts!$D33,Input!AV$67:AV$108) -> 0 | AO33: =SUMIF(Input!$D$67:$D$108,Output_charts!$D33,Input!AW$67:AW$108) -> 0 | AP33: =SUMIF(Input!$D$67:$D$108,Output_charts!$D33,Input!AX$67:AX$108) -> 0 | AQ33: =SUMIF(Input!$D$67:$D$108,Output_charts!$D33,Input!AY$67:AY$108) -> 0 | AR33: =SUMIF(Input!$D$67:$D$108,Output_charts!$D33,Input!AZ$67:AZ$108) -> 0 | AS33: =SUMIF(Input!$D$67:$D$108,Output_charts!$D33,Input!BA$67:BA$108) -> 0 | AT33: =SUMIF(Input!$D$67:$D$108,Output_charts!$D33,Input!BB$67:BB$108) -> 0 | AU33: =SUMIF(Input!$D$67:$D$108,Output_charts!$D33,Input!BC$67:BC$108) -> 0 | AV33: =SUMIF(Input!$D$67:$D$108,Output_charts!$D33,Input!BD$67:BD$108) -> 0 | AW33: =SUMIF(Input!$D$67:$D$108,Output_charts!$D33,Input!BE$67:BE$108) -> 0 | AX33: =SUMIF(Input!$D$67:$D$108,Output_charts!$D33,Input!BF$67:BF$108) -> 0 | AY33: =SUMIF(Input!$D$67:$D$108,Output_charts!$D33,Input!BG$67:BG$108) -> 0 | AZ33: =SUMIF(Input!$D$67:$D$108,Output_charts!$D33,Input!BH$67:BH$108) -> 0 | BA33: =SUMIF(Input!$D$67:$D$108,Output_charts!$D33,Input!BI$67:BI$108) -> 0 | BB33: =SUMIF(Input!$D$67:$D$108,Output_charts!$D33,Input!BJ$67:BJ$108) -> 0 | BC33: =SUMIF(Input!$D$67:$D$108,Output_charts!$D33,Input!BK$67:BK$108) -> 0 | BD33: =SUMIF(Input!$D$67:$D$108,Output_charts!$D33,Input!BL$67:BL$108) -> 0 | BE33: =SUMIF(Input!$D$67:$D$108,Output_charts!$D33,Input!BM$67:BM$108) -> 0 | BF33: =SUMIF(Input!$D$67:$D$108,Output_charts!$D33,Input!BN$67:BN$108) -> 0 | BG33: =SUMIF(Input!$D$67:$D$108,Output_charts!$D33,Input!BO$67:BO$108) -> 0 | BH33: =SUMIF(Input!$D$67:$D$108,Output_charts!$D33,Input!BP$67:BP$108) -> 0
D34: Contracted services | I34: 0 | J34: =SUMIF(Input!$D$67:$D$108,Output_charts!$D34,Input!R$67:R$108) -> 0 | K34: =SUMIF(Input!$D$67:$D$108,Output_charts!$D34,Input!S$67:S$108) -> 0 | L34: =SUMIF(Input!$D$67:$D$108,Output_charts!$D34,Input!T$67:T$108) -> 0 | M34: =SUMIF(Input!$D$67:$D$108,Output_charts!$D34,Input!U$67:U$108) -> 0 | N34: =SUMIF(Input!$D$67:$D$108,Output_charts!$D34,Input!V$67:V$108) -> 0 | O34: =SUMIF(Input!$D$67:$D$108,Output_charts!$D34,Input!W$67:W$108) -> 0 | P34: =SUMIF(Input!$D$67:$D$108,Output_charts!$D34,Input!X$67:X$108) -> 0 | Q34: =SUMIF(Input!$D$67:$D$108,Output_charts!$D34,Input!Y$67:Y$108) -> 0 | R34: =SUMIF(Input!$D$67:$D$108,Output_charts!$D34,Input!Z$67:Z$108) -> 0 | S34: =SUMIF(Input!$D$67:$D$108,Output_charts!$D34,Input!AA$67:AA$108) -> 0 | T34: =SUMIF(Input!$D$67:$D$108,Output_charts!$D34,Input!AB$67:AB$108) -> 0 | U34: =SUMIF(Input!$D$67:$D$108,Output_charts!$D34,Input!AC$67:AC$108) -> 0 | V34: =SUMIF(Input!$D$67:$D$108,Output_charts!$D34,Input!AD$67:AD$108) -> 0 | W34: =SUMIF(Input!$D$67:$D$108,Output_charts!$D34,Input!AE$67:AE$108) -> 0 | X34: =SUMIF(Input!$D$67:$D$108,Output_charts!$D34,Input!AF$67:AF$108) -> 0 | Y34: =SUMIF(Input!$D$67:$D$108,Output_charts!$D34,Input!AG$67:AG$108) -> 0 | Z34: =SUMIF(Input!$D$67:$D$108,Output_charts!$D34,Input!AH$67:AH$108) -> 0 | AA34: =SUMIF(Input!$D$67:$D$108,Output_charts!$D34,Input!AI$67:AI$108) -> 0 | AB34: =SUMIF(Input!$D$67:$D$108,Output_charts!$D34,Input!AJ$67:AJ$108) -> 0 | AC34: =SUMIF(Input!$D$67:$D$108,Output_charts!$D34,Input!AK$67:AK$108) -> 0 | AD34: =SUMIF(Input!$D$67:$D$108,Output_charts!$D34,Input!AL$67:AL$108) -> 0 | AE34: =SUMIF(Input!$D$67:$D$108,Output_charts!$D34,Input!AM$67:AM$108) -> 0 | AF34: =SUMIF(Input!$D$67:$D$108,Output_charts!$D34,Input!AN$67:AN$108) -> 0 | AG34: =SUMIF(Input!$D$67:$D$108,Output_charts!$D34,Input!AO$67:AO$108) -> 0 | AH34: =SUMIF(Input!$D$67:$D$108,Output_charts!$D34,Input!AP$67:AP$108) -> 0 | AI34: =SUMIF(Input!$D$67:$D$108,Output_charts!$D34,Input!AQ$67:AQ$108) -> 0 | AJ34: =SUMIF(Input!$D$67:$D$108,Output_charts!$D34,Input!AR$67:AR$108) -> 0 | AK34: =SUMIF(Input!$D$67:$D$108,Output_charts!$D34,Input!AS$67:AS$108) -> 0 | AL34: =SUMIF(Input!$D$67:$D$108,Output_charts!$D34,Input!AT$67:AT$108) -> 0 | AM34: =SUMIF(Input!$D$67:$D$108,Output_charts!$D34,Input!AU$67:AU$108) -> 0 | AN34: =SUMIF(Input!$D$67:$D$108,Output_charts!$D34,Input!AV$67:AV$108) -> 0 | AO34: =SUMIF(Input!$D$67:$D$108,Output_charts!$D34,Input!AW$67:AW$108) -> 0 | AP34: =SUMIF(Input!$D$67:$D$108,Output_charts!$D34,Input!AX$67:AX$108) -> 0 | AQ34: =SUMIF(Input!$D$67:$D$108,Output_charts!$D34,Input!AY$67:AY$108) -> 0 | AR34: =SUMIF(Input!$D$67:$D$108,Output_charts!$D34,Input!AZ$67:AZ$108) -> 0 | AS34: =SUMIF(Input!$D$67:$D$108,Output_charts!$D34,Input!BA$67:BA$108) -> 0 | AT34: =SUMIF(Input!$D$67:$D$108,Output_charts!$D34,Input!BB$67:BB$108) -> 0 | AU34: =SUMIF(Input!$D$67:$D$108,Output_charts!$D34,Input!BC$67:BC$108) -> 0 | AV34: =SUMIF(Input!$D$67:$D$108,Output_charts!$D34,Input!BD$67:BD$108) -> 0 | AW34: =SUMIF(Input!$D$67:$D$108,Output_charts!$D34,Input!BE$67:BE$108) -> 0 | AX34: =SUMIF(Input!$D$67:$D$108,Output_charts!$D34,Input!BF$67:BF$108) -> 0 | AY34: =SUMIF(Input!$D$67:$D$108,Output_charts!$D34,Input!BG$67:BG$108) -> 0 | AZ34: =SUMIF(Input!$D$67:$D$108,Output_charts!$D34,Input!BH$67:BH$108) -> 0 | BA34: =SUMIF(Input!$D$67:$D$108,Output_charts!$D34,Input!BI$67:BI$108) -> 0 | BB34: =SUMIF(Input!$D$67:$D$108,Output_charts!$D34,Input!BJ$67:BJ$108) -> 0 | BC34: =SUMIF(Input!$D$67:$D$108,Output_charts!$D34,Input!BK$67:BK$108) -> 0 | BD34: =SUMIF(Input!$D$67:$D$108,Output_charts!$D34,Input!BL$67:BL$108) -> 0 | BE34: =SUMIF(Input!$D$67:$D$108,Output_charts!$D34,Input!BM$67:BM$108) -> 0 | BF34: =SUMIF(Input!$D$67:$D$108,Output_charts!$D34,Input!BN$67:BN$108) -> 0 | BG34: =SUMIF(Input!$D$67:$D$108,Output_charts!$D34,Input!BO$67:BO$108) -> 0 | BH34: =SUMIF(Input!$D$67:$D$108,Output_charts!$D34,Input!BP$67:BP$108) -> 0
